Workbook

Sheet Kuntakortti
A1: Valtiovarainministeriö/Kunta- ja aluehallinto-osasto,5.6.2017
A2: KUNTIEN LOPULLISET TP:T 2014-2015 JA TPENNAKKO 2016 | G2: Valitse kunta valikosta:
A4: =INDEX(Luvut!$B$3:'Luvut'!$B$300,$A$7) -> KOKO MAA (Manner-Suomi) | D4: 2014 | G4: 2015 | J4: 2016
A6: Asukasluku | D6: =VLOOKUP($A$4,Luvut!$B$3:$AT$300,2) -> 5442837 | G6: =VLOOKUP($A$4,Luvut!$B$3:$ED$300,46) -> 5458325 | I6: =((G6/D6)-1)*100 -> 0.2845574835 | J6: =VLOOKUP($A$4,Luvut!$B$3:$ED$300,90) -> 5474083 | L6: =((J6/G6)-1)*100 -> 0.288696624
A7: 97
A8: Tunnuslukuja
I9: muut.% | L9: muut.% | N9: Konsernivelka | O9: Konsernivelka | P9: Konsernivelka
A10: Lainat, euro/as | D10: =E67 -> 2696.598667 | G10: =H67 -> 2840.501985 | I10: =((G10/D10)-1)*100 -> 5.33647517 | J10: =K67 -> 2939.107244 | L10: =((J10/G10)-1)*100 -> 3.471402558 | N10: 2014, milj. € | O10: 2015, milj. € | P10: 2016, milj. €
A11: Konsernilainat, euro/as | D11: =VLOOKUP($A$4,Luvut!$B$3:$FM$300,167) -> 5774 | G11: =VLOOKUP($A$4,Luvut!$B$3:$FM$300,168) -> 5987 | I11: =((G11/D11)-1)*100 -> 3.688950468 | J11: =VLOOKUP($A$4,Luvut!$B$3:$FN$300,169) -> 6157.971789 | L11: =((J11/G11)-1)*100 -> 2.855717202 | N11: =D11*D6 -> 31426940838 | O11: =G11*G6 -> 32678991775 | P11: =J11*J6 -> 3.370924868e+10
A12: Lainanhoitokate | D12: =VLOOKUP($A$4,Luvut!$B$3:$AT$300,4) -> 1.2 | G12: =VLOOKUP($A$4,Luvut!$B$3:$ED$300,48) -> 1.06 | J12: =VLOOKUP($A$4,Luvut!$B$3:$ED$300,92) -> 1.384519226
A13: Suhteellinen velkaantuneisuus, % | D13: =VLOOKUP($A$4,Luvut!$B$3:$AT$300,5) -> 52 | G13: =VLOOKUP($A$4,Luvut!$B$3:$ED$300,49) -> 54.9 | J13: =VLOOKUP($A$4,Luvut!$B$3:$ED$300,93) -> 55.69452701
A14: Rahoitusvarallisuus, euro/as | D14: =VLOOKUP($A$4,Luvut!$B$3:$AT$300,6) -> -2415 | G14: =VLOOKUP($A$4,Luvut!$B$3:$ED$300,50) -> -2611.638919 | J14: =VLOOKUP($A$4,Luvut!$B$3:$ED$300,94) -> -2634.581354
A15: Omavaraisuusaste, % | D15: =VLOOKUP($A$4,Luvut!$B$3:$AT$300,10) -> 61 | G15: =VLOOKUP($A$4,Luvut!$B$3:$ED$300,54) -> 60.17 | J15: =VLOOKUP($A$4,Luvut!$B$3:$ED$300,98) -> 59.79025776
A17: Rahavarat, euro/as | D17: =VLOOKUP($A$4,Luvut!$B$3:$AT$300,11) -> 790 | G17: =VLOOKUP($A$4,Luvut!$B$3:$ED$300,55) -> 753.7812424 | J17: =VLOOKUP($A$4,Luvut!$B$3:$ED$300,99) -> 839.0568795
A18: Kassan riittävyys, pv | D18: =VLOOKUP($A$4,Luvut!$B$3:$AT$300,12) -> 34 | G18: =VLOOKUP($A$4,Luvut!$B$3:$ED$300,56) -> 37.9407675 | J18: =VLOOKUP($A$4,Luvut!$B$3:$ED$300,100) -> 39.98570494
A19: Kassastamaksut, euro/as | D19: =VLOOKUP($A$4,Luvut!$B$3:$AT$300,13) -> 8466 | G19: =VLOOKUP($A$4,Luvut!$B$3:$ED$300,57) -> 7251.570583 | J19: =VLOOKUP($A$4,Luvut!$B$3:$ED$300,101) -> 7.659131219 | N19: 2014 - 2015 | O19: 2015 - 2016
A20: Tuloslaskelma | D20: 1000 | E20: euro/as | G20: 1000 | H20: euro/as | I20: muut.% | J20: 1000 | K20: euro/as | L20: muut.% | N20: €/as | O20: €/as
A22: Henkilöstömenot (palkat+sivukulut) | D22: =VLOOKUP($A$4,Luvut!$B$3:$AX$300,14) -> 14767904 | E22: =D22*1000/$D$6 -> 2713.273243 | G22: =VLOOKUP($A$4,Luvut!$B$3:$ED$300,58) -> 14616405 | H22: =G22*1000/$G$6 -> 2677.818745 | I22: =((G22/D22)-1)*100 -> -1.025866636 | J22: =VLOOKUP($A$4,Luvut!$B$3:$ED$300,102) -> 14413075 | K22: =J22*1000/$J$6 -> 2632.966106 | L22: =((J22/G22)-1)*100 -> -1.391108142 | N22: =((H22/E22)-1)*100 -> -1.306705791 | O22: =((K22/H22)-1)*100 -> -1.674969186
A23: Palvelujen ostot | D23: =VLOOKUP($A$4,Luvut!$B$3:$EF$300,134) -> 15975867 | E23: =D23*1000/$D$6 -> 2935.209524 | G23: =VLOOKUP($A$4,Luvut!$B$3:$EF$300,135) -> 16399784 | H23: =G23*1000/$G$6 -> 3004.545167 | I23: =((G23/D23)-1)*100 -> 2.653483532 | J23: =VLOOKUP($A$4,Luvut!$B$3:$EG$300,136) -> 16635937 | K23: =J23*1000/$J$6 -> 3039.03631 | L23: =((J23/G23)-1)*100 -> 1.439976283 | N23: =((H23/E23)-1)*100 -> 2.36220422 | O23: =((K23/H23)-1)*100 -> 1.147965521
A24: Toimintatuotot, sis. valmistus omaan käyt. | D24: =VLOOKUP($A$4,Luvut!$B$3:$AT$300,15) -> 9119940 | E24: =D24*1000/$D$6 -> 1675.585729 | G24: =VLOOKUP($A$4,Luvut!$B$3:$ED$300,59) -> 8028689 | H24: =G24*1000/$G$6 -> 1470.907101 | I24: -11.96555021 | J24: =VLOOKUP($A$4,Luvut!$B$3:$ED$300,103) -> 8072125 | K24: =J24*1000/$J$6 -> 1474.607711 | L24: 0.541009871 | N24: -12.21534801 | O24: 0.2515869241
A25: Toimintakulut | D25: =VLOOKUP($A$4,Luvut!$B$3:$AT$300,16) -> 36434169 | E25: =D25*1000/$D$6 -> 6693.966584 | G25: =VLOOKUP($A$4,Luvut!$B$3:$ED$300,60) -> 36334056 | H25: =G25*1000/$G$6 -> 6656.631109 | I25: -0.274777778 | J25: =VLOOKUP($A$4,Luvut!$B$3:$ED$300,104) -> 36517141 | K25: =J25*1000/$J$6 -> 6670.914745 | L25: 0.5038936473 | N25: -0.5577481474 | O25: 0.2145775452
A26: Toimintakate | D26: =VLOOKUP($A$4,Luvut!$B$3:$AT$300,17) -> -27314229 | E26: -5018.380855 | G26: =VLOOKUP($A$4,Luvut!$B$3:$ED$300,61) -> -28305219 | H26: -5185.696894 | I26: 3.628108998 | J26: =VLOOKUP($A$4,Luvut!$B$3:$ED$300,105) -> -28445032 | K26: =J26*1000/$J$6 -> -5196.309957 | L26: 0.4939477769 | N26: 3.334064185 | O26: =((K26/H26)-1)*100 -> 0.2046603056
A28: Verotulot | D28: =VLOOKUP($A$4,Luvut!$B$3:$AT$300,18) -> 21068274 | E28: 3870.825821 | G28: =VLOOKUP($A$4,Luvut!$B$3:$ED$300,62) -> 21662871 | H28: 3968.776319 | I28: 2.822238784 | J28: =VLOOKUP($A$4,Luvut!$B$3:$ED$300,106) -> 21987603 | K28: =J28*1000/$J$6 -> 4016.673295 | L28: 1.499025683 | N28: 2.530480629 | O28: 1.206844939
A29: Valtionosuudet, | D29: =VLOOKUP($A$4,Luvut!$B$3:$AT$300,19) -> 8160993 | E29: 1499.400588 | G29: =VLOOKUP($A$4,Luvut!$B$3:$ED$300,63) -> 8196322 | H29: 1501.618537 | I29: 0.4329007512 | J29: =VLOOKUP($A$4,Luvut!$B$3:$ED$300,107) -> 8792091 | K29: =J29*1000/$J$6 -> 1606.130378 | L29: 7.268735904 | N29: 0.1479223435 | O29: 6.95994615
A30: josta hark.var. vos-korotus | D30: =VLOOKUP($A$4,Luvut!$B$3:$EI$300,137) -> 20000 | E30: 3.674554281 | G30: (ei määrärahaa 2015) | J30: (ei määrärahaa 2016)
A31: Verorahoitus | D31: =SUM(D28:D29) -> 29229267 | E31: 5370.226409 | G31: =SUM(G28:G29) -> 29859193 | H31: 5470.394856 | I31: 2.155120756 | J31: =SUM(J28:J29) -> 30779694 | K31: =J31*1000/$J$6 -> 5622.803673 | L31: 3.082806022 | N31: 1.865255548 | O31: 2.786066119
A32: Käyttökate | D32: =D31+D26 -> 1915038 | E32: 351.8455541 | G32: =G26+G31 -> 1553974 | H32: 284.6979614 | J32: =J26+J31 -> 2334662 | K32: =J32*1000/$J$6 -> 426.4937159
A34: Korkotuotot/-menot, netto | D34: =VLOOKUP($A$4,Luvut!$B$3:$AT$300,22) -> -14727 | E34: -2.705758045 | G34: =VLOOKUP($A$4,Luvut!$B$3:$ED$300,66) -> 56439 | H34: 10.33998525 | J34: =VLOOKUP($A$4,Luvut!$B$3:$ED$300,110) -> 68348 | K34: =J34*1000/$J$6 -> 12.48574419
A35: Muut rahoituskulut/-tuotot, netto | D35: =VLOOKUP($A$4,Luvut!$B$3:$AT$300,23) -> 295035 | E35: 54.20610612 | G35: =VLOOKUP($A$4,Luvut!$B$3:$ED$300,67) -> 482808 | H35: 88.45350909 | J35: =VLOOKUP($A$4,Luvut!$B$3:$ED$300,111) -> 292135 | K35: =J35*1000/$J$6 -> 53.36692922
A36: Vuosikate | D36: =VLOOKUP($A$4,Luvut!$B$3:$AT$300,24) -> 2195426 | E36: 403.3606004 | G36: =VLOOKUP($A$4,Luvut!$B$3:$ED$300,68) -> 1894705 | H36: 347.1220567 | J36: =VLOOKUP($A$4,Luvut!$B$3:$ED$300,112) -> 2695145 | K36: =J36*1000/$J$6 -> 492.3463893
A38: Suunnitelman mukaiset poistot ja arvonalen. | D38: =VLOOKUP($A$4,Luvut!$B$3:$AT$300,25) -> 2065374 | E38: 379.4664437 | G38: =VLOOKUP($A$4,Luvut!$B$3:$ED$300,69) -> 2081911 | H38: 381.4193915 | I38: 0.8006782307 | J38: =VLOOKUP($A$4,Luvut!$B$3:$ED$300,113) -> 2114293 | K38: =J38*1000/$J$6 -> 386.2369277 | L38: 1.555397901
A39: Satunnaiset tuotot | D39: =VLOOKUP($A$4,Luvut!$B$3:$AT$300,26) -> 1946732 | E39: 357.6686202 | G39: =VLOOKUP($A$4,Luvut!$B$3:$ED$300,70) -> 346559 | H39: 63.49182212 | J39: =VLOOKUP($A$4,Luvut!$B$3:$ED$300,114) -> 334182 | K39: =J39*1000/$J$6 -> 61.04803307
A40: Satunnaiset kulut | D40: =VLOOKUP($A$4,Luvut!$B$3:$AT$300,27) -> 46309 | E40: 8.50824671 | G40: =VLOOKUP($A$4,Luvut!$B$3:$ED$300,71) -> 15730 | H40: 2.881836461 | J40: =VLOOKUP($A$4,Luvut!$B$3:$ED$300,115) -> 21859 | K40: =J40*1000/$J$6 -> 3.993180228
A41: Tilikauden tulos | D41: =VLOOKUP($A$4,Luvut!$B$3:$AT$300,28) -> 2030007 | E41: 372.9685456 | G41: =VLOOKUP($A$4,Luvut!$B$3:$ED$300,72) -> 143623 | H41: 26.31265086 | J41: =VLOOKUP($A$4,Luvut!$B$3:$ED$300,116) -> 893175 | K41: =J41*1000/$J$6 -> 163.1643145
A43: Poistoeron lisäys(-) tai vähennys(+) | D43: =VLOOKUP($A$4,Luvut!$B$3:$AT$300,29) -> 172916 | E43: 31.7694614 | G43: =VLOOKUP($A$4,Luvut!$B$3:$ED$300,73) -> -16481 | H43: -3.019424457 | J43: =VLOOKUP($A$4,Luvut!$B$3:$ED$300,117) -> -9011 | K43: =J43*1000/$J$6 -> -1.646120455
A44: Varausten lisäys(-) tai vähennys(+) | D44: =VLOOKUP($A$4,Luvut!$B$3:$AT$300,30) -> 103419 | E44: 19.00093646 | G44: =VLOOKUP($A$4,Luvut!$B$3:$ED$300,74) -> -15415 | H44: -2.824126449 | J44: =VLOOKUP($A$4,Luvut!$B$3:$ED$300,118) -> -27985 | K44: =J44*1000/$J$6 -> -5.112271772
A45: Rahastojen lisäys(-) tai vähennys(+) | D45: =VLOOKUP($A$4,Luvut!$B$3:$AT$300,31) -> 139174 | E45: 25.57012088 | G45: =VLOOKUP($A$4,Luvut!$B$3:$ED$300,75) -> 52925 | H45: 9.696198009 | J45: =VLOOKUP($A$4,Luvut!$B$3:$ED$300,119) -> 10638 | K45: =J45*1000/$J$6 -> 1.943339186
A46: Tilikauden yli-/alijäämä | D46: =VLOOKUP($A$4,Luvut!$B$3:$AT$300,32) -> 2445539 | E46: 449.3132901 | G46: =VLOOKUP($A$4,Luvut!$B$3:$ED$300,76) -> 164652 | H46: 30.16529796 | J46: =VLOOKUP($A$4,Luvut!$B$3:$ED$300,120) -> 866817 | K46: =J46*1000/$J$6 -> 158.3492614
A47: Kumulatiivinen yli-/alijäämä | D47: =VLOOKUP($A$4,Luvut!$B$3:$AU$300,33) -> 9362856 | E47: 1720.21613 | G47: =VLOOKUP($A$4,Luvut!$B$3:$ED$300,77) -> 9422587 | H47: 1726.278116 | I47: 0.6379570507 | J47: =VLOOKUP($A$4,Luvut!$B$3:$ED$300,121) -> 10310344 | K47: =J47*1000/$J$6 -> 1883.483316 | L47: 9.421584539 | N47: 0.3523967957 | O47: 9.106597476
A49: Rahoituslaskelma | D49: 1000 | E49: euro/as | G49: 1000 | H49: euro/as | J49: 1000 | K49: euro/as
A51: Toiminnan rahavirta | D51: =VLOOKUP($A$4,Luvut!$B$3:$AT$300,34) -> 1480995 | E51: 272.0998259 | G51: =VLOOKUP($A$4,Luvut!$B$3:$ED$300,78) -> 1612201 | H51: =G51*1000/$G$6 -> 295.3655196 | J51: =VLOOKUP($A$4,Luvut!$B$3:$ED$300,122) -> 2369025 | K51: =J51*1000/$J$6 -> 432.7711144
A52: Investoinnit, netto | D52: =D53+D54+D55 -> -1572867 | E52: -288.9792584 | G52: =G53+G54+G55 -> -2501667 | H52: -458.3213715 | I52: 59.05140104 | J52: =J53+J54+J55 -> -2434419 | K52: -444.7172248 | L52: -2.688127557
A53: - Investointimenot | D53: =VLOOKUP($A$4,Luvut!$B$3:$EP$300,140) -> -6790767 | E53: -1247.652098 | G53: =VLOOKUP($A$4,Luvut!$B$3:$EP$300,143) -> -3613766 | H53: -662.0650108 | I53: -46.78412615 | J53: =VLOOKUP($A$4,Luvut!$B$3:$FM$300,146) -> -3468321 | K53: -633.5894067 | L53: -4.024748697
A54: + Rahoitusosuudet investointimenoihin | D54: =VLOOKUP($A$4,Luvut!$B$3:$EP$300,141) -> 222285 | E54: 40.83991492 | G54: =VLOOKUP($A$4,Luvut!$B$3:$EP$300,144) -> 195876 | H54: 35.88573418 | I54: =((G54/D54)-1)*100 -> -11.8806937 | J54: =VLOOKUP($A$4,Luvut!$B$3:$FM$300,147) -> 139273 | K54: 25.44225215 | L54: -28.89736364
A55: + Investointihyödykkeiden luovutustulot | D55: =VLOOKUP($A$4,Luvut!$B$3:$EP$300,142) -> 4995615 | E55: 917.8329243 | G55: =VLOOKUP($A$4,Luvut!$B$3:$EP$300,145) -> 916223 | H55: 167.8579051 | I55: =((G55/D55)-1)*100 -> -81.65945534 | J55: =VLOOKUP($A$4,Luvut!$B$3:$FM$300,148) -> 894629 | K55: 163.4299297 | L55: -2.356849806
A56: Saamisten muutos | D56: =VLOOKUP($A$4,Luvut!$B$3:$AT$300,36) -> 253496 | E56: 46.5742406 | G56: =VLOOKUP($A$4,Luvut!$B$3:$ED$300,80) -> 89705 | H56: 16.43452891 | J56: =VLOOKUP($A$4,Luvut!$B$3:$ED$300,124) -> -225326 | K56: -41.16232801
A57: Pitkäaikaisten lainojen vähennys | D57: =VLOOKUP($A$4,Luvut!$B$3:$AT$300,37) -> -1787158 | E57: -328.350454 | G57: =VLOOKUP($A$4,Luvut!$B$3:$ED$300,81) -> -2268170 | H57: -415.5432298 | J57: =VLOOKUP($A$4,Luvut!$B$3:$ED$300,125) -> -1897536 | K57: -346.639976
A58: Pitkäaikaisten lainojen lisäys | D58: =VLOOKUP($A$4,Luvut!$B$3:$EY$300,149) -> 2522611 | E58: 463.4735525 | G58: =VLOOKUP($A$4,Luvut!$B$3:$EY$300,151) -> 1783034 | H58: 326.6632163 | J58: =VLOOKUP($A$4,Luvut!$B$3:$EY$300,153) -> 2215982 | K58: 404.8133724
A59: ± Lyhytaikaisten lainojen muutos | D59: =VLOOKUP($A$4,Luvut!$B$3:$EY$300,150) -> 130924 | E59: 24.05436724 | G59: =VLOOKUP($A$4,Luvut!$B$3:$EY$300,152) -> 336121 | H59: 61.57951386 | J59: =VLOOKUP($A$4,Luvut!$B$3:$EY$300,154) -> 251014 | K59: 45.85498612 | N59: 2014 - 2015 | O59: 2015 - 2016
A60: Toiminnan ja investointien rahavirta | D60: =VLOOKUP($A$4,Luvut!$B$3:$AT$300,38) -> -91872 | E60: -16.87943255 | G60: =VLOOKUP($A$4,Luvut!$B$3:$ED$300,82) -> -890484 | H60: -163.1423559 | J60: =VLOOKUP($A$4,Luvut!$B$3:$ED$300,126) -> -65394 | K60: -11.94611043 | N60: €/as | O60: €/as
A62: Verotulot | D62: =VLOOKUP($A$4,Luvut!$B$3:$AT$300,39) -> 21068274 | E62: 3870.825821 | G62: =VLOOKUP($A$4,Luvut!$B$3:$ED$300,83) -> 21662871 | H62: 3968.776319 | I62: =((G62/D62)-1)*100 -> 2.822238784 | J62: =VLOOKUP($A$4,Luvut!$B$3:$ED$300,127) -> 21987603 | K62: =J62*1000/$J$6 -> 4016.673295 | L62: =((J62/G62)-1)*100 -> 1.499025683 | N62: =((H62/E62)-1)*100 -> 2.530480629 | O62: =((K62/H62)-1)*100 -> 1.206844939
A63: Kunnallisvero | D63: =VLOOKUP($A$4,Luvut!$B$3:$AT$300,40) -> 18102840 | E63: 3325.993411 | G63: =VLOOKUP($A$4,Luvut!$B$3:$ED$300,84) -> 18443219 | H63: 3378.91551 | I63: =((G63/D63)-1)*100 -> 1.880251938 | J63: =VLOOKUP($A$4,Luvut!$B$3:$ED$300,128) -> 18807344 | K63: =J63*1000/$J$6 -> 3435.706766 | L63: =((J63/G63)-1)*100 -> 1.974302859 | N63: =((H63/E63)-1)*100 -> 1.591166671 | O63: =((K63/H63)-1)*100 -> 1.680753955
A64: Yhteisövero | D64: =VLOOKUP($A$4,Luvut!$B$3:$AT$300,41) -> 1456282 | E64: 267.5593629 | G64: =VLOOKUP($A$4,Luvut!$B$3:$ED$300,85) -> 1638497 | H64: 300.1831148 | I64: 12.51234308 | J64: =VLOOKUP($A$4,Luvut!$B$3:$ED$300,129) -> 1539341 | K64: =J64*1000/$J$6 -> 281.2052722 | L64: -6.051643671 | N64: 12.19308924 | O64: -6.322088638
A65: Kiinteistövero | D65: =VLOOKUP($A$4,Luvut!$B$3:$AT$300,42) -> 1508596 | E65: 277.1708945 | G65: =VLOOKUP($A$4,Luvut!$B$3:$ED$300,86) -> 1581155 | H65: 289.6776942 | I65: 4.809703857 | J65: =VLOOKUP($A$4,Luvut!$B$3:$ED$300,130) -> 1640918 | K65: =J65*1000/$J$6 -> 299.7612568 | L65: 3.779705342 | N65: 4.512306268 | O65: 3.480959306
A67: Lainakanta, | D67: =VLOOKUP($A$4,Luvut!$B$3:$FG$300,155) -> 14677147 | E67: 2696.598667 | G67: =VLOOKUP($A$4,Luvut!$B$3:$FG$300,159) -> 15504383 | H67: 2840.501985 | I67: 5.636217993 | J67: =VLOOKUP($A$4,Luvut!$B$3:$FM$300,163) -> 16088917 | K67: =J67*1000/$J$6 -> 2939.107244 | L67: 3.770121004 | N67: 5.33647517 | O67: 3.471402558
A68: josta pitkäaikainen laina | D68: =VLOOKUP($A$4,Luvut!$B$3:$FG$300,156) -> 10627935 | E68: 1952.646203 | G68: =VLOOKUP($A$4,Luvut!$B$3:$FG$300,160) -> 11002347 | H68: 2015.700238 | J68: =VLOOKUP($A$4,Luvut!$B$3:$FM$300,164) -> 11446316 | K68: =J68*1000/$J$6 -> 2091.001543 | N68: 3.229158202 | O68: 3.735739272
A69: josta lyhytaikainen laina | D69: =VLOOKUP($A$4,Luvut!$B$3:$FG$300,157) -> 4042705 | E69: 742.7569483 | G69: =VLOOKUP($A$4,Luvut!$B$3:$FG$300,161) -> 4501949 | H69: 824.7858088 | J69: =VLOOKUP($A$4,Luvut!$B$3:$FM$300,165) -> 4642601 | K69: =J69*1000/$J$6 -> 848.105701 | N69: 11.04383618 | O69: 2.827387657
A70: Lainasaamiset | D70: =VLOOKUP($A$4,Luvut!$B$3:$FG$300,158) -> 5353203 | E70: 983.5317501 | G70: =VLOOKUP($A$4,Luvut!$B$3:$FG$300,162) -> 5552611 | H70: 1017.273797 | J70: =VLOOKUP($A$4,Luvut!$B$3:$FM$300,166) -> 5654298 | K70: =J70*1000/$J$6 -> 1032.921496 | N70: 3.430702393 | O70: 1.538199292
A72: Tuloveroprosentti | D72: =VLOOKUP($A$4,Luvut!$B$3:$AT$300,43) -> 19.75 | G72: =VLOOKUP($A$4,Luvut!$B$3:$ED$300,87) -> 19.85 | J72: =VLOOKUP($A$4,Luvut!$B$3:$ED$300,131) -> 19.89
A73: Veroprosenttiyksikön tuotto | D73: =D63/D72 -> 916599.4937 | E73: =D73*1000/$D$6 -> 168.4047297 | G73: =G63/G72 -> 929129.4207 | H73: =G73*1000/$G$6 -> 170.2224438 | J73: =J63/J72 -> 945567.823 | K73: =J73*1000/$J$6 -> 172.7353829
A75: Sijoitus vuosikatteen (euro/as) mukaan | D75: =VLOOKUP($A$4,Luvut!$B$3:$AT$300,45) -> - | G75: =VLOOKUP($A$4,Luvut!$B$3:$ED$300,89) -> - | J75: =VLOOKUP($A$4,Luvut!$B$3:$ED$300,133) -> 0
A76: Lähde: Tilastokeskus
A78: Rahoitusvarallisuus = ((saamiset + rahoitusarvopaperit + rahat ja pankkisaamiset) - (vieras pääoma - saadut ennakot))
A79: Kunnat vuoden 2016 kuntajaolla

Sheet Luvut
C1: 2014 | D1: hakee muualta | E1: 92 | F1: 93 | G1: 94 | H1: vanha | I1: 96 | J1: 97 | K1: 98 | L1: 99 | M1: 100 | N1: 101 | O1: 102 | P1: 103 | Q1: 104 | R1: 105 | S1: 106 | T1: 107 | U1: 108 | V1: summana | W1: 110 | X1: 111 | Y1: 112 | Z1: 113 | AA1: 114 | AB1: 115 | AC1: 116 | AD1: 117 | AE1: 118 | AF1: 119 | AG1: 120 | AH1: 121 | AI1: 122 | AJ1: kaavasta | AK1: 124 | AL1: 125 | AM1: 126 | AN1: 127 | AO1: 128 | AP1: 129 | AQ1: 130 | AR1: 131 | AS1: kaavasta | AT1: 133 | AU1: 2015 | AV1: hakee muualta | AW1: 92 | AX1: 93 | AY1: 94 | AZ1: vanha | BA1: 96 | BB1: 97 | BC1: 98 | BD1: 99 | BE1: 100 | BF1: 101 | BG1: 102 | BH1: 103 | BI1: 104 | BJ1: 105 | BK1: 106 | BL1: 107 | BM1: 108 | BN1: summana | BO1: 110 | BP1: 111 | BQ1: 112 | BR1: 113 | BS1: 114 | BT1: 115 | BU1: 116 | BV1: 117 | BW1: 118 | BX1: 119 | BY1: 120 | BZ1: 121 | CA1: 122 | CB1: kaavasta | CC1: 124 | CD1: 125 | CE1: 126 | CF1: 127 | CG1: 128 | CH1: 129 | CI1: 130 | CJ1: 131 | CK1: kaavasta | CL1: 133 | CM1: 2016 | CN1: hakee muualta | CO1: 92 | CP1: 93 | CQ1: 94 | CR1: vanha | CS1: 96 | CT1: 97 | CU1: 98 | CV1: 99 | CW1: 100 | CX1: 101 | CY1: 102 | CZ1: 103 | DA1: 104 | DB1: 105 | DC1: 106 | DD1: 107 | DE1: 108 | DF1: summana | DG1: 110 | DH1: 111 | DI1: 112 | DJ1: 113 | DK1: 114 | DL1: 115 | DM1: 116 | DN1: 117 | DO1: 118 | DP1: 119 | DQ1: 120 | DR1: 121 | DS1: 122 | DT1: kaavasta | DU1: 124 | DV1: 125 | DW1: 126 | DX1: 127 | DY1: 128 | DZ1: 129 | EA1: 130 | EB1: 131 | EC1: kaavasta | ED1: 133 | EE1: Erillistiedot | EF1: 135 | EG1: 136 | EH1: 137 | EI1: 138 | EJ1: 139 | EK1: 2014 | EL1: 144 | EM1: 145 | EN1: 2015 | EO1: 147 | EP1: 148 | EQ1: 2016 | ER1: 147 | ES1: 148 | ET1: 2014 | EU1: 152 | EV1: 2015 | EW1: 154 | EX1: 2016 | EZ1: 2014 | FA1: 160 | FB1: 161 | FC1: 162 | FD1: 2015 | FE1: 164 | FF1: 165 | FG1: 166 | FH1: 2016 | FI1: 164 | FJ1: 165 | FK1: 166 | FL1: 2014 | FM1: 2015 | FN1: 2016 | FO1: Yhden vero%:n | FP1: Yhden vero%:n | FS1: Nettoinv.
A2: Kunta nro | B2: Kunta | C2: Asukasluku | D2: Lainat e/asukas | E2: Lainanhoitokate | F2: Suhteellinen velkaantuneisuus-% | G2: Rahoitusvarallisuus, e/as | H2: Vuosikate | I2: Suunnitelman mukaiset poistot | J2: Tilikauden tulos | K2: Omavaraisuusaste, % | L2: Rahavarat e/as | M2: Kassan riittävyys, pv | N2: Kassasta maksut, €/as | O2: Henkilöstökulut | P2: Toimintatuotot | Q2: Toimintakulut | R2: Toimintakate | S2: Verotulot | T2: Valtionosuudet | U2: Alv-takaisinperintä | V2: Käyttökate | W2: Korkotuotot/-menot, netto | X2: Muut rahoitustuotot/-menot, netto (sis Osinkotuotot) | Y2: Vuosikate | Z2: Suunnitelman mukaiset poistot ja arvonalet | AA2: Satunnaiset tuotot | AB2: Satunnaiset kulut | AC2: Tilikauden tulos | AD2: Poistoeron lisäys(-) tai vähennys(+) | AE2: Varausten lisäys(-) tai vähennys(+) | AF2: Rahastojen lisäys(-) tai vähennys(+) | AG2: Tilikauden yli- tai alijäämä | AH2: Kumulat yli/alij | AI2: Tulorah (toiminnan rahavirta) | AJ2: Investoinnit, netto | AK2: Saamisten muutos (ent Pitkäaikaisten saamisten muutokset, netto) | AL2: Pitkäaikaisten lainojen vähennys | AM2: Toim ja inv rahavirta | AN2: Verotulot | AO2: Kunnallisvero | AP2: Osuus yhteisöveron tuotosta | AQ2: Kiinteistövero | AR2: Tuloveroprosentti 2013 | AS2: Yhden veroprosentin tuotto 2012 | AT2: Sijoitus vuosikatteen mukaan | AU2: Asukasluku | AV2: Lainat e/asukas | AW2: Lainanhoitokate | AX2: Suhteellinen velkaantuneisuus-% | AY2: Rahoitusvarallisuus, e/as | AZ2: Vuosikate | BA2: Suunnitelman mukaiset poistot | BB2: Tilikauden tulos | BC2: Omavaraisuusaste, % | BD2: Rahavarat e/as | BE2: Kassan riittävyys, pv | BF2: Kassasta maksut, €/as | BG2: Henkilöstökulut | BH2: Toimintatuotot | BI2: Toimintakulut | BJ2: Toimintakate | BK2: Verotulot | BL2: Valtionosuudet | BM2: Alv-takaisinperintä | BN2: Käyttökate | BO2: Korkotuotot/-menot, netto | BP2: Muut rahoitustuotot/-menot, netto (sis Osinkotuotot) | BQ2: Vuosikate | BR2: Suunnitelman mukaiset poistot ja arvonalet | BS2: Satu. tuotot | BT2: Satu. kulut | BU2: Tilikauden tulos | BV2: Poistoeron lisäys(-) tai vähennys(+) | BW2: Varausten lisäys(-) tai vähennys(+) | BX2: Rahastojen lisäys(-) tai vähennys(+) | BY2: Tilikauden yli- tai alijäämä | BZ2: Kumulat yli/alij | CA2: Tulorah (toiminnan rahavirta) | CB2: Investoinnit, netto | CC2: Saamisten muutos (ent Pitkäaikaisten saamisten muutokset, netto) | CD2: Pitkäaikaisten lainojen vähennys | CE2: Toim ja inv rahavirta | CF2: Verotulot | CG2: Kunnallisvero | CH2: Osuus yhteisöveron tuotosta | CI2: Kiinteistövero | CJ2: Tuloveroprosentti 2014 | CK2: Yhden veroprosentin tuotto 2013 | CL2: Sijoitus vuosikatteen mukaan | CM2: Asukasluku | CN2: Lainat e/asukas | CO2: Lainanhoitokate | CP2: Suhteellinen velkaantuneisuus-% | CQ2: Rahoitusvarallisuus, e/as | CR2: Vuosikate | CS2: Suunnitelman mukaiset poistot | CT2: Tilikauden tulos | CU2: Omavaraisuusaste, % | CV2: Rahavarat e/as | CW2: Kassan riittävyys, pv | CX2: Kassasta maksut, €/as | CY2: Henkilöstökulut | CZ2: Toimintatuotot | DA2: Toimintakulut | DB2: Toimintakate | DC2: Verotulot | DD2: Valtionosuudet | DE2: Alv-takaisinperintä | DF2: Käyttökate | DG2: Korkotuotot/-menot, netto | DH2: Muut rahoitustuotot/-menot, netto (sis Osinkotuotot) | DI2: Vuosikate | DJ2: Suunnitelman mukaiset poistot ja arvonalet | DK2: Satu. tuotot | DL2: Satu. kulut | DM2: Tilikauden tulos | DN2: Poistoeron lisäys(-) tai vähennys(+) | DO2: Varausten lisäys(-) tai vähennys(+) | DP2: Rahastojen lisäys(-) tai vähennys(+) | DQ2: Tilikauden yli- tai alijäämä | DR2: Kumulat yli/alij | DS2: Toiminnan rahavirta | DT2: Investoinnit, netto | DU2: Saamisten muutos (ent Pitkäaikaisten saamisten muutokset, netto) | DV2: Pitkäaikaisten lainojen vähennys | DW2: Toim ja inv rahavirta | DX2: Verotulot | DY2: Kunnallisvero | DZ2: Osuus yhteisöveron tuotosta | EA2: Kiinteistövero | EB2: Tuloveroprosentti 2015 | EC2: Yhden veroprosentin tuotto 2006 | ED2: Sijoitus vuosikatteen mukaan | EE2: Palvelujen ostot 2014 | EF2: Palvelujen ostot 2015 | EG2: Palvelujen ostot 2016 | EH2: Harkvar2014 | EI2: Harkvar2015 | EJ2: Harkvar2016 | EK2: - Investointimenot | EL2: + Rahoitusos. investointimenoihin | EM2: + Investointihyödykk. luovutustulot | EN2: - Investointimenot | EO2: + Rahoitusosuudet investointimenoihin | EP2: + Investointihyödykkeiden luovutustulot | EQ2: - Investointimenot | ER2: + Rahoitusosuudet investointimenoihin | ES2: + Investointihyödykkeiden luovutustulot | ET2: Pitkäaikaisten lainojen lisäys | EU2: ± Lyhytaikaisten lainojen muutos | EV2: Pitkäaikaisten lainojen lisäys | EW2: ± Lyhytaikaisten lainojen muutos | EX2: Pitkäaikaisten lainojen lisäys | EY2: ± Lyhytaikaisten lainojen muutos | EZ2: Lainakanta | FA2: josta pitkäaik | FB2: josta lyhytaik | FC2: Lainasaamiset | FD2: Lainakanta | FE2: josta pitkäaik | FF2: josta lyhytaik | FG2: Lainasaamiset | FH2: Lainakanta | FI2: josta pitkäaik | FJ2: josta lyhytaik | FK2: Lainasaamiset | FL2: Konsernilainat €/as | FM2: Konsernilainat €/as | FN2: Konsernilainat €/as | FO2: tuotto | FP2: tuotto, €/as | FS2: 2015
A3: 20 | B3: Akaa | C3: 17052 | E3: -0.08752584425 | F3: 59.77583389 | G3: -3520.935961 | K3: 29.32083122 | L3: 47.09125029 | M3: 2.191118753 | N3: 7844.534365 | O3: 48569 | P3: 22820 | Q3: 112573 | R3: -89753 | S3: 57963 | T3: 30594 | W3: -292 | X3: 184 | Y3: -1304 | Z3: 3763 | AC3: -5067 | AD3: 32 | AG3: -5035 | AH3: -5243 | AI3: -1711 | AK3: 2115 | AL3: -6586 | AM3: -14048 | AN3: 57963 | AO3: 53091 | AP3: 1707 | AQ3: 3165 | AR3: 21 | AT3: 300 | AU3: 17043 | AW3: 0.249724214 | AX3: 66 | AY3: -3907.175967 | BC3: 25 | BD3: 117.467582 | BE3: 5.579837965 | BF3: 7684.034501 | BG3: 47398 | BH3: 22841 | BI3: 110377 | BJ3: -87536 | BK3: 59092 | BL3: 29881 | BO3: -218 | BP3: 40 | BQ3: 1229 | BR3: 4203 | BS3: 0 | BT3: 0 | BU3: -2974 | BV3: 31 | BW3: 0 | BX3: 0 | BY3: -2943 | BZ3: -8186 | CA3: 758 | CC3: 790 | CD3: -12000 | CE3: -6593 | CF3: 59092 | CG3: 54123 | CH3: 1775 | CI3: 3194 | CJ3: 21.25 | CL3: 277 | CM3: 16923 | CO3: 0.7355027117 | CP3: 62.86096163 | CQ3: -3766.70803 | CU3: 25.6429574 | CV3: 245.8192992 | CW3: 12.78394261 | CX3: 7.018495539 | CY3: 46980 | CZ3: 22331 | DA3: 109001 | DB3: -86670 | DC3: 60148 | DD3: 31248 | DG3: -163 | DH3: 204 | DI3: 4767 | DJ3: 4712 | DK3: 0 | DL3: 0 | DM3: 55 | DN3: 29 | DO3: 0 | DP3: 0 | DQ3: 84 | DR3: -8105 | DS3: 4602 | DU3: 1344 | DV3: -6669 | DW3: 2675 | DX3: 60148 | DY3: 55165 | DZ3: 1606 | EA3: 3377 | EB3: 21.25 | ED3: 219 | EE3: 48004 | EF3: 47031 | EG3: 46809 | EK3: -13964 | EL3: 1161 | EM3: 466 | EN3: -8431 | EO3: 341 | EP3: 739 | EQ3: -2583 | ER3: 394 | ES3: 262 | ET3: 10311 | EU3: 7580 | EV3: 6670 | EW3: 2418 | EX3: 5427 | EY3: -908 | EZ3: 52203 | FA3: 38354 | FB3: 13849 | FC3: 7333 | FD3: 59953 | FE3: 43679 | FF3: 16274 | FG3: 7333 | FH3: 57802 | FI3: 42557 | FJ3: 15245 | FK3: 7333 | FL3: 3704.844007 | FM3: 4111 | FN3: 4161.673462 | FO3: =(DY3/EB3) -> 2596 | FP3: =(FO3/CM3)*1000 -> 153.4006973 | FS3: -7467 | FV3: 4670 | FW3: =FV3*-1 -> -4670
A4: 5 | B4: Alajärvi | C4: 10171 | E4: 0.8063660477 | F4: 36.45751358 | G4: -3052.600531 | K4: 36.73358386 | L4: 294.2680169 | M4: 10.10765074 | N4: 10626.38875 | O4: 42751 | P4: 43017 | Q4: 100641 | R4: -57624 | S4: 28360 | T4: 32821 | W4: -363 | X4: 78 | Y4: 3272 | Z4: 3076 | AC4: 196 | AG4: 196 | AH4: -3929 | AI4: 3239 | AK4: -7 | AL4: -4148 | AM4: 814 | AN4: 28360 | AO4: 24370 | AP4: 1764 | AQ4: 2226 | AR4: 21 | AT4: 172 | AU4: 10006 | AW4: 1.171779141 | AX4: 33 | AY4: -2771.637018 | BC4: 41 | BD4: 396.6620028 | BE4: 14.6280103 | BF4: 9897.561463 | BG4: 41443 | BH4: 41661 | BI4: 98986 | BJ4: -57325 | BK4: 28454 | BL4: 34084 | BO4: -315 | BP4: 199 | BQ4: 5024 | BR4: 3095 | BS4: 0 | BT4: 0 | BU4: 1929 | BV4: 0 | BW4: 0 | BX4: 0 | BY4: 1929 | BZ4: -2000 | CA4: 4948 | CC4: 593 | CD4: -2000 | CE4: 3254 | CF4: 28454 | CG4: 24150 | CH4: 2048 | CI4: 2256 | CJ4: 21.5 | CL4: 72 | CM4: 9899 | CO4: 2.463373896 | CP4: 28.22148861 | CQ4: -2140.923326 | CU4: 50.27522936 | CV4: 432.770987 | CW4: 14.53999368 | CX4: 10.86392565 | CY4: 40424 | CZ4: 41721 | DA4: 97917 | DB4: -56196 | DC4: 29436 | DD4: 36984 | DG4: -254 | DH4: 84 | DI4: 10054 | DJ4: 3035 | DK4: 0 | DL4: 0 | DM4: 7019 | DN4: 0 | DO4: 0 | DP4: 0 | DQ4: 7019 | DR4: 5020 | DS4: 9909 | DU4: -1787 | DV4: -3921 | DW4: 6412 | DX4: 29436 | DY4: 25084 | DZ4: 2039 | EA4: 2313 | EB4: 22 | ED4: 8 | EE4: 49386 | EF4: 49220 | EG4: 48991 | EK4: -2653 | EL4: 178 | EM4: 50 | EN4: -2072 | EO4: 276 | EP4: 102 | EQ4: -5261 | ER4: 134 | ES4: 1630 | ET4: 4000 | EU4: -1500 | EV4: 4240 | EX4: 0 | EY4: -1500 | EZ4: 26354 | FA4: 20615 | FB4: 5739 | FC4: 558 | FD4: 24115 | FE4: 18694 | FF4: 5421 | FG4: 551 | FH4: 18695 | FI4: 15158 | FJ4: 3537 | FK4: 465 | FL4: 4090.649887 | FM4: 4146 | FN4: 3901.404182 | FO4: 1140.181818 | FP4: 115.1815151 | FS4: -1776 | FV4: 3040 | FW4: -3040
A5: 9 | B5: Alavieska | C5: 2687 | E5: 0.318946797 | F5: 71.46880177 | G5: -4254.558988 | K5: 29.98600043 | L5: 237.8116859 | M5: 11.01932344 | N5: 7877.186453 | O5: 3613 | P5: 2443 | Q5: 16971 | R5: -14528 | S5: 7291 | T5: 8376 | W5: -103 | X5: 36 | Y5: 1072 | Z5: 691 | AC5: 381 | AG5: 381 | AH5: -1962 | AI5: 959 | AK5: -142 | AL5: -3581 | AM5: 699 | AN5: 7291 | AO5: 6667 | AP5: 218 | AQ5: 406 | AR5: 21.5 | AT5: 117 | AU5: 2687 | AW5: 1.531868132 | AX5: 68 | AY5: -3979.531076 | BC5: 33 | BD5: 460.7368813 | BE5: 26.63385595 | BF5: 6314.10495 | BG5: 3525 | BH5: 2108 | BI5: 17064 | BJ5: -14956 | BK5: 7792 | BL5: 8552 | BO5: -58 | BP5: 6 | BQ5: 1336 | BR5: 795 | BS5: 0 | BT5: 0 | BU5: 541 | BV5: 0 | BW5: 0 | BX5: 0 | BY5: 541 | BZ5: -1422 | CA5: 1336 | CC5: 213 | CD5: 0 | CE5: 763 | CF5: 7792 | CG5: 7099 | CH5: 285 | CI5: 408 | CJ5: 21.5 | CL5: 74 | CM5: 2639 | CO5: 1.818887451 | CP5: 62.40055529 | CQ5: -3384.236453 | CU5: 38.43655035 | CV5: 328.154604 | CW5: 16.91496762 | CX5: 7.081091322 | CY5: 4143 | CZ5: 2175 | DA5: 17327 | DB5: -15152 | DC5: 7685 | DD5: 8869 | DG5: -49 | DH5: 4 | DI5: 1357 | DJ5: 811 | DK5: 681 | DL5: 0 | DM5: 1227 | DN5: 0 | DO5: 0 | DP5: 0 | DQ5: 1227 | DR5: -195 | DS5: 2041 | DU5: -1232 | DV5: -724 | DW5: 1736 | DX5: 7685 | DY5: 6892 | DZ5: 271 | EA5: 522 | EB5: 21.5 | ED5: 85 | EE5: 12316 | EF5: 12293 | EG5: 11578 | EH5: 385 | EK5: -503 | EL5: 99 | EM5: 144 | EN5: -650 | EO5: 72 | EP5: 5 | EQ5: -576 | ER5: 6 | ES5: 265 | EU5: 2500 | EV5: 852 | EW5: 500 | EX5: 0 | EY5: 0 | EZ5: 11476 | FA5: 6124 | FB5: 5352 | FC5: 84 | FD5: 11124 | FE5: 5479 | FF5: 5645 | FG5: 84 | FH5: 10399 | FI5: 4800 | FJ5: 5599 | FK5: 84 | FL5: 4978.786751 | FM5: 4857 | FN5: 4106.858659 | FO5: 320.5581395 | FP5: 121.4695489 | FS5: -575 | FV5: 792 | FW5: -792
A6: 10 | B6: Alavus | C6: 12103 | E6: 1.013510788 | F6: 47.22005319 | G6: -2219.862844 | K6: 52.35276876 | L6: 893.9106007 | M6: 39.86125551 | N6: 8185.325952 | O6: 33994 | P6: 17096 | Q6: 83877 | R6: -66781 | S6: 33580 | T6: 37689 | W6: -332 | X6: 510 | Y6: 4666 | Z6: 3091 | AA6: 1579 | AC6: 3154 | AG6: 3154 | AH6: 12782 | AI6: 4543 | AK6: -328 | AL6: -4599 | AM6: 6426 | AN6: 33580 | AO6: 29054 | AP6: 2033 | AQ6: 2493 | AR6: 20.75 | AT6: 125 | AU6: 12050 | AW6: 0.36828594 | AX6: 52 | AY6: -2476.182573 | BC6: 50 | BD6: 927.1369295 | BE6: 42.45078545 | BF6: 7971.701245 | BG6: 34642 | BH6: 15659 | BI6: 86214 | BJ6: -70555 | BK6: 34015 | BL6: 37398 | BO6: -7 | BP6: 1308 | BQ6: 1584 | BR6: 2982 | BS6: 0 | BT6: 0 | BU6: -1398 | BV6: 0 | BW6: 0 | BX6: 0 | BY6: -1398 | BZ6: 11384 | CA6: 1475 | CC6: -68 | CD6: -6000 | CE6: -3203 | CF6: 34015 | CG6: 29182 | CH6: 2245 | CI6: 2588 | CJ6: 20.75 | CL6: 264 | CM6: 11907 | CO6: 0.4582654528 | CP6: 53.73337399 | CQ6: -2456.958092 | CU6: 50.13023636 | CV6: 1066.095574 | CW6: 47.03915776 | CX6: 8.272360796 | CY6: 23869 | CZ6: 12121 | DA6: 81749 | DB6: -69628 | DC6: 34482 | DD6: 38870 | DG6: 5 | DH6: 938 | DI6: 4667 | DJ6: 3133 | DK6: 0 | DL6: 0 | DM6: 1534 | DN6: 0 | DO6: 0 | DP6: 0 | DQ6: 1534 | DR6: 12918 | DS6: 4405 | DU6: 390 | DV6: -10320 | DW6: 900 | DX6: 34482 | DY6: 29668 | DZ6: 2203 | EA6: 2611 | EB6: 21.25 | ED6: 147 | EE6: 39183 | EF6: 41589 | EG6: 51031 | EK6: -5004 | EL6: 120 | EM6: 6767 | EN6: -5241 | EO6: 185 | EP6: 378 | EQ6: -5693 | ER6: 285 | ES6: 1903 | ET6: 4000 | EU6: 500 | EV6: 4783 | EW6: 1800 | EX6: 14200 | EY6: 700 | EZ6: 31122 | FA6: 25838 | FB6: 5284 | FC6: 7983 | FD6: 34138 | FE6: 26718 | FF6: 7420 | FG6: 7869 | FH6: 38719 | FI6: 31130 | FJ6: 7589 | FK6: 8137 | FL6: 4885.152442 | FM6: 5039 | FN6: 5864.197531 | FO6: 1396.141176 | FP6: 117.2538151 | FS6: -4697 | FV6: 2706 | FW6: -2706
A7: 16 | B7: Asikkala | C7: 8374 | E7: 23.49484536 | F7: 51.11758624 | G7: -2963.577741 | K7: 52.55998193 | L7: 62.45521853 | M7: 2.725669656 | N7: 8363.50609 | O7: 12790 | P7: 6840 | Q7: 50890 | R7: -44050 | S7: 29321 | T7: 17043 | W7: -60 | X7: -42 | Y7: 2212 | Z7: 2265 | AA7: 5541 | AC7: 5488 | AD7: 94 | AG7: 5582 | AH7: 7446 | AI7: 7719 | AK7: -349 | AL7: -30 | AM7: 1124 | AN7: 29321 | AO7: 25414 | AP7: 1438 | AQ7: 2469 | AR7: 20.75 | AT7: 207 | AU7: 8287 | AW7: 33.65765766 | AX7: 38 | AY7: -2145.529142 | BC7: 61 | BD7: 78.91878846 | BE7: 5.051849657 | BF7: 5701.942802 | BG7: 13159 | BH7: 6847 | BI7: 49270 | BJ7: -42423 | BK7: 29378 | BL7: 16868 | BO7: -78 | BP7: -63 | BQ7: 3654 | BR7: 2039 | BS7: 0 | BT7: 0 | BU7: 1615 | BV7: 94 | BW7: 0 | BX7: 0 | BY7: 1709 | BZ7: 9156 | CA7: 3294 | CC7: -129 | CD7: 0 | CE7: 2402 | CF7: 29378 | CG7: 25339 | CH7: 1538 | CI7: 2501 | CJ7: 20.75 | CL7: 102 | CM7: 8323 | CO7: 67.65432099 | CP7: 33.60308285 | CQ7: -1769.1938 | CU7: 65.71091909 | CV7: 38.68797309 | CW7: 2.258715455 | CX7: 6.251832272 | CY7: 13727 | CZ7: 6668 | DA7: 48906 | DB7: -42238 | DC7: 29925 | DD7: 17906 | DG7: -50 | DH7: -115 | DI7: 5428 | DJ7: 2164 | DK7: 0 | DL7: 0 | DM7: 3264 | DN7: 94 | DO7: -2000 | DP7: 0 | DQ7: 1358 | DR7: 10514 | DS7: 5331 | DU7: -1284 | DV7: -29 | DW7: 3076 | DX7: 29925 | DY7: 25836 | DZ7: 1430 | EA7: 2659 | EB7: 20.75 | ED7: 42 | EE7: 34437 | EF7: 32577 | EG7: 31541 | EK7: -14210 | EL7: 1281 | EM7: 6334 | EN7: -1540 | EO7: 113 | EP7: 535 | EQ7: -2644 | ER7: 178 | ES7: 211 | EU7: 9000 | EV7: 29 | EW7: -7000 | EX7: 0 | EY7: -2000 | EZ7: 24075 | FA7: 1485 | FB7: 22590 | FC7: 1040 | FD7: 17046 | FE7: 1480 | FF7: 15566 | FG7: 832 | FH7: 15016 | FI7: 1474 | FJ7: 13542 | FK7: 817 | FL7: 4091.951278 | FM7: 3833 | FN7: 3418.118467 | FO7: 1245.108434 | FP7: 149.5985142 | FS7: -1895 | FV7: 380 | FW7: -380
A8: 18 | B8: Askola | C8: 5064 | E8: 1.949152542 | F8: 58.25628382 | G8: -2829.581359 | K8: 31.40290707 | L8: 185.4265403 | M8: 10.69275887 | N8: 6329.581359 | O8: 12656 | P8: 4195 | Q8: 27431 | R8: -23236 | S8: 18023 | T8: 6984 | W8: -156 | X8: 180 | Y8: 1795 | Z8: 975 | AC8: 820 | AG8: 820 | AH8: 373 | AI8: 1723 | AK8: -636 | AL8: -843 | AM8: -861 | AN8: 18023 | AO8: 16047 | AP8: 935 | AQ8: 1041 | AR8: 20.25 | AT8: 149 | AU8: 5104 | AW8: 0.4508975713 | AX8: 65 | AY8: -3262.34326 | BC8: 27 | BD8: 254.1144201 | BE8: 14.11716467 | BF8: 6570.141066 | BG8: 12949 | BH8: 4397 | BI8: 29519 | BJ8: -25122 | BK8: 18430 | BL8: 6844 | BO8: -137 | BP8: 488 | BQ8: 290 | BR8: 1103 | BS8: 0 | BT8: 0 | BU8: -813 | BV8: 0 | BW8: 0 | BX8: 0 | BY8: -813 | BZ8: -569 | CA8: 157 | CC8: 517 | CD8: -1300 | CE8: -2207 | CF8: 18430 | CG8: 16391 | CH8: 987 | CI8: 1052 | CJ8: 20.25 | CL8: 282 | CM8: 5046 | CO8: 1.16252588 | CP8: 63.32205815 | CQ8: -3389.021007 | CU8: 25.53461783 | CV8: 235.8303607 | CW8: 13.41207349 | CX8: 6.417954816 | CY8: 13037 | CZ8: 4436 | DA8: 29873 | DB8: -25437 | DC8: 19174 | DD8: 7136 | DG8: -140 | DH8: 250 | DI8: 983 | DJ8: 1213 | DK8: 0 | DL8: 0 | DM8: -230 | DN8: 0 | DO8: 0 | DP8: 0 | DQ8: -230 | DR8: -799 | DS8: 830 | DU8: 47 | DV8: -826 | DW8: -460 | DX8: 19174 | DY8: 17262 | DZ8: 868 | EA8: 1044 | EB8: 20.25 | ED8: 245 | EE8: 11123 | EF8: 12710 | EG8: 12983 | EK8: -3557 | EL8: 860 | EM8: 113 | EN8: -2542 | EO8: 21 | EP8: 157 | EQ8: -1534 | ER8: 0 | ES8: 244 | EU8: 1674 | EV8: 810 | EW8: 2198 | EX8: 2692 | EY8: -1514 | EZ8: 13533 | FA8: 9142 | FB8: 4391 | FC8: 0 | FD8: 16221 | FE8: 9650 | FF8: 6571 | FG8: 0 | FH8: 16573 | FI8: 11381 | FJ8: 5192 | FK8: 0 | FL8: 3731.042654 | FM8: 4215 | FN8: 4299.841459 | FO8: 852.4444444 | FP8: 168.9346897 | FS8: -2484 | FV8: 699 | FW8: -699
A9: 19 | B9: Aura | C9: 3982 | E9: 0.1517747858 | F9: 72.64715432 | G9: -3522.099448 | K9: 12.94869693 | L9: 127.8252135 | M9: 7.771479963 | N9: 6003.515821 | O9: 7121 | P9: 2826 | Q9: 21450 | R9: -18624 | S9: 13628 | T9: 5105 | W9: -94 | X9: 14 | Y9: 29 | Z9: 620 | AC9: -591 | AD9: 28 | AG9: -563 | AH9: -2834 | AI9: -99 | AK9: 126 | AL9: -722 | AM9: -1206 | AN9: 13628 | AO9: 12545 | AP9: 459 | AQ9: 624 | AR9: 21 | AT9: 291 | AU9: 3986 | AW9: 0.8925831202 | AX9: 74 | AY9: -3805.067737 | BC9: 12 | BD9: 123.9337682 | BE9: 7.856987233 | BF9: 5757.400903 | BG9: 7090 | BH9: 3226 | BI9: 21799 | BJ9: -18573 | BK9: 13875 | BL9: 5377 | BO9: -64 | BP9: 22 | BQ9: 634 | BR9: 784 | BS9: 0 | BT9: 0 | BU9: -150 | BV9: 28 | BW9: 0 | BX9: 0 | BY9: -122 | BZ9: -2956 | CA9: 452 | CC9: 243 | CD9: 0 | CE9: -1098 | CF9: 13875 | CG9: 12633 | CH9: 506 | CI9: 736 | CJ9: 21 | CL9: 257 | CM9: 3984 | CO9: 2.338235294 | CP9: 64.00084944 | CQ9: -3546.184739 | CU9: 17.36310071 | CV9: 92.62048193 | CW9: 5.787426951 | CX9: 5.841365462 | CY9: 6754 | CZ9: 3073 | DA9: 21803 | DB9: -18730 | DC9: 14440 | DD9: 6032 | DG9: -34 | DH9: 7 | DI9: 1715 | DJ9: 724 | DK9: 0 | DL9: 0 | DM9: 991 | DN9: 28 | DO9: 0 | DP9: 0 | DQ9: 1019 | DR9: -1937 | DS9: 1708 | DU9: 313 | DV9: -714 | DW9: 1030 | DX9: 14440 | DY9: 13272 | DZ9: 758 | EA9: 410 | EB9: 21.75 | ED9: 124 | EE9: 11861 | EF9: 12248 | EG9: 12576 | EK9: -1634 | EL9: 351 | EM9: 176 | EN9: -1867 | EO9: 75 | EP9: 242 | EQ9: -719 | ER9: 0 | ES9: 41 | EU9: 750 | EV9: 718 | EW9: 2000 | EX9: 0 | EY9: -590 | EZ9: 13303 | FA9: 4405 | FB9: 8898 | FC9: 0 | FD9: 14585 | FE9: 3691 | FF9: 10894 | FG9: 0 | FH9: 13280 | FI9: 2976 | FJ9: 10304 | FK9: 0 | FL9: 4259.166248 | FM9: 5419 | FN9: 4090.361446 | FO9: 610.2068966 | FP9: 153.1643817 | FS9: -1321 | FV9: 607 | FW9: -607
A10: 46 | B10: Enonkoski | C10: 1503 | E10: 9.644444444 | F10: 17.70220745 | G10: 858.2834331 | K10: 82.38650667 | L10: 2107.119095 | M10: 98.42941076 | N10: 7813.705921 | O10: 4533 | P10: 2142 | Q10: 10958 | R10: -8816 | S10: 4394 | T10: 5197 | W10: 31 | X10: 52 | Y10: 858 | Z10: 413 | AB10: 150 | AC10: 295 | AG10: 295 | AH10: 4808 | AI10: 817 | AK10: 21 | AL10: -80 | AM10: 257 | AN10: 4394 | AO10: 3539 | AP10: 495 | AQ10: 360 | AR10: 21 | AT10: 47 | AU10: 1473 | AW10: 1.448675497 | AX10: 11 | AY10: 1194.840462 | BC10: 89 | BD10: 1955.193483 | BE10: 99.4512772 | BF10: 7175.831636 | BG10: 4521 | BH10: 2147 | BI10: 11278 | BJ10: -9131 | BK10: 4825 | BL10: 5096 | BO10: 21 | BP10: 119 | BQ10: 871 | BR10: 511 | BS10: 48 | BT10: 0 | BU10: 408 | BV10: 0 | BW10: 0 | BX10: 0 | BY10: 408 | BZ10: 5216 | CA10: 861 | CC10: 28 | CD10: 0 | CE10: 425 | CF10: 4825 | CG10: 3801 | CH10: 606 | CI10: 418 | CJ10: 21 | CL10: 47 | CM10: 1453 | CP10: 7.188703466 | CQ10: 1571.920165 | CU10: 92.6331208 | CV10: 1956.641432 | CW10: 91.90461429 | CX10: 7.770818995 | CY10: 3278 | CZ10: 1914 | DA10: 10626 | DB10: -8712 | DC10: 4544 | DD10: 5227 | DG10: 21 | DH10: 20 | DI10: 1100 | DJ10: 510 | DK10: 0 | DL10: 65 | DM10: 525 | DN10: 0 | DO10: 0 | DP10: 0 | DQ10: 525 | DR10: 5742 | DS10: 1034 | DU10: -109 | DV10: 0 | DW10: 462 | DX10: 4544 | DY10: 3570 | DZ10: 550 | EA10: 424 | EB10: 21 | ED10: 26 | EE10: 4798 | EF10: 5199 | EG10: 5932 | EK10: -696 | EL10: 1 | EM10: 135 | EN10: -497 | EO10: 0 | EP10: 61 | EQ10: -665 | ER10: 65 | ES10: 28 | EV10: 600 | EW10: -80 | EX10: 0 | EY10: 0 | EZ10: 680 | FA10: 600 | FB10: 80 | FC10: 524 | FD10: 0 | FE10: 0 | FF10: 0 | FG10: 489 | FH10: 0 | FI10: 0 | FJ10: 0 | FK10: 407 | FL10: 1551.56354 | FM10: 999 | FN10: 801.10117 | FO10: 170 | FP10: 116.9993118 | FS10: -498 | FV10: 63 | FW10: -63
A11: 47 | B11: Enontekiö | C11: 1890 | E11: 0.6913043478 | F11: 39.55418819 | G11: -3064.550265 | K11: 49.0600195 | L11: 121.1640212 | M11: 4.229154017 | N11: 10457.14286 | O11: 6973 | P11: 2905 | Q11: 16911 | R11: -14006 | S11: 5848 | T11: 8474 | W11: -92 | X11: 320 | Y11: 544 | Z11: 310 | AA11: 364 | AB11: 271 | AC11: 327 | AG11: 327 | AH11: 368 | AI11: 638 | AK11: 3 | AL11: -828 | AM11: -666 | AN11: 5848 | AO11: 4718 | AP11: 322 | AQ11: 808 | AR11: 20.75 | AT11: 187 | AU11: 1861 | AW11: 0.443359375 | AX11: 42 | AY11: -3372.380441 | BC11: 47 | BD11: 171.9505642 | BE11: 5.803726708 | BF11: 10814.07845 | BG11: 6877 | BH11: 2594 | BI11: 17332 | BJ11: -14738 | BK11: 6023 | BL11: 8833 | BO11: -93 | BP11: 336 | BQ11: 361 | BR11: 484 | BS11: 0 | BT11: 0 | BU11: -123 | BV11: 0 | BW11: 0 | BX11: 0 | BY11: -123 | BZ11: 245 | CA11: 361 | CC11: 46 | CD11: -1970 | CE11: -472 | CF11: 6023 | CG11: 4863 | CH11: 338 | CI11: 822 | CJ11: 20.75 | CL11: 239 | CM11: 1872 | CO11: 0.8007033998 | CP11: 39.20592727 | CQ11: -3087.07265 | CU11: 49.13318657 | CV11: 113.7820513 | CW11: 3.932075663 | CX11: 10.56196581 | CY11: 7098 | CZ11: 2595 | DA11: 17380 | DB11: -14785 | DC11: 6151 | DD11: 8935 | DG11: 1 | DH11: 299 | DI11: 601 | DJ11: 382 | DK11: 0 | DL11: 0 | DM11: 219 | DN11: 0 | DO11: 0 | DP11: 0 | DQ11: 219 | DR11: 464 | DS11: 601 | DU11: -193 | DV11: -771 | DW11: 340 | DX11: 6151 | DY11: 5003 | DZ11: 326 | EA11: 822 | EB11: 21.25 | ED11: 196 | EE11: 7906 | EF11: 8321 | EG11: 8141 | EK11: -1738 | EL11: 117 | EM11: 317 | EN11: -934 | EO11: 101 | EP11: 0 | EQ11: -1267 | ER11: 1000 | ES11: 6 | ET11: 1631 | EU11: -72 | EV11: 931 | EW11: -653 | EX11: 0 | EY11: 440 | EZ11: 5426 | FA11: 3542 | FB11: 1884 | FC11: 1682 | FD11: 5812 | FE11: 4581 | FF11: 1231 | FG11: 1682 | FH11: 5481 | FI11: 3810 | FJ11: 1671 | FK11: 1682 | FL11: 5707.936508 | FM11: 6451 | FN11: 6236.645299 | FO11: 235.4352941 | FP11: 125.7667169 | FS11: -833 | FV11: 874 | FW11: -874
A12: 49 | B12: Espoo | C12: 265543 | E12: 2.613718021 | F12: 35.24428966 | G12: 945.2066144 | K12: 81.1143045 | L12: 2603.819344 | M12: 130.1404743 | N12: 7302.83231 | O12: 627982 | P12: 331138 | Q12: 1627818 | R12: -1296680 | S12: 1332758 | T12: 29769 | W12: 12027 | X12: 39224 | Y12: 117098 | Z12: 117578 | AC12: -480 | AD12: -33559 | AF12: 40096 | AG12: 6057 | AH12: 370844 | AI12: 90753 | AK12: 21375 | AL12: -42541 | AM12: -135014 | AN12: 1332758 | AO12: 1137028 | AP12: 121003 | AQ12: 74727 | AR12: 18 | AT12: 96 | AU12: 269800 | AW12: 2.834679428 | AX12: 49 | AY12: 67.81319496 | BC12: 75 | BD12: 2710.874722 | BE12: 123.1457523 | BF12: 8034.944403 | BG12: 631945 | BH12: 405147 | BI12: 1718159 | BJ12: -1313012 | BK12: 1393802 | BL12: 30083 | BO12: 10858 | BP12: 35309 | BQ12: 154834 | BR12: 126686 | BS12: 0 | BT12: 0 | BU12: 28148 | BV12: -30876 | BW12: 0 | BX12: 40102 | BY12: 37374 | BZ12: 397468 | CA12: 120723 | CC12: 2947 | CD12: -269272 | CE12: -147671 | CF12: 1393802 | CG12: 1161281 | CH12: 136157 | CI12: 96364 | CJ12: 18 | CL12: 49 | CM12: 274583 | CO12: 3.060071612 | CP12: 59.64013371 | CQ12: -91.1782594 | CU12: 70.13305587 | CV12: 3274.514446 | CW12: 162.0115626 | CX12: 7.377237484 | CY12: 633118 | CZ12: 399108 | DA12: 1735458 | DB12: -1336350 | DC12: 1446482 | DD12: 60915 | DG12: 7554 | DH12: 20369 | DI12: 198970 | DJ12: 138944 | DK12: 0 | DL12: 0 | DM12: 60026 | DN12: 12328 | DO12: 0 | DP12: 71 | DQ12: 72425 | DR12: 469893 | DS12: 161398 | DU12: -40873 | DV12: -59738 | DW12: -46438 | DX12: 1446482 | DY12: 1226153 | DZ12: 120589 | EA12: 99740 | EB12: 18 | ED12: 30 | EE12: 713124 | EF12: 781379 | EG12: 792901 | EK12: -320189 | EL12: 59875 | EM12: 34547 | EN12: -358407 | EO12: 42985 | EP12: 47028 | EQ12: -286430 | ER12: 30125 | ES12: 48469 | ET12: 117000 | EU12: -57479 | EV12: 51703 | EW12: 42360 | EX12: 270000 | EY12: 31369 | EZ12: 355644 | FA12: 237688 | FB12: 117956 | FC12: 286474 | FD12: 615573 | FE12: 446609 | FF12: 168964 | FG12: 364890 | FH12: 857204 | FI12: 655965 | FJ12: 201239 | FK12: 363246 | FL12: 8254.410773 | FM12: 10000 | FN12: 11605.51819 | FO12: 68119.61111 | FP12: 248.0838621 | FS12: -262144 | FV12: 55179 | FW12: -55179
A13: 50 | B13: Eura | C13: 12314 | E13: 0.4445076836 | F13: 47.47122606 | G13: -2539.304856 | K13: 49.14189291 | L13: 181.0134806 | M13: 9.3249702 | N13: 7085.2688 | O13: 35557 | P13: 11074 | Q13: 77348 | R13: -66274 | S13: 43027 | T13: 23921 | W13: -224 | X13: 82 | Y13: 532 | Z13: 2822 | AC13: -2290 | AD13: 30 | AG13: -2260 | AH13: 5796 | AI13: 457 | AK13: 655 | AL13: -1508 | AM13: -5874 | AN13: 43027 | AO13: 38582 | AP13: 2261 | AQ13: 2184 | AR13: 20.5 | AT13: 285 | AU13: 12128 | AW13: 1.630863039 | AX13: 49 | AY13: -2818.024406 | BC13: 48 | BD13: 118.5686016 | BE13: 6.040069967 | BF13: 7165.072559 | BG13: 35543 | BH13: 11873 | BI13: 77842 | BJ13: -65969 | BK13: 45291 | BL13: 24045 | BO13: -260 | BP13: 114 | BQ13: 3195 | BR13: 3302 | BS13: 0 | BT13: 0 | BU13: -107 | BV13: 28 | BW13: 0 | BX13: 0 | BY13: -79 | BZ13: 5717 | CA13: 2951 | CC13: -283 | CD13: -6329 | CE13: -3210 | CF13: 45291 | CG13: 40489 | CH13: 2540 | CI13: 2262 | CJ13: 20.5 | CL13: 199 | CM13: 12004 | CO13: 1.633499171 | CP13: 50.62580271 | CQ13: -2945.018327 | CU13: 47.33662033 | CV13: 132.7057647 | CW13: 6.980383447 | CX13: 6.939103632 | CY13: 35792 | CZ13: 11379 | DA13: 75558 | DB13: -64179 | DC13: 43653 | DD13: 24386 | DG13: -250 | DH13: 45 | DI13: 3655 | DJ13: 3174 | DK13: 0 | DL13: 0 | DM13: 481 | DN13: 26 | DO13: 0 | DP13: 0 | DQ13: 507 | DR13: 6223 | DS13: 3506 | DU13: 560 | DV13: -2127 | DW13: -1471 | DX13: 43653 | DY13: 38341 | DZ13: 2183 | EA13: 3129 | EB13: 20.5 | ED13: 207 | EE13: 30825 | EF13: 30966 | EG13: 28631 | EK13: -7213 | EL13: 779 | EM13: 103 | EN13: -7095 | EO13: 640 | EP13: 294 | EQ13: -5319 | ER13: 56 | ES13: 286 | ET13: 4487 | EU13: 4800 | EV13: 1850 | EW13: -2600 | EX13: 219 | EY13: 4200 | EZ13: 24752 | FA13: 12374 | FB13: 12378 | FC13: 4313 | FD13: 26631 | FE13: 16295 | FF13: 10336 | FG13: 3883 | FH13: 28923 | FI13: 14628 | FJ13: 14295 | FK13: 3568 | FL13: 4125.954198 | FM13: 4394 | FN13: 4501.416195 | FO13: 1870.292683 | FP13: 155.8057883 | FS13: -6376 | FV13: 818 | FW13: -818
A14: 51 | B14: Eurajoki | C14: 5954 | E14: 143.2325581 | F14: 19.09125548 | G14: 2721.02788 | K14: 88.75152608 | L14: 4106.650991 | M14: 170.6623131 | N14: 8783.003023 | O14: 17649 | P14: 4795 | Q14: 41759 | R14: -36964 | S14: 37951 | T14: 9744 | W14: 59 | X14: 1497 | Y14: 12287 | Z14: 2648 | AA14: 137 | AC14: 9776 | AD14: 3 | AG14: 9779 | AH14: 66796 | AI14: 12223 | AK14: 397 | AL14: -56 | AM14: 3343 | AN14: 37951 | AO14: 18189 | AP14: 4292 | AQ14: 15470 | AR14: 18 | AT14: 2 | AU14: 5938 | AW14: 14.53139013 | AX14: 24 | AY14: 2284.607612 | BC14: 88 | BD14: 3639.609296 | BE14: 176.5923439 | BF14: 7522.734928 | BG14: 18564 | BH14: 5310 | BI14: 42891 | BJ14: -37581 | BK14: 34546 | BL14: 8207 | BO14: 192 | BP14: 1096 | BQ14: 6454 | BR14: 3314 | BS14: 0 | BT14: 0 | BU14: 3140 | BV14: 2 | BW14: 0 | BX14: 0 | BY14: 3142 | BZ14: 69938 | CA14: 6264 | CC14: -1563 | CD14: 0 | CE14: -1866 | CF14: 34546 | CG14: 16365 | CH14: 2179 | CI14: 16002 | CJ14: 18 | CL14: 3 | CM14: 9418 | CO14: 6.546935609 | CP14: 21.58996942 | CQ14: 2324.217463 | CU14: 88.56982546 | CV14: 3835.914333 | CW14: 155.7415382 | CX14: 8.989950577 | CY14: 18467 | CZ14: 5351 | DA14: 44449 | DB14: -39098 | DC14: 38041 | DD14: 8609 | DG14: 131 | DH14: 728 | DI14: 8411 | DJ14: 3845 | DK14: 0 | DL14: 0 | DM14: 4566 | DN14: 2 | DO14: 0 | DP14: 0 | DQ14: 4568 | DR14: 74506 | DS14: 8382 | DU14: 1283 | DV14: -1261 | DW14: 1802 | DX14: 38041 | DY14: 18489 | DZ14: 1426 | EA14: 18126 | EB14: 18 | ED14: 2 | EE14: 19970 | EF14: 20205 | EG14: 21605 | EK14: -9328 | EM14: 448 | EN14: -8648 | EO14: 0 | EP14: 518 | EQ14: -6785 | ER14: 0 | ES14: 205 | EU14: -356 | EV14: 419 | EW14: 846 | EX14: 0 | EY14: 0 | EZ14: 3398 | FA14: 2983 | FB14: 415 | FC14: 1280 | FD14: 3826 | FE14: 2565 | FF14: 1261 | FG14: 2049 | FH14: 2565 | FI14: 2143 | FJ14: 422 | FK14: 3298 | FL14: 1028.888142 | FM14: 950 | FN14: 608.5667216 | FO14: 1027.166667 | FP14: 109.0642033 | FS14: -7328 | FV14: 701 | FW14: -701
A15: 52 | B15: Evijärvi | C15: 2651 | E15: 4.682634731 | F15: 27.95390525 | G15: 437.570728 | K15: 70.96554256 | L15: 2331.950207 | M15: 115.660977 | N15: 7359.10977 | O15: 4049 | P15: 2274 | Q15: 17996 | R15: -15722 | S15: 8849 | T15: 8402 | W15: -29 | X15: 22 | Y15: 1522 | Z15: 364 | AA15: 4982 | AC15: 6140 | AG15: 6140 | AH15: 4782 | AI15: 1323 | AK15: -44 | AL15: -293 | AM15: 5538 | AN15: 8849 | AO15: 7351 | AP15: 782 | AQ15: 716 | AR15: 21.5 | AT15: 46 | AU15: 2576 | AW15: 2.0078125 | AX15: 28 | AY15: 448.757764 | BC15: 72 | BD15: 2312.888199 | BE15: 120.7948675 | BF15: 6988.742236 | BG15: 3951 | BH15: 1851 | BI15: 18133 | BJ15: -16282 | BK15: 8877 | BL15: 7848 | BO15: 37 | BP15: 12 | BQ15: 492 | BR15: 409 | BS15: 0 | BT15: 0 | BU15: 83 | BV15: 0 | BW15: 0 | BX15: 0 | BY15: 83 | BZ15: 4866 | CA15: 485 | CC15: 19 | CD15: 0 | CE15: -70 | CF15: 8877 | CG15: 7048 | CH15: 1099 | CI15: 730 | CJ15: 21.5 | CL15: 243 | CM15: 2535 | CO15: 2.816666667 | CP15: 28.8961039 | CQ15: 319.5266272 | CU15: 71.41439465 | CV15: 2258.382643 | CW15: 108.7100718 | CX15: 7.582642998 | CY15: 3949 | CZ15: 1780 | DA15: 18175 | DB15: -16395 | DC15: 8615 | DD15: 8085 | DG15: 193 | DH15: 4 | DI15: 502 | DJ15: 444 | DK15: 0 | DL15: 0 | DM15: 58 | DN15: 0 | DO15: 0 | DP15: 0 | DQ15: 58 | DR15: 4924 | DS15: 502 | DU15: -9 | DV15: -175 | DW15: -333 | DX15: 8615 | DY15: 6961 | DZ15: 933 | EA15: 721 | EB15: 21.5 | ED15: 242 | EE15: 12654 | EF15: 12858 | EG15: 12869 | EH15: 375 | EK15: -1177 | EM15: 5392 | EN15: -574 | EO15: 0 | EP15: 19 | EQ15: -853 | ER15: 9 | ES15: 9 | EU15: 1100 | EV15: 234 | EW15: -500 | EX15: 0 | EY15: 500 | EZ15: 4409 | FA15: 175 | FB15: 4234 | FC15: 221 | FD15: 3675 | FE15: 0 | FF15: 3675 | FG15: 214 | FH15: 4000 | FI15: 0 | FJ15: 4000 | FK15: 207 | FL15: 2514.145605 | FM15: 2290 | FN15: 2449.704142 | FO15: 323.7674419 | FP15: 127.718912 | FS15: -540 | FV15: 500 | FW15: -500
A16: 61 | B16: Forssa | C16: 17521 | E16: 0.6374548421 | F16: 40.6566203 | G16: -1586.267907 | K16: 58.54523084 | L16: 739.4555105 | M16: 33.8708037 | N16: 7968.552023 | O16: 29889 | P16: 16878 | Q16: 110239 | R16: -93361 | S16: 58861 | T16: 39792 | W16: -482 | X16: 143 | Y16: 4953 | Z16: 6253 | AA16: 4995 | AC16: 3695 | AD16: 116 | AE16: -3500 | AG16: 311 | AH16: 8541 | AI16: 8492 | AK16: 2280 | AL16: -8064 | AM16: -472 | AN16: 58861 | AO16: 51232 | AP16: 3242 | AQ16: 4387 | AR16: 20 | AT16: 189 | AU16: 17422 | AW16: 1.912449799 | AX16: 46 | AY16: -1751.922856 | BC16: 56 | BD16: 971.0136609 | BE16: 49.70781678 | BF16: 7130.065435 | BG16: 30424 | BH16: 17993 | BI16: 110529 | BJ16: -92536 | BK16: 59678 | BL16: 39859 | BO16: -475 | BP16: 174 | BQ16: 6644 | BR16: 5985 | BS16: 0 | BT16: 0 | BU16: 659 | BV16: 113 | BW16: 0 | BX16: 0 | BY16: 772 | BZ16: 8558 | CA16: 5295 | CC16: -98 | CD16: -6500 | CE16: -2727 | CF16: 59678 | CG16: 51849 | CH16: 3453 | CI16: 4376 | CJ16: 20 | CL16: 131 | CM16: 17332 | CO16: 2.816486161 | CP16: 44.60196924 | CQ16: -1753.346411 | CU16: 57.32684424 | CV16: 1012.462497 | CW16: 52.23726491 | CX16: 7.074428802 | CY16: 30328 | CZ16: 18421 | DA16: 111586 | DB16: -93165 | DC16: 60408 | DD16: 41928 | DG16: -246 | DH16: 179 | DI16: 9104 | DJ16: 6024 | DK16: 0 | DL16: 0 | DM16: 3080 | DN16: 111 | DO16: -3000 | DP16: 0 | DQ16: 191 | DR16: 8750 | DS16: 7436 | DU16: 519 | DV16: -3066 | DW16: -171 | DX16: 60408 | DY16: 51886 | DZ16: 3143 | EA16: 5379 | EB16: 20 | ED16: 83 | EE16: 71219 | EF16: 70785 | EG16: 72617 | EK16: -20040 | EL16: 746 | EM16: 10330 | EN16: -8867 | EO16: 135 | EP16: 710 | EQ16: -7700 | ER16: 20 | ES16: 73 | ET16: 5000 | EU16: 5388 | EV16: 3236 | EW16: 4407 | EX16: 1500 | EY16: 2041 | EZ16: 36816 | FA16: 19276 | FB16: 17540 | FC16: 1007 | FD16: 44486 | FE16: 22709 | FF16: 21777 | FG16: 1007 | FH16: 44959 | FI16: 20928 | FJ16: 24031 | FK16: 762 | FL16: 3450.316763 | FM16: 3683 | FN16: 3462.266328 | FO16: 2594.3 | FP16: 149.6826679 | FS16: -7725 | FV16: 2820 | FW16: -2820
A17: 69 | B17: Haapajärvi | C17: 7479 | E17: 0.3345058037 | F17: 70.87802074 | G17: -2631.100414 | K17: 39.44251926 | L17: 1991.843829 | M17: 92.70621633 | N17: 7842.224896 | O17: 12780 | P17: 4984 | Q17: 49736 | R17: -44752 | S17: 22444 | T17: 23015 | W17: -485 | X17: 1179 | Y17: 1401 | Z17: 2006 | AA17: 256 | AC17: -349 | AD17: 85 | AG17: -264 | AH17: -1675 | AI17: 1640 | AK17: 82 | AL17: -5185 | AM17: 1450 | AN17: 22444 | AO17: 19350 | AP17: 1230 | AQ17: 1864 | AR17: 21 | AT17: 246 | AU17: 7438 | AW17: 0.6554138984 | AX17: 65 | AY17: -2416.644259 | BC17: 42 | BD17: 1972.438828 | BE17: 101.998381 | BF17: 7058.349019 | BG17: 12724 | BH17: 5134 | BI17: 49804 | BJ17: -44670 | BK17: 23251 | BL17: 23465 | BO17: -429 | BP17: 1596 | BQ17: 3213 | BR17: 1625 | BS17: 0 | BT17: 0 | BU17: 1588 | BV17: 85 | BW17: 0 | BX17: 0 | BY17: 1673 | BZ17: -2 | CA17: 3210 | CC17: 82 | CD17: -4004 | CE17: 1690 | CF17: 23251 | CG17: 20055 | CH17: 1353 | CI17: 1843 | CJ17: 22 | CL17: 106 | CM17: 7332 | CO17: 0.2802662349 | CP17: 69.70841401 | CQ17: -2797.735952 | CU17: 39.82133456 | CV17: 1897.572286 | CW17: 82.69410519 | CX17: 8.375613748 | CY17: 14604 | CZ17: 5222 | DA17: 51501 | DB17: -46279 | DC17: 23136 | DD17: 23805 | DG17: -390 | DH17: 891 | DI17: 1163 | DJ17: 1732 | DK17: 0 | DL17: 259 | DM17: -828 | DN17: 85 | DO17: 0 | DP17: 0 | DQ17: -743 | DR17: -746 | DS17: 1023 | DU17: -839 | DV17: -5164 | DW17: -2620 | DX17: 23136 | DY17: 19865 | DZ17: 1382 | EA17: 1889 | EB17: 22 | ED17: 253 | EE17: 33655 | EF17: 34099 | EG17: 32862 | EK17: -3092 | EL17: 331 | EM17: 2571 | EN17: -1884 | EO17: 337 | EP17: 27 | EQ17: -4183 | ER17: 479 | ES17: 61 | ET17: 3415 | EU17: 3765 | EV17: 5132 | EW17: -1613 | EX17: 5780 | EY17: 2092 | EZ17: 32647 | FA17: 21963 | FB17: 10684 | FC17: 1177 | FD17: 29907 | FE17: 20835 | FF17: 9072 | FG17: 1169 | FH17: 32615 | FI17: 21451 | FJ17: 11164 | FK17: 1162 | FL17: 5635.913892 | FM17: 5213 | FN17: 5741.816694 | FO17: 902.9545455 | FP17: 123.1525567 | FS17: -1136 | FV17: 5099 | FW17: -5099
A18: 71 | B18: Haapavesi | C18: 7175 | E18: 0.5563156609 | F18: 46.02951782 | G18: -3336.30662 | K18: 30.11029911 | L18: 984.5296167 | M18: 29.1409261 | N18: 12331.56794 | O18: 40444 | P18: 34806 | Q18: 75773 | R18: -40967 | S18: 21023 | T18: 21863 | W18: -409 | X18: 289 | Y18: 1799 | Z18: 2497 | AA18: 358 | AB18: 124 | AC18: -464 | AG18: -464 | AH18: -214 | AI18: 1655 | AK18: 363 | AL18: -3615 | AM18: -2279 | AN18: 21023 | AO18: 18614 | AP18: 1155 | AQ18: 1254 | AR18: 21.25 | AT18: 216 | AU18: 7167 | AW18: 0.4187902188 | AX18: 50 | AY18: -3565.927166 | BC18: 27 | BD18: 1144.690945 | BE18: 37.54385085 | BF18: 11128.64518 | BG18: 40997 | BH18: 34211 | BI18: 76618 | BJ18: -42407 | BK18: 21200 | BL18: 22107 | BO18: -230 | BP18: 800 | BQ18: 1332 | BR18: 2399 | BS18: 0 | BT18: 19 | BU18: -1086 | BV18: 0 | BW18: 0 | BX18: 0 | BY18: -1086 | BZ18: -1410 | CA18: 1212 | CC18: 2 | CD18: -10 | CE18: -1694 | CF18: 21200 | CG18: 18583 | CH18: 1218 | CI18: 1399 | CJ18: 21.25 | CL18: 245 | CM18: 7098 | CO18: 0.3022335312 | CP18: 50.24071527 | CQ18: -3664.271626 | CU18: 24.29643705 | CV18: 1133.981403 | CW18: 34.37168028 | CX18: 12.04198366 | CY18: 41121 | CZ18: 34900 | DA18: 78239 | DB18: -43339 | DC18: 20806 | DD18: 22953 | DG18: -162 | DH18: 597 | DI18: 855 | DJ18: 2405 | DK18: 0 | DL18: 0 | DM18: -1550 | DN18: 0 | DO18: 0 | DP18: 0 | DQ18: -1550 | DR18: -2961 | DS18: 947 | DU18: -652 | DV18: -3323 | DW18: -647 | DX18: 20806 | DY18: 18139 | DZ18: 1146 | EA18: 1521 | EB18: 22 | ED18: 268 | EE18: 25446 | EF18: 25684 | EG18: 27016 | EK18: -8587 | EL18: 4208 | EM18: 445 | EN18: -3613 | EO18: 663 | EP18: 44 | EQ18: -3625 | ER18: 1991 | ES18: 40 | ET18: 10 | EU18: 4800 | EV18: 3590 | EW18: 6800 | EX18: 3010 | EY18: 2100 | EZ18: 22767 | FA18: 11377 | FB18: 11390 | FC18: 0 | FD18: 25987 | FE18: 8051 | FF18: 17936 | FG18: 0 | FH18: 27774 | FI18: 7877 | FJ18: 19897 | FK18: 0 | FL18: 3995.261324 | FM18: 6319 | FN18: 6840.518456 | FO18: 824.5 | FP18: 116.1594815 | FS18: -2869 | FV18: 1987 | FW18: -1987
A19: 72 | B19: Hailuoto | C19: 997 | E19: -0.6203703704 | F19: 27.67707932 | G19: -79.23771314 | K19: 75.38523598 | L19: 1864.593781 | M19: 78.32563777 | N19: 8689.067202 | O19: 3707 | P19: 1417 | Q19: 7864 | R19: -6447 | S19: 3267 | T19: 3095 | W19: 11 | X19: 0 | Y19: -74 | Z19: 532 | AC19: -606 | AD19: 121 | AG19: -485 | AH19: 2154 | AI19: -74 | AK19: 38 | AL19: -101 | AM19: -764 | AN19: 3267 | AO19: 2898 | AP19: 83 | AQ19: 286 | AR19: 19.25 | AT19: 299 | AU19: 993 | AW19: 5.540816327 | AX19: 42 | AY19: 82.57804632 | BC19: 68 | BD19: 3097.683787 | BE19: 113.4424573 | BF19: 9966.767372 | BG19: 3558 | BH19: 1467 | BI19: 7814 | BJ19: -6347 | BK19: 3433 | BL19: 3397 | BO19: -6 | BP19: 57 | BQ19: 533 | BR19: 415 | BS19: 0 | BT19: 0 | BU19: 118 | BV19: 0 | BW19: 124 | BX19: 0 | BY19: 242 | BZ19: 2359 | CA19: 541 | CC19: -266 | CD19: -1000 | CE19: 145 | CF19: 3433 | CG19: 3048 | CH19: 94 | CI19: 291 | CJ19: 20 | CL19: 61 | CM19: 994 | CO19: 2.023255814 | CP19: 43.5407855 | CQ19: -517.1026157 | CU19: 67.98782697 | CV19: 2257.545272 | CW19: 87.60936999 | CX19: 9.405432596 | CY19: 3572 | CZ19: 1595 | DA19: 7942 | DB19: -6347 | DC19: 3335 | DD19: 3345 | DG19: -5 | DH19: 1 | DI19: 329 | DJ19: 403 | DK19: 0 | DL19: 0 | DM19: -74 | DN19: -388 | DO19: 922 | DP19: 0 | DQ19: 460 | DR19: 2851 | DS19: 299 | DU19: -363 | DV19: -153 | DW19: -630 | DX19: 3335 | DY19: 2916 | DZ19: 93 | EA19: 326 | EB19: 20 | ED19: 190 | EE19: 3117 | EF19: 2807 | EG19: 3223 | EK19: -690 | EN19: -691 | EO19: 90 | EP19: 205 | EQ19: -1234 | ER19: 246 | ES19: 59 | EV19: 88 | EW19: -13 | EX19: 700 | EY19: 0 | EZ19: 1062 | FA19: 961 | FB19: 101 | FC19: 13 | FD19: 1961 | FE19: 1808 | FF19: 153 | FG19: 5 | FH19: 2508 | FI19: 2348 | FJ19: 160 | FK19: 5 | FL19: 2025.075226 | FM19: 2847 | FN19: 3412.474849 | FO19: 145.8 | FP19: 146.6800805 | FS19: -550 | FV19: 0 | FW19: 0
A20: 74 | B20: Halsua | C20: 1222 | E20: 0.3439054726 | F20: 51.48772486 | G20: -2438.625205 | K20: 43.06980235 | L20: 689.0343699 | M20: 28.77082943 | N20: 8741.407529 | O20: 2334 | P20: 870 | Q20: 8282 | R20: -7412 | S20: 4114 | T20: 3855 | W20: -79 | X20: -5 | Y20: 473 | Z20: 127 | AC20: 346 | AG20: 346 | AH20: 500 | AI20: 454 | AK20: 198 | AL20: -1528 | AM20: -94 | AN20: 4114 | AO20: 3426 | AP20: 403 | AQ20: 285 | AR20: 21.5 | AT20: 124 | AU20: 1225 | AW20: -0.009505703422 | AX20: 52 | AY20: -2755.102041 | BC20: 43 | BD20: 154.2857143 | BE20: 8.43853211 | BF20: 6673.469388 | BG20: 2098 | BH20: 890 | BI20: 8383 | BJ20: -7493 | BK20: 3837 | BL20: 3645 | BO20: -49 | BP20: 1 | BQ20: -59 | BR20: 119 | BS20: 0 | BT20: 0 | BU20: -178 | BV20: 0 | BW20: 0 | BX20: 0 | BY20: -178 | BZ20: 321 | CA20: -64 | CC20: -53 | CD20: 0 | CE20: -386 | CF20: 3837 | CG20: 3114 | CH20: 428 | CI20: 295 | CJ20: 21.5 | CL20: 293 | CM20: 1219 | CO20: 0.78125 | CP20: 55.91423186 | CQ20: -3024.610336 | CU20: 39.71802363 | CV20: 9.023789992 | CW20: 0.4552670371 | CX20: 7.23461854 | CY20: 2042 | CZ20: 918 | DA20: 8466 | DB20: -7548 | DC20: 3649 | DD20: 3921 | DG20: -29 | DH20: 3 | DI20: -4 | DJ20: 133 | DK20: 0 | DL20: 0 | DM20: -137 | DN20: 0 | DO20: 0 | DP20: 0 | DQ20: -137 | DR20: 184 | DS20: -32 | DU20: -266 | DV20: -3 | DW20: -302 | DX20: 3649 | DY20: 2891 | DZ20: 315 | EA20: 443 | EB20: 21.5 | ED20: 284 | EE20: 5126 | EF20: 5551 | EG20: 5412 | EK20: -786 | EM20: 238 | EN20: -468 | EO20: 70 | EP20: 76 | EQ20: -311 | ER20: 0 | ES20: 41 | EU20: 2000 | EV20: 1003 | EW20: 700 | EX20: 0 | EY20: 350 | EZ20: 4011 | FA20: 1008 | FB20: 3003 | FC20: 65 | FD20: 3708 | FE20: 1005 | FF20: 2703 | FG20: 75 | FH20: 4054 | FI20: 1002 | FJ20: 3052 | FK20: 85 | FL20: 9596.563011 | FM20: 11127 | FN20: 11167.35029 | FO20: 134.4651163 | FP20: 110.3077246 | FS20: -312 | FV20: 188 | FW20: -188
A21: 75 | B21: Hamina | C21: 21061 | E21: 1.182389338 | F21: 71.29827258 | G21: -4228.811547 | K21: 46.45624015 | L21: 377.1900669 | M21: 17.82162152 | N21: 7725.13176 | O21: 61050 | P21: 31564 | Q21: 136516 | R21: -104952 | S21: 80884 | T21: 33996 | W21: -884 | X21: 2095 | Y21: 11139 | Z21: 8863 | AC21: 2276 | AG21: 2276 | AH21: -703 | AI21: 10560 | AK21: 1665 | AL21: -9223 | AM21: 3390 | AN21: 80884 | AO21: 71382 | AP21: 4548 | AQ21: 4954 | AR21: 21 | AT21: 59 | AU21: 20851 | AW21: 1.071102355 | AX21: 73 | AY21: -4522.373028 | BC21: 45 | BD21: 383.3389286 | BE21: 18.29795975 | BF21: 7646.683612 | BG21: 61405 | BH21: 30981 | BI21: 138906 | BJ21: -107925 | BK21: 83054 | BL21: 34183 | BO21: -665 | BP21: 4260 | BQ21: 10768 | BR21: 9510 | BS21: 0 | BT21: 0 | BU21: 1258 | BV21: 0 | BW21: 0 | BX21: 0 | BY21: 1258 | BZ21: -1104 | CA21: 10316 | CC21: 634 | CD21: -14500 | CE21: -267 | CF21: 83054 | CG21: 72430 | CH21: 4856 | CI21: 5768 | CJ21: 21 | CL21: 66 | CM21: 20636 | CO21: 0.4177180659 | CP21: 71.17303131 | CQ21: -4475.334367 | CU21: 45.75133005 | CV21: 454.0608645 | CW21: 19.00830351 | CX21: 8.718937779 | CY21: 59923 | CZ21: 30689 | DA21: 140546 | DB21: -109857 | DC21: 82203 | DD21: 37167 | DG21: -471 | DH21: 2137 | DI21: 11179 | DJ21: 9680 | DK21: 0 | DL21: 0 | DM21: 1499 | DN21: 0 | DO21: 0 | DP21: 0 | DQ21: 1499 | DR21: 375 | DS21: 11096 | DU21: 1456 | DV21: -28255 | DW21: 2137 | DX21: 82203 | DY21: 71144 | DZ21: 4307 | EA21: 6752 | EB21: 21 | ED21: 72 | EE21: 51160 | EF21: 53004 | EG21: 57033 | EK21: -8876 | EL21: 92 | EM21: 1614 | EN21: -11673 | EO21: 88 | EP21: 1002 | EQ21: -10090 | ER21: 72 | ES21: 1059 | ET21: 10622 | EU21: -2553 | EV21: 9974 | EW21: 306 | EX21: 27666 | EY21: 200 | EZ21: 77376 | FA21: 66352 | FB21: 11024 | FC21: 10984 | FD21: 82199 | FE21: 68390 | FF21: 13809 | FG21: 15946 | FH21: 81816 | FI21: 66801 | FJ21: 15015 | FK21: 16106 | FL21: 7222.639001 | FM21: 7294 | FN21: 7179.928281 | FO21: 3387.809524 | FP21: 164.1698742 | FS21: -10450 | FV21: 9905 | FW21: -9905
A22: 77 | B22: Hankasalmi | C22: 5307 | E22: 0.4819413093 | F22: 33.63533409 | G22: -2094.780479 | K22: 50.95633694 | L22: 148.8599962 | M22: 6.218996679 | N22: 8736.762766 | O22: 18283 | P22: 9405 | Q22: 42137 | R22: -32732 | S22: 15093 | T22: 17886 | W22: -122 | X22: 176 | Y22: 301 | Z22: 1470 | AC22: -1169 | AD22: 22 | AG22: -1147 | AH22: -2954 | AI22: 136 | AK22: 239 | AL22: -760 | AM22: -2291 | AN22: 15093 | AO22: 13233 | AP22: 700 | AQ22: 1160 | AR22: 21.5 | AT22: 280 | AU22: 5240 | AW22: 2.953519256 | AX22: 35 | AY22: -2248.664122 | BC22: 50 | BD22: 106.1068702 | BE22: 4.804564502 | BF22: 8060.877863 | BG22: 18509 | BH22: 9340 | BI22: 41109 | BJ22: -31769 | BK22: 15329 | BL22: 18516 | BO22: -103 | BP22: 265 | BQ22: 2120 | BR22: 1634 | BS22: 0 | BT22: 0 | BU22: 486 | BV22: 22 | BW22: 0 | BX22: 0 | BY22: 508 | BZ22: -2447 | CA22: 1892 | CC22: -662 | CD22: 0 | CE22: -1259 | CF22: 15329 | CG22: 13209 | CH22: 790 | CI22: 1330 | CJ22: 22 | CL22: 118 | CM22: 5159 | CO22: 3.813380282 | CP22: 38.83479539 | CQ22: -2299.282807 | CU22: 50.55119449 | CV22: 535.7627447 | CW22: 22.66286279 | CX22: 8.628804032 | CY22: 17102 | CZ22: 8078 | DA22: 40381 | DB22: -32303 | DC22: 15575 | DD22: 19893 | DG22: -82 | DH22: 82 | DI22: 3165 | DJ22: 1637 | DK22: 0 | DL22: 0 | DM22: 1528 | DN22: 22 | DO22: 0 | DP22: 0 | DQ22: 1550 | DR22: -897 | DS22: 3144 | DU22: 726 | DV22: -768 | DW22: 98 | DX22: 15575 | DY22: 13534 | DZ22: 1333 | EA22: 708 | EB22: 22 | ED22: 55 | EE22: 18666 | EF22: 17688 | EG22: 18482 | EK22: -3323 | EL22: 656 | EM22: 240 | EN22: -3518 | EO22: 30 | EP22: 337 | EQ22: -3190 | ER22: 118 | ES22: 26 | ET22: 1219 | EU22: 1500 | EV22: 649 | EW22: 1503 | EX22: 0 | EY22: 2000 | EZ22: 8331 | FA22: 4191 | FB22: 4140 | FC22: 0 | FD22: 9185 | FE22: 3417 | FF22: 5768 | FG22: 0 | FH22: 10417 | FI22: 2901 | FJ22: 7516 | FK22: 0 | FL22: 2827.774637 | FM22: 2820 | FN22: 3350.067843 | FO22: 615.1818182 | FP22: 119.244392 | FS22: -5012 | FV22: 985 | FW22: -985
A23: 78 | B23: Hanko | C23: 9021 | E23: 0.5253185234 | F23: 108.4446314 | G23: -7523.999557 | K23: 36.07484331 | L23: 19.28832724 | M23: 0.7573336513 | N23: 9296.086908 | O23: 29981 | P23: 14615 | Q23: 65541 | R23: -50926 | S23: 39738 | T23: 12503 | W23: 951 | X23: 125 | Y23: 2391 | Z23: 3838 | AC23: -1447 | AD23: 10 | AG23: -1436 | AH23: 3962 | AI23: 740 | AK23: -1782 | AL23: -5297 | AM23: -11340 | AN23: 39738 | AO23: 34051 | AP23: 3111 | AQ23: 2576 | AR23: 21.75 | AT23: 206 | AU23: 8864 | AW23: 3.127232143 | AX23: 109 | AY23: -7790.162455 | BC23: 35 | BD23: 82.46841155 | BE23: 3.776253963 | BF23: 7971.119134 | BG23: 30206 | BH23: 15872 | BI23: 67370 | BJ23: -51498 | BK23: 40070 | BL23: 12103 | BO23: 851 | BP23: 586 | BQ23: 1881 | BR23: 3744 | BS23: 62 | BT23: 0 | BU23: -1801 | BV23: 10 | BW23: 0 | BX23: 0 | BY23: -1791 | BZ23: 2169 | CA23: 1312 | CC23: 140 | CD23: -975 | CE23: -1244 | CF23: 40070 | CG23: 34508 | CH23: 2842 | CI23: 2720 | CJ23: 21.75 | CL23: 229 | CM23: 8663 | CO23: 0.9782987793 | CP23: 107.4929611 | CQ23: -7875.216438 | CU23: 35.30471406 | CV23: 69.83723883 | CW23: 2.992614175 | CX23: 8.517834468 | CY23: 29203 | CZ23: 16503 | DA23: 65739 | DB23: -49236 | DC23: 38792 | DD23: 12898 | DG23: 831 | DH23: 828 | DI23: 4113 | DJ23: 3662 | DK23: 0 | DL23: 0 | DM23: 451 | DN23: 10 | DO23: 0 | DP23: 0 | DQ23: 461 | DR23: 2760 | DS23: 3660 | DU23: -96 | DV23: -4225 | DW23: 1224 | DX23: 38792 | DY23: 33908 | DZ23: 2163 | EA23: 2721 | EB23: 21.75 | ED23: 101 | EE23: 26574 | EF23: 28314 | EG23: 27259 | EK23: -12475 | EL23: 28 | EM23: 367 | EN23: -3288 | EO23: 0 | EP23: 732 | EQ23: -2831 | ER23: 0 | ES23: 395 | ET23: 18000 | EV23: -25 | EX23: 4000 | EY23: 0 | EZ23: 64637 | FA23: 24137 | FB23: 40500 | FC23: 30427 | FD23: 65637 | FE23: 24912 | FF23: 40725 | FG23: 30427 | FH23: 65412 | FI23: 20621 | FJ23: 44791 | FK23: 30829 | FL23: 8281.676089 | FM23: 8432 | FN23: 8626.572781 | FO23: 1558.988506 | FP23: 179.9594258 | FS23: -2585 | FV23: 13300 | FW23: -13300
A24: 79 | B24: Harjavalta | C24: 7366 | E24: 2.487163431 | F24: 37.18621062 | G24: -2011.132229 | K24: 59.63678113 | L24: 259.435243 | M24: 13.15668855 | N24: 7197.393429 | O24: 15917 | P24: 6736 | Q24: 47988 | R24: -41252 | S24: 30822 | T24: 14325 | W24: -141 | X24: 50 | Y24: 3804 | Z24: 2017 | AC24: 1787 | AG24: 1786 | AH24: 10556 | AI24: 3318 | AK24: 624 | AL24: -1429 | AM24: 540 | AN24: 30822 | AO24: 23655 | AP24: 5575 | AQ24: 1592 | AR24: 19.75 | AT24: 67 | AU24: 7296 | AW24: 0.6434108527 | AX24: 36 | AY24: -2053.316886 | BC24: 60 | BD24: 14.39144737 | BE24: 0.816711418 | BF24: 6431.743421 | BG24: 15341 | BH24: 6204 | BI24: 47925 | BJ24: -41721 | BK24: 30477 | BL24: 12673 | BO24: -164 | BP24: 77 | BQ24: 1315 | BR24: 2180 | BS24: 0 | BT24: 0 | BU24: -865 | BV24: 0 | BW24: 0 | BX24: 0 | BY24: -865 | BZ24: 9692 | CA24: 1087 | CC24: -73 | CD24: 0 | CE24: -634 | CF24: 30477 | CG24: 23439 | CH24: 5237 | CI24: 1801 | CJ24: 19.75 | CL24: 248 | CM24: 7240 | CO24: -0.2745098039 | CP24: 44.48162595 | CQ24: -2463.674033 | CU24: 52.55085739 | CV24: 200.2762431 | CW24: 9.810191106 | CX24: 7.451519337 | CY24: 15428 | CZ24: 6184 | DA24: 49415 | DB24: -43231 | DC24: 30404 | DD24: 12147 | DG24: -141 | DH24: 39 | DI24: -782 | DJ24: 2245 | DK24: 0 | DL24: 0 | DM24: -3027 | DN24: 0 | DO24: 0 | DP24: 0 | DQ24: -3027 | DR24: 6667 | DS24: -1004 | DU24: 255 | DV24: -2143 | DW24: -2939 | DX24: 30404 | DY24: 23502 | DZ24: 5099 | EA24: 1803 | EB24: 19.75 | ED24: 290 | EE24: 26971 | EF24: 28056 | EG24: 29401 | EK24: -3422 | EL24: 42 | EM24: 602 | EN24: -2052 | EO24: 6 | EP24: 325 | EQ24: -2258 | ER24: 0 | ES24: 323 | ET24: 5000 | EU24: -4000 | EV24: 2143 | EW24: 1000 | EX24: 3000 | EY24: 3000 | EZ24: 13000 | FA24: 10857 | FB24: 2143 | FC24: 31 | FD24: 11857 | FE24: 8714 | FF24: 3143 | FG24: 29 | FH24: 15714 | FI24: 9143 | FJ24: 6571 | FK24: 28 | FL24: 2387.048602 | FM24: 2819 | FN24: 3227.486188 | FO24: 1189.974684 | FP24: 164.3611441 | FS24: -1711 | FV24: 0 | FW24: 0
A25: 81 | B25: Hartola | C25: 3071 | E25: 0.9976303318 | F25: 65.80999646 | G25: -3667.535005 | K25: 24.73263368 | L25: 332.7906219 | M25: 13.05076444 | N25: 9307.391729 | O25: 4837 | P25: 3092 | Q25: 20946 | R25: -17854 | S25: 10089 | T25: 9398 | W25: -177 | X25: 38 | Y25: 1494 | Z25: 482 | AA25: 82 | AC25: 1094 | AG25: 1094 | AH25: -581 | AI25: 1486 | AK25: -1766 | AL25: -1498 | AM25: -2107 | AN25: 10089 | AO25: 7632 | AP25: 1126 | AQ25: 1331 | AR25: 21.5 | AT25: 78 | AU25: 2982 | AW25: 0.8761363636 | AX25: 76 | AY25: -4345.741113 | BC25: 25 | BD25: 423.2059021 | BE25: 17.8954934 | BF25: 8631.790744 | BG25: 4640 | BH25: 3039 | BI25: 20545 | BJ25: -17506 | BK25: 10219 | BL25: 8788 | BO25: -166 | BP25: 57 | BQ25: 1364 | BR25: 556 | BS25: 0 | BT25: 0 | BU25: 808 | BV25: 0 | BW25: 0 | BX25: 0 | BY25: 808 | BZ25: 227 | CA25: 1133 | CC25: 6 | CD25: -3016 | CE25: -1797 | CF25: 10219 | CG25: 7596 | CH25: 1285 | CI25: 1338 | CJ25: 21.5 | CL25: 93 | CM25: 2924 | CO25: 1.112074303 | CP25: 80.94387989 | CQ25: -4833.447332 | CU25: 25.55693582 | CV25: 149.7948016 | CW25: 6.368054172 | CX25: 8.585841313 | CY25: 4688 | CZ25: 3046 | DA25: 20083 | DB25: -17037 | DC25: 9741 | DD25: 9062 | DG25: -149 | DH25: 20 | DI25: 1637 | DJ25: 656 | DK25: 566 | DL25: 1132 | DM25: 415 | DN25: 0 | DO25: 0 | DP25: 0 | DQ25: 415 | DR25: 642 | DS25: 987 | DU25: -551 | DV25: -1456 | DW25: -1329 | DX25: 9741 | DY25: 7157 | DZ25: 1232 | EA25: 1352 | EB25: 21.5 | ED25: 65 | EE25: 14788 | EF25: 14553 | EG25: 13852 | EH25: 355 | EK25: -5960 | EL25: 2162 | EM25: 205 | EN25: -4678 | EO25: 1485 | EP25: 263 | EQ25: -3410 | ER25: 932 | ES25: 162 | ET25: 4500 | EU25: 1000 | EV25: 1582 | EW25: 500 | EX25: 2601 | EY25: 100 | EZ25: 12218 | FA25: 9136 | FB25: 3082 | FC25: 244 | FD25: 14152 | FE25: 10696 | FF25: 3456 | FG25: 211 | FH25: 15397 | FI25: 11803 | FJ25: 3594 | FK25: 27 | FL25: 10223.70563 | FM25: 10858 | FN25: 11239.74008 | FO25: 332.8837209 | FP25: 113.8453218 | FS25: -2729 | FV25: 1545 | FW25: -1545
A26: 82 | B26: Hattula | C26: 9738 | E26: 1.09455494 | F26: 54.70676924 | G26: -2704.662148 | K26: 46.14288699 | L26: 5.647976997 | M26: 0.3615032774 | N26: 5702.608338 | O26: 20933 | P26: 6136 | Q26: 48614 | R26: -42478 | S26: 35322 | T26: 10276 | W26: -182 | X26: 32 | Y26: 2970 | Z26: 1517 | AA26: 505 | AC26: 1958 | AG26: 1958 | AH26: 4786 | AI26: 2597 | AK26: -605 | AL26: -2680 | AM26: 311 | AN26: 35322 | AO26: 32132 | AP26: 1081 | AQ26: 2109 | AR26: 20 | AT26: 178 | AU26: 9747 | AW26: 1.032970451 | AX26: 64 | AY26: -3220.991074 | BC26: 42 | BD26: 6.976505591 | BE26: 0.3850031799 | BF26: 6614.035088 | BG26: 20314 | BH26: 6007 | BI26: 49058 | BJ26: -43051 | BK26: 36768 | BL26: 9518 | BO26: -1 | BP26: -111 | BQ26: 3119 | BR26: 1551 | BS26: 0 | BT26: 0 | BU26: 1568 | BV26: 0 | BW26: 0 | BX26: 0 | BY26: 1568 | BZ26: 5039 | CA26: 2713 | CC26: 136 | CD26: -10000 | CE26: -5073 | CF26: 36768 | CG26: 33308 | CH26: 1326 | CI26: 2134 | CJ26: 20 | CL26: 161 | CM26: 9682 | CO26: 0.555624419 | CP26: 79.40046411 | CQ26: -4116.298285 | CU26: 36.28571854 | CV26: 9.398884528 | CW26: 0.5181585598 | CX26: 6.620739517 | CY26: 21257 | CZ26: 6061 | DA26: 50893 | DB26: -44832 | DC26: 36609 | DD26: 9912 | DG26: 26 | DH26: -96 | DI26: 1619 | DJ26: 1549 | DK26: 0 | DL26: 272 | DM26: -202 | DN26: 0 | DO26: 0 | DP26: 0 | DQ26: -202 | DR26: 4838 | DS26: 1298 | DU26: -27 | DV26: -3053 | DW26: -8546 | DX26: 36609 | DY26: 33290 | DZ26: 1127 | EA26: 2192 | EB26: 20 | ED26: 250 | EE26: 22358 | EF26: 23111 | EG26: 23767 | EK26: -3843 | EL26: 136 | EM26: 1421 | EN26: -9424 | EO26: 1344 | EP26: 294 | EQ26: -9884 | ER26: 209 | ES26: -169 | EU26: 1431 | EV26: 3013 | EW26: -1009 | EX26: 2399 | EY26: 8414 | EZ26: 22411 | FA26: 15394 | FB26: 7017 | FC26: 4398 | FD26: 28389 | FE26: 22027 | FF26: 6362 | FG26: 4398 | FH26: 36148 | FI26: 21449 | FJ26: 14699 | FK26: 4398 | FL26: 3353.666051 | FM26: 3971 | FN26: 4665.048544 | FO26: 1664.5 | FP26: 171.9169593 | FS26: -7768 | FV26: 1420 | FW26: -1420
A27: 86 | B27: Hausjärvi | C27: 8815 | E27: 0.5574491479 | F27: 63.06354068 | G27: -3207.600681 | K27: 36.62234617 | L27: 310.153148 | M27: 17.21543664 | N27: 6575.836642 | O27: 16510 | P27: 6066 | Q27: 47911 | R27: -41845 | S27: 31781 | T27: 13098 | W27: -515 | X27: -1 | Y27: 2518 | Z27: 2194 | AB27: 87 | AC27: 237 | AG27: 237 | AH27: 4123 | AI27: 2466 | AK27: -62 | AL27: -4933 | AM27: -1963 | AN27: 31781 | AO27: 29055 | AP27: 1179 | AQ27: 1547 | AR27: 21 | AT27: 188 | AU27: 8729 | AW27: 0.5784855379 | AX27: 65 | AY27: -2951.769962 | BC27: 34 | BD27: 730.7824493 | BE27: 42.9107077 | BF27: 6216.061405 | BG27: 16275 | BH27: 6398 | BI27: 47577 | BJ27: -41179 | BK27: 32179 | BL27: 12542 | BO27: -510 | BP27: 12 | BQ27: 3043 | BR27: 2386 | BS27: 0 | BT27: 0 | BU27: 657 | BV27: 0 | BW27: 0 | BX27: 0 | BY27: 657 | BZ27: 3127 | CA27: 4461 | CC27: 66 | CD27: -6800 | CE27: 4246 | CF27: 32179 | CG27: 29259 | CH27: 1250 | CI27: 1670 | CJ27: 21 | CL27: 144 | CM27: 8641 | CO27: 0.7540903141 | CP27: 53.87730929 | CQ27: -2712.070362 | CU27: 40.21551286 | CV27: 383.7518806 | CW27: 21.89788681 | CX27: 6.396481889 | CY27: 16587 | CZ27: 6490 | DA27: 47790 | DB27: -41300 | DC27: 32434 | DD27: 13464 | DG27: -400 | DH27: 6 | DI27: 4204 | DJ27: 2075 | DK27: 0 | DL27: 0 | DM27: 2129 | DN27: 0 | DO27: 0 | DP27: 0 | DQ27: 2129 | DR27: 5256 | DS27: 3487 | DU27: -408 | DV27: -5707 | DW27: 2221 | DX27: 32434 | DY27: 29738 | DZ27: 1121 | EA27: 1575 | EB27: 21.5 | ED27: 96 | EE27: 24998 | EF27: 25185 | EG27: 25017 | EK27: -4609 | EM27: 180 | EN27: -727 | EO27: 0 | EP27: 512 | EQ27: -1413 | ER27: 0 | ES27: 147 | ET27: 8500 | EU27: -1500 | EV27: 5637 | EX27: 0 | EY27: 800 | EZ27: 28053 | FA27: 22586 | FB27: 5467 | FC27: 163 | FD27: 29216 | FE27: 23509 | FF27: 5707 | FG27: 150 | FH27: 24309 | FI27: 18277 | FJ27: 6032 | FK27: 136 | FL27: 3593.306863 | FM27: 3682 | FN27: 3119.893531 | FO27: 1383.162791 | FP27: 160.0697594 | FS27: -121 | FV27: 3465 | FW27: -3465
A28: 111 | B28: Heinola | C28: 19695 | E28: 0.8804017556 | F28: 48.05145118 | G28: 747.6009139 | K28: 65.67145156 | L28: 3594.211729 | M28: 183.881946 | N28: 7134.399594 | O28: 56707 | P28: 20778 | Q28: 124210 | R28: -103432 | S28: 71926 | T28: 38384 | W28: -959 | X28: 3451 | Y28: 9370 | Z28: 5073 | AC28: 4297 | AD28: 267 | AG28: 4564 | AH28: 17820 | AI28: 9276 | AK28: 637 | AL28: -10787 | AM28: 5550 | AN28: 71926 | AO28: 62538 | AP28: 3455 | AQ28: 5933 | AR28: 20.5 | AT28: 82 | AU28: 19575 | AW28: 0.2749162049 | AX28: 52 | AY28: 614.7637292 | BC28: 64 | BD28: 3740.383142 | BE28: 171.9185714 | BF28: 7941.200511 | BG28: 57358 | BH28: 19892 | BI28: 127690 | BJ28: -107798 | BK28: 71054 | BL28: 37385 | BO28: -725 | BP28: 3448 | BQ28: 3187 | BR28: 5487 | BS28: 1195 | BT28: 0 | BU28: -1105 | BV28: 260 | BW28: 0 | BX28: 0 | BY28: -845 | BZ28: 16976 | CA28: 4140 | CC28: 1215 | CD28: -20000 | CE28: -3074 | CF28: 71054 | CG28: 61577 | CH28: 3517 | CI28: 5960 | CJ28: 20.5 | CL28: 256 | CM28: 19350 | CO28: 0.8942871716 | CP28: 58.73233598 | CQ28: 476.8475452 | CU28: 60.33545282 | CV28: 4117.312661 | CW28: 194.6409328 | CX28: 7.720981912 | CY28: 57581 | CZ28: 20645 | DA28: 129065 | DB28: -108420 | DC28: 71326 | DD28: 41022 | DG28: -495 | DH28: 3025 | DI28: 6458 | DJ28: 7175 | DK28: 0 | DL28: 0 | DM28: -717 | DN28: 262 | DO28: 0 | DP28: 0 | DQ28: -455 | DR28: 16521 | DS28: 6492 | DU28: -1969 | DV28: -7287 | DW28: -2866 | DX28: 71326 | DY28: 62084 | DZ28: 2993 | EA28: 6249 | EB28: 20.5 | ED28: 188 | EE28: 50359 | EF28: 52303 | EG28: 52662 | EK28: -4151 | EL28: 192 | EM28: 233 | EN28: -8080 | EO28: 345 | EP28: 521 | EQ28: -11574 | ER28: 1966 | ES28: 250 | EU28: 8500 | EV28: 13787 | EW28: -3500 | EX28: 16000 | EY28: 3000 | EZ28: 45498 | FA28: 19211 | FB28: 26287 | FC28: 2374 | FD28: 48212 | FE28: 31925 | FF28: 16287 | FG28: 2321 | FH28: 59925 | FI28: 39438 | FJ28: 20487 | FK28: 2243 | FL28: 3127.951257 | FM28: 3249 | FN28: 3929.147287 | FO28: 3028.487805 | FP28: 156.5109977 | FS28: -7190 | FV28: 6262 | FW28: -6262
A29: 90 | B29: Heinävesi | C29: 3638 | E29: 1.367179487 | F29: 61.50909574 | G29: -3826.553051 | K29: 41.26737353 | L29: 940.626718 | M29: 40.01505735 | N29: 8579.989005 | O29: 13001 | P29: 5013 | Q29: 29193 | R29: -24180 | S29: 11960 | T29: 13151 | W29: 4 | X29: 275 | Y29: 1210 | Z29: 1706 | AC29: -496 | AD29: 161 | AG29: -335 | AH29: 2078 | AI29: 1191 | AK29: 11 | AL29: -852 | AM29: 369 | AN29: 11960 | AO29: 8889 | AP29: 1856 | AQ29: 1215 | AR29: 20.75 | AT29: 164 | AU29: 3574 | AW29: 3.049713193 | AX29: 62 | AY29: -3799.104645 | BC29: 41 | BD29: 1124.510353 | BE29: 49.15672542 | BF29: 8349.748181 | BG29: 13003 | BH29: 5157 | BI29: 29519 | BJ29: -24362 | BK29: 12039 | BL29: 13492 | BO29: 70 | BP29: 542 | BQ29: 1524 | BR29: 1677 | BS29: 0 | BT29: 0 | BU29: -153 | BV29: 157 | BW29: 0 | BX29: 0 | BY29: 4 | BZ29: 2083 | CA29: 1517 | CC29: -117 | CD29: 0 | CE29: 346 | CF29: 12039 | CG29: 8630 | CH29: 2182 | CI29: 1227 | CJ29: 20.75 | CL29: 110 | CM29: 3514 | CO29: 3.285140562 | CP29: 62.69344321 | CQ29: -3812.749004 | CU29: 39.95164795 | CV29: 1331.246443 | CW29: 53.56936688 | CX29: 9.070574843 | CY29: 12956 | CZ29: 5009 | DA29: 29639 | DB29: -24630 | DC29: 11892 | DD29: 13922 | DG29: 107 | DH29: 299 | DI29: 1590 | DJ29: 1655 | DK29: 0 | DL29: 0 | DM29: -65 | DN29: 157 | DO29: 0 | DP29: 0 | DQ29: 92 | DR29: 2175 | DS29: 1561 | DU29: 56 | DV29: -452 | DW29: 409 | DX29: 11892 | DY29: 8640 | DZ29: 2003 | EA29: 1249 | EB29: 20.75 | ED29: 109 | EE29: 12807 | EF29: 13068 | EG29: 13050 | EK29: -1043 | EL29: 122 | EM29: 99 | EN29: -1199 | EO29: 21 | EP29: 7 | EQ29: -1523 | ER29: 342 | ES29: 29 | EU29: -99 | EV29: 452 | EW29: 901 | EX29: 0 | EY29: 1000 | EZ29: 14531 | FA29: 2680 | FB29: 11851 | FC29: 95 | FD29: 14980 | FE29: 2228 | FF29: 12752 | FG29: 75 | FH29: 15528 | FI29: 1998 | FJ29: 13530 | FK29: 288 | FL29: 5807.586586 | FM29: 5890 | FN29: 6027.60387 | FO29: 416.3855422 | FP29: 118.4933245 | FS29: -1157 | FV29: 225 | FW29: -225
A30: 91 | B30: Helsinki | C30: 620715 | E30: 1.690032333 | F30: 45.5834058 | G30: -1673.711768 | K30: 77.97484912 | L30: 1623.762919 | M30: 44.3381778 | N30: 13367.11373 | O30: 1915576 | P30: 1886495 | Q30: 4665124 | R30: -2778629 | S30: 2951932 | T30: 250648 | W30: 28596 | X30: 28116 | Y30: 480663 | Z30: 408147 | AA30: 1172123 | AB30: 75 | AC30: 1244564 | AD30: 200862 | AE30: 96154 | AF30: 91621 | AG30: 1633201 | AH30: 4500420 | AI30: 95257 | AK30: 101868 | AL30: -274933 | AM30: 402046 | AN30: 2951932 | AO30: 2435075 | AP30: 309755 | AQ30: 206687 | AR30: 18.5 | AT30: 18 | AU30: 628208 | AW30: 2.069566408 | AX30: 52 | AY30: -1803.06841 | BC30: 78 | BD30: 1497.005769 | BE30: 76.873912 | BF30: 7107.835303 | BG30: 1837722 | BH30: 1156368 | BI30: 4302828 | BJ30: -3146460 | BK30: 3067915 | BL30: 273172 | BO30: 63985 | BP30: 20079 | BQ30: 265115 | BR30: 385696 | BS30: 139775 | BT30: 593 | BU30: 18601 | BV30: 3067 | BW30: -2116 | BX30: 9282 | BY30: 28834 | BZ30: 4479253 | CA30: 251180 | CC30: -11382 | CD30: -120000 | CE30: -166963 | CF30: 3067915 | CG30: 2480765 | CH30: 372493 | CI30: 214657 | CJ30: 18.5 | CL30: 112 | CM30: 635181 | CO30: 1.734051692 | CP30: 52.52698818 | CQ30: -1476.180805 | CU30: 77.55557649 | CV30: 1763.061238 | CW30: 79.19970513 | CX30: 8.125249338 | CY30: 1795985 | CZ30: 1198580 | DA30: 4266066 | DB30: -3067486 | DC30: 3205605 | DD30: 316331 | DG30: 64819 | DH30: 50109 | DI30: 569378 | DJ30: 337209 | DK30: 239529 | DL30: 1518 | DM30: 470180 | DN30: -13908 | DO30: 16300 | DP30: -7533 | DQ30: 465039 | DR30: 4944292 | DS30: 555913 | DU30: -133043 | DV30: -320729 | DW30: 158808 | DX30: 3205605 | DY30: 2586063 | DZ30: 397315 | EA30: 222227 | EB30: 18.5 | ED30: 16 | EE30: 1602583 | EF30: 1658468 | EG30: 1640090 | EK30: -2720876 | EL30: 5229 | EM30: 3022436 | EN30: -571167 | EO30: 5267 | EP30: 147757 | EQ30: -662960 | ER30: 18806 | ES30: 247049 | ET30: 355000 | EV30: 116641 | EX30: 110000 | EY30: 0 | EZ30: 1578633 | FA30: 1461992 | FB30: 116641 | FC30: 2087066 | FD30: 1581992 | FE30: 1261264 | FF30: 320728 | FG30: 2008843 | FH30: 1371264 | FI30: 1255956 | FJ30: 115308 | FK30: 1951426 | FL30: 7960.569666 | FM30: 7977 | FN30: 7777.350078 | FO30: 139787.1892 | FP30: 220.0745759 | FS30: -403282 | FV30: 116591 | FW30: -116591
A31: 97 | B31: Hirvensalmi | C31: 2326 | E31: 13.48529412 | F31: 17.49758947 | G31: 1454.428203 | K31: 79.72765085 | L31: 2576.956148 | M31: 126.609375 | N31: 7429.062769 | O31: 3868 | P31: 2864 | Q31: 15994 | R31: -13130 | S31: 7428 | T31: 7339 | W31: -1 | X31: 195 | Y31: 1831 | Z31: 714 | AC31: 1117 | AG31: 1118 | AH31: 4087 | AI31: 1720 | AK31: -133 | AL31: -133 | AM31: 779 | AN31: 7428 | AO31: 5597 | AP31: 715 | AQ31: 1116 | AR31: 19.5 | AT31: 17 | AU31: 2290 | AW31: 8.611940299 | AX31: 16 | AY31: 1689.082969 | BC31: 81 | BD31: 2731.004367 | BE31: 140.0607436 | BF31: 7117.030568 | BG31: 3803 | BH31: 3001 | BI31: 16518 | BJ31: -13517 | BK31: 7439 | BL31: 7056 | BO31: -1 | BP31: 346 | BQ31: 1153 | BR31: 816 | BS31: 0 | BT31: 0 | BU31: 337 | BV31: 0 | BW31: 0 | BX31: 0 | BY31: 337 | BZ31: 4424 | CA31: 1129 | CC31: 8 | CD31: 0 | CE31: 504 | CF31: 7439 | CG31: 5421 | CH31: 872 | CI31: 1146 | CJ31: 19.5 | CL31: 69 | CM31: 2274 | CO31: 6.819548872 | CP31: 15.41890502 | CQ31: 1778.80387 | CU31: 82.01259289 | CV31: 2819.261214 | CW31: 133.1899937 | CX31: 7.726033421 | CY31: 3676 | CZ31: 2975 | DA31: 16701 | DB31: -13726 | DC31: 7388 | DD31: 7135 | DG31: 0 | DH31: 110 | DI31: 907 | DJ31: 780 | DK31: 0 | DL31: 0 | DM31: 127 | DN31: 0 | DO31: 0 | DP31: 0 | DQ31: 127 | DR31: 4552 | DS31: 884 | DU31: 135 | DV31: -133 | DW31: 201 | DX31: 7388 | DY31: 5417 | DZ31: 817 | EA31: 1154 | EB31: 19.5 | ED31: 140 | EE31: 10599 | EF31: 11250 | EG31: 11497 | EK31: -1142 | EL31: 112 | EM31: 89 | EN31: -727 | EO31: 71 | EP31: 31 | EQ31: -712 | ER31: 0 | ES31: 29 | EV31: 133 | EX31: 0 | EY31: 0 | EZ31: 833 | FA31: 700 | FB31: 133 | FC31: 38 | FD31: 700 | FE31: 567 | FF31: 133 | FG31: 38 | FH31: 566 | FI31: 433 | FJ31: 133 | FK31: 38 | FL31: 3483.233018 | FM31: 3479 | FN31: 3378.188215 | FO31: 277.7948718 | FP31: 122.1613332 | FS31: -710 | FV31: 301 | FW31: -301
A32: 98 | B32: Hollola | C32: 21892 | E32: 1.256610385 | F32: 39.68803075 | G32: -2189.704001 | K32: 47.95354435 | L32: 1139.731409 | M32: 41.31053957 | N32: 10070.11694 | O32: 81374 | P32: 98334 | Q32: 200466 | R32: -102132 | S32: 83231 | T32: 26409 | W32: -579 | X32: 332 | Y32: 7261 | Z32: 8624 | AC32: -1363 | AD32: 6 | AG32: -1358 | AH32: 13964 | AI32: 7068 | AK32: 6777 | AL32: -5650 | AM32: -3994 | AN32: 83231 | AO32: 75171 | AP32: 3297 | AQ32: 4763 | AR32: 20.75 | AT32: 165 | AU32: 21813 | AW32: 0.9250588381 | AX32: 42 | AY32: -2495.484344 | BC32: 46 | BD32: 1062.393985 | BE32: 39.01634732 | BF32: 9938.75212 | BG32: 79386 | BH32: 96456 | BI32: 200875 | BJ32: -104419 | BK32: 83775 | BL32: 27213 | BO32: -582 | BP32: 2071 | BQ32: 6883 | BR32: 9859 | BS32: 0 | BT32: 0 | BU32: -2976 | BV32: 5 | BW32: 0 | BX32: 0 | BY32: -2971 | BZ32: 11208 | CA32: 6684 | CC32: 142 | CD32: -10000 | CE32: -6941 | CF32: 83775 | CG32: 75686 | CH32: 3209 | CI32: 4880 | CJ32: 21 | CL32: 163 | CM32: 23791 | CO32: 1.434842834 | CP32: 45.71638266 | CQ32: -2572.779623 | CU32: 46.24348901 | CV32: 1079.946198 | CW32: 42.7784975 | CX32: 9.214450843 | CY32: 77228 | CZ32: 85964 | DA32: 199473 | DB32: -113509 | DC32: 90990 | DD32: 35755 | DG32: -748 | DH32: 228 | DI32: 12716 | DJ32: 7407 | DK32: 0 | DL32: 0 | DM32: 5309 | DN32: 5 | DO32: 0 | DP32: 0 | DQ32: 5314 | DR32: 17892 | DS32: 12309 | DU32: -136 | DV32: -8635 | DW32: 2889 | DX32: 90990 | DY32: 82861 | DZ32: 2753 | EA32: 5376 | EB32: 21 | ED32: 76 | EE32: 89607 | EF32: 92638 | EG32: 95395 | EK32: -13782 | EL32: 2296 | EM32: 424 | EN32: -14376 | EO32: 55 | EP32: 696 | EQ32: -10150 | ER32: 112 | ES32: 618 | ET32: 13000 | EU32: -2800 | EV32: 7488 | EX32: 8000 | EY32: -400 | EZ32: 51148 | FA32: 43660 | FB32: 7488 | FC32: 335 | FD32: 53660 | FE32: 45687 | FF32: 7973 | FG32: 60 | FH32: 62027 | FI32: 53267 | FJ32: 8760 | FK32: 426 | FL32: 3118.901882 | FM32: 3236 | FN32: 3357.530158 | FO32: 3945.761905 | FP32: 165.8510321 | FS32: -13599 | FV32: 3784 | FW32: -3784
A33: 99 | B33: Honkajoki | C33: 1788 | E33: 1.028391167 | F33: 33.52721451 | G33: -2762.304251 | K33: 34.43101292 | L33: 222.0357942 | M33: 7.633408839 | N33: 10616.89038 | O33: 8199 | P33: 7957 | Q33: 18097 | R33: -10140 | S33: 5901 | T33: 4882 | W33: -69 | X33: 9 | Y33: 583 | Z33: 365 | AC33: 218 | AD33: 5 | AG33: 223 | AH33: -1609 | AI33: 615 | AK33: -127 | AL33: -565 | AM33: 438 | AN33: 5901 | AO33: 4648 | AP33: 826 | AQ33: 427 | AR33: 21.25 | AT33: 170 | AU33: 1793 | AW33: 0.9626556017 | AX33: 31 | AY33: -2619.074177 | BC33: 38 | BD33: 6.692693809 | BE33: 0.2590949423 | BF33: 9428.332404 | BG33: 7834 | BH33: 7538 | BI33: 17481 | BJ33: -9943 | BK33: 6008 | BL33: 4392 | BO33: -53 | BP33: 8 | BQ33: 411 | BR33: 354 | BS33: 0 | BT33: 0 | BU33: 57 | BV33: 5 | BW33: 0 | BX33: 0 | BY33: 62 | BZ33: -1547 | CA33: 381 | CC33: 128 | CD33: 0 | CE33: 246 | CF33: 6008 | CG33: 4560 | CH33: 951 | CI33: 497 | CJ33: 21.5 | CL33: 219 | CM33: 1759 | CO33: 1.04519774 | CP33: 30.40423817 | CQ33: -2545.196134 | CU33: 38.55001743 | CV33: 17.6236498 | CW33: 0.645907067 | CX33: 9.959067652 | CY33: 7074 | CZ33: 6790 | DA33: 17003 | DB33: -10213 | DC33: 6153 | DD33: 4423 | DG33: -43 | DH33: 7 | DI33: 327 | DJ33: 370 | DK33: 0 | DL33: 0 | DM33: -43 | DN33: 5 | DO33: 0 | DP33: 0 | DQ33: -38 | DR33: -1585 | DS33: 330 | DU33: 46 | DV33: -311 | DW33: 216 | DX33: 6153 | DY33: 4835 | DZ33: 821 | EA33: 497 | EB33: 21.5 | ED33: 246 | EE33: 8734 | EF33: 8551 | EG33: 8852 | EH33: 255 | EK33: -207 | EL33: 5 | EM33: 25 | EN33: -200 | EO33: 3 | EP33: 62 | EQ33: -158 | ER33: 14 | ES33: 30 | ET33: 400 | EU33: -241 | EV33: 429 | EW33: -131 | EX33: 0 | EY33: 60 | EZ33: 3489 | FA33: 2644 | FB33: 845 | FC33: 1 | FD33: 2927 | FE33: 2332 | FF33: 595 | FG33: 1 | FH33: 2676 | FI33: 2081 | FJ33: 595 | FK33: 1 | FL33: 3086.689038 | FM33: 2800 | FN33: 2661.17112 | FO33: 224.8837209 | FP33: 127.8474821 | FS33: -134 | FV33: 435 | FW33: -435
A34: 102 | B34: Huittinen | C34: 10487 | E34: 1.338831922 | F34: 41.8869923 | G34: -1949.175169 | K34: 55.74271744 | L34: 563.6502336 | M34: 26.6162719 | N34: 7729.569944 | O34: 35923 | P34: 15263 | Q34: 70717 | R34: -55454 | S34: 32248 | T34: 26132 | W34: -261 | X34: 56 | Y34: 2721 | Z34: 3416 | AC34: -695 | AD34: 31 | AG34: -664 | AH34: 6740 | AI34: 2522 | AK34: -110 | AL34: -1961 | AM34: -4817 | AN34: 32248 | AO34: 28545 | AP34: 1673 | AQ34: 2030 | AR34: 20.25 | AT34: 208 | AU34: 10473 | AW34: 1.940310078 | AX34: 43 | AY34: -2284.827652 | BC34: 56 | BD34: 318.0559534 | BE34: 16.42194338 | BF34: 7069.225628 | BG34: 34672 | BH34: 15770 | BI34: 69031 | BJ34: -53261 | BK34: 32997 | BL34: 25202 | BO34: -216 | BP34: 96 | BQ34: 4779 | BR34: 3485 | BS34: 0 | BT34: 0 | BU34: 1294 | BV34: 29 | BW34: 0 | BX34: 0 | BY34: 1323 | BZ34: 8063 | CA34: 4172 | CC34: 316 | CD34: -4000 | CE34: -3351 | CF34: 32997 | CG34: 29159 | CH34: 1789 | CI34: 2049 | CJ34: 20.25 | CL34: 94 | CM34: 10403 | CO34: 1.449778686 | CP34: 43.48529619 | CQ34: -2187.92656 | CU34: 56.78690561 | CV34: 421.5130251 | CW34: 22.01184124 | CX34: 6.989522253 | CY34: 32114 | CZ34: 12234 | DA34: 66879 | DB34: -54645 | DC34: 32587 | DD34: 26258 | DG34: -224 | DH34: 57 | DI34: 4033 | DJ34: 3748 | DK34: 0 | DL34: 0 | DM34: 285 | DN34: 27 | DO34: 0 | DP34: 0 | DQ34: 312 | DR34: 8375 | DS34: 3712 | DU34: 123 | DV34: -2712 | DW34: 1308 | DX34: 32587 | DY34: 28813 | DZ34: 1696 | EA34: 2078 | EB34: 20.5 | ED34: 151 | EE34: 26890 | EF34: 26594 | EG34: 25538 | EK34: -8081 | EL34: 392 | EM34: 350 | EN34: -8391 | EO34: 36 | EP34: 832 | EQ34: -2902 | ER34: 91 | ES34: 407 | ET34: 6000 | EV34: 2353 | EX34: 3400 | EY34: 0 | EZ34: 18714 | FA34: 16136 | FB34: 2578 | FC34: 0 | FD34: 20361 | FE34: 17777 | FF34: 2584 | FG34: 0 | FH34: 21049 | FI34: 18137 | FJ34: 2912 | FK34: 0 | FL34: 2265.566892 | FM34: 2538 | FN34: 2558.492742 | FO34: 1405.512195 | FP34: 135.1064304 | FS34: -7466 | FV34: 1775 | FW34: -1775
A35: 103 | B35: Humppila | C35: 2440 | E35: 0.6594076655 | F35: 35.8498238 | G35: -1598.360656 | K35: 54.69726813 | L35: 204.0983607 | M35: 11.68563163 | N35: 6375 | O35: 3914 | P35: 1424 | Q35: 14024 | R35: -12600 | S35: 7108 | T35: 6224 | W35: -28 | X35: 7 | Y35: 711 | Z35: 418 | AC35: 293 | AD35: 2 | AG35: 296 | AH35: -239 | AI35: 712 | AK35: 197 | AL35: -1103 | AM35: 331 | AN35: 7108 | AO35: 6386 | AP35: 340 | AQ35: 382 | AR35: 21 | AT35: 185 | AU35: 2388 | AW35: 0.7989010989 | AX35: 32 | AY35: -1520.100503 | BC35: 58 | BD35: 92.96482412 | BE35: 5.21495688 | BF35: 6506.700168 | BG35: 3806 | BH35: 1527 | BI35: 14546 | BJ35: -13019 | BK35: 7559 | BL35: 6157 | BO35: -27 | BP35: 18 | BQ35: 682 | BR35: 424 | BS35: 0 | BT35: 0 | BU35: 258 | BV35: 2 | BW35: 0 | BX35: 0 | BY35: 260 | BZ35: -21 | CA35: 623 | CC35: -88 | CD35: -1500 | CE35: 277 | CF35: 7559 | CG35: 6755 | CH35: 402 | CI35: 402 | CJ35: 21.5 | CL35: 186 | CM35: 2345 | CO35: 0.06305309735 | CP35: 33.87224495 | CQ35: -1744.136461 | CU35: 54.5254833 | CV35: 80.59701493 | CW35: 4.139265571 | CX35: 7.107036247 | CY35: 3740 | CZ35: 1472 | DA35: 15109 | DB35: -13637 | DC35: 7442 | DD35: 6240 | DG35: -28 | DH35: 6 | DI35: 23 | DJ35: 420 | DK35: 0 | DL35: 0 | DM35: -397 | DN35: 2 | DO35: 0 | DP35: 0 | DQ35: -395 | DR35: -416 | DS35: 34 | DU35: 126 | DV35: -870 | DW35: -441 | DX35: 7442 | DY35: 6543 | DZ35: 388 | EA35: 511 | EB35: 21.5 | ED35: 282 | EE35: 9005 | EF35: 9488 | EG35: 10167 | EK35: -381 | EN35: -418 | EO35: 0 | EP35: 72 | EQ35: -650 | ER35: 33 | ES35: 142 | EU35: 300 | EV35: 865 | EW35: -700 | EX35: 0 | EY35: 1123 | EZ35: 3670 | FA35: 1080 | FB35: 2590 | FC35: 426 | FD35: 3605 | FE35: 1635 | FF35: 1970 | FG35: 426 | FH35: 3858 | FI35: 1125 | FJ35: 2733 | FK35: 423 | FL35: 2925.819672 | FM35: 2888 | FN35: 2904.051173 | FO35: 304.3255814 | FP35: 129.7763673 | FS35: -338 | FV35: 958 | FW35: -958
A36: 105 | B36: Hyrynsalmi | C36: 2490 | E36: 1.314317673 | F36: 37.60646745 | G36: -2257.429719 | K36: 55.58330968 | L36: 398.7951807 | M36: 17.09162501 | N36: 8516.465863 | O36: 4825 | P36: 2357 | Q36: 19617 | R36: -17260 | S36: 7851 | T36: 10573 | W36: -67 | X36: 8 | Y36: 1105 | Z36: 539 | AC36: 566 | AD36: 72 | AG36: 638 | AH36: -1320 | AI36: 1077 | AK36: 309 | AL36: -824 | AM36: 450 | AN36: 7851 | AO36: 6378 | AP36: 666 | AQ36: 807 | AR36: 21.75 | AT36: 94 | AU36: 2422 | AW36: 0.8766467066 | AX36: 33 | AY36: -2105.284889 | BC36: 59 | BD36: 474.4013212 | BE36: 21.27885737 | BF36: 8137.489678 | BG36: 4574 | BH36: 2171 | BI36: 20030 | BJ36: -17859 | BK36: 8278 | BL36: 10303 | BO36: -40 | BP36: 8 | BQ36: 689 | BR36: 535 | BS36: 0 | BT36: 0 | BU36: 154 | BV36: 54 | BW36: 0 | BX36: 0 | BY36: 208 | BZ36: -1113 | CA36: 689 | CC36: 535 | CD36: 0 | CE36: 523 | CF36: 8278 | CG36: 6711 | CH36: 763 | CI36: 804 | CJ36: 21.75 | CL36: 187 | CM36: 2406 | CO36: 0.4494535519 | CP36: 30.83173514 | CQ36: -2066.916043 | CU36: 61.45276012 | CV36: 86.45054032 | CW36: 3.719562981 | CX36: 8.483374896 | CY36: 4314 | CZ36: 2109 | DA36: 19493 | DB36: -17384 | DC36: 7599 | DD36: 10106 | DG36: -25 | DH36: 5 | DI36: 301 | DJ36: 482 | DK36: 0 | DL36: 0 | DM36: -181 | DN36: 52 | DO36: 0 | DP36: 0 | DQ36: -129 | DR36: -1242 | DS36: 276 | DU36: -264 | DV36: -704 | DW36: 126 | DX36: 7599 | DY36: 6069 | DZ36: 703 | EA36: 827 | EB36: 21.75 | ED36: 265 | EE36: 13157 | EF36: 13723 | EG36: 13464 | EH36: 360 | EK36: -693 | EL36: 37 | EM36: 29 | EN36: -189 | EO36: 23 | EP36: 0 | EQ36: -183 | ER36: 8 | ES36: 25 | EV36: 792 | EX36: 0 | EY36: 100 | EZ36: 6212 | FA36: 3519 | FB36: 2693 | FC36: 0 | FD36: 5419 | FE36: 2815 | FF36: 2604 | FG36: 0 | FH36: 4815 | FI36: 2290 | FJ36: 2525 | FK36: 0 | FL36: 4661.044177 | FM36: 4318 | FN36: 3812.136326 | FO36: 279.0344828 | FP36: 115.9744317 | FS36: -166 | FV36: 734 | FW36: -734
A37: 106 | B37: Hyvinkää | C37: 46366 | E37: 1.022897976 | F37: 53.50523367 | G37: -2437.367899 | K37: 53.10068647 | L37: 614.7176811 | M37: 32.76122905 | N37: 6848.703792 | O37: 126617 | P37: 67219 | Q37: 287933 | R37: -220714 | S37: 191546 | T37: 48012 | W37: -2189 | X37: 641 | Y37: 17296 | Z37: 19634 | AC37: -2338 | AG37: -2340 | AH37: 28870 | AI37: 9353 | AK37: 412 | AL37: -16854 | AM37: -342 | AN37: 191546 | AO37: 169086 | AP37: 13035 | AQ37: 9425 | AR37: 19.75 | AT37: 135 | AU37: 46463 | AW37: 1.009273841 | AX37: 53 | AY37: -2423.390655 | BC37: 53 | BD37: 596.0441642 | BE37: 35.00264901 | BF37: 6215.41872 | BG37: 122108 | BH37: 58597 | BI37: 284673 | BJ37: -226076 | BK37: 195453 | BL37: 46981 | BO37: -2075 | BP37: 1121 | BQ37: 15104 | BR37: 19721 | BS37: 0 | BT37: 0 | BU37: -4617 | BV37: 0 | BW37: 0 | BX37: 0 | BY37: -4617 | BZ37: 25553 | CA37: 11006 | CC37: 2646 | CD37: -10000 | CE37: -179 | CF37: 195453 | CG37: 168042 | CH37: 14262 | CI37: 13149 | CJ37: 19.75 | CL37: 158 | CM37: 46596 | CO37: 2.360790018 | CP37: 54.15120121 | CQ37: -2184.500816 | CU37: 53.15039218 | CV37: 960.1897159 | CW37: 53.14712841 | CX37: 6.594321401 | CY37: 121658 | CZ37: 59731 | DA37: 281798 | DB37: -222067 | DC37: 198502 | DD37: 53470 | DG37: -2010 | DH37: 866 | DI37: 28761 | DJ37: 20178 | DK37: 0 | DL37: 0 | DM37: 8583 | DN37: 0 | DO37: -6000 | DP37: -250 | DQ37: 2333 | DR37: 27885 | DS37: 24901 | DU37: -2648 | DV37: -10985 | DW37: 11038 | DX37: 198502 | DY37: 173918 | DZ37: 11167 | EA37: 13417 | EB37: 19.75 | ED37: 53 | EE37: 119767 | EF37: 120530 | EG37: 118188 | EK37: -18405 | EL37: 328 | EM37: 8382 | EN37: -17156 | EO37: 1179 | EP37: 4792 | EQ37: -19620 | ER37: 1222 | ES37: 4535 | ET37: 25000 | EV37: 14945 | EX37: 10000 | EY37: 0 | EZ37: 119426 | FA37: 104481 | FB37: 14945 | FC37: 3364 | FD37: 114481 | FE37: 103496 | FF37: 10985 | FG37: 3334 | FH37: 113497 | FI37: 104742 | FJ37: 8755 | FK37: 3334 | FL37: 4191.217703 | FM37: 4326 | FN37: 4833.762555 | FO37: 8805.974684 | FP37: 188.9856358 | FS37: -12002 | FV37: 14443 | FW37: -14443
A38: 108 | B38: Hämeenkyrö | C38: 10610 | E38: 1.820607176 | F38: 47.37724871 | G38: -2049.29312 | K38: 53.34810438 | L38: 578.2280867 | M38: 27.73508137 | N38: 7609.613572 | O38: 31144 | P38: 10594 | Q38: 63799 | R38: -53205 | S38: 35801 | T38: 21083 | W38: -134 | X38: 75 | Y38: 3620 | Z38: 2864 | AC38: 756 | AD38: 77 | AG38: 833 | AH38: 3700 | AI38: 3341 | AK38: 299 | AL38: -1836 | AM38: -10357 | AN38: 35801 | AO38: 32452 | AP38: 1106 | AQ38: 2243 | AR38: 21 | AT38: 156 | AU38: 10667 | AW38: 1.253931545 | AX38: 73 | AY38: -3648.167245 | BC38: 42 | BD38: 650.0421862 | BE38: 24.35979865 | BF38: 9740.039374 | BG38: 31457 | BH38: 10928 | BI38: 65515 | BJ38: -54587 | BK38: 35767 | BL38: 21185 | BO38: -139 | BP38: 180 | BQ38: 2388 | BR38: 3629 | BS38: 0 | BT38: 0 | BU38: -1241 | BV38: 77 | BW38: 0 | BX38: 0 | BY38: -1164 | BZ38: 2536 | CA38: 2267 | CC38: 374 | CD38: -20000 | CE38: -17202 | CF38: 35767 | CG38: 32309 | CH38: 1208 | CI38: 2250 | CJ38: 21 | CL38: 220 | CM38: 10681 | CO38: 1.692526017 | CP38: 78.09525171 | CQ38: -4171.987642 | CU38: 37.47834215 | CV38: 670.0683457 | CW38: 33.28285853 | CX38: 7.34837562 | CY38: 31027 | CZ38: 11662 | DA38: 66736 | DB38: -55074 | DC38: 36125 | DD38: 22307 | DG38: -182 | DH38: 127 | DI38: 3303 | DJ38: 6022 | DK38: 0 | DL38: 0 | DM38: -2719 | DN38: 77 | DO38: 0 | DP38: 0 | DQ38: -2642 | DR38: -106 | DS38: 3290 | DU38: 748 | DV38: -1839 | DW38: -5679 | DX38: 36125 | DY38: 32559 | DZ38: 1264 | EA38: 2302 | EB38: 21 | ED38: 203 | EE38: 24560 | EF38: 25669 | EG38: 27092 | EK38: -14618 | EL38: 360 | EM38: 560 | EN38: -20678 | EO38: 876 | EP38: 333 | EQ38: -9582 | ER38: 519 | ES38: 94 | EU38: 8500 | EV38: 1839 | EW38: -2496 | EX38: 0 | EY38: 7500 | EZ38: 22975 | FA38: 12639 | FB38: 10336 | FC38: 426 | FD38: 38638 | FE38: 30799 | FF38: 7839 | FG38: 390 | FH38: 44299 | FI38: 28960 | FJ38: 15339 | FK38: 328 | FL38: 3362.016965 | FM38: 4718 | FN38: 5479.262241 | FO38: 1550.428571 | FP38: 145.157623 | FS38: -21977 | FV38: 704 | FW38: -704
A39: 109 | B39: Hämeenlinna | C39: 67976 | E39: 0.6084398117 | F39: 55.37666078 | G39: -1907.790985 | K39: 59.55953391 | L39: 1370.20419 | M39: 63.91538415 | N39: 7824.791103 | O39: 154913 | P39: 89821 | Q39: 435692 | R39: -345871 | S39: 268665 | T39: 91585 | W39: -1867 | X39: 4835 | Y39: 17347 | Z39: 18180 | AA39: 18115 | AC39: 17282 | AD39: -187 | AE39: 400 | AG39: 17497 | AH39: 4644 | AI39: 12843 | AK39: 1776 | AL39: -31323 | AM39: -11611 | AN39: 268665 | AO39: 232535 | AP39: 13987 | AQ39: 22143 | AR39: 20.25 | AT39: 214 | AU39: 68011 | AW39: 0.707560148 | AX39: 55 | AY39: -1865.683492 | BC39: 57 | BD39: 1379.600359 | BE39: 73.79753054 | BF39: 6823.455029 | BG39: 153841 | BH39: 95638 | BI39: 445832 | BJ39: -350194 | BK39: 278118 | BL39: 87268 | BO39: -1328 | BP39: 5608 | BQ39: 19472 | BR39: 17467 | BS39: 2000 | BT39: 0 | BU39: 4005 | BV39: 348 | BW39: -231 | BX39: 0 | BY39: 4122 | BZ39: -1355 | CA39: 24532 | CC39: -6624 | CD39: -30000 | CE39: 12231 | CF39: 278118 | CG39: 238409 | CH39: 15526 | CI39: 24183 | CJ39: 20.5 | CL39: 184 | CM39: 67850 | CO39: 0.5063368984 | CP39: 61.92467418 | CQ39: -2157.43552 | CU39: 54.61483447 | CV39: 1549.35888 | CW39: 75.04201894 | CX39: 7.535991157 | CY39: 152641 | CZ39: 91952 | DA39: 447155 | DB39: -355203 | DC39: 274856 | DD39: 91435 | DG39: -3102 | DH39: 5737 | DI39: 13723 | DJ39: 17472 | DK39: 0 | DL39: 0 | DM39: -3749 | DN39: 236 | DO39: 31 | DP39: 0 | DQ39: -3482 | DR39: -4836 | DS39: 6008 | DU39: 193 | DV39: -32186 | DW39: -20079 | DX39: 274856 | DY39: 237193 | DZ39: 13444 | EA39: 24219 | EB39: 20.5 | ED39: 240 | EE39: 213448 | EF39: 220037 | EG39: 219358 | EK39: -67038 | EL39: 839 | EM39: 41745 | EN39: -27038 | EO39: 1298 | EP39: 13439 | EQ39: -31664 | ER39: 127 | ES39: 5450 | ET39: 40000 | EU39: -2207 | EV39: 29038 | EW39: -2893 | EX39: 50000 | EY39: 13376 | EZ39: 201350 | FA39: 144132 | FB39: 57218 | FC39: 43249 | FD39: 199421 | FE39: 144225 | FF39: 55196 | FG39: 42886 | FH39: 230609 | FI39: 161955 | FJ39: 68654 | FK39: 42330 | FL39: 5830.91091 | FM39: 5657 | FN39: 6308.16507 | FO39: 11570.39024 | FP39: 170.5289645 | FS39: -11703 | FV39: 20186 | FW39: -20186
A40: 139 | B40: Ii | C40: 9666 | E40: 1.078485688 | F40: 51.68364438 | G40: -2844.713429 | K40: 49.88229517 | L40: 366.4390648 | M40: 19.03964537 | N40: 7024.829299 | O40: 18597 | P40: 8127 | Q40: 60259 | R40: -52132 | S40: 30307 | T40: 26464 | W40: -421 | X40: 31 | Y40: 4249 | Z40: 2433 | AC40: 1816 | AD40: 75 | AG40: 1891 | AH40: 5459 | AI40: 4272 | AK40: -533 | AL40: -3909 | AM40: 1198 | AN40: 30307 | AO40: 25868 | AP40: 1384 | AQ40: 3055 | AR40: 21.25 | AT40: 98 | AU40: 9663 | AW40: 0.734148363 | AX40: 57 | AY40: -3155.748732 | BC40: 47 | BD40: 416.0198696 | BE40: 20.91243373 | BF40: 7261.099038 | BG40: 18106 | BH40: 6765 | BI40: 61209 | BJ40: -54444 | BK40: 31633 | BL40: 26315 | BO40: -457 | BP40: 49 | BQ40: 3086 | BR40: 2603 | BS40: 0 | BT40: 0 | BU40: 483 | BV40: 79 | BW40: -473 | BX40: 0 | BY40: 89 | BZ40: 5548 | CA40: 3031 | CC40: 317 | CD40: -5000 | CE40: -3025 | CF40: 31633 | CG40: 27149 | CH40: 1429 | CI40: 3055 | CJ40: 21.25 | CL40: 162 | CM40: 9628 | CO40: 0.8484848485 | CP40: 58.66579761 | CQ40: -3590.673037 | CU40: 46.26967101 | CV40: 225.0727046 | CW40: 10.68251803 | CX40: 7.690278355 | CY40: 17805 | CZ40: 7088 | DA40: 62478 | DB40: -55390 | DC40: 31222 | DD40: 27663 | DG40: -375 | DH40: 28 | DI40: 3148 | DJ40: 2971 | DK40: 0 | DL40: 0 | DM40: 177 | DN40: -27 | DO40: 100 | DP40: 0 | DQ40: 250 | DR40: 5796 | DS40: 3110 | DU40: 216 | DV40: -3778 | DW40: -4115 | DX40: 31222 | DY40: 26309 | DZ40: 1318 | EA40: 3595 | EB40: 21.25 | ED40: 192 | EE40: 35838 | EF40: 36862 | EG40: 37937 | EK40: -3315 | EL40: 195 | EM40: 46 | EN40: -7034 | EO40: 897 | EP40: 81 | EQ40: -7404 | ER40: 134 | ES40: 45 | ET40: 4000 | EU40: -2273 | EV40: 4369 | EW40: 2063 | EX40: 0 | EY40: 5910 | EZ40: 24892 | FA40: 17586 | FB40: 7306 | FC40: 890 | FD40: 27587 | FE40: 18218 | FF40: 9369 | FG40: 890 | FH40: 29718 | FI40: 14440 | FJ40: 15278 | FK40: 890 | FL40: 4341.816677 | FM40: 4478 | FN40: 4622.143747 | FO40: 1238.070588 | FP40: 128.5906303 | FS40: -6183 | FV40: 2843 | FW40: -2843
A41: 140 | B41: Iisalmi | C41: 22115 | E41: 1.544032922 | F41: 36.02573027 | G41: -1113.271535 | K41: 60.26548058 | L41: 1097.626046 | M41: 50.7126667 | N41: 7900.067827 | O41: 45121 | P41: 29148 | Q41: 142225 | R41: -113077 | S41: 77418 | T41: 42830 | W41: -296 | X41: 2165 | Y41: 9040 | Z41: 6593 | AA41: 4714 | AC41: 7161 | AD41: -519 | AF41: -3655 | AG41: 2987 | AH41: 3442 | AI41: 13594 | AK41: 1155 | AL41: -5734 | AM41: 410 | AN41: 77418 | AO41: 65664 | AP41: 6030 | AQ41: 5724 | AR41: 20.5 | AT41: 113 | AU41: 21945 | AW41: 1.374883865 | AX41: 32 | AY41: -1113.055366 | BC41: 63 | BD41: 855.5023923 | BE41: 49.24619829 | BF41: 6340.760993 | BG41: 44340 | BH41: 28348 | BI41: 143578 | BJ41: -115230 | BK41: 77806 | BL41: 44894 | BO41: -218 | BP41: 1942 | BQ41: 8631 | BR41: 7199 | BS41: 0 | BT41: 0 | BU41: 1432 | BV41: 68 | BW41: 0 | BX41: 499 | BY41: 1999 | BZ41: 5441 | CA41: 8119 | CC41: 92 | CD41: 0 | CE41: 182 | CF41: 77806 | CG41: 65900 | CH41: 6100 | CI41: 5806 | CJ41: 20.5 | CL41: 121 | CM41: 21767 | CO41: 1.09353489 | CP41: 39.08412781 | CQ41: -1615.886434 | CU41: 58.83626077 | CV41: 874.0754353 | CW41: 39.76710627 | CX41: 8.022648964 | CY41: 43631 | CZ41: 26690 | DA41: 143517 | DB41: -116827 | DC41: 75106 | DD41: 48618 | DG41: -235 | DH41: 1191 | DI41: 7853 | DJ41: 6884 | DK41: 1583 | DL41: 1262 | DM41: 1290 | DN41: -816 | DO41: 0 | DP41: 1265 | DQ41: 1739 | DR41: 7180 | DS41: 8042 | DU41: 247 | DV41: -7160 | DW41: -10758 | DX41: 75106 | DY41: 64796 | DZ41: 4535 | EA41: 5775 | EB41: 20.5 | ED41: 169 | EE41: 85485 | EF41: 86987 | EG41: 85316 | EK41: -25998 | EL41: 1147 | EM41: 11667 | EN41: -8818 | EO41: 226 | EP41: 655 | EQ41: -23243 | ER41: 86 | ES41: 4357 | ET41: 5300 | EV41: 6210 | EX41: 18000 | EY41: 0 | EZ41: 42237 | FA41: 36027 | FB41: 6210 | FC41: 2267 | FD41: 36027 | FE41: 29817 | FF41: 6210 | FG41: 2181 | FH41: 46867 | FI41: 38915 | FJ41: 7952 | FK41: 2054 | FL41: 3840.425051 | FM41: 3575 | FN41: 4195.984748 | FO41: 3160.780488 | FP41: 145.2097435 | FS41: -7915 | FV41: 4886 | FW41: -4886
A42: 142 | B42: Iitti | C42: 6950 | E42: 2.073517787 | F42: 33.53156557 | G42: -1434.244604 | K42: 64.17478609 | L42: 221.5827338 | M42: 12.38378497 | N42: 6530.935252 | O42: 10128 | P42: 4501 | Q42: 40285 | R42: -35784 | S42: 23121 | T42: 15257 | W42: -153 | X42: 25 | Y42: 2466 | Z42: 1788 | AC42: 678 | AD42: 70 | AG42: 748 | AH42: 2150 | AI42: 2220 | AK42: -514 | AL42: -1108 | AM42: 484 | AN42: 23121 | AO42: 19494 | AP42: 1151 | AQ42: 2476 | AR42: 19.75 | AT42: 147 | AU42: 6910 | AW42: 1.537931034 | AX42: 32 | AY42: -1309.985528 | BC42: 66 | BD42: 414.1823444 | BE42: 25.65586856 | BF42: 5892.474674 | BG42: 9718 | BH42: 3610 | BI42: 39978 | BJ42: -36368 | BK42: 23519 | BL42: 15033 | BO42: -97 | BP42: 48 | BQ42: 2117 | BR42: 1810 | BS42: 110 | BT42: 0 | BU42: 417 | BV42: 70 | BW42: 0 | BX42: 0 | BY42: 487 | BZ42: 2637 | CA42: 1960 | CC42: 1326 | CD42: -149 | CE42: 858 | CF42: 23519 | CG42: 19743 | CH42: 1280 | CI42: 2496 | CJ42: 20.25 | CL42: 172 | CM42: 6889 | CO42: 0.9178200692 | CP42: 29.41052187 | CQ42: -1292.7856 | CU42: 67.01344638 | CV42: 436.6381187 | CW42: 25.03865539 | CX42: 6.365074757 | CY42: 9626 | CZ42: 3336 | DA42: 41619 | DB42: -38283 | DC42: 23613 | DD42: 15648 | DG42: -85 | DH42: 80 | DI42: 973 | DJ42: 1691 | DK42: 115 | DL42: 0 | DM42: -603 | DN42: 70 | DO42: 0 | DP42: 0 | DQ42: -533 | DR42: 2104 | DS42: 1032 | DU42: 931 | DV42: -1068 | DW42: 123 | DX42: 23613 | DY42: 19968 | DZ42: 1319 | EA42: 2326 | EB42: 20.25 | ED42: 260 | EE42: 27552 | EF42: 27682 | EG42: 28876 | EK42: -3821 | EL42: 642 | EM42: 1443 | EN42: -1742 | EO42: 0 | EP42: 640 | EQ42: -1060 | ER42: 10 | ES42: 141 | ET42: 2000 | EU42: -1500 | EV42: 1337 | EX42: 0 | EY42: 0 | EZ42: 11002 | FA42: 9814 | FB42: 1188 | FC42: 993 | FD42: 9814 | FE42: 8746 | FF42: 1068 | FG42: 0 | FH42: 8746 | FI42: 7678 | FJ42: 1068 | FK42: 0 | FL42: 3557.553957 | FM42: 3416 | FN42: 3112.207868 | FO42: 986.0740741 | FP42: 143.1374763 | FS42: -1103 | FV42: 555 | FW42: -555
A43: 143 | B43: Ikaalinen | C43: 7298 | E43: 0.08416318664 | F43: 66.10575434 | G43: -3382.707591 | K43: 37.24338459 | L43: 83.99561524 | M43: 3.958897323 | N43: 7744.176487 | O43: 22755 | P43: 6946 | Q43: 48149 | R43: -41203 | S43: 23919 | T43: 17568 | W43: 3 | X43: 107 | Y43: 394 | Z43: 1627 | AC43: -1233 | AD43: 2 | AG43: -1231 | AH43: -2225 | AI43: 359 | AK43: 674 | AL43: -6096 | AM43: -1456 | AN43: 23919 | AO43: 19794 | AP43: 1401 | AQ43: 2724 | AR43: 20.75 | AT43: 281 | AU43: 7207 | AW43: 3.722814499 | AX43: 52 | AY43: -3047.453864 | BC43: 43 | BD43: 87.83127515 | BE43: 5.129545757 | BF43: 6249.757181 | BG43: 22463 | BH43: 7216 | BI43: 47615 | BJ43: -40399 | BK43: 25679 | BL43: 18044 | BO43: -17 | BP43: 117 | BQ43: 3411 | BR43: 2387 | BS43: 0 | BT43: 0 | BU43: 1024 | BV43: 2 | BW43: 0 | BX43: 0 | BY43: 1026 | BZ43: -1199 | CA43: 2889 | CC43: 3010 | CD43: 0 | CE43: 2713 | CF43: 25679 | CG43: 21098 | CH43: 1621 | CI43: 2960 | CJ43: 21.25 | CL43: 81 | CM43: 7128 | CO43: 3.443468716 | CP43: 60.28596271 | CQ43: -3583.613917 | CU43: 40.52047426 | CV43: 168.7710438 | CW43: 7.710861357 | CX43: 7.988916947 | CY43: 22669 | CZ43: 7860 | DA43: 48749 | DB43: -40889 | DC43: 25145 | DD43: 18750 | DG43: -20 | DH43: 97 | DI43: 3083 | DJ43: 1799 | DK43: 0 | DL43: 0 | DM43: 1284 | DN43: 2 | DO43: 0 | DP43: 0 | DQ43: 1286 | DR43: 87 | DS43: 2402 | DU43: -747 | DV43: -857 | DW43: -3543 | DX43: 25145 | DY43: 20666 | DZ43: 1498 | EA43: 2981 | EB43: 21.25 | ED43: 123 | EE43: 19402 | EF43: 19223 | EG43: 19853 | EK43: -2107 | EL43: 249 | EM43: 43 | EN43: -1045 | EO43: 3 | EP43: 866 | EQ43: -7220 | ER43: 253 | ES43: 1022 | ET43: 6000 | EU43: 1700 | EV43: 857 | EW43: -5800 | EX43: 0 | EY43: 5900 | EZ43: 27600 | FA43: 5143 | FB43: 22457 | FC43: 306 | FD43: 20943 | FE43: 4286 | FF43: 16657 | FG43: 306 | FH43: 25986 | FI43: 3429 | FJ43: 22557 | FK43: 306 | FL43: 5576.596328 | FM43: 4537 | FN43: 5713.945006 | FO43: 972.5176471 | FP43: 136.436258 | FS43: -683 | FV43: 744 | FW43: -744
A44: 145 | B44: Ilmajoki | C44: 12181 | E44: 0.4660295034 | F44: 72.95392804 | G44: -4070.273377 | K44: 42.25344437 | L44: 5.582464494 | M44: 0.3033191573 | N44: 6717.675068 | O44: 25832 | P44: 9404 | Q44: 70566 | R44: -61162 | S44: 36995 | T44: 26256 | W44: -585 | X44: 74 | Y44: 1578 | Z44: 3109 | AC44: -1531 | AG44: -1531 | AH44: 7745 | AI44: 1145 | AK44: 26 | AL44: -4147 | AM44: -4609 | AN44: 36995 | AO44: 33862 | AP44: 1263 | AQ44: 1870 | AR44: 19.75 | AT44: 265 | AU44: 12159 | AW44: 0.6996410947 | AX44: 72 | AY44: -4174.849905 | BC44: 41 | BD44: 31.74603175 | BE44: 1.808275791 | BF44: 6407.928284 | BG44: 25441 | BH44: 9622 | BI44: 72246 | BJ44: -62624 | BK44: 39043 | BL44: 26558 | BO44: -506 | BP44: 125 | BQ44: 2537 | BR44: 3059 | BS44: 0 | BT44: 0 | BU44: -522 | BV44: 0 | BW44: 0 | BX44: 0 | BY44: -522 | BZ44: 7223 | CA44: 1951 | CC44: 151 | CD44: -3500 | CE44: -1333 | CF44: 39043 | CG44: 35628 | CH44: 1301 | CI44: 2114 | CJ44: 20.25 | CL44: 233 | CM44: 12167 | CO44: 1.166003976 | CP44: 69.78382789 | CQ44: -4136.598997 | CU44: 42.23697596 | CV44: 51.12188707 | CW44: 2.784106935 | CX44: 6.702145147 | CY44: 25669 | CZ44: 10290 | DA44: 72712 | DB44: -62422 | DC44: 38466 | DD44: 28531 | DG44: -409 | DH44: 45 | DI44: 4211 | DJ44: 3010 | DK44: 0 | DL44: 0 | DM44: 1201 | DN44: 0 | DO44: 0 | DP44: 0 | DQ44: 1201 | DR44: 8423 | DS44: 3868 | DU44: 178 | DV44: -3543 | DW44: 142 | DX44: 38466 | DY44: 35072 | DZ44: 1266 | EA44: 2128 | EB44: 20.25 | ED44: 178 | EE44: 37466 | EF44: 39099 | EG44: 39014 | EK44: -6413 | EL44: 87 | EM44: 572 | EN44: -4250 | EO44: 0 | EP44: 966 | EQ44: -4789 | ER44: 464 | ES44: 599 | ET44: 8000 | EU44: 395 | EV44: 3876 | EW44: 941 | EX44: 1183 | EY44: 1081 | EZ44: 45363 | FA44: 41366 | FB44: 3997 | FC44: 1706 | FD44: 45927 | FE44: 40990 | FF44: 4937 | FG44: 1575 | FH44: 44648 | FI44: 38630 | FJ44: 6018 | FK44: 1164 | FL44: 5683.52352 | FM44: 5684 | FN44: 5573.271965 | FO44: 1731.950617 | FP44: 142.3482056 | FS44: -3246 | FV44: 2979 | FW44: -2979
A45: 146 | B45: Ilomantsi | C45: 5504 | E45: 1.83632448 | F45: 30.49889661 | G45: -1405.704942 | K45: 62.96561251 | L45: 745.6395349 | M45: 29.56247163 | N45: 9206.213663 | O45: 22215 | P45: 8309 | Q45: 46627 | R45: -38318 | S45: 18081 | T45: 22328 | W45: -123 | X45: 454 | Y45: 2422 | Z45: 1954 | AC45: 468 | AD45: 49 | AG45: 517 | AH45: 5344 | AI45: 2404 | AK45: -60 | AL45: -1257 | AM45: 18 | AN45: 18081 | AO45: 14038 | AP45: 2751 | AQ45: 1292 | AR45: 20.25 | AT45: 97 | AU45: 5336 | AW45: 1.102906977 | AX45: 30 | AY45: -1982.758621 | BC45: 63 | BD45: 347.4512744 | BE45: 13.96602964 | BF45: 9080.584708 | BG45: 22273 | BH45: 8105 | BI45: 47070 | BJ45: -38965 | BK45: 18491 | BL45: 21931 | BO45: -143 | BP45: 552 | BQ45: 1745 | BR45: 1770 | BS45: 0 | BT45: 0 | BU45: -25 | BV45: 49 | BW45: 0 | BX45: 0 | BY45: 24 | BZ45: 5368 | CA45: 1714 | CC45: 802 | CD45: -885 | CE45: -2857 | CF45: 18491 | CG45: 14038 | CH45: 3155 | CI45: 1298 | CJ45: 20.75 | CL45: 156 | CM45: 5237 | CO45: 1.791640279 | CP45: 34.35997752 | CQ45: -2070.460187 | CU45: 61.16188749 | CV45: 669.4672522 | CW45: 25.31633299 | CX45: 9.652090892 | CY45: 21607 | CZ45: 7817 | DA45: 45862 | DB45: -38045 | DC45: 17868 | DD45: 22543 | DG45: -133 | DH45: 456 | DI45: 2689 | DJ45: 1890 | DK45: 0 | DL45: 0 | DM45: 799 | DN45: 49 | DO45: 0 | DP45: 0 | DQ45: 848 | DR45: 6216 | DS45: 2674 | DU45: -82 | DV45: -1439 | DW45: 158 | DX45: 17868 | DY45: 13587 | DZ45: 2960 | EA45: 1321 | EB45: 20.75 | ED45: 86 | EE45: 19304 | EF45: 19284 | EG45: 18483 | EK45: -2858 | EL45: 420 | EM45: 52 | EN45: -5282 | EO45: 620 | EP45: 91 | EQ45: -2924 | ER45: 393 | ES45: 15 | ET45: 3100 | EV45: 1568 | EX45: 4090 | EY45: 0 | EZ45: 8682 | FA45: 7114 | FB45: 1568 | FC45: 1017 | FD45: 7999 | FE45: 6560 | FF45: 1439 | FG45: 1017 | FH45: 10650 | FI45: 9142 | FJ45: 1508 | FK45: 1334 | FL45: 3378.633721 | FM45: 3855 | FN45: 4427.534848 | FO45: 654.7951807 | FP45: 125.0324958 | FS45: -3951 | FV45: 0 | FW45: 0
A46: 153 | B46: Imatra | C46: 28037 | E46: 0.899511674 | F46: 44.41869303 | G46: -2037.771516 | K46: 60.72940887 | L46: 353.8181688 | M46: 16.76397191 | N46: 7703.641616 | O46: 76952 | P46: 33518 | Q46: 175853 | R46: -142335 | S46: 104484 | T46: 48827 | W46: -862 | X46: 326 | Y46: 10440 | Z46: 9017 | AA46: 9444 | AC46: 10867 | AF46: -221 | AG46: 10646 | AH46: 50273 | AI46: 8630 | AK46: -4998 | AL46: -11757 | AM46: 5142 | AN46: 104484 | AO46: 91339 | AP46: 5480 | AQ46: 7665 | AR46: 19.5 | AT46: 137 | AU46: 27835 | AW46: 0.9439104863 | AX46: 51 | AY46: -2407.400754 | BC46: 58 | BD46: 511.8376145 | BE46: 23.86289797 | BF46: 7828.920424 | BG46: 74694 | BH46: 31035 | BI46: 175318 | BJ46: -144283 | BK46: 107621 | BL46: 49046 | BO46: -631 | BP46: 180 | BQ46: 11933 | BR46: 8437 | BS46: 0 | BT46: 0 | BU46: 3496 | BV46: 0 | BW46: 0 | BX46: -140 | BY46: 3356 | BZ46: 53629 | CA46: 11678 | CC46: -2523 | CD46: -27000 | CE46: -9895 | CF46: 107621 | CG46: 93785 | CH46: 4831 | CI46: 9005 | CJ46: 20 | CL46: 109 | CM46: 27517 | CO46: 1.045988057 | CP46: 46.52794293 | CQ46: -2345.7499 | CU46: 61.38779903 | CV46: 359.3778392 | CW46: 17.30545367 | CX46: 7.579859723 | CY46: 39846 | CZ46: 24594 | DA46: 170334 | DB46: -145740 | DC46: 106688 | DD46: 53738 | DG46: -558 | DH46: 158 | DI46: 14286 | DJ46: 9379 | DK46: 0 | DL46: 0 | DM46: 4907 | DN46: 0 | DO46: 0 | DP46: 320 | DQ46: 5227 | DR46: 58856 | DS46: 10723 | DU46: 2619 | DV46: -13616 | DW46: 2564 | DX46: 106688 | DY46: 93467 | DZ46: 9262 | EA46: 3959 | EB46: 20 | ED46: 84 | EE46: 70867 | EF46: 73485 | EG46: 114891 | EK46: -26969 | EL46: 815 | EM46: 22666 | EN46: -26567 | EO46: 933 | EP46: 4061 | EQ46: -23669 | ER46: 871 | ES46: 14639 | ET46: 10000 | EV46: 12715 | EX46: 14000 | EY46: 0 | EZ46: 46484 | FA46: 35169 | FB46: 11315 | FC46: 0 | FD46: 60770 | FE46: 47854 | FF46: 12916 | FG46: 0 | FH46: 61153 | FI46: 48146 | FJ46: 13007 | FK46: 0 | FL46: 6133.288155 | FM46: 6792 | FN46: 7154.559 | FO46: 4673.35 | FP46: 169.8350111 | FS46: -20013 | FV46: 11458 | FW46: -11458
A47: 148 | B47: Inari | C47: 6814 | E47: 2.776724592 | F47: 37.63767361 | G47: -1499.706487 | K47: 68.0654771 | L47: 1091.86968 | M47: 43.34418694 | N47: 9194.599354 | O47: 24891 | P47: 8594 | Q47: 51240 | R47: -42646 | S47: 25038 | T47: 22025 | W47: -238 | X47: 728 | Y47: 4907 | Z47: 1724 | AC47: 3183 | AF47: 12 | AG47: 3195 | AH47: 6640 | AI47: 4098 | AK47: 3325 | AL47: -1533 | AM47: -1915 | AN47: 25038 | AO47: 18946 | AP47: 2063 | AQ47: 4029 | AR47: 19 | AT47: 22 | AU47: 6804 | AW47: 1.611806798 | AX47: 36 | AY47: -1622.281011 | BC47: 70 | BD47: 912.6984127 | BE47: 40.80892282 | BF47: 8163.286302 | BG47: 24732 | BH47: 8426 | BI47: 53885 | BJ47: -45459 | BK47: 25281 | BL47: 22731 | BO47: -272 | BP47: 1670 | BQ47: 3234 | BR47: 1851 | BS47: 0 | BT47: 0 | BU47: 1383 | BV47: 0 | BW47: 0 | BX47: -136 | BY47: 1247 | BZ47: 4689 | CA47: 3103 | CC47: -1785 | CD47: -1680 | CE47: -752 | CF47: 25281 | CG47: 18850 | CH47: 2363 | CI47: 4068 | CJ47: 19 | CL47: 80 | CM47: 6825 | CO47: 1.82527881 | CP47: 36.5787452 | CQ47: -1395.018315 | CU47: 69.04737881 | CV47: 1254.945055 | CW47: 52.04303313 | CX47: 8.801465201 | CY47: 25408 | CZ47: 8614 | DA47: 55520 | DB47: -46906 | DC47: 26169 | DD47: 23792 | DG47: -256 | DH47: 791 | DI47: 3590 | DJ47: 1872 | DK47: 18 | DL47: 0 | DM47: 1736 | DN47: 0 | DO47: 0 | DP47: 49 | DQ47: 1785 | DR47: 6475 | DS47: 3444 | DU47: 211 | DV47: -1814 | DW47: 1620 | DX47: 26169 | DY47: 19749 | DZ47: 2161 | EA47: 4259 | EB47: 19 | ED47: 81 | EE47: 19070 | EF47: 21250 | EG47: 22237 | EK47: -9509 | EL47: 204 | EM47: 3292 | EN47: -5615 | EO47: 141 | EP47: 1619 | EQ47: -2279 | ER47: 163 | ES47: 292 | ET47: 1826 | EU47: -300 | EV47: 1866 | EX47: 2600 | EY47: 0 | EZ47: 14430 | FA47: 12860 | FB47: 1570 | FC47: 3279 | FD47: 14244 | FE47: 12674 | FF47: 1570 | FG47: 3345 | FH47: 15030 | FI47: 13240 | FJ47: 1790 | FK47: 3448 | FL47: 7251.100675 | FM47: 7083 | FN47: 6804.395604 | FO47: 1039.421053 | FP47: 152.2961249 | FS47: -3682 | FV47: 1630 | FW47: -1630
A48: 149 | B48: Inkoo | C48: 5560 | E48: 1.053220036 | F48: 61.10210228 | G48: -3259.532374 | K48: 39.69258847 | L48: 127.5179856 | M48: 6.251751462 | N48: 7444.964029 | O48: 12404 | P48: 4035 | Q48: 32256 | R48: -28221 | S48: 25477 | T48: 5022 | W48: -156 | X48: 77 | Y48: 2199 | Z48: 1445 | AC48: 754 | AE48: -19 | AG48: 735 | AH48: 6110 | AI48: 1900 | AK48: -391 | AL48: -2080 | AM48: -3424 | AN48: 25477 | AO48: 20654 | AP48: 1916 | AQ48: 2907 | AR48: 20.75 | AT48: 120 | AU48: 5541 | AW48: 0.9088213491 | AX48: 59 | AY48: -3219.635445 | BC48: 40 | BD48: 237.1413102 | BE48: 12.85128617 | BF48: 6735.246345 | BG48: 12016 | BH48: 4944 | BI48: 33966 | BJ48: -29022 | BK48: 26367 | BL48: 5060 | BO48: -190 | BP48: 47 | BQ48: 2262 | BR48: 1440 | BS48: 0 | BT48: 0 | BU48: 822 | BV48: 0 | BW48: -11 | BX48: 0 | BY48: 811 | BZ48: 6919 | CA48: 1505 | CC48: 497 | CD48: -2800 | CE48: 292 | CF48: 26367 | CG48: 21376 | CH48: 2069 | CI48: 2922 | CJ48: 20.75 | CL48: 116 | CM48: 5585 | CO48: 0.7790834313 | CP48: 54.56965146 | CQ48: -2957.923008 | CU48: 43.26004241 | CV48: 245.2999105 | CW48: 13.51121319 | CX48: 6.626678603 | CY48: 12019 | CZ48: 4124 | DA48: 33754 | DB48: -29630 | DC48: 25763 | DD48: 5805 | DG48: -181 | DH48: 51 | DI48: 1808 | DJ48: 1550 | DK48: 0 | DL48: 0 | DM48: 258 | DN48: 0 | DO48: -15 | DP48: 0 | DQ48: 243 | DR48: 7060 | DS48: 1766 | DU48: 200 | DV48: -2372 | DW48: 1296 | DX48: 25763 | DY48: 21280 | DZ48: 1397 | EA48: 3086 | EB48: 20.75 | ED48: 195 | EE48: 16423 | EF48: 18671 | EG48: 18231 | EK48: -6898 | EL48: 1117 | EM48: 457 | EN48: -2276 | EO48: 171 | EP48: 892 | EQ48: -690 | ER48: 25 | ES48: 195 | ET48: 5000 | EU48: 400 | EV48: 2508 | EW48: -400 | EX48: 2200 | EY48: -1500 | EZ48: 17680 | FA48: 12412 | FB48: 5268 | FC48: 0 | FD48: 17573 | FE48: 12810 | FF48: 4763 | FG48: 0 | FH48: 15899 | FI48: 12542 | FJ48: 3357 | FK48: 0 | FL48: 2852.158273 | FM48: 2781 | FN48: 2879.319606 | FO48: 1025.542169 | FP48: 183.6243811 | FS48: -1176 | FV48: 2239 | FW48: -2239
A49: 151 | B49: Isojoki | C49: 2198 | E49: 1.578125 | F49: 24.92841913 | G49: -1367.606915 | K49: 71.44548938 | L49: 257.9617834 | M49: 12.09555815 | N49: 7784.349409 | O49: 3620 | P49: 1868 | Q49: 15850 | R49: -13982 | S49: 6344 | T49: 8203 | W49: -44 | X49: 41 | Y49: 562 | Z49: 462 | AC49: 100 | AD49: 3 | AG49: 103 | AH49: 787 | AI49: 563 | AK49: 182 | AL49: -340 | AM49: -289 | AN49: 6344 | AO49: 5470 | AP49: 473 | AQ49: 401 | AR49: 22 | AT49: 213 | AU49: 2123 | AW49: 3.102236422 | AX49: 22 | AY49: -1064.060292 | BC49: 74 | BD49: 515.3085257 | BE49: 25.19623927 | BF49: 7464.908149 | BG49: 3472 | BH49: 1981 | BI49: 15928 | BJ49: -13947 | BK49: 6470 | BL49: 8423 | BO49: -38 | BP49: 36 | BQ49: 934 | BR49: 530 | BS49: 0 | BT49: 0 | BU49: 404 | BV49: 2 | BW49: 0 | BX49: 0 | BY49: 406 | BZ49: 1192 | CA49: 916 | CC49: 227 | CD49: 0 | CE49: 842 | CF49: 6470 | CG49: 5513 | CH49: 556 | CI49: 401 | CJ49: 22 | CL49: 103 | CM49: 2079 | CO49: 2.721822542 | CP49: 19.95541363 | CQ49: -748.9177489 | CU49: 76.50488069 | CV49: 470.4184704 | CW49: 21.94982476 | CX49: 7.822510823 | CY49: 3439 | CZ49: 2004 | DA49: 15487 | DB49: -13483 | DC49: 6145 | DD49: 8448 | DG49: -29 | DH49: 24 | DI49: 1105 | DJ49: 478 | DK49: 0 | DL49: 0 | DM49: 627 | DN49: 2 | DO49: 0 | DP49: 0 | DQ49: 629 | DR49: 1822 | DS49: 1105 | DU49: -484 | DV49: -387 | DW49: 758 | DX49: 6145 | DY49: 5183 | DZ49: 548 | EA49: 414 | EB49: 22 | ED49: 78 | EE49: 11051 | EF49: 11252 | EG49: 10849 | EK49: -855 | EM49: 3 | EN49: -114 | EO49: 0 | EP49: 39 | EQ49: -347 | ER49: 0 | ES49: 0 | ET49: 1000 | EU49: -200 | EV49: 275 | EW49: -300 | EX49: 112 | EY49: 0 | EZ49: 2662 | FA49: 2087 | FB49: 575 | FC49: 21 | FD49: 2138 | FE49: 1863 | FF49: 275 | FG49: 196 | FH49: 1862 | FI49: 1587 | FJ49: 275 | FK49: 174 | FL49: 1934.030937 | FM49: 1768 | FN49: 1698.893699 | FO49: 235.5909091 | FP49: 113.3193406 | FS49: -91 | FV49: 172 | FW49: -172
A50: 152 | B50: Isokyrö | C50: 4842 | E50: 1.099086099 | F50: 31.14018335 | G50: -1322.593969 | K50: 62.79678374 | L50: 387.6497315 | M50: 21.03872374 | N50: 6725.320116 | O50: 11699 | P50: 4140 | Q50: 29166 | R50: -25026 | S50: 15402 | T50: 11874 | W50: -115 | X50: 21 | Y50: 2156 | Z50: 1241 | AC50: 915 | AG50: 915 | AH50: 5370 | AI50: 2127 | AK50: 94 | AL50: -1950 | AM50: 916 | AN50: 15402 | AO50: 14013 | AP50: 516 | AQ50: 873 | AR50: 21 | AT50: 93 | AU50: 4785 | AW50: 1.774788624 | AX50: 29 | AY50: -1044.514107 | BC50: 66 | BD50: 597.0741902 | BE50: 35.91668389 | BF50: 6067.711599 | BG50: 11739 | BH50: 3786 | BI50: 29320 | BJ50: -25534 | BK50: 15738 | BL50: 12063 | BO50: -74 | BP50: 35 | BQ50: 2228 | BR50: 1128 | BS50: 0 | BT50: 0 | BU50: 1100 | BV50: 0 | BW50: 0 | BX50: 0 | BY50: 1100 | BZ50: 6531 | CA50: 2207 | CC50: 286 | CD50: 0 | CE50: 1346 | CF50: 15738 | CG50: 14296 | CH50: 550 | CI50: 892 | CJ50: 21.5 | CL50: 86 | CM50: 4712 | CO50: 1.578181818 | CP50: 21.13800926 | CQ50: -651.3157895 | CU50: 74.12126038 | CV50: 531.196944 | CW50: 28.33643497 | CX50: 6.842317487 | CY50: 11544 | CZ50: 3783 | DA50: 29171 | DB50: -25388 | DC50: 15438 | DD50: 12958 | DG50: -88 | DH50: 23 | DI50: 2943 | DJ50: 1136 | DK50: 0 | DL50: 0 | DM50: 1807 | DN50: 0 | DO50: 0 | DP50: 0 | DQ50: 1807 | DR50: 8361 | DS50: 2959 | DU50: -15 | DV50: -1830 | DW50: 1902 | DX50: 15438 | DY50: 14008 | DZ50: 524 | EA50: 906 | EB50: 21.5 | ED50: 51 | EE50: 14143 | EF50: 14310 | EG50: 14361 | EK50: -1306 | EL50: 45 | EM50: 50 | EN50: -911 | EO50: 0 | EP50: 50 | EQ50: -1145 | ER50: 60 | ES50: 28 | EV50: 1220 | EX50: 0 | EY50: 0 | EZ50: 5475 | FA50: 4255 | FB50: 1220 | FC50: 431 | FD50: 4255 | FE50: 3225 | FF50: 1030 | FG50: 431 | FH50: 2425 | FI50: 1875 | FJ50: 550 | FK50: 431 | FL50: 2871.540686 | FM50: 2576 | FN50: 2151.952462 | FO50: 651.5348837 | FP50: 138.27141 | FS50: -656 | FV50: 1420 | FW50: -1420
A51: 165 | B51: Janakkala | C51: 16840 | E51: 0.7010766308 | F51: 54.27154807 | G51: -2645.84323 | K51: 46.13293308 | L51: 501.1876485 | M51: 26.92455601 | N51: 6794.299287 | O51: 44180 | P51: 20502 | Q51: 98817 | R51: -78315 | S51: 61107 | T51: 23622 | W51: -567 | X51: 123 | Y51: 5970 | Z51: 4774 | AC51: 1196 | AD51: 56 | AG51: 1252 | AH51: 2770 | AI51: 5178 | AK51: -262 | AL51: -8802 | AM51: 44 | AN51: 61107 | AO51: 56093 | AP51: 2024 | AQ51: 2990 | AR51: 20.5 | AT51: 148 | AU51: 16853 | AW51: 0.6108135044 | AX51: 57 | AY51: -2709.072569 | BC51: 42 | BD51: 671.3938171 | BE51: 36.14541397 | BF51: 6779.801816 | BG51: 45572 | BH51: 19799 | BI51: 101202 | BJ51: -81403 | BK51: 62545 | BL51: 23531 | BO51: -551 | BP51: 146 | BQ51: 4268 | BR51: 5126 | BS51: 0 | BT51: 0 | BU51: -858 | BV51: 8 | BW51: 0 | BX51: 0 | BY51: -850 | BZ51: -40 | CA51: 5847 | CC51: 536 | CD51: -10450 | CE51: 738 | CF51: 62545 | CG51: 57247 | CH51: 2207 | CI51: 3091 | CJ51: 20.5 | CL51: 202 | CM51: 16709 | CO51: 0.7614589666 | CP51: 60.48402746 | CQ51: -2819.259082 | CU51: 41.13480793 | CV51: 812.9750434 | CW51: 41.85125474 | CX51: 7.090250763 | CY51: 45467 | CZ51: 20585 | DA51: 102315 | DB51: -81730 | DC51: 63034 | DD51: 24760 | DG51: -486 | DH51: 130 | DI51: 5708 | DJ51: 5006 | DK51: 0 | DL51: 0 | DM51: 702 | DN51: 0 | DO51: 0 | DP51: 0 | DQ51: 702 | DR51: 661 | DS51: 4962 | DU51: -1711 | DV51: -7670 | DW51: -1364 | DX51: 63034 | DY51: 57060 | DZ51: 2287 | EA51: 3687 | EB51: 20.5 | ED51: 181 | EE51: 40914 | EF51: 40737 | EG51: 41909 | EK51: -6273 | EL51: 189 | EM51: 950 | EN51: -5689 | EO51: 5 | EP51: 575 | EQ51: -8091 | ER51: 88 | ES51: 1677 | ET51: 10000 | EU51: 161 | EV51: 7392 | EW51: 250 | EX51: 12000 | EY51: 752 | EZ51: 43541 | FA51: 36403 | FB51: 7138 | FC51: 1003 | FD51: 46850 | FE51: 38423 | FF51: 8427 | FG51: 1003 | FH51: 51524 | FI51: 42794 | FJ51: 8730 | FK51: 1003 | FL51: 4190.142518 | FM51: 4249 | FN51: 4427.075229 | FO51: 2783.414634 | FP51: 166.5817604 | FS51: -6492 | FV51: 5623 | FW51: -5623
A52: 167 | B52: Joensuu | C52: 75041 | E52: 1.841106884 | F52: 41.1779119 | G52: -1478.258552 | K52: 57.96157848 | L52: 1269.172852 | M52: 58.5615423 | N52: 7910.448955 | O52: 221000 | P52: 179235 | Q52: 530146 | R52: -350911 | S52: 254655 | T52: 125258 | W52: -1548 | X52: 5521 | Y52: 32975 | Z52: 24206 | AA52: 1899 | AC52: 10668 | AD52: -2386 | AE52: -553 | AF52: -542 | AG52: 7187 | AH52: 22629 | AI52: 29428 | AK52: -1912 | AL52: -17120 | AM52: -8238 | AN52: 254655 | AO52: 218399 | AP52: 16545 | AQ52: 19711 | AR52: 20.5 | AT52: 99 | AU52: 75514 | AW52: 1.357919324 | AX52: 40 | AY52: -1658.963901 | BC52: 60 | BD52: 1084.765739 | BE52: 52.5824773 | BF52: 7529.875255 | BG52: 224577 | BH52: 184932 | BI52: 550030 | BJ52: -365098 | BK52: 261994 | BL52: 129006 | BO52: -993 | BP52: 5117 | BQ52: 28631 | BR52: 27092 | BS52: 0 | BT52: 0 | BU52: 1539 | BV52: 1059 | BW52: 1164 | BX52: -148 | BY52: 3614 | BZ52: 26243 | CA52: 23305 | CC52: 546 | CD52: -20000 | CE52: -15108 | CF52: 261994 | CG52: 223747 | CH52: 18640 | CI52: 19607 | CJ52: 20.5 | CL52: 132 | CM52: 75848 | CO52: 1.308879299 | CP52: 44.36988919 | CQ52: -2008.886193 | CU52: 56.60935283 | CV52: 1102.45491 | CW52: 47.60260683 | CX52: 8.453235418 | CY52: 226498 | CZ52: 187279 | DA52: 565106 | DB52: -377827 | DC52: 262306 | DD52: 140768 | DG52: -896 | DH52: 4318 | DI52: 28669 | DJ52: 29609 | DK52: 0 | DL52: 0 | DM52: -940 | DN52: 170 | DO52: 2109 | DP52: 3 | DQ52: 1342 | DR52: 27585 | DS52: 23340 | DU52: -1314 | DV52: -21583 | DW52: -23756 | DX52: 262306 | DY52: 224447 | DZ52: 17132 | EA52: 20727 | EB52: 20.5 | ED52: 164 | EE52: 233253 | EF52: 240288 | EG52: 246170 | EK52: -47528 | EL52: 1939 | EM52: 7923 | EN52: -45820 | EO52: 835 | EP52: 6572 | EQ52: -54098 | ER52: 849 | ES52: 6153 | ET52: 35000 | EU52: 1715 | EV52: 20663 | EW52: 1928 | EX52: 40000 | EY52: 13705 | EZ52: 150357 | FA52: 114594 | FB52: 35763 | FC52: 29318 | FD52: 151624 | FE52: 113011 | FF52: 38613 | FG52: 28280 | FH52: 183746 | FI52: 128423 | FJ52: 55323 | FK52: 31481 | FL52: 4875.614664 | FM52: 5150 | FN52: 5563.785466 | FO52: 10948.63415 | FP52: 144.349675 | FS52: -46269 | FV52: 9446 | FW52: -9446
A53: 169 | B53: Jokioinen | C53: 5516 | E53: 2.129291454 | F53: 63.17662715 | G53: -2963.923133 | K53: 47.45502469 | L53: 234.0464104 | M53: 12.1732672 | N53: 7017.585207 | O53: 9781 | P53: 4000 | Q53: 29443 | R53: -25443 | S53: 18854 | T53: 9457 | W53: -155 | X53: 30 | Y53: 2743 | Z53: 1012 | AC53: 1731 | AG53: 1732 | AH53: 5734 | AI53: 2637 | AK53: -160 | AL53: -1197 | AM53: -4356 | AN53: 18854 | AO53: 17039 | AP53: 983 | AQ53: 832 | AR53: 20.5 | AT53: 72 | AU53: 5425 | AW53: 1.909533751 | AX53: 64 | AY53: -3286.820276 | BC53: 48 | BD53: 230.4147465 | BE53: 12.61753319 | BF53: 6665.437788 | BG53: 9748 | BH53: 4045 | BI53: 30339 | BJ53: -26294 | BK53: 19311 | BL53: 9667 | BO53: -167 | BP53: 40 | BQ53: 2549 | BR53: 1366 | BS53: 0 | BT53: 0 | BU53: 1183 | BV53: 0 | BW53: 0 | BX53: 0 | BY53: 1183 | BZ53: 6698 | CA53: 2453 | CC53: 844 | CD53: -4100 | CE53: -1565 | CF53: 19311 | CG53: 17492 | CH53: 980 | CI53: 839 | CJ53: 20.5 | CL53: 83 | CM53: 5341 | CO53: 0.6228332337 | CP53: 65.29631113 | CQ53: -3413.031268 | CU53: 46.56642227 | CV53: 218.1239468 | CW53: 12.38603594 | CX53: 6.427822505 | CY53: 9827 | CZ53: 4199 | DA53: 31437 | DB53: -27238 | DC53: 18408 | DD53: 9842 | DG53: -177 | DH53: 27 | DI53: 862 | DJ53: 1635 | DK53: 0 | DL53: 0 | DM53: -773 | DN53: 0 | DO53: 0 | DP53: 0 | DQ53: -773 | DR53: 5926 | DS53: 802 | DU53: 138 | DV53: -1493 | DW53: -366 | DX53: 18408 | DY53: 16675 | DZ53: 888 | EA53: 845 | EB53: 20.5 | ED53: 252 | EE53: 17097 | EF53: 18028 | EG53: 18963 | EK53: -7893 | EL53: 773 | EM53: 127 | EN53: -5103 | EO53: 816 | EP53: 269 | EQ53: -1218 | ER53: 40 | ES53: 10 | ET53: 4500 | EU53: 2490 | EV53: 1242 | EW53: -1500 | EX53: 0 | EY53: 800 | EZ53: 17168 | FA53: 9726 | FB53: 7442 | FC53: 558 | FD53: 18526 | FE53: 12336 | FF53: 6190 | FG53: 470 | FH53: 17833 | FI53: 11022 | FJ53: 6811 | FK53: 470 | FL53: 3838.288615 | FM53: 4101 | FN53: 4006.178618 | FO53: 813.4146341 | FP53: 152.2963179 | FS53: -3383 | FV53: 2224 | FW53: -2224
A54: 171 | B54: Joroinen | C54: 5178 | E54: 0.7426799862 | F54: 48.69122572 | G54: -508.1112399 | K54: 54.58926398 | L54: 2868.675164 | M54: 138.5953117 | N54: 7554.847431 | O54: 10188 | P54: 8825 | Q54: 35481 | R54: -26656 | S54: 16653 | T54: 12109 | W54: -232 | X54: 42 | Y54: 1916 | Z54: 1830 | AA54: 4077 | AC54: 4163 | AD54: 32 | AE54: 346 | AG54: 4541 | AH54: 6293 | AI54: 1278 | AK54: -58 | AL54: -2663 | AM54: 11396 | AN54: 16653 | AO54: 14557 | AP54: 1089 | AQ54: 1007 | AR54: 20.25 | AT54: 139 | AU54: 5110 | AW54: 0.4752353664 | AX54: 60 | AY54: -595.1076321 | BC54: 52 | BD54: 3192.759295 | BE54: 156.052804 | BF54: 7467.710372 | BG54: 8994 | BH54: 4322 | BI54: 32500 | BJ54: -28178 | BK54: 17216 | BL54: 12069 | BO54: -208 | BP54: 30 | BQ54: 929 | BR54: 1032 | BS54: 186 | BT54: 0 | BU54: 83 | BV54: 31 | BW54: -170 | BX54: 0 | BY54: -56 | BZ54: 6237 | CA54: 981 | CC54: -213 | CD54: -3600 | CE54: -427 | CF54: 17216 | CG54: 14684 | CH54: 1371 | CI54: 1161 | CJ54: 20.25 | CL54: 247 | CM54: 5039 | CO54: 0.2500811952 | CP54: 54.85049143 | CQ54: -694.3838063 | CU54: 54.1630838 | CV54: 2820.400873 | CW54: 138.4261088 | CX54: 7.436793014 | CY54: 8829 | CZ54: 4193 | DA54: 33014 | DB54: -28821 | DC54: 16824 | DD54: 12692 | DG54: -170 | DH54: 19 | DI54: 544 | DJ54: 771 | DK54: 215 | DL54: 0 | DM54: -12 | DN54: 31 | DO54: 0 | DP54: 0 | DQ54: 19 | DR54: 6256 | DS54: 732 | DU54: -513 | DV54: -2853 | DW54: -433 | DX54: 16824 | DY54: 14334 | DZ54: 1309 | EA54: 1181 | EB54: 20.25 | ED54: 271 | EE54: 22861 | EF54: 20962 | EG54: 21599 | EK54: -985 | EM54: 11103 | EN54: -1677 | EO54: 22 | EP54: 247 | EQ54: -1403 | ER54: 45 | ES54: 193 | ET54: 4800 | EV54: 2211 | EX54: 2000 | EY54: 0 | EZ54: 15635 | FA54: 13424 | FB54: 2211 | FC54: 306 | FD54: 17023 | FE54: 14171 | FF54: 2852 | FG54: 302 | FH54: 16172 | FI54: 14059 | FJ54: 2113 | FK54: 302 | FL54: 4798.957126 | FM54: 5036 | FN54: 4897.201826 | FO54: 707.8518519 | FP54: 140.474668 | FS54: -1220 | FV54: 1768 | FW54: -1768
A55: 172 | B55: Joutsa | C55: 4782 | E55: 1.141788386 | F55: 61.13068182 | G55: -3795.692179 | K55: 24.74537037 | L55: 377.2480134 | M55: 18.51895601 | N55: 7435.382685 | O55: 12581 | P55: 5829 | Q55: 32185 | R55: -26356 | S55: 15049 | T55: 14411 | W55: -146 | X55: 94 | Y55: 3052 | Z55: 1576 | AC55: 1476 | AD55: 23 | AG55: 1499 | AH55: 757 | AI55: 3029 | AK55: 214 | AL55: -2654 | AM55: 2605 | AN55: 15049 | AO55: 12291 | AP55: 1111 | AQ55: 1647 | AR55: 21 | AT55: 32 | AU55: 4688 | AW55: 1.425337569 | AX55: 50 | AY55: -3101.962457 | BC55: 33 | BD55: 430.4607509 | BE55: 24.96255126 | BF55: 6294.15529 | BG55: 12280 | BH55: 5953 | BI55: 32302 | BJ55: -26349 | BK55: 15063 | BL55: 14782 | BO55: -83 | BP55: 171 | BQ55: 3502 | BR55: 1268 | BS55: 0 | BT55: 0 | BU55: 2234 | BV55: 23 | BW55: 0 | BX55: 0 | BY55: 2257 | BZ55: 3014 | CA55: 3378 | CC55: 154 | CD55: 0 | CE55: 3072 | CF55: 15063 | CG55: 12130 | CH55: 1278 | CI55: 1655 | CJ55: 21 | CL55: 20 | CM55: 4673 | CO55: 1.433796296 | CP55: 44.70371174 | CQ55: -2699.9786 | CU55: 38.55162524 | CV55: 510.1647764 | CW55: 23.522288 | CX55: 7.916327841 | CY55: 12754 | CZ55: 5823 | DA55: 33827 | DB55: -28004 | DC55: 15217 | DD55: 15835 | DG55: -57 | DH55: 47 | DI55: 3038 | DJ55: 1319 | DK55: 0 | DL55: 145 | DM55: 1574 | DN55: 23 | DO55: 0 | DP55: 0 | DQ55: 1597 | DR55: 4611 | DS55: 2889 | DU55: -66 | DV55: -2101 | DW55: 1997 | DX55: 15217 | DY55: 12259 | DZ55: 1244 | EA55: 1714 | EB55: 21 | ED55: 45 | EE55: 15554 | EF55: 15885 | EG55: 16746 | EK55: -623 | EL55: 82 | EM55: 117 | EN55: -763 | EO55: 27 | EP55: 890 | EQ55: -995 | ER55: 83 | ES55: 20 | EU55: 2000 | EV55: 2431 | EW55: -1000 | EX55: 0 | EY55: 0 | EZ55: 17246 | FA55: 9815 | FB55: 7431 | FC55: 965 | FD55: 13815 | FE55: 7714 | FF55: 6101 | FG55: 965 | FH55: 11714 | FI55: 5967 | FJ55: 5747 | FK55: 965 | FL55: 4962.986198 | FM55: 4277 | FN55: 4060.560668 | FO55: 583.7619048 | FP55: 124.9222993 | FS55: -387 | FV55: 2380 | FW55: -2380
A56: 174 | B56: Juankoski | C56: 4882 | E56: 0.08409842086 | F56: 71.4200655 | G56: -4732.69152 | K56: 24.51387125 | L56: 253.3797624 | M56: 10.78014946 | N56: 8579.065957 | O56: 13339 | P56: 7159 | Q56: 37225 | R56: -30066 | S56: 15296 | T56: 14494 | W56: -219 | X56: 496 | Y56: 1 | Z56: 1442 | AB56: 997 | AC56: -2438 | AD56: 70 | AG56: -2368 | AH56: -9938 | AI56: -1052 | AK56: 719 | AL56: -2496 | AM56: -2648 | AN56: 15296 | AO56: 13373 | AP56: 572 | AQ56: 1351 | AR56: 21.5 | AT56: 293 | AU56: 4804 | AW56: 0.3750940557 | AX56: 74 | AY56: -4883.014155 | BC56: 22 | BD56: 565.9866778 | BE56: 25.44835633 | BF56: 8117.818485 | BG56: 12589 | BH56: 6945 | BI56: 37081 | BJ56: -30136 | BK56: 15742 | BL56: 14532 | BO56: -146 | BP56: 843 | BQ56: 835 | BR56: 1454 | BS56: 0 | BT56: 0 | BU56: -619 | BV56: 77 | BW56: 0 | BX56: 0 | BY56: -542 | BZ56: -10480 | CA56: 664 | CC56: 538 | CD56: 0 | CE56: -188 | CF56: 15742 | CG56: 13711 | CH56: 687 | CI56: 1344 | CJ56: 21.5 | CL56: 250 | CM56: 4804 | CO56: -0.121680539 | CP56: 77.05494037 | CQ56: -5426.063042 | CU56: 15.91574189 | CV56: 315.4220436 | CW56: 12.5777711 | CX56: 9.153374233 | CY56: 12547 | CZ56: 7348 | DA56: 38221 | DB56: -30873 | DC56: 14725 | DD56: 15495 | DG56: -89 | DH56: 332 | DI56: -410 | DJ56: 2164 | DK56: 0 | DL56: 0 | DM56: -2574 | DN56: 35 | DO56: 0 | DP56: 0 | DQ56: -2539 | DR56: -13019 | DS56: -712 | DU56: -301 | DV56: -2420 | DW56: -2065 | DX56: 14725 | DY56: 12724 | DZ56: 645 | EA56: 1356 | EB56: 21.5 | ED56: 288 | EE56: 19979 | EF56: 20674 | EG56: 21636 | EH56: 700 | EK56: -1904 | EL56: 232 | EM56: 76 | EN56: -1112 | EO56: 32 | EP56: 228 | EQ56: -2486 | ER56: 57 | ES56: 1076 | EU56: 3950 | EV56: 2496 | EW56: 3550 | EX56: 0 | EY56: 3100 | EZ56: 23432 | FA56: 9886 | FB56: 13546 | FC56: 187 | FD56: 24486 | FE56: 7466 | FF56: 17020 | FG56: 162 | FH56: 25165 | FI56: 5493 | FJ56: 19672 | FK56: 108 | FL56: 7009.627202 | FM56: 7605 | FN56: 7941.823567 | FO56: 591.8139535 | FP56: 123.1919137 | FS56: -849 | FV56: 1948 | FW56: -1948
A57: 176 | B57: Juuka | C57: 5140 | E57: 77.84848485 | F57: 25.61041272 | G57: -799.0272374 | K57: 70.27862128 | L57: 688.7159533 | M57: 24.84043371 | N57: 10119.84436 | O57: 18038 | P57: 7250 | Q57: 40586 | R57: -33336 | S57: 14743 | T57: 20724 | W57: 56 | X57: 349 | Y57: 2536 | Z57: 1715 | AC57: 821 | AD57: 358 | AE57: 35 | AG57: 1214 | AH57: 6146 | AI57: 2444 | AK57: -925 | AM57: -4051 | AN57: 14743 | AO57: 12008 | AP57: 1519 | AQ57: 1216 | AR57: 20.75 | AT57: 73 | AU57: 5034 | AW57: 54.47540984 | AX57: 24 | AY57: -806.7143425 | BC57: 73 | BD57: 794.7953913 | BE57: 33.65671814 | BF57: 8619.388161 | BG57: 18625 | BH57: 8112 | BI57: 41368 | BJ57: -33256 | BK57: 15520 | BL57: 20578 | BO57: 59 | BP57: 709 | BQ57: 3262 | BR57: 2021 | BS57: 3307 | BT57: 932 | BU57: 3616 | BV57: 344 | BW57: 0 | BX57: 0 | BY57: 3960 | BZ57: 10106 | CA57: 5446 | CC57: 768 | CD57: 0 | CE57: -883 | CF57: 15520 | CG57: 12462 | CH57: 1832 | CI57: 1226 | CJ57: 20.75 | CL57: 32 | CM57: 4938 | CO57: 0.3724479683 | CP57: 24.60418734 | CQ57: -753.1389226 | CU57: 73.68525256 | CV57: 820.5751316 | CW57: 30.87189764 | CX57: 9.701701094 | CY57: 18412 | CZ57: 7167 | DA57: 40899 | DB57: -33732 | DC57: 14495 | DD57: 20656 | DG57: 55 | DH57: 360 | DI57: 1834 | DJ57: 2061 | DK57: 0 | DL57: 0 | DM57: -227 | DN57: 305 | DO57: -54 | DP57: 0 | DQ57: 24 | DR57: 10131 | DS57: 1837 | DU57: -73 | DV57: -5000 | DW57: 558 | DX57: 14495 | DY57: 11562 | DZ57: 1689 | EA57: 1244 | EB57: 20.75 | ED57: 166 | EE57: 17750 | EF57: 17690 | EG57: 17661 | EK57: -7512 | EL57: 832 | EM57: 185 | EN57: -7713 | EO57: 252 | EP57: 1132 | EQ57: -1654 | ER57: 179 | ES57: 196 | ET57: 5000 | EX57: 0 | EY57: 5000 | EZ57: 5000 | FA57: 5000 | FB57: 0 | FC57: 3980 | FD57: 5000 | FE57: 5000 | FF57: 0 | FG57: 2986 | FH57: 5000 | FI57: 0 | FJ57: 5000 | FK57: 3179 | FL57: 2347.859922 | FM57: 2486 | FN57: 2561.563386 | FO57: 557.2048193 | FP57: 112.8401821 | FS57: -4089 | FV57: 0 | FW57: 0
A58: 177 | B58: Juupajoki | C58: 2033 | E58: 0.6721311475 | F58: 39.25302087 | G58: -2310.378751 | K58: 58.94423678 | L58: 25.5779636 | M58: 1.318604974 | N58: 7080.177078 | O58: 3634 | P58: 2034 | Q58: 12536 | R58: -10502 | S58: 6668 | T58: 4953 | W58: -39 | X58: -35 | Y58: 1045 | Z58: 468 | AB58: 29 | AC58: 548 | AD58: 11 | AG58: 559 | AH58: 885 | AI58: 1016 | AK58: -129 | AL58: -1585 | AM58: 998 | AN58: 6668 | AO58: 5542 | AP58: 587 | AQ58: 539 | AR58: 20 | AT58: 69 | AU58: 1988 | AW58: 5.544303797 | AX58: 40 | AY58: -1931.589537 | BC58: 62 | BD58: 526.6599598 | BE58: 31.53354237 | BF58: 6096.076459 | BG58: 3190 | BH58: 1207 | BI58: 11959 | BJ58: -10752 | BK58: 7280 | BL58: 4709 | BO58: -27 | BP58: 52 | BQ58: 1262 | BR58: 475 | BS58: 0 | BT58: 7 | BU58: 780 | BV58: 11 | BW58: 0 | BX58: 0 | BY58: 791 | BZ58: 1676 | CA58: 1255 | CC58: 206 | CD58: 0 | CE58: 843 | CF58: 7280 | CG58: 5987 | CH58: 752 | CI58: 541 | CJ58: 21 | CL58: 35 | CM58: 1957 | CO58: 0.8335607094 | CP58: 37.39349953 | CQ58: -1920.797138 | CU58: 64.35472998 | CV58: 299.9489014 | CW58: 16.00829348 | CX58: 6.839039346 | CY58: 3117 | CZ58: 1270 | DA58: 12108 | DB58: -10838 | DC58: 6912 | DD58: 4494 | DG58: -24 | DH58: 19 | DI58: 563 | DJ58: 480 | DK58: 0 | DL58: 0 | DM58: 83 | DN58: 11 | DO58: 0 | DP58: 0 | DQ58: 94 | DR58: 1770 | DS58: 563 | DU58: 11 | DV58: -685 | DW58: 89 | DX58: 6912 | DY58: 5609 | DZ58: 754 | EA58: 549 | EB58: 21 | ED58: 215 | EE58: 7240 | EF58: 7751 | EG58: 7988 | EK58: -168 | EL58: 150 | EN58: -449 | EO58: 37 | EP58: 0 | EQ58: -560 | ER58: 86 | ES58: 0 | ET58: 1400 | EU58: -185 | EV58: 185 | EX58: 0 | EY58: 300 | EZ58: 4129 | FA58: 2944 | FB58: 1185 | FC58: 148 | FD58: 3945 | FE58: 2759 | FF58: 1186 | FG58: 145 | FH58: 3559 | FI58: 2073 | FJ58: 1486 | FK58: 140 | FL58: 3378.258731 | FM58: 3259 | FN58: 3249.361267 | FO58: 267.0952381 | FP58: 136.4819817 | FS58: -371 | FV58: 532 | FW58: -532
A59: 178 | B59: Juva | C59: 6616 | E59: 0.4034334764 | F59: 45.43082005 | G59: -2936.064087 | K59: 65.95854138 | L59: 72.24909311 | M59: 3.185793846 | N59: 8277.660218 | O59: 19507 | P59: 10449 | Q59: 47743 | R59: -37294 | S59: 19356 | T59: 19241 | W59: -243 | X59: 386 | Y59: 1446 | Z59: 1419 | AC59: 27 | AD59: 30 | AG59: 58 | AH59: 3369 | AI59: 1331 | AK59: -574 | AL59: -3948 | AM59: -941 | AN59: 19356 | AO59: 15787 | AP59: 2057 | AQ59: 1512 | AR59: 19.75 | AT59: 230 | AU59: 6548 | AW59: 0.9396226415 | AX59: 50 | AY59: -3200.977398 | BC59: 65 | BD59: 156.6890654 | BE59: 7.267699115 | BF59: 7869.27306 | BG59: 16973 | BH59: 7169 | BI59: 45254 | BJ59: -38085 | BK59: 19827 | BL59: 19937 | BO59: -166 | BP59: 581 | BQ59: 1824 | BR59: 1594 | BS59: 0 | BT59: 0 | BU59: 230 | BV59: 30 | BW59: 0 | BX59: 0 | BY59: 260 | BZ59: 3629 | CA59: 1803 | CC59: 776 | CD59: -4000 | CE59: -1556 | CF59: 19827 | CG59: 15887 | CH59: 2448 | CI59: 1492 | CJ59: 19.75 | CL59: 192 | CM59: 6421 | CO59: 1.621109608 | CP59: 48.25830487 | CQ59: -3157.140632 | CU59: 65.73897332 | CV59: 194.6737268 | CW59: 9.007186007 | CX59: 7.888802367 | CY59: 16880 | CZ59: 7789 | DA59: 45110 | DB59: -37321 | DC59: 19218 | DD59: 21308 | DG59: -160 | DH59: 387 | DI59: 3432 | DJ59: 1938 | DK59: 162 | DL59: 362 | DM59: 1294 | DN59: 30 | DO59: 0 | DP59: 0 | DQ59: 1324 | DR59: 4953 | DS59: 3456 | DU59: -193 | DV59: -2055 | DW59: 753 | DX59: 19218 | DY59: 15444 | DZ59: 2240 | EA59: 1534 | EB59: 19.75 | ED59: 75 | EE59: 24699 | EF59: 24937 | EG59: 24723 | EK59: -2827 | EL59: 325 | EM59: 230 | EN59: -3963 | EO59: 381 | EP59: 223 | EQ59: -3326 | ER59: 45 | ES59: 578 | EU59: 3400 | EV59: 1952 | EW59: -100 | EX59: 0 | EY59: 2300 | EZ59: 15299 | FA59: 7947 | FB59: 7352 | FC59: 1037 | FD59: 17248 | FE59: 9893 | FF59: 7355 | FG59: 1037 | FH59: 17492 | FI59: 7157 | FJ59: 10335 | FK59: 1036 | FL59: 3987.605804 | FM59: 4221 | FN59: 4322.223953 | FO59: 781.9746835 | FP59: 121.7839407 | FS59: -3305 | FV59: 941 | FW59: -941
A60: 179 | B60: Jyväskylä | C60: 135780 | E60: 1.517549897 | F60: 63.38231532 | G60: -3416.217411 | K60: 48.17282689 | L60: 67.462071 | M60: 3.964794278 | N60: 6210.575932 | O60: 334744 | P60: 172531 | Q60: 772129 | R60: -599598 | S60: 483706 | T60: 145078 | W60: 5956 | X60: 4450 | Y60: 39592 | Z60: 53183 | AC60: -13591 | AD60: 340 | AF60: -3 | AG60: -13254 | AH60: 44933 | AI60: 28098 | AK60: -5201 | AL60: -23798 | AM60: 807 | AN60: 483706 | AO60: 423866 | AP60: 20441 | AQ60: 39399 | AR60: 20 | AT60: 183 | AU60: 137368 | AW60: 1.356893013 | AX60: 61 | AY60: -3363.425252 | BC60: 48 | BD60: 84.46654243 | BE60: 4.753182372 | BF60: 6486.241337 | BG60: 330494 | BH60: 175245 | BI60: 794652 | BJ60: -619407 | BK60: 490468 | BL60: 157402 | BO60: 6515 | BP60: 10402 | BQ60: 40814 | BR60: 54036 | BS60: 0 | BT60: 0 | BU60: -13222 | BV60: 340 | BW60: 0 | BX60: -6 | BY60: -12888 | BZ60: 32044 | CA60: 28531 | CC60: 3554 | CD60: -25000 | CE60: -62431 | CF60: 490468 | CG60: 426989 | CH60: 22523 | CI60: 40956 | CJ60: 20 | CL60: 177 | CM60: 138850 | CO60: 2.5561449 | CP60: 57.34105345 | CQ60: -3179.308606 | CU60: 48.13812046 | CV60: 175.3114872 | CW60: 9.99118375 | CX60: 6.404515664 | CY60: 334143 | CZ60: 187885 | DA60: 819718 | DB60: -631833 | DC60: 507399 | DD60: 176723 | DG60: 3145 | DH60: 3849 | DI60: 59283 | DJ60: 54862 | DK60: 0 | DL60: 0 | DM60: 4421 | DN60: 340 | DO60: 0 | DP60: -4 | DQ60: 4757 | DR60: 36801 | DS60: 42908 | DU60: -2904 | DV60: -19676 | DW60: 18016 | DX60: 507399 | DY60: 439145 | DZ60: 21150 | EA60: 47104 | EB60: 20 | ED60: 132 | EE60: 302030 | EF60: 323284 | EG60: 338124 | EK60: -40358 | EL60: 566 | EM60: 12501 | EN60: -107323 | EO60: 1066 | EP60: 15295 | EQ60: -43848 | ER60: 502 | ES60: 18454 | ET60: 30000 | EU60: 2945 | EV60: 28468 | EW60: -335 | EX60: 0 | EY60: 10523 | EZ60: 406087 | FA60: 315673 | FB60: 90414 | FC60: 225032 | FD60: 402282 | FE60: 320229 | FF60: 82053 | FG60: 162824 | FH60: 393130 | FI60: 275353 | FJ60: 117777 | FK60: 161173 | FL60: 8106.444248 | FM60: 7869 | FN60: 7679.114152 | FO60: 21957.25 | FP60: 158.1364782 | FS60: -90074 | FV60: 25477 | FW60: -25477
A61: 181 | B61: Jämijärvi | C61: 1997 | E61: 0.3526645768 | F61: 49.63837393 | G61: -2733.600401 | K61: 29.76273552 | L61: 66.59989985 | M61: 3.550687537 | N61: 6846.269404 | O61: 2465 | P61: 724 | Q61: 11810 | R61: -11086 | S61: 5546 | T61: 5759 | W61: -44 | X61: 6 | Y61: 181 | Z61: 348 | AC61: -167 | AG61: -167 | AH61: -991 | AI61: 181 | AK61: 13 | AL61: -594 | AM61: -998 | AN61: 5546 | AO61: 4917 | AP61: 268 | AQ61: 361 | AR61: 21.5 | AT61: 269 | AU61: 1948 | AW61: 0.4151724138 | AX61: 49 | AY61: -2943.531828 | BC61: 28 | BD61: 26.69404517 | BE61: 1.463941381 | BF61: 6655.544148 | BG61: 2479 | BH61: 957 | BI61: 12177 | BJ61: -11220 | BK61: 5884 | BL61: 5630 | BO61: -44 | BP61: 9 | BQ61: 257 | BR61: 354 | BS61: 0 | BT61: 0 | BU61: -97 | BV61: 0 | BW61: 0 | BX61: 0 | BY61: -97 | BZ61: -1088 | CA61: 257 | CC61: 24 | CD61: -560 | CE61: -103 | CF61: 5884 | CG61: 5198 | CH61: 288 | CI61: 398 | CJ61: 21.5 | CL61: 263 | CM61: 1915 | CO61: -0.5189542484 | CP61: 59.56131436 | CQ61: -3397.911227 | CU61: 19.03181506 | CV61: 86.1618799 | CW61: 4.530580005 | CX61: 6.94151436 | CY61: 2470 | CZ61: 700 | DA61: 12207 | DB61: -11507 | DC61: 5383 | DD61: 5725 | DG61: -38 | DH61: 2 | DI61: -435 | DJ61: 364 | DK61: 0 | DL61: 0 | DM61: -799 | DN61: 0 | DO61: 0 | DP61: 0 | DQ61: -799 | DR61: -1887 | DS61: -435 | DU61: -4 | DV61: -727 | DW61: -753 | DX61: 5383 | DY61: 4709 | DZ61: 273 | EA61: 401 | EB61: 21.5 | ED61: 295 | EE61: 8368 | EF61: 8750 | EG61: 8756 | EK61: -1221 | EL61: 28 | EM61: 14 | EN61: -368 | EO61: 8 | EP61: 0 | EQ61: -318 | ER61: 0 | ES61: 0 | ET61: 1432 | EV61: 681 | EW61: 250 | EX61: 700 | EY61: 800 | EZ61: 4741 | FA61: 4081 | FB61: 660 | FC61: 107 | FD61: 4869 | FE61: 3892 | FF61: 977 | FG61: 267 | FH61: 5642 | FI61: 3807 | FJ61: 1835 | FK61: 267 | FL61: 3119.679519 | FM61: 3177 | FN61: 3575.979112 | FO61: 219.0232558 | FP61: 114.3724573 | FS61: -359 | FV61: 716 | FW61: -716
A62: 182 | B62: Jämsä | C62: 21808 | E62: 1.100080783 | F62: 33.36989713 | G62: -1801.724138 | K62: 62.30378593 | L62: 269.6716801 | M62: 11.88817753 | N62: 8279.668012 | O62: 66077 | P62: 39396 | Q62: 157789 | R62: -118393 | S62: 85119 | T62: 44570 | W62: -651 | X62: 822 | Y62: 11467 | Z62: 9374 | AC62: 2093 | AD62: 246 | AF62: -221 | AG62: 2118 | AH62: 2979 | AI62: 11203 | AK62: 1631 | AL62: -10352 | AM62: 1863 | AN62: 85119 | AO62: 72571 | AP62: 6816 | AQ62: 5732 | AR62: 21 | AT62: 62 | AU62: 21542 | AW62: 2.070780757 | AX62: 32 | AY62: -1723.748956 | BC62: 63 | BD62: 301.5504596 | BE62: 14.12586163 | BF62: 7791.802061 | BG62: 59437 | BH62: 40807 | BI62: 163308 | BJ62: -122501 | BK62: 87105 | BL62: 44619 | BO62: -487 | BP62: 1702 | BQ62: 9915 | BR62: 8197 | BS62: 0 | BT62: 0 | BU62: 1718 | BV62: 247 | BW62: 0 | BX62: 0 | BY62: 1965 | BZ62: 4944 | CA62: 9356 | CC62: -392 | CD62: -4000 | CE62: 1767 | CF62: 87105 | CG62: 72040 | CH62: 9084 | CI62: 5981 | CJ62: 21 | CL62: 90 | CM62: 21259 | CO62: 1.648521217 | CP62: 30.65904244 | CQ62: -1786.631544 | CU62: 63.72340497 | CV62: 300.5315396 | CW62: 13.03156207 | CX62: 8.417564326 | CY62: 44800 | CZ62: 40018 | DA62: 165512 | DB62: -125494 | DC62: 86941 | DD62: 45577 | DG62: -496 | DH62: 608 | DI62: 7136 | DJ62: 8825 | DK62: 0 | DL62: 0 | DM62: -1689 | DN62: 247 | DO62: 0 | DP62: 30 | DQ62: -1412 | DR62: 3532 | DS62: 6944 | DU62: 2715 | DV62: -4110 | DW62: -1797 | DX62: 86941 | DY62: 71823 | DZ62: 8939 | EA62: 6179 | EB62: 21 | ED62: 187 | EE62: 71554 | EF62: 82482 | EG62: 99762 | EK62: -10658 | EL62: 530 | EM62: 788 | EN62: -8875 | EO62: 208 | EP62: 1078 | EQ62: -9107 | ER62: 0 | ES62: 366 | EV62: 4484 | EW62: 4000 | EX62: 11000 | EY62: -4000 | EZ62: 33067 | FA62: 26823 | FB62: 6244 | FC62: 6783 | FD62: 34823 | FE62: 26764 | FF62: 8059 | FG62: 6408 | FH62: 37713 | FI62: 33451 | FJ62: 4262 | FK62: 5914 | FL62: 2694.882612 | FM62: 2802 | FN62: 3081.518416 | FO62: 3420.142857 | FP62: 160.8797618 | FS62: -7127 | FV62: 6948 | FW62: -6948
A63: 186 | B63: Järvenpää | C63: 40390 | E63: 10.49749463 | F63: 40.9473862 | G63: -2210.769993 | K63: 62.49922224 | L63: 51.86927457 | M63: 2.865303477 | N63: 6607.427581 | O63: 101245 | P63: 46205 | Q63: 230285 | R63: -184080 | S63: 173505 | T63: 24459 | W63: -87 | X63: 469 | Y63: 14266 | Z63: 13371 | AA63: 2258 | AC63: 3153 | AD63: -249 | AE63: 450 | AG63: 3355 | AH63: 58087 | AI63: 12874 | AK63: 224 | AL63: -1000 | AM63: -18540 | AN63: 173505 | AO63: 157015 | AP63: 4619 | AQ63: 11871 | AR63: 19.75 | AT63: 151 | AU63: 40900 | AW63: 15.98313659 | AX63: 44 | AY63: -2442.273839 | BC63: 59 | BD63: 47.48166259 | BE63: 2.808793752 | BF63: 6170.195599 | BG63: 98243 | BH63: 52885 | BI63: 242665 | BJ63: -189780 | BK63: 175502 | BL63: 23150 | BO63: 221 | BP63: 293 | BQ63: 9385 | BR63: 15149 | BS63: 951 | BT63: 0 | BU63: -4813 | BV63: 220 | BW63: 0 | BX63: 0 | BY63: -4593 | BZ63: 53494 | CA63: 1829 | CC63: -661 | CD63: 0 | CE63: -10682 | CF63: 175502 | CG63: 158708 | CH63: 4673 | CI63: 12121 | CJ63: 19.75 | CL63: 218 | CM63: 41529 | CO63: 1610.5 | CP63: 45.25529756 | CQ63: -2525.006622 | CU63: 57.72940137 | CV63: 38.28649859 | CW63: 2.12835013 | CX63: 6.565917792 | CY63: 101036 | CZ63: 56600 | DA63: 249740 | DB63: -193140 | DC63: 181486 | DD63: 27160 | DG63: 308 | DH63: 281 | DI63: 16095 | DJ63: 16116 | DK63: 0 | DL63: 0 | DM63: -21 | DN63: 229 | DO63: 0 | DP63: 0 | DQ63: 208 | DR63: 53702 | DS63: 6167 | DU63: -3719 | DV63: 0 | DW63: -5086 | DX63: 181486 | DY63: 164643 | DZ63: 4222 | EA63: 12621 | EB63: 19.75 | ED63: 152 | EE63: 93842 | EF63: 105798 | EG63: 108182 | EK63: -36619 | EL63: 704 | EM63: 4501 | EN63: -22377 | EO63: 303 | EP63: 9563 | EQ63: -23779 | ER63: 938 | ES63: 11588 | EU63: 17820 | EV63: 500 | EW63: 11309 | EX63: 0 | EY63: 5971 | EZ63: 62637 | FA63: 500 | FB63: 62137 | FC63: 5009 | FD63: 73500 | FE63: 0 | FF63: 73500 | FG63: 4991 | FH63: 79471 | FI63: 0 | FJ63: 79471 | FK63: 4991 | FL63: 4950.037138 | FM63: 6168 | FN63: 6732.957692 | FO63: 8336.35443 | FP63: 200.7357372 | FS63: -12719 | FV63: 2326 | FW63: -2326
A64: 202 | B64: Kaarina | C64: 32148 | E64: 11.26934524 | F64: 48.97731837 | G64: -2249.906682 | K64: 52.04063521 | L64: 387.7379619 | M64: 23.38601072 | N64: 6051.667289 | O64: 74547 | P64: 31213 | Q64: 180903 | R64: -149690 | S64: 126692 | T64: 29317 | W64: 851 | X64: 237 | Y64: 7407 | Z64: 7696 | AC64: -289 | AD64: 17 | AG64: -272 | AH64: 23338 | AI64: 5321 | AK64: 948 | AL64: -507 | AM64: -5354 | AN64: 126692 | AO64: 115789 | AP64: 4746 | AQ64: 6157 | AR64: 19 | AT64: 223 | AU64: 32590 | AW64: 13.54699248 | AX64: 52 | AY64: -2426.541884 | BC64: 50 | BD64: 359.3433569 | BE64: 22.41627685 | BF64: 5851.119975 | BG64: 77811 | BH64: 32552 | BI64: 184769 | BJ64: -152217 | BK64: 129819 | BL64: 28403 | BO64: 743 | BP64: 692 | BQ64: 7132 | BR64: 7877 | BS64: 0 | BT64: 0 | BU64: -745 | BV64: 17 | BW64: 0 | BX64: 0 | BY64: -728 | BZ64: 22610 | CA64: 4567 | CC64: -1545 | CD64: 0 | CE64: -6867 | CF64: 129819 | CG64: 118694 | CH64: 4671 | CI64: 6454 | CJ64: 19.25 | CL64: 224 | CM64: 32738 | CO64: 32.04556355 | CP64: 50.04412095 | CQ64: -2379.925469 | CU64: 50.43111427 | CV64: 442.7576517 | CW64: 26.14783752 | CX64: 6.180493616 | CY64: 77857 | CZ64: 33402 | DA64: 188656 | DB64: -155254 | DC64: 137017 | DD64: 30547 | DG64: 542 | DH64: 451 | DI64: 13303 | DJ64: 8221 | DK64: 0 | DL64: 500 | DM64: 4582 | DN64: 17 | DO64: 0 | DP64: 0 | DQ64: 4599 | DR64: 27209 | DS64: 10670 | DU64: 227 | DV64: -357 | DW64: 939 | DX64: 137017 | DY64: 126274 | DZ64: 4086 | EA64: 6657 | EB64: 19.25 | ED64: 137 | EE64: 81070 | EF64: 80757 | EG64: 82500 | EK64: -13435 | EL64: 459 | EM64: 2301 | EN64: -14646 | EO64: 67 | EP64: 3145 | EQ64: -13613 | ER64: 239 | ES64: 3643 | EU64: -5000 | EV64: 457 | EW64: 8000 | EX64: 0 | EY64: -100 | EZ64: 56570 | FA64: 1113 | FB64: 55457 | FC64: 2291 | FD64: 64114 | FE64: 657 | FF64: 63457 | FG64: 2291 | FH64: 63657 | FI64: 300 | FJ64: 63357 | FK64: 2291 | FL64: 3128.09506 | FM64: 3231 | FN64: 3248.365813 | FO64: 6559.688312 | FP64: 200.369244 | FS64: -11202 | FV64: 460 | FW64: -460
A65: 204 | B65: Kaavi | C65: 3214 | E65: 1.987321712 | F65: 20.56222363 | G65: -1146.54636 | K65: 64.03024729 | L65: 182.0161792 | M65: 8.32553515 | N65: 7979.77598 | O65: 7364 | P65: 3277 | Q65: 24267 | R65: -20990 | S65: 9084 | T65: 12967 | W65: -57 | X65: 183 | Y65: 1187 | Z65: 651 | AC65: 536 | AD65: 45 | AG65: 581 | AH65: 162 | AI65: 1180 | AK65: 124 | AL65: -564 | AM65: 521 | AN65: 9084 | AO65: 7354 | AP65: 834 | AQ65: 896 | AR65: 20.5 | AT65: 141 | AU65: 3194 | AW65: 1.300955414 | AX65: 33 | AY65: -1853.788353 | BC65: 53 | BD65: 393.550407 | BE65: 14.95258115 | BF65: 9606.76268 | BG65: 7313 | BH65: 3474 | BI65: 24720 | BJ65: -21246 | BK65: 9268 | BL65: 12524 | BO65: -49 | BP65: 431 | BQ65: 758 | BR65: 709 | BS65: 0 | BT65: 0 | BU65: 49 | BV65: 267 | BW65: 0 | BX65: 0 | BY65: 316 | BZ65: 478 | CA65: 905 | CC65: -113 | CD65: -3000 | CE65: -2207 | CF65: 9268 | CG65: 7342 | CH65: 949 | CI65: 977 | CJ65: 21.25 | CL65: 214 | CM65: 3154 | CO65: 1.246855346 | CP65: 40.44508761 | CQ65: -2801.204819 | CU65: 47.26839651 | CV65: 55.48509829 | CW65: 2.167605538 | CX65: 9.343056436 | CY65: 7129 | CZ65: 3462 | DA65: 24989 | DB65: -21527 | DC65: 9193 | DD65: 12913 | DG65: -51 | DH65: 204 | DI65: 732 | DJ65: 853 | DK65: 0 | DL65: 0 | DM65: -121 | DN65: 13 | DO65: 0 | DP65: 0 | DQ65: -108 | DR65: 370 | DS65: 710 | DU65: -281 | DV65: -575 | DW65: -2887 | DX65: 9193 | DY65: 7268 | DZ65: 839 | EA65: 1086 | EB65: 21.25 | ED65: 234 | EE65: 13935 | EF65: 14423 | EG65: 14926 | EK65: -711 | EL65: 8 | EM65: 44 | EN65: -3919 | EO65: 706 | EP65: 101 | EQ65: -3820 | ER65: 189 | ES65: 34 | EV65: 569 | EX65: 2800 | EY65: 500 | EZ65: 3267 | FA65: 2697 | FB65: 570 | FC65: 441 | FD65: 5698 | FE65: 5123 | FF65: 575 | FG65: 441 | FH65: 8422 | FI65: 7245 | FJ65: 1177 | FK65: 441 | FL65: 3406.65837 | FM65: 4440 | FN65: 5424.540266 | FO65: =(DY65/EB65) -> 342.0235294 | FP65: =(FO65/CM65)*1000 -> 108.4411951 | FS65: -3284 | FV65: 479 | FW65: =FV65*-1 -> -479
A66: 205 | B66: Kajaani | C66: 37791 | E66: 1.516526248 | F66: 36.72555519 | G66: -2294.064724 | K66: 69.01463558 | L66: 0 | M66: 0 | N66: 7973.935593 | O66: 94825 | P66: 49790 | Q66: 271896 | R66: -222106 | S66: 137144 | T66: 99420 | W66: 3496 | X66: 1797 | Y66: 19751 | Z66: 13037 | AC66: 6714 | AD66: 276 | AE66: -2100 | AF66: 317 | AG66: 5207 | AH66: 80652 | AI66: 19543 | AK66: -12516 | AL66: -12578 | AM66: 9642 | AN66: 137144 | AO66: 121533 | AP66: 5767 | AQ66: 9844 | AR66: 21 | AT66: 65 | AU66: 37622 | AW66: 0.9323984178 | AX66: 41 | AY66: -2725.958216 | BC66: 66 | BD66: 117.4578704 | BE66: 4.937868518 | BF66: 8682.31354 | BG66: 94305 | BH66: 50124 | BI66: 280901 | BJ66: -230777 | BK66: 138123 | BL66: 99516 | BO66: 3344 | BP66: 2537 | BQ66: 11724 | BR66: 13351 | BS66: 0 | BT66: 0 | BU66: -1627 | BV66: 247 | BW66: -2500 | BX66: 2915 | BY66: -965 | BZ66: 73687 | CA66: 11498 | CC66: 6931 | CD66: -25000 | CE66: -14245 | CF66: 138123 | CG66: 122195 | CH66: 6127 | CI66: 9801 | CJ66: 21 | CL66: 164 | CM66: 37521 | CO66: 1.168795555 | CP66: 47.38957767 | CQ66: -3248.367581 | CU66: 62.98780128 | CV66: 48.71938381 | CW66: 2.026109058 | CX66: 8.776711708 | CY66: 92628 | CZ66: 47991 | DA66: 280198 | DB66: -232207 | DC66: 137133 | DD66: 104927 | DG66: 3648 | DH66: 1677 | DI66: 15178 | DJ66: 13624 | DK66: 0 | DL66: 0 | DM66: 1554 | DN66: -5 | DO66: 0 | DP66: 569 | DQ66: 2118 | DR66: 78455 | DS66: 15293 | DU66: -1609 | DV66: -12839 | DW66: -17397 | DX66: 137133 | DY66: 122245 | DZ66: 5118 | EA66: 9770 | EB66: 21 | ED66: 138 | EE66: 142160 | EF66: 150787 | EG66: 150712 | EK66: -15932 | EL66: 1161 | EM66: 4870 | EN66: -27107 | EO66: 1122 | EP66: 242 | EQ66: -34471 | ER66: 1530 | ES66: 251 | ET66: 555 | EU66: 2706 | EV66: 12664 | EW66: 4740 | EX66: 25000 | EY66: 8066 | EZ66: 73067 | FA66: 58947 | FB66: 14120 | FC66: 69846 | FD66: 90143 | FE66: 69858 | FF66: 20285 | FG66: 70994 | FH66: 110372 | FI66: 81605 | FJ66: 28767 | FK66: 72152 | FL66: 8098.674288 | FM66: 8129 | FN66: 8717.598145 | FO66: 5821.190476 | FP66: 155.1448649 | FS66: -23714 | FV66: 9462 | FW66: -9462
A67: 208 | B67: Kalajoki | C67: 12632 | E67: 1.540954274 | F67: 52.88752791 | G67: -1942.447752 | K67: 57.98266626 | L67: 1215.167828 | M67: 53.52928812 | N67: 8285.861305 | O67: 44063 | P67: 24573 | Q67: 83775 | R67: -59202 | S67: 36666 | T67: 29439 | W67: -100 | X67: 714 | Y67: 7517 | Z67: 5646 | AA67: 2146 | AC67: 4017 | AD67: 73 | AG67: 4090 | AH67: 16012 | AI67: 7331 | AK67: 858 | AL67: -4796 | AM67: 1446 | AN67: 36666 | AO67: 32145 | AP67: 2298 | AQ67: 2223 | AR67: 19.5 | AT67: 39 | AU67: 12621 | AW67: 1.615083026 | AX67: 52 | AY67: -1873.306394 | BC67: 59 | BD67: 1230.885033 | BE67: 60.72258514 | BF67: 7398.779811 | BG67: 43231 | BH67: 21869 | BI67: 83325 | BJ67: -61456 | BK67: 38461 | BL67: 29439 | BO67: -88 | BP67: 461 | BQ67: 6793 | BR67: 5007 | BS67: 438 | BT67: 0 | BU67: 2224 | BV67: 54 | BW67: 0 | BX67: 0 | BY67: 2278 | BZ67: 18382 | CA67: 6513 | CC67: 599 | CD67: -10651 | CE67: 1503 | CF67: 38461 | CG67: 32831 | CH67: 2933 | CI67: 2697 | CJ67: 20 | CL67: 60 | CM67: 12586 | CO67: 2.705750225 | CP67: 51.99623208 | CQ67: -1882.885746 | CU67: 59.26278726 | CV67: 1274.034642 | CW67: 61.2612259 | CX67: 7.590815191 | CY67: 43247 | CZ67: 21748 | DA67: 85727 | DB67: -63979 | DC67: 39098 | DD67: 30722 | DG67: -77 | DH67: 101 | DI67: 5865 | DJ67: 6117 | DK67: 0 | DL67: 0 | DM67: -252 | DN67: 54 | DO67: 0 | DP67: 0 | DQ67: -198 | DR67: 18185 | DS67: 5443 | DU67: -382 | DV67: -2068 | DW67: -72 | DX67: 39098 | DY67: 33344 | DZ67: 2720 | EA67: 3034 | EB67: 20 | ED67: 104 | EE67: 29510 | EF67: 30171 | EG67: 30669 | EK67: -15983 | EL67: 908 | EM67: 9190 | EN67: -8979 | EO67: 1542 | EP67: 2427 | EQ67: -7524 | ER67: 1282 | ES67: 727 | EU67: 1900 | EV67: 4126 | EW67: -7400 | EX67: 3000 | EY67: -1000 | EZ67: 33542 | FA67: 4516 | FB67: 29026 | FC67: 1467 | FD67: 32666 | FE67: 12604 | FF67: 20062 | FG67: 2064 | FH67: 32599 | FI67: 13459 | FJ67: 19140 | FK67: 2030 | FL67: 4501.820773 | FM67: 4341 | FN67: 4295.407596 | FO67: 1667.2 | FP67: 132.4646433 | FS67: -7109 | FV67: 3053 | FW67: -3053
A68: 211 | B68: Kangasala | C68: 30471 | E68: 1.139286717 | F68: 50.74824465 | G68: -1706.245282 | K68: 52.20896454 | L68: 1151.357028 | M68: 58.18182025 | N68: 7222.966099 | O68: 88886 | P68: 43841 | Q68: 184538 | R68: -140697 | S68: 115742 | T68: 34596 | W68: -1307 | X68: 2514 | Y68: 10848 | Z68: 12600 | AC68: -1752 | AD68: 10 | AG68: -1742 | AH68: 43495 | AI68: 10366 | AK68: 3280 | AL68: -9360 | AM68: -7669 | AN68: 115742 | AO68: 105852 | AP68: 3242 | AQ68: 6648 | AR68: 20.5 | AT68: 146 | AU68: 30607 | AW68: 1.628816238 | AX68: 46 | AY68: -1560.198647 | BC68: 54 | BD68: 1187.70216 | BE68: 66.62321686 | BF68: 6506.910184 | BG68: 87242 | BH68: 47337 | BI68: 187851 | BJ68: -140514 | BK68: 121621 | BL68: 35982 | BO68: -1202 | BP68: 2727 | BQ68: 18366 | BR68: 12707 | BS68: 0 | BT68: 0 | BU68: 5659 | BV68: 10 | BW68: 0 | BX68: 0 | BY68: 5669 | BZ68: 49165 | CA68: 17068 | CC68: 740 | CD68: -7000 | CE68: 4073 | CF68: 121621 | CG68: 111088 | CH68: 3781 | CI68: 6752 | CJ68: 21 | CL68: 43 | CM68: 31190 | CO68: 1.891927621 | CP68: 45.19309424 | CQ68: -1433.985252 | CU68: 56.19669858 | CV68: 1269.509458 | CW68: 62.92906159 | CX68: 7.363385701 | CY68: 85685 | CZ68: 45541 | DA68: 187885 | DB68: -142344 | DC68: 124960 | DD68: 38585 | DG68: -1251 | DH68: 1691 | DI68: 21641 | DJ68: 12848 | DK68: 0 | DL68: 0 | DM68: 8793 | DN68: 21 | DO68: -6800 | DP68: 0 | DQ68: 2014 | DR68: 51179 | DS68: 20425 | DU68: 548 | DV68: -10846 | DW68: 3282 | DX68: 124960 | DY68: 114489 | DZ68: 3536 | EA68: 6935 | EB68: 21 | ED68: 34 | EE68: 69498 | EF68: 71890 | EG68: 74893 | EK68: -19127 | EL68: 307 | EM68: 785 | EN68: -15759 | EO68: 361 | EP68: 2403 | EQ68: -24729 | ER68: 1030 | ES68: 6556 | ET68: 16000 | EU68: -4205 | EV68: 10807 | EX68: 10467 | EY68: 0 | EZ68: 66139 | FA68: 55683 | FB68: 10456 | FC68: 78 | FD68: 62333 | FE68: 51480 | FF68: 10853 | FG68: 46 | FH68: 61953 | FI68: 50814 | FJ68: 11139 | FK68: 63 | FL68: 4014.669686 | FM68: 3752 | FN68: 3306.732927 | FO68: 5451.857143 | FP68: 174.795035 | FS68: -16580 | FV68: 7141 | FW68: -7141
A69: 213 | B69: Kangasniemi | C69: 5693 | E69: 1.366336634 | F69: 41.22593908 | G69: -2572.457404 | K69: 55.61410141 | L69: 169.1551028 | M69: 7.801638034 | N69: 7913.929387 | O69: 18982 | P69: 5391 | Q69: 41478 | R69: -36087 | S69: 17550 | T69: 19867 | W69: -25 | X69: 154 | Y69: 1459 | Z69: 1391 | AC69: 68 | AG69: 68 | AH69: 5119 | AI69: 1427 | AK69: 57 | AL69: -1051 | AM69: -965 | AN69: 17550 | AO69: 13865 | AP69: 2134 | AQ69: 1551 | AR69: 20 | AT69: 212 | AU69: 5628 | AW69: 2 | AX69: 55 | AY69: -3361.940299 | BC69: 50 | BD69: 98.08102345 | BE69: 3.814464218 | BF69: 9385.216773 | BG69: 18308 | BH69: 5413 | BI69: 40731 | BJ69: -35318 | BK69: 18092 | BL69: 19138 | BO69: -36 | BP69: 241 | BQ69: 2001 | BR69: 1978 | BS69: 0 | BT69: 0 | BU69: 23 | BV69: 0 | BW69: 0 | BX69: 0 | BY69: 23 | BZ69: 5142 | CA69: 1466 | CC69: -1829 | CD69: -8000 | CE69: -4442 | CF69: 18092 | CG69: 13713 | CH69: 2655 | CI69: 1724 | CJ69: 20 | CL69: 142 | CM69: 5603 | CO69: 2.896153846 | CP69: 64.32385592 | CQ69: -3623.237551 | CU69: 46.05854558 | CV69: 130.6442977 | CW69: 5.590826341 | CX69: 8.529180796 | CY69: 17861 | CZ69: 5391 | DA69: 40600 | DB69: -35209 | DC69: 17730 | DD69: 19577 | DG69: -96 | DH69: 138 | DI69: 2140 | DJ69: 1721 | DK69: 0 | DL69: 0 | DM69: 419 | DN69: 0 | DO69: 0 | DP69: 0 | DQ69: 419 | DR69: 5561 | DS69: 2136 | DU69: -2564 | DV69: -661 | DW69: -1538 | DX69: 17730 | DY69: 13457 | DZ69: 2528 | EA69: 1745 | EB69: 20 | ED69: 159 | EE69: 16982 | EF69: 17355 | EG69: 17750 | EK69: -2465 | EM69: 73 | EN69: -8276 | EO69: 2145 | EP69: 223 | EQ69: -6408 | ER69: 2728 | ES69: 6 | EU69: 1800 | EV69: 967 | EW69: -1700 | EX69: 0 | EY69: 5500 | EZ69: 12158 | FA69: 3891 | FB69: 8267 | FC69: 1814 | FD69: 17490 | FE69: 11229 | FF69: 6261 | FG69: 1665 | FH69: 22330 | FI69: 9728 | FJ69: 12602 | FK69: 1497 | FL69: 3324.960478 | FM69: 4256 | FN69: 5164.911654 | FO69: 672.85 | FP69: 120.0874532 | FS69: -6479 | FV69: 1782 | FW69: -1782
A70: 214 | B70: Kankaanpää | C70: 11883 | E70: 0.8997529848 | F70: 52.75918858 | G70: -2827.23218 | K70: 28.51750595 | L70: 217.7059665 | M70: 11.28169132 | N70: 7043.507532 | O70: 21864 | P70: 10021 | Q70: 73397 | R70: -63376 | S70: 40352 | T70: 26261 | W70: -274 | X70: 1111 | Y70: 4074 | Z70: 2970 | AC70: 1104 | AG70: 1104 | AH70: 532 | AI70: 4074 | AK70: 1320 | AL70: -4561 | AM70: 180 | AN70: 40352 | AO70: 35178 | AP70: 2447 | AQ70: 2727 | AR70: 21.5 | AT70: 155 | AU70: 11769 | AW70: 0.5732098999 | AX70: 57 | AY70: -3271.815787 | BC70: 27 | BD70: 145.2119976 | BE70: 7.141704067 | BF70: 7421.531141 | BG70: 22137 | BH70: 9514 | BI70: 75078 | BJ70: -65564 | BK70: 41345 | BL70: 26144 | BO70: -220 | BP70: 1129 | BQ70: 2802 | BR70: 2508 | BS70: 0 | BT70: 0 | BU70: 294 | BV70: 0 | BW70: 0 | BX70: 0 | BY70: 294 | BZ70: 825 | CA70: 2740 | CC70: 764 | CD70: -8000 | CE70: -4962 | CF70: 41345 | CG70: 35602 | CH70: 2595 | CI70: 3148 | CJ70: 21.5 | CL70: 211 | CM70: 11637 | CO70: 0.7896622313 | CP70: 60.58960134 | CQ70: -3567.156484 | CU70: 28.4754076 | CV70: 184.9273868 | CW70: 8.925503386 | CX70: 7.56243018 | CY70: 21478 | CZ70: 9698 | DA70: 74025 | DB70: -64327 | DC70: 40738 | DD70: 27204 | DG70: -197 | DH70: 1010 | DI70: 4428 | DJ70: 2722 | DK70: 0 | DL70: 0 | DM70: 1706 | DN70: 0 | DO70: 0 | DP70: 0 | DQ70: 1706 | DR70: 3174 | DS70: 4381 | DU70: 116 | DV70: -5661 | DW70: -3726 | DX70: 40738 | DY70: 35300 | DZ70: 2276 | EA70: 3162 | EB70: 21.5 | ED70: 161 | EE70: 44705 | EF70: 46074 | EG70: 45449 | EK70: -4506 | EL70: 250 | EM70: 362 | EN70: -8357 | EO70: 437 | EP70: 218 | EQ70: -8239 | ER70: 46 | ES70: 86 | ET70: 5000 | EV70: 5061 | EX70: 9000 | EY70: 0 | EZ70: 31443 | FA70: 26382 | FB70: 5061 | FC70: 1682 | FD70: 34383 | FE70: 28721 | FF70: 5662 | FG70: 1617 | FH70: 37721 | FI70: 31509 | FJ70: 6212 | FK70: 1581 | FL70: 4747.454347 | FM70: 4947 | FN70: 5688.149867 | FO70: 1641.860465 | FP70: 141.0896679 | FS70: -7665 | FV70: 3569 | FW70: -3569
A71: 216 | B71: Kannonkoski | C71: 1475 | E71: 1.125560538 | F71: 66.28116645 | G71: -4182.372881 | K71: 55.18586893 | L71: 1943.050847 | M71: 58.86500478 | N71: 12048.13559 | O71: 4147 | P71: 5484 | Q71: 14716 | R71: -9232 | S71: 4220 | T71: 6379 | W71: -50 | X71: 106 | Y71: 1423 | Z71: 919 | AC71: 504 | AD71: 1 | AG71: 505 | AH71: 9633 | AI71: 1421 | AK71: -215 | AL71: -1255 | AM71: 973 | AN71: 4220 | AO71: 3305 | AP71: 493 | AQ71: 422 | AR71: 21 | AT71: 8 | AU71: 1462 | AW71: 1.28116939 | AX71: 65 | AY71: -3664.158687 | BC71: 58 | BD71: 2006.839945 | BE71: 70.10408484 | BF71: 10448.70041 | BG71: 4081 | BH71: 5284 | BI71: 14392 | BJ71: -9108 | BK71: 4311 | BL71: 6196 | BO71: -39 | BP71: 68 | BQ71: 1428 | BR71: 943 | BS71: 0 | BT71: 37 | BU71: 448 | BV71: 1 | BW71: 0 | BX71: 0 | BY71: 449 | BZ71: 10377 | CA71: 1349 | CC71: -245 | CD71: -1300 | CE71: 552 | CF71: 4311 | CG71: 3343 | CH71: 577 | CI71: 391 | CJ71: 21 | CL71: 6 | CM71: 1424 | CO71: 1.658069884 | CP71: 61.16274718 | CQ71: -3347.61236 | CU71: 60.09828209 | CV71: 2170.646067 | CW71: 68.05905773 | CX71: 11.64115169 | CY71: 4188 | CZ71: 5413 | DA71: 14071 | DB71: -8658 | DC71: 4204 | DD71: 6414 | DG71: -29 | DH71: 18 | DI71: 1949 | DJ71: 1048 | DK71: 0 | DL71: 0 | DM71: 901 | DN71: 1 | DO71: 0 | DP71: 0 | DQ71: 902 | DR71: 11279 | DS71: 1949 | DU71: -37 | DV71: -1158 | DW71: 671 | DX71: 4204 | DY71: 3259 | DZ71: 507 | EA71: 438 | EB71: 21 | ED71: 3 | EE71: 8817 | EF71: 8599 | EG71: 8263 | EK71: -1707 | EL71: 1159 | EM71: 100 | EN71: -2121 | EO71: 1273 | EP71: 51 | EQ71: -1298 | ER71: 20 | ES71: 0 | ET71: 1560 | EU71: -470 | EV71: 1101 | EW71: -240 | EX71: 1100 | EY71: -360 | EZ71: 9124 | FA71: 6013 | FB71: 3111 | FC71: 0 | FD71: 9082 | FE71: 6125 | FF71: 2957 | FG71: 0 | FH71: 8665 | FI71: 6031 | FJ71: 2634 | FK71: 0 | FL71: 6842.033898 | FM71: 6870 | FN71: 7220.505618 | FO71: 155.1904762 | FP71: 108.982076 | FS71: -568 | FV71: 707 | FW71: -707
A72: 217 | B72: Kannus | C72: 5643 | E72: 2.923913043 | F72: 46.3549478 | G72: -2549.707602 | K72: 50.50364919 | L72: 82.04855573 | M72: 4.968979712 | N72: 6026.936027 | O72: 9775 | P72: 3254 | Q72: 32437 | R72: -29183 | S72: 17885 | T72: 12866 | W72: -18 | X72: 39 | Y72: 1589 | Z72: 1028 | AC72: 561 | AD72: 102 | AF72: -300 | AG72: 363 | AH72: 5645 | AI72: 1562 | AK72: -16 | AL72: -526 | AM72: 754 | AN72: 17885 | AO72: 15667 | AP72: 1067 | AQ72: 1151 | AR72: 20.5 | AT72: 190 | AU72: 5590 | AW72: 3.226345083 | AX72: 47 | AY72: -2419.856887 | BC72: 51 | BD72: 255.2772809 | BE72: 15.84783667 | BF72: 5879.427549 | BG72: 9442 | BH72: 3058 | BI72: 32727 | BJ72: -29669 | BK72: 18568 | BL72: 12824 | BO72: -6 | BP72: 16 | BQ72: 1726 | BR72: 1070 | BS72: 0 | BT72: 0 | BU72: 656 | BV72: 102 | BW72: 0 | BX72: 0 | BY72: 758 | BZ72: 6403 | CA72: 1717 | CC72: -156 | CD72: 0 | CE72: 846 | CF72: 18568 | CG72: 16114 | CH72: 1147 | CI72: 1307 | CJ72: 20.5 | CL72: 168 | CM72: 5578 | CO72: 1.299242424 | CP72: 47.95781969 | CQ72: -2470.240229 | CU72: 49.93662491 | CV72: 209.2147723 | CW72: 12.33722412 | CX72: 6.189673718 | CY72: 9329 | CZ72: 3280 | DA72: 32994 | DB72: -29714 | DC72: 17171 | DD72: 13214 | DG72: 2 | DH72: 11 | DI72: 684 | DJ72: 1145 | DK72: 0 | DL72: 0 | DM72: -461 | DN72: 102 | DO72: 0 | DP72: 10 | DQ72: -349 | DR72: 6053 | DS72: 665 | DU72: -133 | DV72: -526 | DW72: -270 | DX72: 17171 | DY72: 14785 | DZ72: 1076 | EA72: 1310 | EB72: 20.5 | ED72: 267 | EE72: 19974 | EF72: 20557 | EG72: 20923 | EK72: -999 | EL72: 103 | EM72: 88 | EN72: -897 | EO72: 0 | EP72: 26 | EQ72: -996 | ER72: 0 | ES72: 61 | EU72: 400 | EV72: 526 | EW72: 800 | EX72: 0 | EY72: 500 | EZ72: 13815 | FA72: 789 | FB72: 13026 | FC72: 1137 | FD72: 14089 | FE72: 263 | FF72: 13826 | FG72: 774 | FH72: 14063 | FI72: 0 | FJ72: 14063 | FK72: 741 | FL72: 4069.643806 | FM72: 4060 | FN72: 4038.006454 | FO72: 721.2195122 | FP72: 129.2971517 | FS72: -859 | FV72: 865 | FW72: -865
A73: 218 | B73: Karijoki | C73: 1409 | E73: 1.438692098 | F73: 32.06364993 | G73: -1327.182399 | K73: 56.87181312 | L73: 825.4080908 | M73: 39.86617205 | N73: 7557.132718 | O73: 1795 | P73: 1174 | Q73: 9540 | R73: -8366 | S73: 4304 | T73: 4577 | W73: -26 | X73: 7 | Y73: 496 | Z73: 235 | AC73: 261 | AG73: 261 | AH73: 930 | AI73: 497 | AK73: 40 | AL73: -335 | AM73: 65 | AN73: 4304 | AO73: 3785 | AP73: 290 | AQ73: 229 | AR73: 21.5 | AT73: 152 | AU73: 1369 | AW73: 1.374025974 | AX73: 35 | AY73: -1135.865595 | BC73: 57 | BD73: 1164.353543 | BE73: 58.14030179 | BF73: 7309.715121 | BG73: 1724 | BH73: 1109 | BI73: 9154 | BJ73: -8045 | BK73: 4073 | BL73: 4481 | BO73: -20 | BP73: 9 | BQ73: 494 | BR73: 250 | BS73: 0 | BT73: 0 | BU73: 244 | BV73: 0 | BW73: 0 | BX73: 0 | BY73: 244 | BZ73: 1175 | CA73: 493 | CC73: -60 | CD73: -665 | CE73: 282 | CF73: 4073 | CG73: 3538 | CH73: 301 | CI73: 234 | CJ73: 22 | CL73: 139 | CM73: 1349 | CO73: 2.126470588 | CP73: 32.24389746 | CQ73: -778.3543365 | CU73: 60.62451556 | CV73: 1394.366197 | CW73: 71.30179666 | CX73: 7.137879911 | CY73: 1635 | CZ73: 1110 | DA73: 9074 | DB73: -7964 | DC73: 4001 | DD73: 4680 | DG73: -33 | DH73: 6 | DI73: 690 | DJ73: 255 | DK73: 0 | DL73: 0 | DM73: 435 | DN73: 0 | DO73: 0 | DP73: 0 | DQ73: 435 | DR73: 1609 | DS73: 690 | DU73: 24 | DV73: -307 | DW73: 475 | DX73: 4001 | DY73: 3509 | DZ73: 265 | EA73: 227 | EB73: 22 | ED73: 88 | EE73: 7033 | EF73: 6756 | EG73: 6741 | EK73: -737 | EL73: 303 | EM73: 2 | EN73: -215 | EO73: 3 | EP73: 1 | EQ73: -215 | ER73: 0 | ES73: 0 | ET73: 390 | EV73: 350 | EX73: 0 | EY73: 0 | EZ73: 2266 | FA73: 1946 | FB73: 320 | FC73: 132 | FD73: 2580 | FE73: 2273 | FF73: 307 | FG73: 99 | FH73: 2273 | FI73: 2006 | FJ73: 267 | FK73: 66 | FL73: 2148.33215 | FM73: 2471 | FN73: 2289.844329 | FO73: 159.5 | FP73: 118.2357302 | FS73: -211 | FV73: 342 | FW73: -342
A74: 224 | B74: Karkkila | C74: 8977 | E74: 0.7166666667 | F74: 86.0952765 | G74: -4876.573466 | K74: 12.87991105 | L74: 44.11273254 | M74: 2.356105433 | N74: 6833.797482 | O74: 13387 | P74: 7166 | Q74: 51544 | R74: -44378 | S74: 31683 | T74: 15708 | W74: -496 | X74: 122 | Y74: 2639 | Z74: 1941 | AC74: 698 | AG74: 698 | AH74: -401 | AI74: 2290 | AK74: -1744 | AL74: -3880 | AM74: -562 | AN74: 31683 | AO74: 28456 | AP74: 1206 | AQ74: 2021 | AR74: 20.75 | AT74: 180 | AU74: 8969 | AW74: 0.751651255 | AX74: 98 | AY74: -5361.467276 | BC74: 13 | BD74: 256.5503401 | BE74: 11.49775484 | BF74: 8144.274724 | BG74: 13496 | BH74: 7018 | BI74: 52106 | BJ74: -45088 | BK74: 31856 | BL74: 16514 | BO74: -460 | BP74: 145 | BQ74: 2952 | BR74: 2011 | BS74: 8 | BT74: 40 | BU74: 909 | BV74: 0 | BW74: 0 | BX74: 0 | BY74: 909 | BZ74: 500 | CA74: 2550 | CC74: -1049 | CD74: -14250 | CE74: -4318 | CF74: 31856 | CG74: 28524 | CH74: 1262 | CI74: 2070 | CJ74: 20.75 | CL74: 153 | CM74: 8911 | CO74: 0.657588187 | CP74: 109.8064516 | CQ74: -6171.024576 | CU74: 12.57432943 | CV74: 228.7060936 | CW74: 10.88022349 | CX74: 7.672427337 | CY74: 13600 | CZ74: 6682 | DA74: 51931 | DB74: -45249 | DC74: 31568 | DD74: 17550 | DG74: -533 | DH74: 117 | DI74: 3453 | DJ74: 2465 | DK74: 0 | DL74: 21 | DM74: 967 | DN74: 0 | DO74: 0 | DP74: 0 | DQ74: 967 | DR74: 1467 | DS74: 3237 | DU74: -397 | DV74: -5540 | DW74: -6902 | DX74: 31568 | DY74: 28285 | DZ74: 1141 | EA74: 2142 | EB74: 20.75 | ED74: 153 | EE74: 34632 | EF74: 34750 | EG74: 34354 | EK74: -5415 | EL74: 2131 | EM74: 432 | EN74: -9608 | EO74: 2169 | EP74: 571 | EQ74: -10338 | ER74: 0 | ES74: 199 | ET74: 10000 | EU74: -5000 | EV74: 4080 | EW74: -2500 | EX74: 12675 | EY74: 500 | EZ74: 42640 | FA74: 21060 | FB74: 21580 | FC74: 0 | FD74: 50310 | FE74: 29770 | FF74: 20540 | FG74: 0 | FH74: 57945 | FI74: 36205 | FJ74: 21740 | FK74: 0 | FL74: 5091.121756 | FM74: 5985 | FN74: 6864.998317 | FO74: 1363.13253 | FP74: 152.9718921 | FS74: -8234 | FV74: 3101 | FW74: -3101
A75: 226 | B75: Karstula | C75: 4286 | E75: 5.790748899 | F75: 46.38810198 | G75: -2753.14979 | K75: 48.48132201 | L75: 1131.124592 | M75: 46.62275386 | N75: 8855.342977 | O75: 13010 | P75: 10322 | Q75: 35548 | R75: -25226 | S75: 12120 | T75: 15682 | W75: -12 | X75: 14 | Y75: 2578 | Z75: 1727 | AC75: 851 | AF75: 642 | AG75: 1493 | AH75: 2231 | AI75: 2578 | AK75: 1164 | AL75: -403 | AM75: 1095 | AN75: 12120 | AO75: 10094 | AP75: 1189 | AQ75: 837 | AR75: 19.5 | AT75: 38 | AU75: 4268 | AW75: 12.2300885 | AX75: 47 | AY75: -2446.344892 | BC75: 50 | BD75: 1121.836926 | BE75: 52.39297278 | BF75: 7815.370197 | BG75: 12484 | BH75: 9681 | BI75: 34434 | BJ75: -24753 | BK75: 12328 | BL75: 15067 | BO75: 19 | BP75: 77 | BQ75: 2738 | BR75: 1892 | BS75: 0 | BT75: 0 | BU75: 846 | BV75: 0 | BW75: 0 | BX75: 0 | BY75: 846 | BZ75: 3299 | CA75: 2738 | CC75: -1254 | CD75: 0 | CE75: 1690 | CF75: 12328 | CG75: 10168 | CH75: 1234 | CI75: 926 | CJ75: 20 | CL75: 33 | CM75: 4232 | CO75: 405.2 | CP75: 45.94472262 | CQ75: -2103.969754 | CU75: 52.16828479 | CV75: 1488.657845 | CW75: 67.34120128 | CX75: 8.068761815 | CY75: 11057 | CZ75: 8331 | DA75: 33366 | DB75: -25035 | DC75: 11721 | DD75: 15297 | DG75: 29 | DH75: 9 | DI75: 2021 | DJ75: 2021 | DK75: 0 | DL75: 0 | DM75: 0 | DN75: 0 | DO75: 0 | DP75: 0 | DQ75: 0 | DR75: 3299 | DS75: 2021 | DU75: 1254 | DV75: 0 | DW75: 1423 | DX75: 11721 | DY75: 9627 | DZ75: 1146 | EA75: 948 | EB75: 20 | ED75: 99 | EE75: 19763 | EF75: 19467 | EG75: 19729 | EK75: -1940 | EL75: 68 | EM75: 389 | EN75: -1082 | EO75: 0 | EP75: 34 | EQ75: -740 | ER75: 0 | ES75: 142 | EV75: 200 | EW75: 200 | EX75: 0 | EY75: -1600 | EZ75: 14600 | FA75: 200 | FB75: 14400 | FC75: 823 | FD75: 14600 | FE75: 0 | FF75: 14600 | FG75: 1057 | FH75: 13000 | FI75: 0 | FJ75: 13000 | FK75: 961 | FL75: 4881.941204 | FM75: 4964 | FN75: 4866.020794 | FO75: 481.35 | FP75: 113.7405482 | FS75: -1132 | FV75: 291 | FW75: -291
A76: 230 | B76: Karvia | C76: 2491 | E76: 1695 | F76: 7.870509658 | G76: 538.7394621 | K76: 91.64867699 | L76: 676.4351666 | M76: 38.63222362 | N76: 6391.007627 | O76: 3999 | P76: 1588 | Q76: 15361 | R76: -13773 | S76: 6295 | T76: 8736 | W76: 7 | X76: 429 | Y76: 1694 | Z76: 833 | AC76: 861 | AG76: 861 | AH76: 9645 | AI76: 1692 | AK76: -244 | AM76: 1172 | AN76: 6295 | AO76: 5416 | AP76: 518 | AQ76: 361 | AR76: 19.75 | AT76: 25 | AU76: 2475 | AX76: 9 | AY76: 801.6161616 | BC76: 90 | BD76: 1179.79798 | BE76: 63.64124918 | BF76: 6766.464646 | BG76: 3924 | BH76: 1489 | BI76: 15993 | BJ76: -14504 | BK76: 6660 | BL76: 8674 | BO76: 0 | BP76: 415 | BQ76: 1243 | BR76: 830 | BS76: 0 | BT76: 0 | BU76: 413 | BV76: 0 | BW76: 0 | BX76: 0 | BY76: 413 | BZ76: 10058 | CA76: 1243 | CC76: 375 | CD76: 0 | CE76: 480 | CF76: 6660 | CG76: 5635 | CH76: 612 | CI76: 413 | CJ76: 19.75 | CL76: 71 | CM76: 2449 | CP76: 10.4336383 | CQ76: 335.6472029 | CU76: 88.67384821 | CV76: 786.4434463 | CW76: 37.98713931 | CX76: 7.556553695 | CY76: 3990 | CZ76: 1394 | DA76: 16248 | DB76: -14854 | DC76: 6261 | DD76: 8303 | DG76: 0 | DH76: 401 | DI76: 111 | DJ76: 813 | DK76: 0 | DL76: 0 | DM76: -702 | DN76: 0 | DO76: 0 | DP76: 0 | DQ76: -702 | DR76: 9356 | DS76: 247 | DU76: 29 | DV76: 0 | DW76: -1145 | DX76: 6261 | DY76: 5258 | DZ76: 596 | EA76: 407 | EB76: 19.75 | ED76: 280 | EE76: 10046 | EF76: 10715 | EG76: 10661 | EK76: -556 | EL76: 34 | EM76: 2 | EN76: -772 | EO76: 8 | EP76: 1 | EQ76: -2247 | ER76: 0 | ES76: 855 | EU76: -500 | EX76: 0 | EY76: 0 | EZ76: 0 | FA76: 0 | FB76: 0 | FC76: 246 | FD76: 0 | FE76: 0 | FF76: 0 | FG76: 246 | FH76: 0 | FI76: 0 | FJ76: 0 | FK76: 246 | FL76: 2855.881172 | FM76: 2802 | FN76: 3130.257248 | FO76: 266.2278481 | FP76: 108.7087987 | FS76: -580 | FV76: 17 | FW76: -17
A77: 231 | B77: Kaskinen | C77: 1324 | E77: 0.8927576602 | F77: 48.08822113 | G77: -2873.111782 | K77: 74.05699057 | L77: 506.0422961 | M77: 20.38086507 | N77: 9062.688822 | O77: 3996 | P77: 2729 | Q77: 9755 | R77: -7026 | S77: 6130 | T77: 1524 | W77: -36 | X77: 13 | Y77: 605 | Z77: 883 | AA77: 36 | AC77: -242 | AG77: -241 | AH77: 9740 | AI77: 605 | AK77: 97 | AL77: -682 | AM77: -716 | AN77: 6130 | AO77: 4702 | AP77: 868 | AQ77: 560 | AR77: 21 | AT77: 89 | AU77: 1285 | AW77: -0.06304985337 | AX77: 46 | AY77: -3102.723735 | BC77: 74 | BD77: 95.71984436 | BE77: 4.564819522 | BF77: 7653.696498 | BG77: 4208 | BH77: 2464 | BI77: 10160 | BJ77: -7696 | BK77: 6192 | BL77: 1494 | BO77: 0 | BP77: -28 | BQ77: -43 | BR77: 902 | BS77: 0 | BT77: 0 | BU77: -945 | BV77: 0 | BW77: 0 | BX77: 0 | BY77: -945 | BZ77: 8795 | CA77: -43 | CC77: -68 | CD77: 0 | CE77: -182 | CF77: 6192 | CG77: 4692 | CH77: 892 | CI77: 608 | CJ77: 21 | CL77: 290 | CM77: 1296 | CO77: -0.3137829912 | CP77: 54.28810876 | CQ77: -3706.790123 | CU77: 67.80391943 | CV77: 268.5185185 | CW77: 10.29252087 | CX77: 9.522376543 | CY77: 4338 | CZ77: 2572 | DA77: 10970 | DB77: -8398 | DC77: 6342 | DD77: 1825 | DG77: 0 | DH77: 17 | DI77: -214 | DJ77: 875 | DK77: 6 | DL77: 0 | DM77: -1083 | DN77: 0 | DO77: 0 | DP77: 0 | DQ77: -1083 | DR77: 7711 | DS77: -208 | DU77: -95 | DV77: -682 | DW77: -814 | DX77: 6342 | DY77: 4788 | DZ77: 954 | EA77: 600 | EB77: 21.5 | ED77: 292 | EE77: 4704 | EF77: 4928 | EG77: 5447 | EK77: -1526 | EL77: 143 | EM77: 62 | EN77: -368 | EO77: 229 | EP77: 0 | EQ77: -650 | ER77: 18 | ES77: 26 | ET77: 1400 | EV77: 682 | EX77: 1000 | EY77: 0 | EZ77: 3786 | FA77: 3786 | FB77: 0 | FC77: 0 | FD77: 3104 | FE77: 3104 | FF77: 0 | FG77: 0 | FH77: 3423 | FI77: 3423 | FJ77: 0 | FK77: 0 | FL77: 3463.746224 | FM77: 3097 | FN77: 3326.388889 | FO77: 222.6976744 | FP77: 171.8346253 | FS77: -319 | FV77: 0 | FW77: 0
A78: 232 | B78: Kauhajoki | C78: 14007 | E78: 0.7897925464 | F78: 57.06459551 | G78: -4022.060398 | K78: 30.99463865 | L78: 712.0011423 | M78: 26.84334142 | N78: 9681.373599 | O78: 23314 | P78: 46763 | Q78: 124705 | R78: -77942 | S78: 44840 | T78: 36110 | W78: -1091 | X78: 1255 | Y78: 3172 | Z78: 4314 | AC78: -1142 | AD78: 45 | AG78: -1097 | AH78: -10319 | AI78: 2959 | AK78: 1251 | AL78: -4317 | AM78: -1929 | AN78: 44840 | AO78: 38090 | AP78: 3395 | AQ78: 3355 | AR78: 22 | AT78: 225 | AU78: 13875 | AW78: 0.9514401773 | AX78: 55 | AY78: -4004.396396 | BC78: 31 | BD78: 878.8468468 | BE78: 33.06669341 | BF78: 9700.972973 | BG78: 23275 | BH78: 46041 | BI78: 128273 | BJ78: -82232 | BK78: 46722 | BL78: 37291 | BO78: -1075 | BP78: 5401 | BQ78: 4061 | BR78: 4317 | BS78: 0 | BT78: 0 | BU78: -256 | BV78: 43 | BW78: 0 | BX78: 0 | BY78: -213 | BZ78: -10393 | CA78: 4010 | CC78: 2179 | CD78: -3700 | CE78: 601 | CF78: 46722 | CG78: 39413 | CH78: 3910 | CI78: 3399 | CJ78: 22 | CL78: 179 | CM78: 13772 | CO78: 0.785676109 | CP78: 58.6920479 | CQ78: -4327.403427 | CU78: 29.26550021 | CV78: 792.1870462 | CW78: 28.22998561 | CX78: 10.24259367 | CY78: 23095 | CZ78: 45864 | DA78: 127279 | DB78: -81415 | DC78: 45558 | DD78: 38993 | DG78: -989 | DH78: 1262 | DI78: 3409 | DJ78: 4376 | DK78: 0 | DL78: 0 | DM78: -967 | DN78: 41 | DO78: 0 | DP78: 0 | DQ78: -926 | DR78: -11318 | DS78: 3333 | DU78: -1633 | DV78: -4612 | DW78: -4021 | DX78: 45558 | DY78: 38682 | DZ78: 3501 | EA78: 3375 | EB78: 22 | ED78: 231 | EE78: 94870 | EF78: 98455 | EG78: 97464 | EK78: -5570 | EL78: 166 | EM78: 516 | EN78: -3567 | EO78: 0 | EP78: 158 | EQ78: -8169 | ER78: 408 | ES78: 407 | ET78: 4100 | EU78: -700 | EV78: 4324 | EX78: 7800 | EY78: 2000 | EZ78: 59756 | FA78: 48025 | FB78: 11731 | FC78: 1314 | FD78: 59133 | FE78: 47216 | FF78: 11917 | FG78: 1272 | FH78: 64321 | FI78: 50014 | FJ78: 14307 | FK78: 1292 | FL78: 6354.822589 | FM78: 6256 | FN78: 6580.017427 | FO78: 1758.272727 | FP78: 127.670108 | FS78: -3452 | FV78: 3128 | FW78: -3128
A79: 233 | B79: Kauhava | C79: 16908 | E79: 1.167820069 | F79: 38.41073506 | G79: -1487.284126 | K79: 54.29913332 | L79: 771.173409 | M79: 38.22248904 | N79: 7364.206293 | O79: 31509 | P79: 12871 | Q79: 108723 | R79: -95852 | S79: 56558 | T79: 44888 | W79: -404 | X79: 362 | Y79: 5552 | Z79: 4041 | AC79: 1511 | AD79: 260 | AF79: 3 | AG79: 1774 | AH79: 7933 | AI79: 5344 | AK79: -1403 | AL79: -4679 | AM79: -3551 | AN79: 56558 | AO79: 49850 | AP79: 3483 | AQ79: 3225 | AR79: 21.75 | AT79: 167 | AU79: 16784 | AW79: 1.30945674 | AX79: 41 | AY79: -1652.645377 | BC79: 54 | BD79: 878.991897 | BE79: 44.60644141 | BF79: 7192.504766 | BG79: 33725 | BH79: 12723 | BI79: 108852 | BJ79: -96129 | BK79: 56605 | BL79: 45568 | BO79: -300 | BP79: 422 | BQ79: 6100 | BR79: 3942 | BS79: 0 | BT79: 0 | BU79: 2158 | BV79: -299 | BW79: 387 | BX79: 93 | BY79: 2339 | BZ79: 10272 | CA79: 6095 | CC79: 1673 | CD79: -7000 | CE79: -2697 | CF79: 56605 | CG79: 48710 | CH79: 3984 | CI79: 3911 | CJ79: 21.75 | CL79: 138 | CM79: 16599 | CO79: 1.225247026 | CP79: 43.36217659 | CQ79: -1924.814748 | CU79: 52.07293432 | CV79: 914.5129225 | CW79: 44.11350228 | CX79: 7.566781131 | CY79: 32919 | CZ79: 12096 | DA79: 110494 | DB79: -98398 | DC79: 55033 | DD79: 49016 | DG79: -205 | DH79: 279 | DI79: 5725 | DJ79: 5345 | DK79: 0 | DL79: 0 | DM79: 380 | DN79: -1686 | DO79: 1775 | DP79: 243 | DQ79: 712 | DR79: 10984 | DS79: 5591 | DU79: 816 | DV79: -4608 | DW79: -4163 | DX79: 55033 | DY79: 47485 | DZ79: 3560 | EA79: 3988 | EB79: 21.75 | ED79: 179 | EE79: 70654 | EF79: 68363 | EG79: 70621 | EK79: -10487 | EL79: 365 | EM79: 1227 | EN79: -9637 | EO79: 0 | EP79: 779 | EQ79: -10109 | ER79: 67 | ES79: 288 | ET79: 10000 | EU79: 527 | EV79: 4562 | EW79: -252 | EX79: 7000 | EY79: 317 | EZ79: 36369 | FA79: 31824 | FB79: 4545 | FC79: 2898 | FD79: 38554 | FE79: 34262 | FF79: 4292 | FG79: 2845 | FH79: 41261 | FI79: 36653 | FJ79: 4608 | FK79: 2838 | FL79: 5650.46132 | FM79: 6179 | FN79: 6499.246943 | FO79: 2183.218391 | FP79: 131.5271035 | FS79: -8997 | FV79: 4056 | FW79: -4056
A80: 235 | B80: Kauniainen | C80: 9357 | E80: 1646 | F80: 17.37485089 | G80: -603.3985252 | K80: 87.68089918 | L80: 448.1137117 | M80: 19.27391222 | N80: 8486.160094 | O80: 34131 | P80: 11836 | Q80: 68397 | R80: -56561 | S80: 58978 | T80: 2119 | W80: 279 | X80: 120 | Y80: 4935 | Z80: 6473 | AC80: -1538 | AG80: -1538 | AH80: 37860 | AI80: 4138 | AK80: -181 | AM80: -4266 | AN80: 58978 | AO80: 55011 | AP80: 1030 | AQ80: 2937 | AR80: 16.5 | AT80: 60 | AU80: 9486 | AW80: 4294.5 | AX80: 12 | AY80: -185.2203247 | BC80: 90 | BD80: 519.3970061 | BE80: 26.45690201 | BF80: 7165.612482 | BG80: 34389 | BH80: 18505 | BI80: 70562 | BJ80: -52057 | BK80: 59940 | BL80: 325 | BO80: 267 | BP80: 130 | BQ80: 8587 | BR80: 6996 | BS80: 0 | BT80: 0 | BU80: 1591 | BV80: 0 | BW80: 0 | BX80: 0 | BY80: 1591 | BZ80: 39100 | CA80: 1640 | CC80: 170 | CD80: 0 | CE80: 3329 | CF80: 59940 | CG80: 54761 | CH80: 1354 | CI80: 3825 | CJ80: 16.5 | CL80: 8 | CM80: 9397 | CP80: 10.34177544 | CQ80: 322.2304991 | CU80: 91.53657848 | CV80: 954.9856337 | CW80: 40.459374 | CX80: 8.615302756 | CY80: 34131 | CZ80: 21328 | DA80: 71172 | DB80: -49844 | DC80: 62973 | DD80: 433 | DG80: 241 | DH80: 115 | DI80: 13918 | DJ80: 6781 | DK80: 0 | DL80: 0 | DM80: 7137 | DN80: 0 | DO80: 0 | DP80: 0 | DQ80: 7137 | DR80: 44746 | DS80: 4868 | DU80: -156 | DV80: 0 | DW80: 4567 | DX80: 62973 | DY80: 57552 | DZ80: 1428 | EA80: 3993 | EB80: 16.5 | ED80: 1 | EE80: 24614 | EF80: 26730 | EG80: 27174 | EK80: -10726 | EL80: 89 | EM80: 2233 | EN80: -5783 | EO80: 0 | EP80: 7472 | EQ80: -9778 | ER80: 0 | ES80: 9477 | EU80: 3000 | EV80: 0 | EW80: -4000 | EX80: 0 | EY80: 0 | EZ80: 4000 | FA80: 0 | FB80: 4000 | FC80: 6037 | FD80: 0 | FE80: 0 | FF80: 0 | FG80: 5620 | FH80: 0 | FI80: 0 | FJ80: 0 | FK80: 5260 | FL80: 2539.91664 | FM80: 2148 | FN80: 2113.546877 | FO80: 3488 | FP80: 371.1822922 | FS80: 1794 | FV80: 0 | FW80: 0
A81: 236 | B81: Kaustinen | C81: 4283 | E81: 1.503957784 | F81: 76.74198473 | G81: -5193.322438 | K81: 26.50827934 | L81: 281.8118141 | M81: 10.46026545 | N81: 9833.527901 | O81: 11165 | P81: 8418 | Q81: 29906 | R81: -21488 | S81: 14887 | T81: 9445 | W81: -319 | X81: 3 | Y81: 2528 | Z81: 1261 | AC81: 1267 | AG81: 1267 | AH81: -480 | AI81: 1904 | AK81: -428 | AL81: -1573 | AM81: -3474 | AN81: 14887 | AO81: 12825 | AP81: 1194 | AQ81: 868 | AR81: 21 | AT81: 41 | AU81: 4305 | AW81: 0.6314731021 | AX81: 95 | AY81: -6506.852497 | BC81: 23 | BD81: 33.44947735 | BE81: 1.328715524 | BF81: 9188.617886 | BG81: 11188 | BH81: 7138 | BI81: 29507 | BJ81: -22369 | BK81: 14528 | BL81: 9090 | BO81: -309 | BP81: 6 | BQ81: 946 | BR81: 1113 | BS81: 0 | BT81: 0 | BU81: -167 | BV81: 0 | BW81: 0 | BX81: 0 | BY81: -167 | BZ81: -646 | CA81: 898 | CC81: 604 | CD81: -5000 | CE81: -5698 | CF81: 14528 | CG81: 12120 | CH81: 1513 | CI81: 895 | CJ81: 21.5 | CL81: 222 | CM81: 4298 | CO81: 0.9967697277 | CP81: 97.56597408 | CQ81: -6597.021871 | CU81: 23.63157381 | CV81: 124.9418334 | CW81: 5.762988445 | CX81: 7.913215449 | CY81: 11162 | CZ81: 7166 | DA81: 29563 | DB81: -22397 | DC81: 14629 | DD81: 9922 | DG81: -254 | DH81: 6 | DI81: 1906 | DJ81: 1257 | DK81: 0 | DL81: 0 | DM81: 649 | DN81: 0 | DO81: 0 | DP81: 0 | DQ81: 649 | DR81: 3 | DS81: 1873 | DU81: -977 | DV81: -1913 | DW81: -357 | DX81: 14629 | DY81: 12296 | DZ81: 1411 | EA81: 922 | EB81: 21.5 | ED81: 114 | EE81: 15923 | EF81: 15964 | EG81: 16160 | EK81: -10299 | EL81: 784 | EM81: 4137 | EN81: -6711 | EO81: 0 | EP81: 115 | EQ81: -2281 | ER81: 0 | ES81: 51 | ET81: 3000 | EU81: 2300 | EV81: 1679 | EW81: 1100 | EX81: 3000 | EY81: 500 | EZ81: 21328 | FA81: 17349 | FB81: 3979 | FC81: 0 | FD81: 25749 | FE81: 20436 | FF81: 5313 | FG81: 0 | FH81: 27335 | FI81: 21356 | FJ81: 5979 | FK81: 0 | FL81: 8402.288116 | FM81: 9546 | FN81: 10023.4993 | FO81: 571.9069767 | FP81: 133.0635125 | FS81: -6540 | FV81: 1503 | FW81: -1503
A82: 239 | B82: Keitele | C82: 2398 | E82: 3.993548387 | F82: 42.85231307 | G82: -2605.504587 | K82: 50.16032982 | L82: 57.54795663 | M82: 2.558931112 | N82: 8208.507089 | O82: 6707 | P82: 3103 | Q82: 17308 | R82: -14205 | S82: 7065 | T82: 7579 | W82: -25 | X82: 180 | Y82: 594 | Z82: 491 | AC82: 103 | AG82: 103 | AH82: 83 | AI82: 568 | AK82: 386 | AL82: -130 | AM82: -1142 | AN82: 7065 | AO82: 5827 | AP82: 779 | AQ82: 459 | AR82: 19.5 | AT82: 218 | AU82: 2379 | AW82: 4.6953125 | AX82: 43 | AY82: -2619.167718 | BC82: 50 | BD82: 17.65447667 | BE82: 0.8423076923 | BF82: 7650.273224 | BG82: 6702 | BH82: 3558 | BI82: 17786 | BJ82: -14228 | BK82: 7338 | BL82: 7326 | BO82: -18 | BP82: 285 | BQ82: 583 | BR82: 544 | BS82: 0 | BT82: 0 | BU82: 39 | BV82: 0 | BW82: 0 | BX82: 0 | BY82: 39 | BZ82: 123 | CA82: 526 | CC82: -292 | CD82: 0 | CE82: -238 | CF82: 7338 | CG82: 5810 | CH82: 986 | CI82: 542 | CJ82: 19.5 | CL82: 205 | CM82: 2346 | CO82: 4.892561983 | CP82: 41.21840915 | CQ82: -2584.398977 | CU82: 49.87400659 | CV82: 147.9113384 | CW82: 6.673076923 | CX82: 8.090366581 | CY82: 6620 | CZ82: 3820 | DA82: 18285 | DB82: -14465 | DC82: 7105 | DD82: 7870 | DG82: -11 | DH82: 82 | DI82: 581 | DJ82: 566 | DK82: 0 | DL82: 0 | DM82: 15 | DN82: 0 | DO82: 0 | DP82: 0 | DQ82: 15 | DR82: 137 | DS82: 555 | DU82: 176 | DV82: -110 | DW82: 142 | DX82: 7105 | DY82: 5688 | DZ82: 883 | EA82: 534 | EB82: 19.5 | ED82: 230 | EE82: 8415 | EF82: 8795 | EG82: 9196 | EK82: -2220 | EL82: 254 | EM82: 256 | EN82: -869 | EO82: 0 | EP82: 105 | EQ82: -564 | ER82: 0 | ES82: 151 | EU82: 600 | EV82: 110 | EW82: 529 | EX82: 0 | EY82: 150 | EZ82: 5574 | FA82: 996 | FB82: 4578 | FC82: 487 | FD82: 5995 | FE82: 887 | FF82: 5108 | FG82: 228 | FH82: 6035 | FI82: 777 | FJ82: 5258 | FK82: 205 | FL82: 5850.708924 | FM82: 6170 | FN82: 6431.372549 | FO82: 291.6923077 | FP82: 124.336022 | FS82: -700 | FV82: 61 | FW82: -61
A83: 240 | B83: Kemi | C83: 21929 | E83: 0.2042143017 | F83: 63.03749357 | G83: -3990.651649 | K83: 42.93930959 | L83: 130.4665055 | M83: 5.962628829 | N83: 7986.456291 | O83: 67401 | P83: 24469 | Q83: 152521 | R83: -128052 | S83: 84453 | T83: 45002 | W83: -2195 | X83: 986 | Y83: 194 | Z83: 4220 | AC83: -4026 | AF83: 23 | AG83: -4001 | AH83: 10077 | AI83: -163 | AK83: -35 | AL83: -10845 | AM83: -2967 | AN83: 84453 | AO83: 71393 | AP83: 6566 | AQ83: 6494 | AR83: 20.75 | AT83: 290 | AU83: 21758 | AW83: 0.2026351298 | AX83: 66 | AY83: -4263.397371 | BC83: 40 | BD83: 32.12611453 | BE83: 1.507506957 | BF83: 7778.426326 | BG83: 67704 | BH83: 24258 | BI83: 153798 | BJ83: -129540 | BK83: 87302 | BL83: 43191 | BO83: -2949 | BP83: 2459 | BQ83: -739 | BR83: 4576 | BS83: 0 | BT83: 0 | BU83: -5315 | BV83: 0 | BW83: 0 | BX83: 25 | BY83: -5290 | BZ83: 4787 | CA83: -460 | CC83: -1697 | CD83: -10000 | CE83: -4482 | CF83: 87302 | CG83: 74603 | CH83: 6187 | CI83: 6512 | CJ83: 21.25 | CL83: 291 | CM83: 21602 | CO83: 0.3329353417 | CP83: 66.08287328 | CQ83: -4392.509953 | CU83: 39.28223467 | CV83: 180.2147949 | CW83: 8.127488103 | CX83: 8.093324692 | CY83: 68100 | CZ83: 23981 | DA83: 155827 | DB83: -131846 | DC83: 86792 | DD83: 47180 | DG83: -634 | DH83: 1021 | DI83: 2513 | DJ83: 4138 | DK83: 0 | DL83: 0 | DM83: -1625 | DN83: 0 | DO83: 0 | DP83: 25 | DQ83: -1600 | DR83: 3185 | DS83: 564 | DU83: 2818 | DV83: -9776 | DW83: 827 | DX83: 86792 | DY83: 74083 | DZ83: 5987 | EA83: 6722 | EB83: 21.25 | ED83: 270 | EE83: 64318 | EF83: 63531 | EG83: 63944 | EK83: -9448 | EL83: 216 | EM83: 6428 | EN83: -4291 | EO83: 230 | EP83: 39 | EQ83: -4073 | ER83: 486 | ES83: 3850 | ET83: 11000 | EU83: 1775 | EV83: 9307 | EW83: 4000 | EX83: 17000 | EY83: -5000 | EZ83: 81361 | FA83: 55053 | FB83: 26308 | FC83: 18876 | FD83: 86052 | FE83: 55276 | FF83: 30776 | FG83: 18876 | FH83: 88276 | FI83: 60082 | FJ83: 28194 | FK83: 23256 | FL83: 5793.697843 | FM83: 5936 | FN83: 5911.165633 | FO83: 3486.258824 | FP83: 161.3859283 | FS83: -3994 | FV83: 9559 | FW83: -9559
A84: 320 | B84: Kemijärvi | C84: 7892 | E84: 0.2111972438 | F84: 59.63704719 | G84: -4208.312215 | K84: 46.47247729 | L84: 669.2853523 | M84: 23.38103496 | N84: 10448.17537 | O84: 37376 | P84: 12766 | Q84: 70597 | R84: -57831 | S84: 28364 | T84: 29623 | W84: -512 | X84: 1067 | Y84: 711 | Z84: 2716 | AC84: -2005 | AF84: 6 | AG84: -1999 | AH84: -2513 | AI84: 535 | AK84: 222 | AL84: -5290 | AM84: -3552 | AN84: 28364 | AO84: 23347 | AP84: 1120 | AQ84: 3897 | AR84: 20.5 | AT84: 270 | AU84: 7766 | AW84: 0.05829128241 | AX84: 65 | AY84: -4800.669585 | BC84: 44 | BD84: 214.3960855 | BE84: 8.892018436 | BF84: 8800.540819 | BG84: 32241 | BH84: 11846 | BI84: 66861 | BJ84: -55015 | BK84: 28542 | BL84: 25729 | BO84: -435 | BP84: 1070 | BQ84: -110 | BR84: 2625 | BS84: 0 | BT84: 0 | BU84: -2735 | BV84: 0 | BW84: 0 | BX84: 6 | BY84: -2729 | BZ84: -5243 | CA84: -235 | CC84: -526 | CD84: -258 | CE84: -3996 | CF84: 28542 | CG84: 23378 | CH84: 1208 | CI84: 3956 | CJ84: 20.5 | CL84: 289 | CM84: 7661 | CO84: 0.5225781552 | CP84: 63.09543682 | CQ84: -4743.636601 | CU84: 47.62605406 | CV84: 208.5889571 | CW84: 6.759259259 | CX84: 11.26380368 | CY84: 29953 | CZ84: 9697 | DA84: 64772 | DB84: -55075 | DC84: 29105 | DD84: 27095 | DG84: 72 | DH84: 1171 | DI84: 2368 | DJ84: 2282 | DK84: 4123 | DL84: 0 | DM84: 4209 | DN84: 0 | DO84: 0 | DP84: 0 | DQ84: 4209 | DR84: -1034 | DS84: 2897 | DU84: 587 | DV84: -4842 | DW84: 11132 | DX84: 29105 | DY84: 23640 | DZ84: 1046 | EA84: 4419 | EB84: 21 | ED84: 204 | EE84: 22852 | EF84: 25123 | EG84: 26034 | EK84: -5480 | EL84: 1034 | EM84: 359 | EN84: -6383 | EO84: 176 | EP84: 2446 | EQ84: -4181 | ER84: 717 | ES84: 11699 | ET84: 8875 | EV84: 5302 | EW84: 5500 | EX84: 7600 | EY84: -2500 | EZ84: 32197 | FA84: 26895 | FB84: 5302 | FC84: 1420 | FD84: 32653 | FE84: 22411 | FF84: 10242 | FG84: 1253 | FH84: 32911 | FI84: 24960 | FJ84: 7951 | FK84: 11608 | FL84: 8836.923467 | FM84: 8880 | FN84: 8775.355698 | FO84: 1125.714286 | FP84: 146.9409066 | FS84: -3147 | FV84: 4403 | FW84: -4403
A85: 241 | B85: Keminmaa | C85: 8469 | E85: 0.806462702 | F85: 39.574157 | G85: -2140.39438 | K85: 54.82915718 | L85: 159.4048884 | M85: 8.683890524 | N85: 6700.082654 | O85: 24143 | P85: 5454 | Q85: 52768 | R85: -47314 | S85: 34741 | T85: 14520 | W85: -136 | X85: 233 | Y85: 2044 | Z85: 1884 | AC85: 160 | AG85: 160 | AH85: 3665 | AI85: 1920 | AK85: -269 | AL85: -2607 | AM85: 1067 | AN85: 34741 | AO85: 30019 | AP85: 1137 | AQ85: 3585 | AR85: 21 | AT85: 220 | AU85: 8388 | AW85: 0.7092461938 | AX85: 43 | AY85: -1964.711493 | BC85: 53 | BD85: 541.4878398 | BE85: 28.70999584 | BF85: 6884.120172 | BG85: 23095 | BH85: 5897 | BI85: 51825 | BJ85: -45928 | BK85: 34655 | BL85: 12791 | BO85: -117 | BP85: 420 | BQ85: 1618 | BR85: 1918 | BS85: 0 | BT85: 0 | BU85: -300 | BV85: 0 | BW85: 0 | BX85: 0 | BY85: -300 | BZ85: 3365 | CA85: 1621 | CC85: 33 | CD85: -4000 | CE85: 1583 | CF85: 34655 | CG85: 29972 | CH85: 3623 | CI85: 1060 | CJ85: 21.25 | CL85: 240 | CM85: 8316 | CO85: 1.27881449 | CP85: 46.79191124 | CQ85: -2176.527177 | CU85: 50.38312693 | CV85: 620.1298701 | CW85: 31.73511709 | CX85: 7.132395382 | CY85: 22317 | CZ85: 5880 | DA85: 51283 | DB85: -45403 | DC85: 35235 | DD85: 13232 | DG85: -59 | DH85: 230 | DI85: 3235 | DJ85: 3305 | DK85: 0 | DL85: 69 | DM85: -139 | DN85: 0 | DO85: 0 | DP85: 0 | DQ85: -139 | DR85: 3226 | DS85: 1535 | DU85: 138 | DV85: -2473 | DW85: -284 | DX85: 35235 | DY85: 30641 | DZ85: 741 | EA85: 3853 | EB85: 21.25 | ED85: 149 | EE85: 23449 | EF85: 23173 | EG85: 23766 | EH85: 1200 | EK85: -1065 | EL85: 28 | EM85: 184 | EN85: -918 | EO85: 2 | EP85: 878 | EQ85: -3682 | ER85: 146 | ES85: 1717 | ET85: 5000 | EU85: -3200 | EV85: 2401 | EX85: 4500 | EY85: 0 | EZ85: 15759 | FA85: 13375 | FB85: 2384 | FC85: 4883 | FD85: 17359 | FE85: 14885 | FF85: 2474 | FG85: 4826 | FH85: 19384 | FI85: 16786 | FJ85: 2598 | FK85: 6214 | FL85: 3765.025387 | FM85: 3886 | FN85: 3789.442039 | FO85: 1441.929412 | FP85: 173.3921852 | FS85: -72 | FV85: 2686 | FW85: -2686
A86: 322 | B86: Kemiönsaari | C86: 6943 | E86: 1.616319444 | F86: 43.16351812 | G86: -2214.316578 | K86: 61.27629589 | L86: 615.5840415 | M86: 27.33406925 | N86: 8220.077776 | O86: 24060 | P86: 7711 | Q86: 48076 | R86: -40365 | S86: 21667 | T86: 22372 | W86: -282 | X86: 24 | Y86: 3416 | Z86: 2557 | AC86: 859 | AD86: 165 | AG86: 1024 | AH86: 13536 | AI86: 3146 | AK86: 380 | AL86: -1996 | AM86: -1850 | AN86: 21667 | AO86: 18010 | AP86: 746 | AQ86: 2911 | AR86: 19.75 | AT86: 74 | AU86: 6909 | AW86: 1.900374181 | AX86: 57 | AY86: -3181.068172 | BC86: 54 | BD86: 868.1430019 | BE86: 32.23686536 | BF86: 9829.497757 | BG86: 24841 | BH86: 7780 | BI86: 49072 | BJ86: -41292 | BK86: 22792 | BL86: 22532 | BO86: -201 | BP86: 18 | BQ86: 3849 | BR86: 2765 | BS86: 0 | BT86: 0 | BU86: 1084 | BV86: 165 | BW86: 0 | BX86: 0 | BY86: 1249 | BZ86: 14785 | CA86: 3508 | CC86: 384 | CD86: -10495 | CE86: -6517 | CF86: 22792 | CG86: 18861 | CH86: 811 | CI86: 3120 | CJ86: 19.75 | CL86: 53 | CM86: 6872 | CO86: 1.676298321 | CP86: 51.88298588 | CQ86: -3201.251455 | CU86: 56.62231009 | CV86: 480.5005821 | CW86: 21.49394539 | CX86: 8.159633295 | CY86: 24123 | CZ86: 8092 | DA86: 49261 | DB86: -41169 | DC86: 22398 | DD86: 23042 | DG86: -209 | DH86: 12 | DI86: 4074 | DJ86: 3579 | DK86: 0 | DL86: 0 | DM86: 495 | DN86: 164 | DO86: 0 | DP86: 0 | DQ86: 659 | DR86: 15444 | DS86: 3828 | DU86: -205 | DV86: -2342 | DW86: -24 | DX86: 22398 | DY86: 18509 | DZ86: 735 | EA86: 3154 | EB86: 19.75 | ED86: 57 | EE86: 18164 | EF86: 18114 | EG86: 18957 | EK86: -6761 | EL86: 1226 | EM86: 539 | EN86: -10574 | EO86: 169 | EP86: 380 | EQ86: -4239 | ER86: 46 | ES86: 341 | EV86: 1924 | EX86: 0 | EY86: 859 | EZ86: 14149 | FA86: 12224 | FB86: 1925 | FC86: 1 | FD86: 22720 | FE86: 20378 | FF86: 2342 | FG86: 1 | FH86: 21236 | FI86: 18196 | FJ86: 3040 | FK86: 1 | FL86: 4143.453838 | FM86: 5292 | FN86: 4942.665891 | FO86: 937.164557 | FP86: 136.3743535 | FS86: -9482 | FV86: 3797 | FW86: -3797
A87: 244 | B87: Kempele | C87: 16889 | E87: 0.7762649494 | F87: 49.60504832 | G87: -1941.796436 | K87: 54.97662524 | L87: 470.9574279 | M87: 30.00981993 | N87: 5728.107052 | O87: 42955 | P87: 10255 | Q87: 86441 | R87: -76186 | S87: 60200 | T87: 20189 | W87: -815 | X87: 16 | Y87: 3404 | Z87: 5014 | AC87: -1610 | AD87: 948 | AG87: -662 | AH87: 5411 | AI87: 1844 | AK87: -223 | AL87: -4620 | AM87: -1446 | AN87: 60200 | AO87: 55674 | AP87: 1567 | AQ87: 2959 | AR87: 20.5 | AT87: 240 | AU87: 17066 | AW87: 1.166126126 | AX87: 48 | AY87: -2039.552326 | BC87: 54 | BD87: 417.7311614 | BE87: 26.94980995 | BF87: 5657.623345 | BG87: 42495 | BH87: 10965 | BI87: 89595 | BJ87: -78630 | BK87: 63605 | BL87: 21421 | BO87: -760 | BP87: 76 | BQ87: 5712 | BR87: 5078 | BS87: 0 | BT87: 0 | BU87: 634 | BV87: 842 | BW87: 0 | BX87: 0 | BY87: 1476 | BZ87: 6120 | CA87: 4400 | CC87: -342 | CD87: -6900 | CE87: -390 | CF87: 63605 | CG87: 58387 | CH87: 2228 | CI87: 2990 | CJ87: 20.5 | CL87: 149 | CM87: 17297 | CO87: 1.802041876 | CP87: 47.66850526 | CQ87: -1956.928947 | CU87: 54.85719559 | CV87: 663.9879748 | CW87: 38.81864061 | CX87: 6.243279181 | CY87: 43655 | CZ87: 12864 | DA87: 92173 | DB87: -79309 | DC87: 65653 | DD87: 24051 | DG87: -705 | DH87: -5 | DI87: 9685 | DJ87: 5143 | DK87: 0 | DL87: 0 | DM87: 4542 | DN87: 629 | DO87: -3000 | DP87: 0 | DQ87: 2171 | DR87: 8292 | DS87: 6308 | DU87: 1101 | DV87: -5050 | DW87: 1105 | DX87: 65653 | DY87: 59921 | DZ87: 2599 | EA87: 3133 | EB87: 20.5 | ED87: 64 | EE87: 32416 | EF87: 36184 | EG87: 36725 | EK87: -4847 | EL87: 38 | EM87: 1519 | EN87: -7493 | EO87: 519 | EP87: 2184 | EQ87: -9953 | ER87: 261 | ES87: 4489 | ET87: 6200 | EV87: 4790 | EX87: 7176 | EY87: 0 | EZ87: 33250 | FA87: 28770 | FB87: 4480 | FC87: 0 | FD87: 35360 | FE87: 30310 | FF87: 5050 | FG87: 0 | FH87: 37486 | FI87: 31958 | FJ87: 5528 | FK87: 0 | FL87: 3026.11167 | FM87: 3049 | FN87: 3124.183384 | FO87: 2922.97561 | FP87: 168.9874319 | FS87: -4878 | FV87: 2648 | FW87: -2648
A88: 245 | B88: Kerava | C88: 35317 | E88: 2.041397021 | F88: 32.40682618 | G88: -1590.423875 | K88: 77.96829905 | L88: 108.4463573 | M88: 6.519924258 | N88: 6071.070589 | O88: 75120 | P88: 37485 | Q88: 188401 | R88: -150916 | S88: 149491 | T88: 18679 | W88: -345 | X88: 2511 | Y88: 19420 | Z88: 10520 | AC88: 8900 | AF88: 4 | AG88: 8904 | AH88: 102127 | AI88: 17822 | AK88: -792 | AL88: -9281 | AM88: 3438 | AN88: 149491 | AO88: 131254 | AP88: 8525 | AQ88: 9712 | AR88: 19 | AT88: 55 | AU88: 35293 | AW88: 2.058702703 | AX88: 31 | AY88: -1565.891253 | BC88: 79 | BD88: 135.5226249 | BE88: 8.627600692 | BF88: 5733.431559 | BG88: 77527 | BH88: 40378 | BI88: 195286 | BJ88: -154908 | BK88: 152164 | BL88: 20222 | BO88: -223 | BP88: 2132 | BQ88: 18713 | BR88: 11137 | BS88: 7001 | BT88: 0 | BU88: 14577 | BV88: 0 | BW88: 0 | BX88: 1 | BY88: 14578 | BZ88: 116705 | CA88: 21114 | CC88: 340 | CD88: -7000 | CE88: 1045 | CF88: 152164 | CG88: 132253 | CH88: 10198 | CI88: 9713 | CJ88: 19 | CL88: 62 | CM88: 35511 | CO88: 2.457102934 | CP88: 27.90663742 | CQ88: -1376.700177 | CU88: 81.16207618 | CV88: 123.6518262 | CW88: 7.108928326 | CX88: 6.348765171 | CY88: 78635 | CZ88: 41483 | DA88: 194136 | DB88: -152653 | DC88: 154567 | DD88: 23463 | DG88: -170 | DH88: 893 | DI88: 26100 | DJ88: 11646 | DK88: 0 | DL88: 0 | DM88: 14454 | DN88: 0 | DO88: 0 | DP88: -2 | DQ88: 14452 | DR88: 131158 | DS88: 19821 | DU88: -1667 | DV88: -10458 | DW88: 6320 | DX88: 154567 | DY88: 135018 | DZ88: 10037 | EA88: 9512 | EB88: 19.25 | ED88: 29 | EE88: 84190 | EF88: 86775 | EG88: 82934 | EK88: -16383 | EL88: 93 | EM88: 1906 | EN88: -25282 | EO88: 28 | EP88: 5185 | EQ88: -20686 | ER88: 98 | ES88: 7087 | ET88: 8000 | EU88: -2500 | EV88: 8920 | EW88: 1500 | EX88: 10000 | EY88: -4000 | EZ88: 42807 | FA88: 19387 | FB88: 23420 | FC88: 5991 | FD88: 42387 | FE88: 17000 | FF88: 25387 | FG88: 5990 | FH88: 37928 | FI88: 17542 | FJ88: 20386 | FK88: 5990 | FL88: 4374.04083 | FM88: 4845 | FN88: 4760.637549 | FO88: 7013.922078 | FP88: 197.5140683 | FS88: -20246 | FV88: 16684 | FW88: -16684
A89: 249 | B89: Keuruu | C89: 10177 | E89: 2.369529984 | F89: 59.33871407 | G89: -4336.936229 | K89: 48.66105178 | L89: 95.3129606 | M89: 3.88246776 | N89: 8960.597426 | O89: 33075 | P89: 18825 | Q89: 75304 | R89: -56479 | S89: 34255 | T89: 27702 | W89: -90 | X89: 345 | Y89: 5733 | Z89: 3428 | AC89: 2305 | AD89: 5 | AG89: 2310 | AH89: 8172 | AI89: 5662 | AK89: 1327 | AL89: -2353 | AM89: -6046 | AN89: 34255 | AO89: 29603 | AP89: 2327 | AQ89: 2325 | AR89: 20.5 | AT89: 50 | AU89: 10117 | AW89: 1.983292383 | AX89: 76 | AY89: -5580.013838 | BC89: 43 | BD89: 101.512306 | BE89: 4.172705516 | BF89: 8879.60858 | BG89: 32823 | BH89: 18256 | BI89: 76142 | BJ89: -57886 | BK89: 34378 | BL89: 27169 | BO89: -45 | BP89: 600 | BQ89: 3963 | BR89: 4119 | BS89: 0 | BT89: 0 | BU89: -156 | BV89: 5 | BW89: 0 | BX89: 0 | BY89: -151 | BZ89: 8021 | CA89: 3749 | CC89: -737 | CD89: -1206 | CE89: -12351 | CF89: 34378 | CG89: 29390 | CH89: 2447 | CI89: 2541 | CJ89: 20.5 | CL89: 124 | CM89: 9992 | CO89: 1.734611954 | CP89: 88.40330177 | CQ89: -6483.98719 | CU89: 38.67525106 | CV89: 161.5292234 | CW89: 6.53941789 | CX89: 9.01581265 | CY89: 33211 | CZ89: 17620 | DA89: 75475 | DB89: -57855 | DC89: 33627 | DD89: 27766 | DG89: -87 | DH89: 348 | DI89: 3799 | DJ89: 5132 | DK89: 0 | DL89: 0 | DM89: -1333 | DN89: 5 | DO89: 0 | DP89: 0 | DQ89: -1328 | DR89: 6692 | DS89: 3655 | DU89: 140 | DV89: -2152 | DW89: -8384 | DX89: 33627 | DY89: 28935 | DZ89: 2272 | EA89: 2420 | EB89: 20.5 | ED89: 163 | EE89: 32392 | EF89: 33198 | EG89: 31220 | EK89: -13409 | EL89: 1568 | EM89: 133 | EN89: -18040 | EO89: 1679 | EP89: 261 | EQ89: -12386 | ER89: 42 | ES89: 305 | EU89: 5500 | EV89: 1962 | EW89: 13300 | EX89: 10470 | EY89: -1300 | EZ89: 35082 | FA89: 8123 | FB89: 26959 | FC89: 0 | FD89: 47626 | FE89: 7687 | FF89: 39939 | FG89: 0 | FH89: 54645 | FI89: 15437 | FJ89: 39208 | FK89: 0 | FL89: 7132.357276 | FM89: 8500 | FN89: 9534.227382 | FO89: 1411.463415 | FP89: 141.2593489 | FS89: -14999 | FV89: 2835 | FW89: -2835
A90: 250 | B90: Kihniö | C90: 2080 | E90: -0.8108108108 | F90: 57.34819801 | G90: -3193.269231 | K90: 48.0501049 | L90: 519.7115385 | M90: 24.82009184 | N90: 7642.788462 | O90: 6942 | P90: 2349 | Q90: 14783 | R90: -12434 | S90: 5994 | T90: 5919 | W90: -99 | X90: 35 | Y90: -585 | Z90: 798 | AC90: -1383 | AD90: 116 | AG90: -1267 | AH90: -20 | AI90: -620 | AK90: 78 | AL90: -487 | AM90: -1137 | AN90: 5994 | AO90: 4998 | AP90: 489 | AQ90: 507 | AR90: 20.5 | AT90: 303 | AU90: 2038 | AW90: -0.001356852103 | AX90: 67 | AY90: -3579.980373 | BC90: 42 | BD90: 704.1216879 | BE90: 29.26117318 | BF90: 8783.120707 | BG90: 4342 | BH90: 1602 | BI90: 13953 | BJ90: -12351 | BK90: 6196 | BL90: 6103 | BO90: -118 | BP90: 62 | BQ90: -123 | BR90: 807 | BS90: 0 | BT90: 0 | BU90: -930 | BV90: 109 | BW90: 0 | BX90: 0 | BY90: -821 | BZ90: -841 | CA90: -107 | CC90: -195 | CD90: -2800 | CE90: -664 | CF90: 6196 | CG90: 5116 | CH90: 572 | CI90: 508 | CJ90: 21.5 | CL90: 295 | CM90: 1994 | CO90: 0.8494055482 | CP90: 63.42589254 | CQ90: -3537.111334 | CU90: 41.94108567 | CV90: 479.4383149 | CW90: 24.37923566 | CX90: 7.178034102 | CY90: 3007 | CZ90: 1051 | DA90: 13263 | DB90: -12212 | DC90: 6103 | DD90: 6711 | DG90: -120 | DH90: 40 | DI90: 522 | DJ90: 835 | DK90: 0 | DL90: 22 | DM90: -335 | DN90: 105 | DO90: 0 | DP90: 0 | DQ90: -230 | DR90: -1071 | DS90: 494 | DU90: -135 | DV90: -636 | DW90: 427 | DX90: 6103 | DY90: 5027 | DZ90: 577 | EA90: 499 | EB90: 21.5 | ED90: 223 | EE90: 5822 | EF90: 8359 | EG90: 9380 | EK90: -517 | EN90: -625 | EO90: 0 | EP90: 68 | EQ90: -202 | ER90: 8 | ES90: 127 | ET90: 2200 | EV90: 615 | EX90: 0 | EY90: 0 | EZ90: 6395 | FA90: 5850 | FB90: 545 | FC90: 144 | FD90: 8581 | FE90: 7942 | FF90: 639 | FG90: 142 | FH90: 7944 | FI90: 7390 | FJ90: 554 | FK90: 172 | FL90: 3565.865385 | FM90: 4628 | FN90: 4586.258776 | FO90: 233.8139535 | FP90: 117.258753 | FS90: -659 | FV90: 226 | FW90: -226
A91: 256 | B91: Kinnula | C91: 1766 | E91: 77.1 | F91: 54.3 | G91: -1840 | K91: 61.2 | L91: 1020 | M91: 47 | O91: 5693 | P91: 2789 | Q91: 13531 | R91: -10742 | S91: 4616 | T91: 7607 | W91: 67 | X91: 13 | Y91: 1561 | Z91: 747 | AC91: 814 | AD91: 12 | AG91: 827 | AH91: 4362 | AI91: 1499 | AK91: 700 | AL91: 0 | AM91: 1263 | AN91: 4616 | AO91: 3803 | AP91: 461 | AQ91: 352 | AR91: 20.5 | AT91: 6 | AU91: 1745 | AW91: 192.7142857 | AX91: 51 | AY91: -1371.346705 | BC91: 63 | BD91: 1312.320917 | BE91: 62.1357419 | BF91: 7708.882521 | BG91: 5685 | BH91: 2881 | BI91: 13777 | BJ91: -10896 | BK91: 4789 | BL91: 7344 | BO91: 73 | BP91: 32 | BQ91: 1342 | BR91: 794 | BS91: 0 | BT91: 0 | BU91: 548 | BV91: 13 | BW91: 0 | BX91: 0 | BY91: 561 | BZ91: 4922 | CA91: 1278 | CC91: 51 | CD91: 0 | CE91: 830 | CF91: 4789 | CG91: 3880 | CH91: 544 | CI91: 365 | CJ91: 20.5 | CL91: 19 | CM91: 1699 | CO91: 469.5 | CP91: 51.42721218 | CQ91: -1537.963508 | CU91: 64.27728753 | CV91: 1320.776928 | CW91: 54.48051084 | CX91: 8.84873455 | CY91: 5820 | CZ91: 2739 | DA91: 13862 | DB91: -11123 | DC91: 4765 | DD91: 7216 | DG91: 72 | DH91: 7 | DI91: 937 | DJ91: 744 | DK91: 0 | DL91: 0 | DM91: 193 | DN91: 13 | DO91: 0 | DP91: 0 | DQ91: 206 | DR91: 5127 | DS91: 957 | DU91: 338 | DV91: 0 | DW91: -191 | DX91: 4765 | DY91: 3896 | DZ91: 505 | EA91: 364 | EB91: 20.5 | ED91: 68 | EE91: 6109 | EF91: 6322 | EG91: 6112 | EK91: -329 | EM91: 94 | EN91: -535 | EO91: 0 | EP91: 87 | EQ91: -1174 | ER91: 0 | ES91: 26 | ET91: 0 | EU91: 7 | EV91: 0 | EW91: -601 | EX91: 0 | EY91: 0 | EZ91: 6507 | FA91: 0 | FB91: 6505 | FC91: 100 | FD91: 5900 | FE91: 0 | FF91: 5900 | FG91: 100 | FH91: 5900 | FI91: 0 | FJ91: 5900 | FK91: 100 | FL91: 4303.510759 | FM91: 3972 | FN91: 4397.881107 | FO91: 190.0487805 | FP91: 111.8591998 | FS91: -543 | FV91: 115 | FW91: -115
A92: 257 | B92: Kirkkonummi | C92: 38220 | E92: 1.081650093 | F92: 57.04230334 | G92: -2593.380429 | K92: 38.64762635 | L92: 543.0664574 | M92: 31.86233813 | N92: 6221.1146 | O92: 91561 | P92: 29565 | Q92: 212712 | R92: -183147 | S92: 174981 | T92: 21630 | W92: -1904 | X92: 374 | Y92: 11934 | Z92: 13660 | AC92: -1726 | AD92: 25 | AF92: -50 | AG92: -1751 | AH92: 22283 | AI92: 11601 | AK92: -1525 | AL92: -10883 | AM92: 386 | AN92: 174981 | AO92: 158314 | AP92: 7793 | AQ92: 8874 | AR92: 19.5 | AT92: 176 | AU92: 38649 | AW92: 1.024966315 | AX92: 60 | AY92: -2869.750834 | BC92: 36 | BD92: 275.0135838 | BE92: 17.19750432 | BF92: 5836.890993 | BG92: 95846 | BH92: 36643 | BI92: 223292 | BJ92: -186649 | BK92: 178491 | BL92: 20685 | BO92: -1645 | BP92: 383 | BQ92: 11198 | BR92: 12954 | BS92: 81 | BT92: 0 | BU92: -1675 | BV92: 23 | BW92: 0 | BX92: 271 | BY92: -1381 | BZ92: 20606 | CA92: 10038 | CC92: -9984 | CD92: 0 | CE92: -10588 | CF92: 178491 | CG92: 160693 | CH92: 7947 | CI92: 9851 | CJ92: 19.5 | CL92: 180 | CM92: 39033 | CO92: 1.379917489 | CP92: 61.35729138 | CQ92: -2982.117695 | CU92: 36.06395545 | CV92: 582.5583481 | CW92: 31.81486607 | CX92: 6.683472959 | CY92: 98012 | CZ92: 32714 | DA92: 223204 | DB92: -190490 | DC92: 184775 | DD92: 23966 | DG92: -1170 | DH92: 457 | DI92: 17538 | DJ92: 13990 | DK92: 0 | DL92: 0 | DM92: 3548 | DN92: 22 | DO92: 606 | DP92: 38 | DQ92: 4214 | DR92: 24740 | DS92: 16460 | DU92: 10136 | DV92: -12381 | DW92: -5995 | DX92: 184775 | DY92: 168325 | DZ92: 6644 | EA92: 9806 | EB92: 19.5 | ED92: 110 | EE92: 88185 | EF92: 92530 | EG92: 90306 | EK92: -12157 | EL92: 594 | EM92: 348 | EN92: -23138 | EO92: 205 | EP92: 2307 | EQ92: -24120 | ER92: 64 | ES92: 1601 | ET92: 10000 | EU92: 2093 | EV92: 10883 | EW92: 13498 | EX92: 0 | EY92: 30500 | EZ92: 90342 | FA92: 79459 | FB92: 10883 | FC92: 1450 | FD92: 92957 | FE92: 67079 | FF92: 25878 | FG92: 1154 | FH92: 111077 | FI92: 54565 | FJ92: 56512 | FK92: 1056 | FL92: 3716.431188 | FM92: 3818 | FN92: 4187.508006 | FO92: 8632.051282 | FP92: 221.1475234 | FS92: -16354 | FV92: 7251 | FW92: -7251
A93: 260 | B93: Kitee | C93: 10986 | E93: 2.027937996 | F93: 36.81759439 | G93: -2301.929729 | K93: 45.4214893 | L93: 294.5567085 | M93: 13.29483803 | N93: 8086.837794 | O93: 31378 | P93: 11152 | Q93: 75149 | R93: -63997 | S93: 36823 | T93: 37916 | W93: -372 | X93: 487 | Y93: 10857 | Z93: 2384 | AC93: 8473 | AD93: 264 | AF93: 1 | AG93: 8738 | AH93: -2362 | AI93: 10799 | AK93: 777 | AL93: -5153 | AM93: 4387 | AN93: 36823 | AO93: 31657 | AP93: 2075 | AQ93: 3091 | AR93: 22.5 | AT93: 7 | AU93: 10832 | AW93: 2.112324493 | AX93: 33 | AY93: -2009.508863 | BC93: 53 | BD93: 290.620384 | BE93: 16.047093 | BF93: 6610.32127 | BG93: 32438 | BH93: 11049 | BI93: 74899 | BJ93: -63850 | BK93: 36097 | BL93: 36704 | BO93: -257 | BP93: 992 | BQ93: 9198 | BR93: 2890 | BS93: 0 | BT93: 0 | BU93: 6308 | BV93: 245 | BW93: 0 | BX93: 0 | BY93: 6553 | BZ93: 4191 | CA93: 9083 | CC93: 687 | CD93: 0 | CE93: 3496 | CF93: 36097 | CG93: 30623 | CH93: 2374 | CI93: 3100 | CJ93: 22.5 | CL93: 12 | CM93: 10719 | CO93: 2.275794621 | CP93: 27.12897695 | CQ93: -1583.91641 | CU93: 61.84186838 | CV93: 262.4311969 | CW93: 12.26637915 | CX93: 7.808937401 | CY93: 33234 | CZ93: 11591 | DA93: 75189 | DB93: -63598 | DC93: 34717 | DD93: 37676 | DG93: -135 | DH93: 489 | DI93: 9149 | DJ93: 3075 | DK93: 0 | DL93: 0 | DM93: 6074 | DN93: 71 | DO93: 0 | DP93: 0 | DQ93: 6145 | DR93: 10336 | DS93: 9030 | DU93: -582 | DV93: -3931 | DW93: 5936 | DX93: 34717 | DY93: 29349 | DZ93: 2263 | EA93: 3105 | EB93: 22 | ED93: 19 | EE93: 36185 | EF93: 34134 | EG93: 33413 | EH93: 1470 | EK93: -8094 | EL93: 1380 | EM93: 302 | EN93: -7040 | EO93: 1297 | EP93: 156 | EQ93: -3765 | ER93: 107 | ES93: 564 | ET93: 5000 | EU93: -2500 | EV93: 4207 | EW93: -200 | EX93: 2000 | EY93: -2500 | EZ93: 21768 | FA93: 13861 | FB93: 7907 | FC93: 108 | FD93: 17360 | FE93: 9930 | FF93: 7430 | FG93: 108 | FH93: 12929 | FI93: 8100 | FJ93: 4829 | FK93: 752 | FL93: 3526.306208 | FM93: 3210 | FN93: 2821.718444 | FO93: 1334.045455 | FP93: 124.4561484 | FS93: -5539 | FV93: 3565 | FW93: -3565
A94: 261 | B94: Kittilä | C94: 6470 | E94: 0.9068549305 | F94: 66.69599411 | G94: -5137.248841 | K94: 37.35914182 | L94: 206.4914992 | M94: 7.17149286 | N94: 10509.58269 | O94: 24962 | P94: 9343 | Q94: 52598 | R94: -43255 | S94: 25471 | T94: 20879 | W94: -431 | X94: 887 | Y94: 3226 | Z94: 2330 | AC94: 875 | AD94: 126 | AG94: 1001 | AH94: 5250 | AI94: 616 | AK94: -4190 | AL94: -3960 | AM94: -6509 | AN94: 25471 | AO94: 18111 | AP94: 2369 | AQ94: 4991 | AR94: 19.5 | AT94: 56 | AU94: 6416 | AW94: 0.9953370072 | AX94: 68 | AY94: -5080.5798 | BC94: 39 | BD94: 451.9950125 | BE94: 17.31272489 | BF94: 9529.301746 | BG94: 25297 | BH94: 6696 | BI94: 52106 | BJ94: -45410 | BK94: 27547 | BL94: 21182 | BO94: -426 | BP94: 2695 | BQ94: 4270 | BR94: 2595 | BS94: 0 | BT94: 0 | BU94: 1675 | BV94: -57 | BW94: 277 | BX94: 0 | BY94: 1895 | BZ94: 7146 | CA94: 4115 | CC94: 1328 | CD94: -7055 | CE94: 28 | CF94: 27547 | CG94: 18371 | CH94: 4330 | CI94: 4846 | CJ94: 19.5 | CL94: 28 | CM94: 6383 | CO94: 1.703105062 | CP94: 55.34185153 | CQ94: -4581.544728 | CU94: 46.05221924 | CV94: 204.4493185 | CW94: 7.771152152 | CX94: 9.602694658 | CY94: 25441 | CZ94: 9245 | DA94: 52374 | DB94: -43129 | DC94: 28495 | DD94: 21584 | DG94: -430 | DH94: 1058 | DI94: 7578 | DJ94: 3068 | DK94: 0 | DL94: 0 | DM94: 4510 | DN94: 159 | DO94: -950 | DP94: 0 | DQ94: 3719 | DR94: 10866 | DS94: 7578 | DU94: -281 | DV94: -4272 | DW94: 4252 | DX94: 28495 | DY94: 19016 | DZ94: 3484 | EA94: 5995 | EB94: 20.25 | ED94: 5 | EE94: 20440 | EF94: 20044 | EG94: 20179 | EK94: -10976 | EL94: 893 | EM94: 2958 | EN94: -4784 | EO94: 527 | EP94: 15 | EQ94: -4137 | ER94: 732 | ES94: 79 | ET94: 7700 | EU94: 116 | EV94: 4292 | EW94: -2202 | EX94: 0 | EY94: 18 | EZ94: 30355 | FA94: 22902 | FB94: 7453 | FC94: 514 | FD94: 30917 | FE94: 25666 | FF94: 5251 | FG94: 389 | FH94: 26662 | FI94: 21393 | FJ94: 5269 | FK94: 469 | FL94: 10342.04019 | FM94: 10171 | FN94: 8885.790381 | FO94: 939.0617284 | FP94: 147.1191804 | FS94: -3903 | FV94: 2822 | FW94: -2822
A95: 263 | B95: Kiuruvesi | C95: 8752 | E95: 0.7832624113 | F95: 55.3229529 | G95: -2968.578611 | K95: 48.13852683 | L95: 763.7111517 | M95: 35.16322913 | N95: 7927.445155 | O95: 16671 | P95: 7439 | Q95: 59969 | R95: -52530 | S95: 24224 | T95: 29919 | W95: -314 | X95: 1120 | Y95: 2419 | Z95: 3670 | AA95: 1232 | AC95: -19 | AD95: 19 | AG95: 0 | AH95: 1936 | AI95: 3612 | AK95: 471 | AL95: -3183 | AM95: -1827 | AN95: 24224 | AO95: 20971 | AP95: 1639 | AQ95: 1614 | AR95: 20.75 | AT95: 195 | AU95: 8600 | AW95: 1.19599875 | AX95: 55 | AY95: -2980.697674 | BC95: 48 | BD95: 872.7906977 | BE95: 45.06291429 | BF95: 7069.418605 | BG95: 16140 | BH95: 7395 | BI95: 59951 | BJ95: -52556 | BK95: 24935 | BL95: 30238 | BO95: -223 | BP95: 1734 | BQ95: 3580 | BR95: 3803 | BS95: 0 | BT95: 0 | BU95: -223 | BV95: 19 | BW95: 0 | BX95: 0 | BY95: -204 | BZ95: 1732 | CA95: 3518 | CC95: 33 | CD95: 0 | CE95: 288 | CF95: 24935 | CG95: 21344 | CH95: 1935 | CI95: 1656 | CJ95: 20.75 | CL95: 113 | CM95: 8444 | CO95: 0.9807327858 | CP95: 54.95632728 | CQ95: -3050.094742 | CU95: 47.52368813 | CV95: 817.8588347 | CW95: 38.25254947 | CX95: 7.803884415 | CY95: 15619 | CZ95: 6945 | DA95: 59259 | DB95: -52314 | DC95: 23556 | DD95: 31263 | DG95: -193 | DH95: 580 | DI95: 2892 | DJ95: 3652 | DK95: 275 | DL95: 219 | DM95: -704 | DN95: 19 | DO95: 0 | DP95: 0 | DQ95: -685 | DR95: 1047 | DS95: 2946 | DU95: 88 | DV95: -2953 | DW95: -157 | DX95: 23556 | DY95: 20093 | DZ95: 1780 | EA95: 1683 | EB95: 20.75 | ED95: 180 | EE95: 38066 | EF95: 38198 | EG95: 38252 | EK95: -5872 | EL95: 386 | EM95: 47 | EN95: -3314 | EO95: 70 | EP95: 14 | EQ95: -3434 | ER95: 0 | ES95: 331 | ET95: 3000 | EU95: 2500 | EV95: 2953 | EW95: 3303 | EX95: 5000 | EY95: -2800 | EZ95: 29577 | FA95: 14127 | FB95: 15450 | FC95: 1229 | FD95: 29926 | FE95: 11173 | FF95: 18753 | FG95: 1173 | FH95: 29173 | FI95: 13178 | FJ95: 15995 | FK95: 1133 | FL95: 6228.062157 | FM95: 6466 | FN95: 6461.629559 | FO95: 968.3373494 | FP95: 114.6775639 | FS95: -3242 | FV95: 3038 | FW95: -3038
A96: 265 | B96: Kivijärvi | C96: 1244 | E96: 7.227722772 | F96: 19.20086784 | G96: -1284.565916 | K96: 77.21006459 | L96: 102.8938907 | M96: 4.050984132 | N96: 9270.900322 | O96: 2276 | P96: 1727 | Q96: 10324 | R96: -8597 | S96: 3476 | T96: 5859 | W96: -3 | X96: -9 | Y96: 726 | Z96: 388 | AC96: 338 | AG96: 338 | AH96: 3916 | AI96: 727 | AK96: 28 | AL96: -97 | AM96: -244 | AN96: 3476 | AO96: 2617 | AP96: 488 | AQ96: 371 | AR96: 20 | AT96: 42 | AU96: 1200 | AW96: 6.216 | AX96: 58 | AY96: -3095 | BC96: 57 | BD96: 1346.666667 | BE96: 32.18772169 | BF96: 15270.83333 | BG96: 2166 | BH96: 1706 | BI96: 10020 | BJ96: -8314 | BK96: 3585 | BL96: 5474 | BO96: -28 | BP96: 33 | BQ96: 749 | BR96: 476 | BS96: 0 | BT96: 0 | BU96: 273 | BV96: 0 | BW96: 0 | BX96: 0 | BY96: 273 | BZ96: 4543 | CA96: 749 | CC96: 0 | CD96: -4321 | CE96: -2468 | CF96: 3585 | CG96: 2630 | CH96: 375 | CI96: 580 | CJ96: 21 | CL96: 38 | CM96: 1161 | CO96: 1.242074928 | CP96: 53.59526271 | CQ96: -3115.417743 | CU96: 57.60259179 | CV96: 1267.011197 | CW96: 47.62417953 | CX96: 9.710594315 | CY96: 2166 | CZ96: 1699 | DA96: 10214 | DB96: -8515 | DC96: 3427 | DD96: 5513 | DG96: -39 | DH96: 6 | DI96: 392 | DJ96: 1027 | DK96: 0 | DL96: 0 | DM96: -635 | DN96: -385 | DO96: 406 | DP96: 0 | DQ96: -614 | DR96: 3929 | DS96: 279 | DU96: 347 | DV96: -308 | DW96: 94 | DX96: 3427 | DY96: 2511 | DZ96: 386 | EA96: 530 | EB96: 21 | ED96: 186 | EE96: 7012 | EF96: 6875 | EG96: 6891 | EK96: -1095 | EL96: 121 | EM96: 3 | EN96: -4063 | EO96: 837 | EP96: 9 | EQ96: -713 | ER96: 240 | ES96: 288 | EV96: 97 | EX96: 0 | EY96: 0 | EZ96: 950 | FA96: 853 | FB96: 97 | FC96: 691 | FD96: 5174 | FE96: 4866 | FF96: 308 | FG96: 691 | FH96: 4866 | FI96: 4558 | FJ96: 308 | FK96: 691 | FL96: 2538.585209 | FM96: 6118 | FN96: 6516.795866 | FO96: 119.5714286 | FP96: 102.9900332 | FS96: -3294 | FV96: 97 | FW96: -97
A97: 271 | B97: Kokemäki | C97: 7702 | E97: 0.01142857143 | F97: 52.91473493 | G97: -2998.5718 | K97: 29.81087158 | L97: 120.4881849 | M97: 5.958449874 | N97: 7380.810179 | O97: 17974 | P97: 5385 | Q97: 49726 | R97: -44341 | S97: 25929 | T97: 18296 | W97: -96 | X97: 85 | Y97: -127 | Z97: 1473 | AC97: -1600 | AG97: -1601 | AH97: -887 | AI97: -363 | AK97: -665 | AL97: -2468 | AM97: -1632 | AN97: 25929 | AO97: 22409 | AP97: 1441 | AQ97: 2079 | AR97: 20.75 | AT97: 296 | AU97: 7591 | AW97: 0.7395533141 | AX97: 57 | AY97: -3294.164142 | BC97: 29 | BD97: 103.938875 | BE97: 5.135894281 | BF97: 7386.773811 | BG97: 17866 | BH97: 4685 | BI97: 47824 | BJ97: -43139 | BK97: 27021 | BL97: 17945 | BO97: -12 | BP97: 73 | BQ97: 1887 | BR97: 1677 | BS97: 0 | BT97: 0 | BU97: 210 | BV97: 0 | BW97: 0 | BX97: 0 | BY97: 210 | BZ97: -676 | CA97: 1841 | CC97: -169 | CD97: -6200 | CE97: -697 | CF97: 27021 | CG97: 23112 | CH97: 1625 | CI97: 2284 | CJ97: 21.25 | CL97: 204 | CM97: 7498 | CO97: 0.6225105613 | CP97: 60.32950833 | CQ97: -3559.615898 | CU97: 28.03558719 | CV97: 183.1154975 | CW97: 8.731966128 | CX97: 7.654307815 | CY97: 17554 | CZ97: 4896 | DA97: 48432 | DB97: -43536 | DC97: 26503 | DD97: 18797 | DG97: 3 | DH97: 123 | DI97: 1890 | DJ97: 1554 | DK97: 0 | DL97: 0 | DM97: 336 | DN97: 0 | DO97: 0 | DP97: 0 | DQ97: 336 | DR97: -340 | DS97: 1918 | DU97: 175 | DV97: -3141 | DW97: -1708 | DX97: 26503 | DY97: 22613 | DZ97: 1508 | EA97: 2382 | EB97: 21.25 | ED97: 229 | EE97: 27775 | EF97: 26095 | EG97: 26006 | EK97: -1525 | EM97: 256 | EN97: -3784 | EO97: 1180 | EP97: 66 | EQ97: -5495 | ER97: 1855 | ES97: 14 | ET97: 3400 | EU97: 1900 | EV97: 2610 | EW97: -1700 | EX97: 3500 | EY97: 2500 | EZ97: 19955 | FA97: 9445 | FB97: 10510 | FC97: 4157 | FD97: 21844 | FE97: 12504 | FF97: 9340 | FG97: 5362 | FH97: 24704 | FI97: 12576 | FJ97: 12128 | FK97: 5324 | FL97: 4343.93664 | FM97: 4730 | FN97: 5064.550547 | FO97: 1064.141176 | FP97: 141.9233364 | FS97: -2439 | FV97: 2577 | FW97: -2577
A98: 272 | B98: Kokkola | C98: 47278 | E98: 0.6957776718 | F98: 86.81350738 | G98: -3901.349465 | K98: 35.4190223 | L98: 587.2287322 | M98: 22.13887627 | N98: 9681.543212 | O98: 164944 | P98: 142694 | Q98: 367839 | R98: -225145 | S98: 175899 | T98: 77387 | W98: -2943 | X98: 952 | Y98: 26150 | Z98: 21477 | AA98: 9534 | AC98: 14207 | AD98: 1284 | AF98: -6 | AG98: 15485 | AH98: 26450 | AI98: 28463 | AK98: 1347 | AL98: -38903 | AM98: -15697 | AN98: 175899 | AO98: 148875 | AP98: 13181 | AQ98: 13843 | AR98: 20.5 | AT98: 52 | AU98: 47570 | AW98: 0.1072529166 | AX98: 83 | AY98: -5101.618667 | BC98: 38 | BD98: 447.9293672 | BE98: 17.74184129 | BF98: 9215.177633 | BG98: 164650 | BH98: 88136 | BI98: 342272 | BJ98: -254136 | BK98: 182108 | BL98: 78907 | BO98: -2331 | BP98: 722 | BQ98: 5065 | BR98: 15319 | BS98: 0 | BT98: 0 | BU98: -10254 | BV98: 284 | BW98: 0 | BX98: 395 | BY98: -9575 | BZ98: 16875 | CA98: 609 | CC98: 99738 | CD98: -39000 | CE98: -59238 | CF98: 182108 | CG98: 153250 | CH98: 14686 | CI98: 14172 | CJ98: 21 | CL98: 272 | CM98: 47723 | CO98: 0.186578788 | CP98: 79.17497875 | CQ98: -5246.002976 | CU98: 37.58787635 | CV98: 255.8514762 | CW98: 10.11865434 | CX98: 9.229071936 | CY98: 165506 | CZ98: 90781 | DA98: 350582 | DB98: -259801 | DC98: 183911 | DD98: 86936 | DG98: -2546 | DH98: 1806 | DI98: 10306 | DJ98: 15440 | DK98: 0 | DL98: 0 | DM98: -5134 | DN98: 504 | DO98: -612 | DP98: 91 | DQ98: -5151 | DR98: 11724 | DS98: 6237 | DU98: 2912 | DV98: -66707 | DW98: -8987 | DX98: 183911 | DY98: 156556 | DZ98: 12923 | EA98: 14432 | EB98: 21.5 | ED98: 235 | EE98: 133698 | EF98: 132522 | EG98: 135955 | EK98: -49424 | EL98: 2033 | EM98: 3231 | EN98: -67623 | EO98: 2996 | EP98: 4780 | EQ98: -22182 | ER98: 2898 | ES98: 4060 | ET98: 75585 | EU98: -4191 | EV98: 69957 | EW98: -1577 | EX98: 59700 | EY98: -1048 | EZ98: 283422 | FA98: 239138 | FB98: 44284 | FC98: 2958 | FD98: 250888 | FE98: 208181 | FF98: 42707 | FG98: 1990 | FH98: 242833 | FI98: 200362 | FJ98: 42471 | FK98: 3346 | FL98: 9557.722408 | FM98: 10155 | FN98: 9675.481424 | FO98: 7281.674419 | FP98: 152.5820761 | FS98: -54543 | FV98: 25357 | FW98: -25357
B99: KOKO MAA (Manner-Suomi) | C99: 5442837 | E99: 1.2 | F99: 52 | G99: -2415 | K99: 61 | L99: 790 | M99: 34 | N99: 8466 | O99: 14767904 | P99: 9119940 | Q99: 36434169 | R99: -27314229 | S99: 21068274 | T99: 8160993 | W99: -14727 | X99: 295035 | Y99: 2195426 | Z99: 2065374 | AA99: 1946732 | AB99: 46309 | AC99: 2030007 | AD99: 172916 | AE99: 103419 | AF99: 139174 | AG99: 2445539 | AH99: 9362856 | AI99: 1480995 | AK99: 253496 | AL99: -1787158 | AM99: -91872 | AN99: 21068274 | AO99: 18102840 | AP99: 1456282 | AQ99: 1508596 | AR99: 19.75 | AT99: - | AU99: 5458325 | AW99: 1.06 | AX99: 54.9 | AY99: -2611.638919 | BC99: 60.17 | BD99: 753.7812424 | BE99: 37.9407675 | BF99: 7251.570583 | BG99: 14616405 | BH99: 8028689 | BI99: 36334056 | BJ99: -28305219 | BK99: 21662871 | BL99: 8196322 | BO99: 56439 | BP99: 482808 | BQ99: 1894705 | BR99: 2081911 | BS99: 346559 | BT99: 15730 | BU99: 143623 | BV99: -16481 | BW99: -15415 | BX99: 52925 | BY99: 164652 | BZ99: 9422587 | CA99: 1612201 | CC99: 89705 | CD99: -2268170 | CE99: -890484 | CF99: 21662871 | CG99: 18443219 | CH99: 1638497 | CI99: 1581155 | CJ99: 19.85 | CL99: - | CM99: 5474083 | CO99: 1.384519226 | CP99: 55.69452701 | CQ99: -2634.581354 | CU99: 59.79025776 | CV99: 839.0568795 | CW99: 39.98570494 | CX99: 7.659131219 | CY99: 14413075 | CZ99: 8072125 | DA99: 36517141 | DB99: -28445032 | DC99: 21987603 | DD99: 8792091 | DG99: 68348 | DH99: 292135 | DI99: 2695145 | DJ99: 2114293 | DK99: 334182 | DL99: 21859 | DM99: 893175 | DN99: -9011 | DO99: -27985 | DP99: 10638 | DQ99: 866817 | DR99: 10310344 | DS99: 2369025 | DU99: -225326 | DV99: -1897536 | DW99: -65394 | DX99: 21987603 | DY99: 18807344 | DZ99: 1539341 | EA99: 1640918 | EB99: 19.89 | ED99: 0 | EE99: 15975867 | EF99: 16399784 | EG99: 16635937 | EH99: 20000 | EK99: -6790767 | EL99: 222285 | EM99: 4995615 | EN99: -3613766 | EO99: 195876 | EP99: 916223 | EQ99: -3468321 | ER99: 139273 | ES99: 894629 | ET99: 2522611 | EU99: 130924 | EV99: 1783034 | EW99: 336121 | EX99: 2215982 | EY99: 251014 | EZ99: 14677147 | FA99: 10627935 | FB99: 4042705 | FC99: 5353203 | FD99: 15504383 | FE99: 11002347 | FF99: 4501949 | FG99: 5552611 | FH99: 16088917 | FI99: 11446316 | FJ99: 4642601 | FK99: 5654298 | FL99: 5774 | FM99: 5987 | FN99: 6157.971789 | FO99: 945567.823 | FP99: 172.7353829 | FS99: -2544190 | FV99: 1315633 | FW99: -1315633
A100: 273 | B100: Kolari | C100: 3840 | E100: 1.461192351 | F100: 48.94978616 | G100: -3271.875 | K100: 46.13186507 | L100: 186.4583333 | M100: 7.486107133 | N100: 9091.145833 | O100: 14638 | P100: 4714 | Q100: 29011 | R100: -24297 | S100: 14244 | T100: 12607 | W100: -157 | X100: 31 | Y100: 2428 | Z100: 1515 | AC100: 913 | AD100: 13 | AG100: 926 | AH100: 6054 | AI100: 2316 | AK100: -105 | AL100: -1608 | AM100: 968 | AN100: 14244 | AO100: 10350 | AP100: 571 | AQ100: 3323 | AR100: 20 | AT100: 34 | AU100: 3848 | AW100: 2.500683995 | AX100: 42 | AY100: -3004.417879 | BC100: 51 | BD100: 244.8024948 | BE100: 12.01614594 | BF100: 7436.070686 | BG100: 14593 | BH100: 5786 | BI100: 29258 | BJ100: -23472 | BK100: 14217 | BL100: 12901 | BO100: -132 | BP100: -1 | BQ100: 3512 | BR100: 1609 | BS100: 0 | BT100: 0 | BU100: 1903 | BV100: 14 | BW100: 0 | BX100: 0 | BY100: 1917 | BZ100: 7275 | CA100: 3173 | CC100: 939 | CD100: 0 | CE100: 1040 | CF100: 14217 | CG100: 10300 | CH100: 683 | CI100: 3234 | CJ100: 20 | CL100: 7 | CM100: 3827 | CO100: 2.780031201 | CP100: 36.36752528 | CQ100: -2508.492292 | CU100: 58.7094536 | CV100: 147.8965247 | CW100: 6.274944568 | CX100: 8.602822054 | CY100: 14429 | CZ100: 4607 | DA100: 29189 | DB100: -24582 | DC100: 13926 | DD100: 14194 | DG100: -102 | DH100: 15 | DI100: 3451 | DJ100: 1701 | DK100: 0 | DL100: 0 | DM100: 1750 | DN100: 14 | DO100: 0 | DP100: 0 | DQ100: 1764 | DR100: 9767 | DS100: 3403 | DU100: -508 | DV100: -1169 | DW100: 1181 | DX100: 13926 | DY100: 10199 | DZ100: 630 | EA100: 3097 | EB100: 20 | ED100: 14 | EE100: 10564 | EF100: 10277 | EG100: 10949 | EK100: -3615 | EL100: 772 | EM100: 1495 | EN100: -2292 | EO100: 104 | EP100: 55 | EQ100: -2447 | ER100: 159 | ES100: 66 | ET100: 1550 | EU100: -900 | EV100: 1318 | EW100: -800 | EX100: 0 | EY100: 0 | EZ100: 11411 | FA100: 9293 | FB100: 2118 | FC100: 1725 | FD100: 9293 | FE100: 8124 | FF100: 1169 | FG100: 1675 | FH100: 8124 | FI100: 7030 | FJ100: 1094 | FK100: 1625 | FL100: 4346.09375 | FM100: 3595 | FN100: 3259.21087 | FO100: 509.95 | FP100: 133.2505879 | FS100: -1684 | FV100: 1391 | FW100: -1391
A101: 275 | B101: Konnevesi | C101: 2831 | E101: 0.7571825765 | F101: 58.04386258 | G101: -3380.430943 | K101: 52.89581245 | L101: 470.1518898 | M101: 20.20945131 | N101: 8491.345814 | O101: 6728 | P101: 3476 | Q101: 20269 | R101: -16793 | S101: 8196 | T101: 9257 | W101: -83 | X101: 136 | Y101: 713 | Z101: 574 | AA101: 244 | AC101: 383 | AG101: 383 | AH101: 5273 | AI101: 957 | AK101: -47 | AL101: -975 | AM101: -602 | AN101: 8196 | AO101: 6878 | AP101: 602 | AQ101: 716 | AR101: 21 | AT101: 215 | AU101: 2757 | AW101: 0.84192673 | AX101: 77 | AY101: -5033.369605 | BC101: 46 | BD101: 589.4087777 | BE101: 20.43004271 | BF101: 10530.28654 | BG101: 6787 | BH101: 3577 | BI101: 20218 | BJ101: -16641 | BK101: 8842 | BL101: 8870 | BO101: -70 | BP101: 306 | BQ101: 1142 | BR101: 703 | BS101: 0 | BT101: 0 | BU101: 439 | BV101: 0 | BW101: 0 | BX101: 0 | BY101: 439 | BZ101: 5713 | CA101: 1142 | CC101: 334 | CD101: -4000 | CE101: -4396 | CF101: 8842 | CG101: 7372 | CH101: 703 | CI101: 767 | CJ101: 21.5 | CL101: 115 | CM101: 2753 | CO101: 0.3736321001 | CP101: 98.56349099 | CQ101: -6868.870323 | CU101: 38.80405349 | CV101: 693.7885943 | CW101: 23.68599871 | CX101: 10.69124591 | CY101: 8208 | CZ101: 4022 | DA101: 21505 | DB101: -17483 | DC101: 8717 | DD101: 9398 | DG101: -96 | DH101: 57 | DI101: 593 | DJ101: 884 | DK101: 0 | DL101: 0 | DM101: -291 | DN101: 0 | DO101: 0 | DP101: 0 | DQ101: -291 | DR101: 5455 | DS101: 593 | DU101: -85 | DV101: -1795 | DW101: -5133 | DX101: 8717 | DY101: 7270 | DZ101: 675 | EA101: 772 | EB101: 21.5 | ED101: 237 | EE101: 11379 | EF101: 11320 | EG101: 11094 | EK101: -2010 | EL101: 21 | EM101: 430 | EN101: -5965 | EO101: 400 | EP101: 27 | EQ101: -5979 | ER101: 0 | ES101: 253 | EU101: 1000 | EV101: 1375 | EW101: -734 | EX101: 8700 | EY101: 346 | EZ101: 9164 | FA101: 7189 | FB101: 1975 | FC101: 1026 | FD101: 11057 | FE101: 9815 | FF101: 1242 | FG101: 963 | FH101: 18308 | FI101: 16719 | FJ101: 1589 | FK101: 900 | FL101: 5117.979513 | FM101: 5543 | FN101: 8525.971667 | FO101: 338.1395349 | FP101: 122.825839 | FS101: -5034 | FV101: 846 | FW101: -846
A102: 276 | B102: Kontiolahti | C102: 14681 | E102: 0.6702361743 | F102: 63.23381821 | G102: -3091.274436 | K102: 39.25544554 | L102: 114.5698522 | M102: 6.639306146 | N102: 6298.549145 | O102: 24895 | P102: 13957 | Q102: 78407 | R102: -64450 | S102: 46501 | T102: 22243 | W102: -913 | X102: 259 | Y102: 3640 | Z102: 4217 | AC102: -577 | AD102: 80 | AG102: -497 | AH102: 11848 | AI102: 2228 | AK102: -550 | AL102: -5887 | AM102: -2275 | AN102: 46501 | AO102: 42709 | AP102: 1643 | AQ102: 2149 | AR102: 19.75 | AT102: 217 | AU102: 14827 | AW102: 0.9721934816 | AX102: 59 | AY102: -2881.7023 | BC102: 42 | BD102: 297.7675862 | BE102: 18.49379131 | BF102: 5876.846294 | BG102: 24118 | BH102: 13324 | BI102: 78562 | BJ102: -65238 | BK102: 50282 | BL102: 22194 | BO102: -828 | BP102: 512 | BQ102: 6676 | BR102: 4214 | BS102: 0 | BT102: 0 | BU102: 2462 | BV102: 80 | BW102: 0 | BX102: 0 | BY102: 2542 | BZ102: 14389 | CA102: 6035 | CC102: 1414 | CD102: -7500 | CE102: 2504 | CF102: 50282 | CG102: 45667 | CH102: 2104 | CI102: 2511 | CJ102: 20.5 | CL102: 99 | CM102: 14806 | CO102: 1.05041365 | CP102: 51.64746701 | CQ102: -2088.680265 | CU102: 46.25795905 | CV102: 750.5740916 | CW102: 43.40179546 | CX102: 6.312170742 | CY102: 25016 | CZ102: 13457 | DA102: 80369 | DB102: -66912 | DC102: 50879 | DD102: 23860 | DG102: -763 | DH102: 296 | DI102: 7360 | DJ102: 4085 | DK102: 0 | DL102: 0 | DM102: 3275 | DN102: 80 | DO102: 0 | DP102: 0 | DQ102: 3355 | DR102: 17744 | DS102: 6976 | DU102: 303 | DV102: -6970 | DW102: 11622 | DX102: 50879 | DY102: 46273 | DZ102: 2005 | EA102: 2601 | EB102: 20.5 | ED102: 92 | EE102: 45774 | EF102: 46864 | EG102: 47207 | EK102: -7245 | EL102: 1228 | EM102: 1514 | EN102: -4253 | EO102: 44 | EP102: 678 | EQ102: -4471 | ER102: 27 | ES102: 9090 | ET102: 8000 | EU102: -7000 | EV102: 6891 | EW102: -1500 | EX102: 7000 | EY102: -4500 | EZ102: 44492 | FA102: 31977 | FB102: 12515 | FC102: 23 | FD102: 43601 | FE102: 32481 | FF102: 11120 | FG102: 23 | FH102: 39131 | FI102: 32453 | FJ102: 6678 | FK102: 904 | FL102: 4092.636741 | FM102: 4058 | FN102: 4400.175604 | FO102: 2257.219512 | FP102: 152.4530266 | FS102: -3483 | FV102: 5816 | FW102: -5816
A103: 280 | B103: Korsnäs | C103: 2219 | E103: 3.656346749 | F103: 18.96978995 | G103: -751.6899504 | K103: 70.08389894 | L103: 472.7354664 | M103: 21.61726513 | N103: 7981.973862 | O103: 5736 | P103: 2845 | Q103: 15789 | R103: -12944 | S103: 7915 | T103: 6188 | W103: -37 | X103: 20 | Y103: 1142 | Z103: 834 | AC103: 308 | AD103: -144 | AE103: 200 | AG103: 364 | AH103: 5002 | AI103: 1142 | AK103: 123 | AL103: -284 | AM103: -366 | AN103: 7915 | AO103: 6440 | AP103: 835 | AQ103: 640 | AR103: 21 | AT103: 68 | AU103: 2201 | AW103: 1.270547945 | AX103: 22 | AY103: -1194.002726 | BC103: 68 | BD103: 176.7378464 | BE103: 8.804179327 | BF103: 7327.124035 | BG103: 5794 | BH103: 2666 | BI103: 15292 | BJ103: -12626 | BK103: 6631 | BL103: 6345 | BO103: -35 | BP103: 20 | BQ103: 334 | BR103: 936 | BS103: 0 | BT103: 0 | BU103: -602 | BV103: 318 | BW103: 0 | BX103: 0 | BY103: -284 | BZ103: 4718 | CA103: 327 | CC103: 145 | CD103: -500 | CE103: -957 | CF103: 6631 | CG103: 5014 | CH103: 969 | CI103: 648 | CJ103: 21 | CL103: 258 | CM103: 2171 | CO103: 7.47761194 | CP103: 20.59310019 | CQ103: -908.797789 | CU103: 69.23426081 | CV103: 385.5366191 | CW103: 17.98463531 | CX103: 7.824504836 | CY103: 5860 | CZ103: 2764 | DA103: 14929 | DB103: -12165 | DC103: 7043 | DD103: 7121 | DG103: -40 | DH103: 5 | DI103: 1964 | DJ103: 978 | DK103: 0 | DL103: 0 | DM103: 986 | DN103: -153 | DO103: -550 | DP103: 0 | DQ103: 283 | DR103: 5001 | DS103: 1941 | DU103: -323 | DV103: -228 | DW103: 566 | DX103: 7043 | DY103: 5467 | DZ103: 882 | EA103: 694 | EB103: 21 | ED103: 13 | EE103: 8306 | EF103: 7752 | EG103: 7265 | EK103: -1598 | EL103: 90 | EN103: -1571 | EO103: 151 | EP103: 136 | EQ103: -1784 | ER103: 136 | ES103: 273 | ET103: 500 | EV103: 255 | EX103: 80 | EY103: 500 | EZ103: 1302 | FA103: 1046 | FB103: 256 | FC103: 0 | FD103: 1546 | FE103: 1318 | FF103: 228 | FG103: 0 | FH103: 1818 | FI103: 1090 | FJ103: 728 | FK103: 0 | FL103: 928.7967553 | FM103: 1296 | FN103: 1766.006449 | FO103: 260.3333333 | FP103: 119.9140181 | FS103: -1169 | FV103: 240 | FW103: -240
A104: 284 | B104: Koski tl | C104: 2438 | E104: 11.25490196 | F104: 17.01952482 | G104: 169.4011485 | K104: 78.26445146 | L104: 1052.091879 | M104: 54.1577486 | N104: 7090.648072 | O104: 6935 | P104: 3006 | Q104: 15927 | R104: -12921 | S104: 6574 | T104: 7424 | W104: 10 | X104: 60 | Y104: 1147 | Z104: 597 | AC104: 550 | AD104: 25 | AE104: -100 | AG104: 475 | AH104: 3467 | AI104: 1097 | AK104: 206 | AL104: -100 | AM104: 17 | AN104: 6574 | AO104: 5856 | AP104: 345 | AQ104: 373 | AR104: 19.5 | AT104: 84 | AU104: 2399 | AW104: 8.445544554 | AX104: 17 | AY104: 252.6052522 | BC104: 78 | BD104: 1215.506461 | BE104: 63.38752903 | BF104: 6999.166319 | BG104: 7025 | BH104: 3140 | BI104: 16619 | BJ104: -13479 | BK104: 6869 | BL104: 7425 | BO104: 18 | BP104: 35 | BQ104: 852 | BR104: 629 | BS104: 0 | BT104: 0 | BU104: 223 | BV104: -324 | BW104: 350 | BX104: 0 | BY104: 249 | BZ104: 3716 | CA104: 883 | CC104: 57 | CD104: 0 | CE104: 183 | CF104: 6869 | CG104: 6010 | CH104: 379 | CI104: 480 | CJ104: 19.5 | CL104: 143 | CM104: 2416 | CO104: 8.623762376 | CP104: 19.42531331 | CQ104: -16.97019868 | CU104: 77.00318948 | CV104: 1093.129139 | CW104: 51.47186032 | CX104: 7.751655629 | CY104: 6998 | CZ104: 3412 | DA104: 16878 | DB104: -13466 | DC104: 6787 | DD104: 7515 | DG104: 17 | DH104: 17 | DI104: 870 | DJ104: 664 | DK104: 0 | DL104: 0 | DM104: 206 | DN104: 37 | DO104: 0 | DP104: 0 | DQ104: 243 | DR104: 3959 | DS104: 883 | DU104: -73 | DV104: -100 | DW104: -488 | DX104: 6787 | DY104: 5938 | DZ104: 374 | EA104: 475 | EB104: 19.5 | ED104: 171 | EE104: 7348 | EF104: 7808 | EG104: 8055 | EK104: -1256 | EL104: 30 | EM104: 146 | EN104: -899 | EO104: 188 | EP104: 11 | EQ104: -1748 | ER104: 262 | ES104: 115 | EV104: 100 | EX104: 0 | EY104: 0 | EZ104: 300 | FA104: 200 | FB104: 100 | FC104: 23 | FD104: 200 | FE104: 100 | FF104: 100 | FG104: 23 | FH104: 100 | FI104: 0 | FJ104: 100 | FK104: 0 | FL104: 1097.621001 | FM104: 983 | FN104: 728.4768212 | FO104: 304.5128205 | FP104: 126.0400747 | FS104: -807 | FV104: 100 | FW104: -100
A105: 285 | B105: Kotka | C105: 54518 | E105: 0.2918994413 | F105: 80.10985488 | G105: -5052.40471 | K105: 45.41300545 | L105: 0 | M105: 0 | N105: 8225.393448 | O105: 154823 | P105: 94191 | Q105: 388050 | R105: -293859 | S105: 209467 | T105: 91082 | W105: -2870 | X105: 3558 | Y105: 7378 | Z105: 20524 | AA105: 19367 | AC105: 6221 | AD105: 3848 | AG105: 10069 | AH105: -32750 | AI105: 3983 | AK105: 4091 | AL105: -34249 | AM105: -14692 | AN105: 209467 | AO105: 184750 | AP105: 10842 | AQ105: 13875 | AR105: 20.5 | AT105: 264 | AU105: 54319 | AW105: 0.3633051877 | AX105: 83 | AY105: -5315.524954 | BC105: 43 | BD105: 0 | BE105: 0 | BF105: 8062.979804 | BG105: 151928 | BH105: 90753 | BI105: 390951 | BJ105: -300198 | BK105: 211078 | BL105: 96737 | BO105: -2237 | BP105: 11109 | BQ105: 9886 | BR105: 18684 | BS105: 0 | BT105: 0 | BU105: -8798 | BV105: 271 | BW105: 0 | BX105: 0 | BY105: -8527 | BZ105: -41277 | CA105: 9251 | CC105: -2085 | CD105: -30000 | CE105: -13371 | CF105: 211078 | CG105: 185520 | CH105: 10334 | CI105: 15224 | CJ105: 20.5 | CL105: 246 | CM105: 54187 | CO105: 0.5528704811 | CP105: 87.45349065 | CQ105: -5388.635651 | CU105: 40.78176393 | CV105: 488.3459132 | CW105: 21.41603104 | CX105: 8.323029509 | CY105: 150065 | CZ105: 94611 | DA105: 397740 | DB105: -303129 | DC105: 209578 | DD105: 106309 | DG105: -1759 | DH105: 3708 | DI105: 14707 | DJ105: 21888 | DK105: 224 | DL105: 66 | DM105: -7023 | DN105: 271 | DO105: 0 | DP105: 0 | DQ105: -6752 | DR105: -48029 | DS105: 16066 | DU105: 2713 | DV105: -28547 | DW105: -2778 | DX105: 209578 | DY105: 185958 | DZ105: 8225 | EA105: 15395 | EB105: 20.5 | ED105: 220 | EE105: 168457 | EF105: 168897 | EG105: 176454 | EK105: -21923 | EL105: 218 | EM105: 3030 | EN105: -24851 | EO105: 1716 | EP105: 1278 | EQ105: -21284 | ER105: 189 | ES105: 2251 | ET105: 30000 | EU105: 17319 | EV105: 32432 | EW105: 17286 | EX105: 30000 | EY105: 27706 | EZ105: 266382 | FA105: 191710 | FB105: 74672 | FC105: 4781 | FD105: 281271 | FE105: 193163 | FF105: 88108 | FG105: 4781 | FH105: 310433 | FI105: 196287 | FJ105: 114146 | FK105: 4763 | FL105: 10466.59819 | FM105: 10585 | FN105: 10968.25807 | FO105: 9071.121951 | FP105: 167.4040259 | FS105: -21858 | FV105: 26950 | FW105: -26950
A106: 286 | B106: Kouvola | C106: 86453 | E106: 0.1848882717 | F106: 47.11755742 | G106: -2267.532648 | K106: 53.69809071 | L106: 391.8198327 | M106: 17.20969109 | N106: 8310.099129 | O106: 272908 | P106: 93311 | Q106: 580690 | R106: -487379 | S106: 322188 | T106: 163960 | W106: -1869 | X106: 8615 | Y106: 5515 | Z106: 23019 | AA106: 25728 | AC106: 8224 | AD106: 102 | AG106: 8327 | AH106: 3408 | AI106: 15897 | AK106: -3833 | AL106: -44254 | AM106: 16597 | AN106: 322188 | AO106: 278689 | AP106: 18159 | AQ106: 25340 | AR106: 20 | AT106: 279 | AU106: 85855 | AW106: 0.6211484594 | AX106: 50 | AY106: -2393.570555 | BC106: 52 | BD106: 523.3940947 | BE106: 25.50113267 | BF106: 7491.38664 | BG106: 271380 | BH106: 77271 | BI106: 570794 | BJ106: -493462 | BK106: 332743 | BL106: 166672 | BO106: -905 | BP106: 16334 | BQ106: 14582 | BR106: 20923 | BS106: 2445 | BT106: 572 | BU106: -4468 | BV106: 102 | BW106: 0 | BX106: 3 | BY106: -4363 | BZ106: -954 | CA106: 14452 | CC106: 3579 | CD106: -50000 | CE106: -8927 | CF106: 332743 | CG106: 288291 | CH106: 19392 | CI106: 25060 | CJ106: 20.5 | CL106: 252 | CM106: 85306 | CO106: 1.028932753 | CP106: 44.46118175 | CQ106: -2379.938105 | CU106: 54.78199553 | CV106: 296.2042529 | CW106: 14.61582591 | CX106: 7.39708813 | CY106: 268989 | CZ106: 78574 | DA106: 577446 | DB106: -498846 | DC106: 340900 | DD106: 175852 | DG106: -744 | DH106: 7463 | DI106: 24625 | DJ106: 20424 | DK106: 1492 | DL106: 0 | DM106: 5693 | DN106: 102 | DO106: 0 | DP106: 3 | DQ106: 5798 | DR106: 4843 | DS106: 19865 | DU106: 3003 | DV106: -23854 | DW106: 1165 | DX106: 340900 | DY106: 294657 | DZ106: 17467 | EA106: 28776 | EB106: 20.75 | ED106: 214 | EE106: 218191 | EF106: 207087 | EG106: 212575 | EK106: -74566 | EL106: 1755 | EM106: 73511 | EN106: -30106 | EO106: 951 | EP106: 5776 | EQ106: -29194 | ER106: 2619 | ES106: 7875 | ET106: 37050 | EV106: 25402 | EX106: 1657 | EY106: 1135 | EZ106: 178913 | FA106: 153512 | FB106: 25401 | FC106: 40061 | FD106: 203512 | FE106: 179658 | FF106: 23854 | FG106: 40707 | FH106: 182451 | FI106: 157955 | FJ106: 24496 | FK106: 38863 | FL106: 3849.305403 | FM106: 4049 | FN106: 3910.47523 | FO106: 14200.33735 | FP106: 166.4635237 | FS106: -28284 | FV106: 21744 | FW106: -21744
A107: 287 | B107: Kristiinankaupunki | C107: 6845 | E107: 1.163080408 | F107: 63.07762091 | G107: -3568.590212 | K107: 33.4921195 | L107: 907.815924 | M107: 40.05067896 | N107: 8273.338203 | O107: 22112 | P107: 9544 | Q107: 47797 | R107: -38253 | S107: 23260 | T107: 20107 | W107: -602 | X107: 16 | Y107: 4528 | Z107: 2213 | AC107: 2315 | AG107: 2315 | AH107: 22 | AI107: 2615 | AK107: 328 | AL107: -3808 | AM107: 380 | AN107: 23260 | AO107: 20472 | AP107: 1013 | AQ107: 1775 | AR107: 21 | AT107: 28 | AU107: 6793 | AW107: 0.827601913 | AX107: 62 | AY107: -3633.887826 | BC107: 35 | BD107: 681.7311939 | BE107: 33.89102757 | BF107: 7342.116885 | BG107: 21989 | BH107: 8654 | BI107: 47622 | BJ107: -38967 | BK107: 23239 | BL107: 19390 | BO107: -526 | BP107: -37 | BQ107: 3099 | BR107: 2278 | BS107: 0 | BT107: 0 | BU107: 821 | BV107: 0 | BW107: 0 | BX107: 0 | BY107: 821 | BZ107: 843 | CA107: 2215 | CC107: 41 | CD107: -3000 | CE107: 81 | CF107: 23239 | CG107: 20266 | CH107: 1185 | CI107: 1788 | CJ107: 21.5 | CL107: 95 | CM107: 6727 | CO107: 2.067994172 | CP107: 49.35602827 | CQ107: -3001.635201 | CU107: 43.01251549 | CV107: 704.1771964 | CW107: 31.87693584 | CX107: 8.063029582 | CY107: 21539 | CZ107: 10828 | DA107: 46578 | DB107: -35750 | DC107: 23254 | DD107: 20967 | DG107: -418 | DH107: 44 | DI107: 8097 | DJ107: 2491 | DK107: 0 | DL107: 0 | DM107: 5606 | DN107: 0 | DO107: 0 | DP107: 0 | DQ107: 5606 | DR107: 6449 | DS107: 5342 | DU107: 919 | DV107: -3699 | DW107: 4518 | DX107: 23254 | DY107: 19971 | DZ107: 1257 | EA107: 2026 | EB107: 21.5 | ED107: 4 | EE107: 20348 | EF107: 20326 | EG107: 20379 | EH107: 980 | EK107: -4395 | EL107: 105 | EM107: 2055 | EN107: -3169 | EO107: 0 | EP107: 1035 | EQ107: -3529 | ER107: 0 | ES107: 2705 | ET107: 6100 | EU107: -227 | EV107: 3856 | EX107: 0 | EY107: 0 | EZ107: 25536 | FA107: 22762 | FB107: 2774 | FC107: 0 | FD107: 24680 | FE107: 20731 | FF107: 3949 | FG107: 0 | FH107: 20981 | FI107: 17032 | FJ107: 3949 | FK107: 0 | FL107: 4589.481373 | FM107: 4554 | FN107: 4024.230712 | FO107: 928.8837209 | FP107: 138.0829078 | FS107: -2515 | FV107: 2310 | FW107: -2310
A108: 288 | B108: Kruunupyy | C108: 6662 | E108: 0.3566781477 | F108: 51.75395257 | G108: -3036.025218 | K108: 32.71747049 | L108: 311.1678175 | M108: 15.12261662 | N108: 7510.35725 | O108: 11074 | P108: 6420 | Q108: 43720 | R108: -37300 | S108: 21404 | T108: 16705 | W108: -358 | X108: 103 | Y108: 554 | Z108: 1631 | AA108: 4882 | AB108: 2 | AC108: 3803 | AG108: 3803 | AH108: 5878 | AI108: 467 | AK108: 1220 | AL108: -2235 | AM108: -3059 | AN108: 21404 | AO108: 18154 | AP108: 1893 | AQ108: 1357 | AR108: 20 | AT108: 274 | AU108: 6682 | AW108: 0.3792866941 | AX108: 56 | AY108: -3343.16073 | BC108: 31 | BD108: 32.77461838 | BE108: 1.703172608 | BF108: 7023.795271 | BG108: 10492 | BH108: 2663 | BI108: 40377 | BJ108: -37714 | BK108: 22777 | BL108: 16004 | BO108: -381 | BP108: 42 | BQ108: 721 | BR108: 1090 | BS108: 0 | BT108: 0 | BU108: -369 | BV108: 0 | BW108: 0 | BX108: 0 | BY108: -369 | BZ108: 5408 | CA108: 604 | CC108: -3 | CD108: -4355 | CE108: -2112 | CF108: 22777 | CG108: 19049 | CH108: 1504 | CI108: 2224 | CJ108: 20.75 | CL108: 271 | CM108: 6620 | CO108: 0.4562640179 | CP108: 61.43772242 | CQ108: -3546.827795 | CU108: 29.20520586 | CV108: 218.1268882 | CW108: 11.36615557 | CX108: 7.004682779 | CY108: 9976 | CZ108: 3313 | DA108: 40954 | DB108: -37641 | DC108: 22338 | DD108: 16499 | DG108: -351 | DH108: 228 | DI108: 1073 | DJ108: 1125 | DK108: 0 | DL108: 0 | DM108: -52 | DN108: 0 | DO108: 0 | DP108: 0 | DQ108: -52 | DR108: 5355 | DS108: 903 | DU108: -123 | DV108: -2770 | DW108: -1140 | DX108: 22338 | DY108: 18792 | DZ108: 1509 | EA108: 2037 | EB108: 20.75 | ED108: 251 | EE108: 27790 | EF108: 27370 | EG108: 28581 | EK108: -3687 | EM108: 161 | EN108: -2843 | EO108: 0 | EP108: 127 | EQ108: -2296 | ER108: 0 | ES108: 253 | ET108: 4500 | EU108: 2720 | EV108: 2531 | EW108: 69 | EX108: 3567 | EY108: -255 | EZ108: 18469 | FA108: 13436 | FB108: 5033 | FC108: 0 | FD108: 20364 | FE108: 14983 | FF108: 5381 | FG108: 0 | FH108: 20906 | FI108: 15490 | FJ108: 5416 | FK108: 0 | FL108: 3312.368658 | FM108: 3635 | FN108: 3722.356495 | FO108: 905.6385542 | FP108: 136.803407 | FS108: -2737 | FV108: 1528 | FW108: -1528
A109: 290 | B109: Kuhmo | C109: 8950 | E109: 1.440317683 | F109: 33.49124036 | G109: 127.8212291 | K109: 59.29194715 | L109: 2092.402235 | M109: 89.45511772 | N109: 8537.541899 | O109: 17075 | P109: 9026 | Q109: 67611 | R109: -58585 | S109: 29499 | T109: 32825 | W109: -218 | X109: 2422 | Y109: 5943 | Z109: 2154 | AA109: 869 | AC109: 4658 | AD109: 42 | AG109: 4701 | AH109: 1483 | AI109: 6259 | AK109: -4375 | AL109: -4059 | AM109: 5547 | AN109: 29499 | AO109: 24833 | AP109: 2630 | AQ109: 2036 | AR109: 21.5 | AT109: 27 | AU109: 8806 | AW109: 0.5690661479 | AX109: 38 | AY109: -560.6404724 | BC109: 57 | BD109: 2050.079491 | BE109: 85.74070942 | BF109: 8727.231433 | BG109: 17192 | BH109: 6916 | BI109: 67361 | BJ109: -60445 | BK109: 29580 | BL109: 32479 | BO109: -109 | BP109: 652 | BQ109: 2157 | BR109: 1920 | BS109: 0 | BT109: 0 | BU109: 237 | BV109: 43 | BW109: 0 | BX109: 0 | BY109: 280 | BZ109: 1763 | CA109: 2002 | CC109: 2945 | CD109: -3570 | CE109: -5947 | CF109: 29580 | CG109: 24548 | CH109: 2949 | CI109: 2083 | CJ109: 21.5 | CL109: 206 | CM109: 8647 | CO109: 0.7471194663 | CP109: 46.30491259 | CQ109: -957.3262403 | CU109: 53.24447562 | CV109: 2236.960796 | CW109: 91.72539008 | CX109: 8.901468717 | CY109: 17181 | CZ109: 6890 | DA109: 66733 | DB109: -59843 | DC109: 28707 | DD109: 32534 | DG109: -85 | DH109: 993 | DI109: 2306 | DJ109: 2051 | DK109: 267 | DL109: 0 | DM109: 522 | DN109: 42 | DO109: 0 | DP109: 0 | DQ109: 564 | DR109: 2327 | DS109: 2593 | DU109: -559 | DV109: -3140 | DW109: -3436 | DX109: 28707 | DY109: 23817 | DZ109: 2734 | EA109: 2156 | EB109: 21.5 | ED109: 221 | EE109: 42268 | EF109: 43923 | EG109: 43295 | EK109: -4235 | EL109: 473 | EM109: 3050 | EN109: -9393 | EO109: 1444 | EP109: 0 | EQ109: -6506 | ER109: 275 | ES109: 202 | ET109: 2251 | EU109: 1500 | EV109: 3929 | EW109: 2500 | EX109: 8273 | EY109: 1000 | EZ109: 17967 | FA109: 12538 | FB109: 5429 | FC109: 239 | FD109: 20107 | FE109: 12967 | FF109: 7140 | FG109: 440 | FH109: 26239 | FI109: 18024 | FJ109: 8215 | FK109: 347 | FL109: 2968.379888 | FM109: 3137 | FN109: 3925.754597 | FO109: 1107.767442 | FP109: 128.1100314 | FS109: -8048 | FV109: 3111 | FW109: -3111
A110: 291 | B110: Kuhmoinen | C110: 2374 | E110: 3.857142857 | F110: 26.63713209 | G110: -215.2485257 | K110: 73.54046832 | L110: 1481.88711 | M110: 63.46414274 | N110: 8522.74642 | O110: 4780 | P110: 2877 | Q110: 18376 | R110: -15499 | S110: 7685 | T110: 9076 | W110: 106 | X110: 15 | Y110: 1383 | Z110: 1117 | AC110: 266 | AD110: 12 | AG110: 278 | AH110: 3507 | AI110: 1384 | AK110: -533 | AL110: -344 | AM110: 151 | AN110: 7685 | AO110: 5609 | AP110: 748 | AQ110: 1328 | AR110: 19.75 | AT110: 43 | AU110: 2334 | AW110: 5.735849057 | AX110: 21 | AY110: -107.1122536 | BC110: 78 | BD110: 1430.59126 | BE110: 64.87809422 | BF110: 8048.414739 | BG110: 4546 | BH110: 2664 | BI110: 18119 | BJ110: -15455 | BK110: 8155 | BL110: 9040 | BO110: 93 | BP110: -19 | BQ110: 1803 | BR110: 1114 | BS110: 0 | BT110: 0 | BU110: 689 | BV110: 3 | BW110: 0 | BX110: 0 | BY110: 692 | BZ110: 4199 | CA110: 1690 | CC110: 612 | CD110: -1000 | CE110: 254 | CF110: 8155 | CG110: 5917 | CH110: 906 | CI110: 1332 | CJ110: 20.75 | CL110: 17 | CM110: 2286 | CO110: 10.02688172 | CP110: 16.07717042 | CQ110: 310.1487314 | CU110: 82.16607839 | CV110: 1484.251969 | CW110: 63.95935547 | CX110: 8.470253718 | CY110: 4355 | CZ110: 2285 | DA110: 18206 | DB110: -15921 | DC110: 8267 | DD110: 9352 | DG110: 105 | DH110: 37 | DI110: 1840 | DJ110: 1074 | DK110: 0 | DL110: 0 | DM110: 766 | DN110: 5 | DO110: 0 | DP110: 0 | DQ110: 771 | DR110: 4970 | DS110: 1855 | DU110: 74 | DV110: -161 | DW110: 958 | DX110: 8267 | DY110: 6063 | DZ110: 861 | EA110: 1343 | EB110: 20.75 | ED110: 23 | EE110: 11808 | EF110: 11929 | EG110: 12106 | EK110: -1233 | EN110: -1609 | EO110: 0 | EP110: 173 | EQ110: -927 | ER110: 0 | ES110: 30 | EU110: 1500 | EV110: 297 | EW110: -2000 | EX110: 0 | EY110: -1000 | EZ110: 3917 | FA110: 670 | FB110: 3247 | FC110: 582 | FD110: 2620 | FE110: 1409 | FF110: 1211 | FG110: 571 | FH110: 1459 | FI110: 1262 | FJ110: 197 | FK110: 559 | FL110: 2921.229992 | FM110: 2311 | FN110: 3615.92301 | FO110: 292.1927711 | FP110: 127.8183601 | FS110: -1465 | FV110: 780 | FW110: -780
A111: 297 | B111: Kuopio | C111: 107543 | E111: 1.361660802 | F111: 50.56634936 | G111: -2886.947547 | K111: 57.31852342 | L111: 494.9183117 | M111: 18.47445289 | N111: 9778.107362 | O111: 289293 | P111: 241123 | Q111: 754019 | R111: -512896 | S111: 405737 | T111: 149060 | W111: -1776 | X111: 2889 | Y111: 43014 | Z111: 49699 | AA111: 126024 | AB111: 1322 | AC111: 118017 | AD111: 274 | AE111: 96 | AG111: 118387 | AH111: 128288 | AI111: 56221 | AK111: 19196 | AL111: -30166 | AM111: 51153 | AN111: 405737 | AO111: 352702 | AP111: 19247 | AQ111: 33788 | AR111: 20.5 | AT111: 115 | AU111: 112119 | AW111: 0.8911011189 | AX111: 53 | AY111: -2874.963209 | BC111: 56 | BD111: 465.5410769 | BE111: 23.77258525 | BF111: 7147.833998 | BG111: 308628 | BH111: 201644 | BI111: 764350 | BJ111: -562706 | BK111: 429383 | BL111: 164183 | BO111: 2047 | BP111: 5426 | BQ111: 36745 | BR111: 50470 | BS111: 270 | BT111: 0 | BU111: -13455 | BV111: 482 | BW111: 0 | BX111: 0 | BY111: -12973 | BZ111: 117036 | CA111: 29350 | CC111: -2520 | CD111: -45000 | CE111: -3634 | CF111: 429383 | CG111: 369418 | CH111: 21790 | CI111: 38175 | CJ111: 20.5 | CL111: 155 | CM111: 112119 | CO111: 0.7850200297 | CP111: 51.02533415 | CQ111: -2871.758116 | CU111: 56.25266375 | CV111: 449.6208401 | CW111: 21.12876454 | CX111: 7.767212622 | CY111: 309790 | CZ111: 202114 | DA111: 776221 | DB111: -574107 | DC111: 429135 | DD111: 182730 | DG111: 2622 | DH111: 3824 | DI111: 44204 | DJ111: 51235 | DK111: 5181 | DL111: 4401 | DM111: -6251 | DN111: 429 | DO111: 0 | DP111: 0 | DQ111: -5822 | DR111: 111214 | DS111: 40690 | DU111: 4137 | DV111: -57674 | DW111: -31 | DX111: 429135 | DY111: 372394 | DZ111: 20477 | EA111: 36264 | EB111: 20.5 | ED111: 148 | EE111: 326488 | EF111: 347061 | EG111: 351653 | EK111: -190374 | EL111: 3312 | EM111: 181994 | EN111: -46958 | EO111: 651 | EP111: 13323 | EQ111: -57223 | ER111: 859 | ES111: 15643 | ET111: 87272 | EV111: 41952 | EW111: -500 | EX111: 58000 | EY111: 0 | EZ111: 305841 | FA111: 264848 | FB111: 40993 | FC111: 135557 | FD111: 314106 | FE111: 278926 | FF111: 35180 | FG111: 135453 | FH111: 314432 | FI111: 265065 | FJ111: 49367 | FK111: 135484 | FL111: 8195.428805 | FM111: 8103 | FN111: 8021.93553 | FO111: 18165.56098 | FP111: 162.0203621 | FS111: -31934 | FV111: 12990 | FW111: -12990
A112: 300 | B112: Kuortane | C112: 3727 | E112: 42.48387097 | F112: 39.13684059 | G112: -2102.763617 | K112: 59.17735515 | L112: 485.3769788 | M112: 23.0901175 | N112: 7672.658975 | O112: 11645 | P112: 4115 | Q112: 26559 | R112: -22444 | S112: 11425 | T112: 12288 | W112: -1 | X112: 20 | Y112: 1288 | Z112: 1022 | AC112: 266 | AG112: 266 | AH112: 1253 | AI112: 1168 | AK112: 34 | AL112: -2 | AM112: -620 | AN112: 11425 | AO112: 10035 | AP112: 526 | AQ112: 864 | AR112: 21 | AT112: 153 | AU112: 3715 | AW112: 64.53846154 | AX112: 41 | AY112: -2256.79677 | BC112: 58 | BD112: 405.3835801 | BE112: 20.57916214 | BF112: 7190.040377 | BG112: 12031 | BH112: 3836 | BI112: 26514 | BJ112: -22678 | BK112: 11001 | BL112: 12477 | BO112: 10 | BP112: 18 | BQ112: 828 | BR112: 1143 | BS112: 0 | BT112: 0 | BU112: -315 | BV112: 0 | BW112: 0 | BX112: 0 | BY112: -315 | BZ112: 720 | CA112: 752 | CC112: 31 | CD112: 0 | CE112: -458 | CF112: 11001 | CG112: 9670 | CH112: 611 | CI112: 720 | CJ112: 21 | CL112: 221 | CM112: 3690 | CO112: 312.4285714 | CP112: 38.47922064 | CQ112: -2139.566396 | CU112: 60.50018389 | CV112: 476.4227642 | CW112: 23.69009821 | CX112: 7.340379404 | CY112: 7521 | CZ112: 2915 | DA112: 25251 | DB112: -22336 | DC112: 11112 | DD112: 13380 | DG112: 10 | DH112: 16 | DI112: 2182 | DJ112: 1191 | DK112: 0 | DL112: 0 | DM112: 991 | DN112: 0 | DO112: 0 | DP112: 0 | DQ112: 991 | DR112: 1711 | DS112: 2149 | DU112: 322 | DV112: -2 | DW112: 525 | DX112: 11112 | DY112: 9655 | DZ112: 602 | EA112: 855 | EB112: 21 | ED112: 59 | EE112: 12035 | EF112: 11700 | EG112: 15671 | EK112: -2000 | EL112: 58 | EM112: 154 | EN112: -1646 | EO112: 163 | EP112: 273 | EQ112: -1827 | ER112: 58 | ES112: 145 | EU112: 460 | EV112: 2 | EW112: 170 | EX112: 0 | EY112: 530 | EZ112: 7314 | FA112: 682 | FB112: 6632 | FC112: 1916 | FD112: 7482 | FE112: 680 | FF112: 6802 | FG112: 1847 | FH112: 8010 | FI112: 678 | FJ112: 7332 | FK112: 1819 | FL112: 4046.149718 | FM112: 3941 | FN112: 4151.761518 | FO112: 459.7619048 | FP112: 124.5967222 | FS112: -1284 | FV112: 0 | FW112: 0
A113: 301 | B113: Kurikka | C113: 14188 | E113: -0.2876122345 | F113: 66.2683968 | G113: -1702.988441 | K113: 63.77840534 | L113: 2054.271215 | M113: 82.72194272 | N113: 9064.209191 | O113: 24583 | P113: 8121 | Q113: 95926 | R113: -87805 | S113: 38957 | T113: 35613 | W113: -81 | X113: 8843 | Y113: -4473 | Z113: 3701 | AC113: -8174 | AD113: -2279 | AE113: 2618 | AG113: -7835 | AH113: 33323 | AI113: -5141 | AK113: 1062 | AL113: -13166 | AM113: -4456 | AN113: 38957 | AO113: 35159 | AP113: 1743 | AQ113: 2055 | AR113: 19 | AT113: 304 | AU113: 13958 | AW113: 0.5069239147 | AX113: 62 | AY113: -1646.224387 | BC113: 65 | BD113: 1932.511821 | BE113: 106.2656233 | BF113: 6637.770454 | BG113: 25041 | BH113: 7319 | BI113: 89292 | BJ113: -81973 | BK113: 39915 | BL113: 35747 | BO113: -99 | BP113: 18312 | BQ113: 2765 | BR113: 4155 | BS113: 0 | BT113: 0 | BU113: -1390 | BV113: 42 | BW113: 381 | BX113: 0 | BY113: -967 | BZ113: 32356 | CA113: 2501 | CC113: -319 | CD113: -5400 | CE113: 364 | CF113: 39915 | CG113: 35681 | CH113: 2065 | CI113: 2169 | CJ113: 19 | CL113: 238 | CM113: 21501 | CO113: 0.187519213 | CP113: 63.11409451 | CQ113: -2775.777871 | CU113: 54.5612129 | CV113: 1381.191572 | CW113: 60.92359964 | CX113: 8.274870936 | CY113: 46149 | CZ113: 22523 | DA113: 149678 | DB113: -127155 | DC113: 63169 | DD113: 59705 | DG113: 41 | DH113: 7097 | DI113: 2857 | DJ113: 8853 | DK113: 0 | DL113: 0 | DM113: -5996 | DN113: 425 | DO113: 0 | DP113: 0 | DQ113: -5571 | DR113: 14303 | DS113: 1085 | DU113: 2068 | DV113: -18715 | DW113: -1903 | DX113: 63169 | DY113: 55388 | DZ113: 3439 | EA113: 4342 | EB113: 20 | ED113: 262 | EE113: 57286 | EF113: 56507 | EG113: 91849 | EK113: -16431 | EL113: 105 | EM113: 17011 | EN113: -2733 | EO113: 218 | EP113: 378 | EQ113: -7223 | ER113: 87 | ES113: 4148 | ET113: 20990 | EU113: -800 | EV113: 5934 | EX113: 21900 | EY113: -3900 | EZ113: 45079 | FA113: 39145 | FB113: 5934 | FC113: 18772 | FD113: 44545 | FE113: 37490 | FF113: 7055 | FG113: 17945 | FH113: 80719 | FI113: 65287 | FJ113: 15432 | FK113: 25502 | FL113: 5333.239357 | FM113: 5264 | FN113: 6144.086322 | FO113: 2769.4 | FP113: 128.8033115 | FS113: -2227 | FV113: 1962 | FW113: -1962
A114: 304 | B114: Kustavi | C114: 892 | E114: 2.04620462 | F114: 31.05565717 | G114: -919.2825112 | K114: 72.4887815 | L114: 1140.134529 | M114: 46.53441143 | N114: 8942.825112 | O114: 2251 | P114: 1222 | Q114: 7042 | R114: -5820 | S114: 3979 | T114: 2453 | W114: -33 | X114: 8 | Y114: 587 | Z114: 270 | AB114: 26 | AC114: 291 | AD114: 18 | AG114: 309 | AH114: 2366 | AI114: 547 | AK114: 145 | AL114: -270 | AM114: 52 | AN114: 3979 | AO114: 2469 | AP114: 142 | AQ114: 1368 | AR114: 19.25 | AT114: 30 | AU114: 895 | AW114: 1.75261324 | AX114: 29 | AY114: -998.8826816 | BC114: 75 | BD114: 758.6592179 | BE114: 35.93373931 | BF114: 7706.145251 | BG114: 2354 | BH114: 1230 | BI114: 7128 | BJ114: -5898 | BK114: 4028 | BL114: 2363 | BO114: -32 | BP114: 12 | BQ114: 471 | BR114: 271 | BS114: 0 | BT114: 0 | BU114: 200 | BV114: 18 | BW114: 0 | BX114: 0 | BY114: 218 | BZ114: 2584 | CA114: 462 | CC114: -62 | CD114: 0 | CE114: -73 | CF114: 4028 | CG114: 2502 | CH114: 167 | CI114: 1359 | CJ114: 19.25 | CL114: 63 | CM114: 908 | CO114: 2.887640449 | CP114: 32.24870728 | CQ114: -1150.881057 | CU114: 73.0163728 | CV114: 908.5903084 | CW114: 35.95093123 | CX114: 9.224669604 | CY114: 2335 | CZ114: 1204 | DA114: 7163 | DB114: -5959 | DC114: 4233 | DD114: 2492 | DG114: -25 | DH114: 5 | DI114: 746 | DJ114: 276 | DK114: 0 | DL114: 400 | DM114: 70 | DN114: 18 | DO114: 0 | DP114: 0 | DQ114: 88 | DR114: 2673 | DS114: 743 | DU114: -84 | DV114: -242 | DW114: -137 | DX114: 4233 | DY114: 2684 | DZ114: 149 | EA114: 1400 | EB114: 19.25 | ED114: 21 | EE114: 3785 | EF114: 3761 | EG114: 3717 | EK114: -632 | EL114: 83 | EM114: 54 | EN114: -695 | EO114: 148 | EP114: 12 | EQ114: -946 | ER114: 62 | ES114: 4 | ET114: 450 | EU114: 0 | EV114: 255 | EX114: 650 | EY114: 0 | EZ114: 1731 | FA114: 1476 | FB114: 255 | FC114: 0 | FD114: 1476 | FE114: 1234 | FF114: 242 | FG114: 0 | FH114: 1884 | FI114: 1569 | FJ114: 315 | FK114: 0 | FL114: 1941 | FM114: 4531 | FN114: 4794.052863 | FO114: 139.4285714 | FP114: 153.5556954 | FS114: -495 | FV114: 174 | FW114: -174
A115: 305 | B115: Kuusamo | C115: 15823 | E115: 1.677108888 | F115: 35.86725215 | G115: -712.7599065 | K115: 64.36110859 | L115: 1596.031094 | M115: 74.4522523 | N115: 7824.495987 | O115: 54380 | P115: 21054 | Q115: 111640 | R115: -90586 | S115: 52361 | T115: 45662 | W115: -547 | X115: 1401 | Y115: 8291 | Z115: 4686 | AC115: 3605 | AF115: 261 | AG115: 3866 | AH115: 11262 | AI115: 8145 | AK115: 142 | AL115: -4703 | AM115: 1473 | AN115: 52361 | AO115: 42428 | AP115: 3086 | AQ115: 6847 | AR115: 20 | AT115: 63 | AU115: 15688 | AW115: 1.480892537 | AX115: 38 | AY115: -705.5073942 | BC115: 63 | BD115: 1740.374809 | BE115: 83.20957709 | BF115: 7634.17899 | BG115: 52637 | BH115: 19506 | BI115: 112862 | BJ115: -93356 | BK115: 52714 | BL115: 44846 | BO115: -492 | BP115: 1604 | BQ115: 5254 | BR115: 5147 | BS115: 0 | BT115: 0 | BU115: 107 | BV115: 0 | BW115: 0 | BX115: 527 | BY115: 634 | BZ115: 11680 | CA115: 5061 | CC115: 205 | CD115: -5000 | CE115: 753 | CF115: 52714 | CG115: 42246 | CH115: 3595 | CI115: 6873 | CJ115: 20 | CL115: 148 | CM115: 15533 | CO115: 2.045001216 | CP115: 37.82899335 | CQ115: -630.4641731 | CU115: 63.18881957 | CV115: 1928.281723 | CW115: 86.05135148 | CX115: 8.179102556 | CY115: 52370 | CZ115: 23693 | DA115: 115111 | DB115: -91418 | DC115: 51794 | DD115: 46600 | DG115: -537 | DH115: 1466 | DI115: 7905 | DJ115: 6251 | DK115: 0 | DL115: 0 | DM115: 1654 | DN115: 0 | DO115: 0 | DP115: 540 | DQ115: 2194 | DR115: 14582 | DS115: 6509 | DU115: -526 | DV115: -3609 | DW115: 610 | DX115: 51794 | DY115: 41662 | DZ115: 3304 | EA115: 6828 | EB115: 20 | ED115: 89 | EE115: 43645 | EF115: 46447 | EG115: 46768 | EK115: -7461 | EL115: 480 | EM115: 309 | EN115: -5446 | EO115: 1064 | EP115: 74 | EQ115: -8055 | ER115: 753 | ES115: 1403 | ET115: 7500 | EU115: -2000 | EV115: 3379 | EX115: 6500 | EY115: 0 | EZ115: 27748 | FA115: 24371 | FB115: 3377 | FC115: 4875 | FD115: 29369 | FE115: 25760 | FF115: 3609 | FG115: 5329 | FH115: 32260 | FI115: 28066 | FJ115: 4194 | FK115: 5199 | FL115: 3817.607281 | FM115: 3807 | FN115: 3912.251336 | FO115: 2083.1 | FP115: 134.1080281 | FS115: -4293 | FV115: 4686 | FW115: -4686
A116: 312 | B116: Kyyjärvi | C116: 1399 | E116: 0.120610687 | F116: 88.71041762 | G116: -3308.791994 | K116: 39.90689013 | L116: 3400.285919 | M116: 131.9079997 | N116: 9408.863474 | O116: 2600 | P116: 1751 | Q116: 11034 | R116: -9283 | S116: 4283 | T116: 4878 | W116: 9 | X116: 142 | Y116: 29 | Z116: 505 | AA116: 510 | AC116: 34 | AG116: 34 | AH116: 942 | AI116: 29 | AK116: -59 | AL116: -605 | AM116: -196 | AN116: 4283 | AO116: 3288 | AP116: 704 | AQ116: 291 | AR116: 20.5 | AT116: 287 | AU116: 1379 | AW116: 1.71047619 | AX116: 103 | AY116: -3184.916606 | BC116: 40 | BD116: 3846.990573 | BE116: 139.6455358 | BF116: 10055.1124 | BG116: 2616 | BH116: 1753 | BI116: 10364 | BJ116: -8611 | BK116: 4527 | BL116: 4528 | BO116: -10 | BP116: 430 | BQ116: 863 | BR116: 523 | BS116: 0 | BT116: 0 | BU116: 340 | BV116: 0 | BW116: 0 | BX116: 0 | BY116: 340 | BZ116: 2008 | CA116: 863 | CC116: -1116 | CD116: -1700 | CE116: -472 | CF116: 4527 | CG116: 3519 | CH116: 723 | CI116: 285 | CJ116: 20.5 | CL116: 37 | CM116: 1375 | CO116: -2.435530086 | CP116: 116.8154304 | CQ116: -4093.090909 | CU116: 34.727554 | CV116: 4001.454545 | CW116: 173.3324702 | CX116: 8.426181818 | CY116: 2663 | CZ116: 1608 | DA116: 10747 | DB116: -9139 | DC116: 3907 | DD116: 4259 | DG116: 9 | DH116: 95 | DI116: -869 | DJ116: 565 | DK116: 0 | DL116: 0 | DM116: -1434 | DN116: 0 | DO116: 0 | DP116: 0 | DQ116: -1434 | DR116: 574 | DS116: -872 | DU116: 1139 | DV116: -330 | DW116: -1338 | DX116: 3907 | DY116: 3083 | DZ116: 541 | EA116: 283 | EB116: 20.5 | ED116: 297 | EE116: 7327 | EF116: 6742 | EG116: 7067 | EK116: -1057 | EL116: 51 | EM116: 781 | EN116: -1507 | EO116: 169 | EP116: 3 | EQ116: -493 | ER116: 22 | ES116: 5 | ET116: 1300 | EV116: 490 | EW116: 725 | EX116: 300 | EY116: 0 | EZ116: 8942 | FA116: 8452 | FB116: 490 | FC116: 784 | FD116: 10152 | FE116: 9822 | FF116: 330 | FG116: 801 | FH116: 10122 | FI116: 9872 | FJ116: 250 | FK116: 700 | FL116: 8640.45747 | FM116: 10017 | FN116: 10544.72727 | FO116: 150.3902439 | FP116: 109.3747228 | FS116: -1092 | FV116: 780 | FW116: -780
A117: 316 | B117: Kärkölä | C117: 4647 | E117: 7.404432133 | F117: 50.14807204 | G117: -3134.710566 | K117: 37.13305097 | L117: 161.8248332 | M117: 8.018462797 | N117: 7366.257801 | O117: 2301 | P117: 8755 | Q117: 27709 | R117: -18954 | S117: 15460 | T117: 8877 | W117: -111 | X117: -51 | Y117: 5221 | Z117: 1268 | AC117: 3953 | AG117: 3953 | AH117: -299 | AI117: 1332 | AK117: -726 | AL117: -598 | AM117: 3460 | AN117: 15460 | AO117: 13914 | AP117: 478 | AQ117: 1068 | AR117: 21 | AT117: 5 | AU117: 4604 | AW117: 0.3501440922 | AX117: 63 | AY117: -3430.929626 | BC117: 33 | BD117: 241.3119027 | BE117: 12.00458851 | BF117: 7337.098175 | BG117: 2242 | BH117: 4441 | BI117: 28280 | BJ117: -23839 | BK117: 16170 | BL117: 7954 | BO117: -80 | BP117: -46 | BQ117: 147 | BR117: 1304 | BS117: 0 | BT117: 0 | BU117: -1157 | BV117: 0 | BW117: 0 | BX117: 0 | BY117: -1157 | BZ117: -1456 | CA117: 156 | CC117: 238 | CD117: 0 | CE117: -1416 | CF117: 16170 | CG117: 14315 | CH117: 627 | CI117: 1228 | CJ117: 21.75 | CL117: 287 | CM117: 4540 | CO117: 1.42778542 | CP117: 44.95230525 | CQ117: -2244.052863 | CU117: 51.26440221 | CV117: 352.6431718 | CW117: 19.90750835 | CX117: 6.465638767 | CY117: 6036 | CZ117: 2877 | DA117: 26698 | DB117: -23821 | DC117: 16223 | DD117: 8576 | DG117: -87 | DH117: 18 | DI117: 909 | DJ117: 1062 | DK117: 4844 | DL117: 0 | DM117: 4691 | DN117: 0 | DO117: 0 | DP117: 0 | DQ117: 4691 | DR117: 3235 | DS117: 5749 | DU117: -69 | DV117: -598 | DW117: 5121 | DX117: 16223 | DY117: 14435 | DZ117: 625 | EA117: 1163 | EB117: 21.75 | ED117: 241 | EE117: 24221 | EF117: 24532 | EG117: 18664 | EH117: 665 | EK117: -2038 | EL117: 224 | EM117: 3942 | EN117: -1955 | EO117: 378 | EP117: 5 | EQ117: -1923 | ER117: 15 | ES117: 1280 | EU117: 2500 | EV117: 598 | EW117: 2500 | EX117: 0 | EY117: -6000 | EZ117: 14185 | FA117: 10087 | FB117: 4098 | FC117: 4504 | FD117: 16087 | FE117: 9489 | FF117: 6598 | FG117: 4305 | FH117: 9488 | FI117: 8890 | FJ117: 598 | FK117: 3842 | FL117: 3337.637185 | FM117: 3756 | FN117: 2327.53304 | FO117: 663.6781609 | FP117: 146.1846169 | FS117: -1571 | FV117: 524 | FW117: -524
A118: 317 | B118: Kärsämäki | C118: 2696 | E118: 0.7252419955 | F118: 74.20986094 | G118: -2235.163205 | K118: 41.36535027 | L118: 2775.593472 | M118: 121.9219266 | N118: 8309.347181 | O118: 4722 | P118: 1853 | Q118: 18995 | R118: -17142 | S118: 7065 | T118: 10857 | W118: -128 | X118: 191 | Y118: 843 | Z118: 509 | AC118: 334 | AD118: 55 | AG118: 389 | AH118: 2636 | AI118: 1008 | AK118: -694 | AL118: -1212 | AM118: 314 | AN118: 7065 | AO118: 6228 | AP118: 397 | AQ118: 440 | AR118: 21.5 | AT118: 175 | AU118: 2658 | AW118: 0.9376026273 | AX118: 77 | AY118: -2202.031603 | BC118: 41 | BD118: 3290.443943 | BE118: 136.3876784 | BF118: 8805.869074 | BG118: 6284 | BH118: 2571 | BI118: 19759 | BJ118: -17188 | BK118: 7215 | BL118: 10794 | BO118: -100 | BP118: 321 | BQ118: 1041 | BR118: 513 | BS118: 0 | BT118: 0 | BU118: 528 | BV118: 0 | BW118: 55 | BX118: 0 | BY118: 583 | BZ118: 3219 | CA118: 1041 | CC118: -75 | CD118: -2400 | CE118: 300 | CF118: 7215 | CG118: 6235 | CH118: 476 | CI118: 504 | CJ118: 21.5 | CL118: 125 | CM118: 2655 | CO118: 1.193982581 | CP118: 72.92652086 | CQ118: -1749.152542 | CU118: 42.97568787 | CV118: 3337.099812 | CW118: 149.3028624 | CX118: 8.15819209 | CY118: 5994 | CZ118: 3067 | DA118: 20065 | DB118: -16998 | DC118: 7063 | DD118: 11223 | DG118: -69 | DH118: 220 | DI118: 1439 | DJ118: 583 | DK118: 0 | DL118: 0 | DM118: 856 | DN118: 0 | DO118: 55 | DP118: 35 | DQ118: 946 | DR118: 4167 | DS118: 1290 | DU118: -828 | DV118: -1194 | DW118: 1204 | DX118: 7063 | DY118: 6065 | DZ118: 500 | EA118: 498 | EB118: 21.5 | ED118: 71 | EE118: 12719 | EF118: 11569 | EG118: 12100 | EK118: -1842 | EL118: 114 | EM118: 1034 | EN118: -1076 | EO118: 335 | EP118: 0 | EQ118: -238 | ER118: 0 | ES118: 152 | EU118: 1600 | EV118: 1117 | EW118: -1200 | EX118: 0 | EY118: 112 | EZ118: 12826 | FA118: 9409 | FB118: 3417 | FC118: 420 | FD118: 12910 | FE118: 10616 | FF118: 2294 | FG118: 540 | FH118: 11828 | FI118: 9552 | FJ118: 2276 | FK118: 540 | FL118: 7343.47181 | FM118: 7118 | FN118: 6978.907721 | FO118: 282.0930233 | FP118: 106.2497263 | FS118: -815 | FV118: 1691 | FW118: -1691
A119: 398 | B119: Lahti | C119: 103754 | E119: 1.07967327 | F119: 103.9098715 | G119: -4709.649748 | K119: 44.11794846 | L119: 744.1544422 | M119: 34.82838718 | N119: 7798.706556 | O119: 269954 | P119: 131763 | Q119: 624478 | R119: -492715 | S119: 385768 | T119: 149253 | W119: -2229 | X119: 12905 | Y119: 52982 | Z119: 34962 | AA119: 2990 | AC119: 21010 | AD119: 489 | AF119: 940 | AG119: 22440 | AH119: 125677 | AI119: 32384 | AK119: -17420 | AL119: -48144 | AM119: -21398 | AN119: 385768 | AO119: 334941 | AP119: 22542 | AQ119: 28285 | AR119: 20.25 | AT119: 70 | AU119: 103918 | AW119: 0.6008854856 | AX119: 115 | AY119: -5439.356031 | BC119: 41 | BD119: 882.5708732 | BE119: 36.06481566 | BF119: 8932.206163 | BG119: 269781 | BH119: 121803 | BI119: 653297 | BJ119: -531494 | BK119: 392633 | BL119: 157685 | BO119: -4239 | BP119: 20705 | BQ119: 24686 | BR119: 37509 | BS119: 8185 | BT119: 0 | BU119: -4638 | BV119: 451 | BW119: 0 | BX119: 1184 | BY119: -3003 | BZ119: 120814 | CA119: 33019 | CC119: 7743 | CD119: -132619 | CE119: -41113 | CF119: 392633 | CG119: 336774 | CH119: 23485 | CI119: 32374 | CJ119: 20.25 | CL119: 212 | CM119: 119452 | CO119: 0.7537533666 | CP119: 108.1893032 | CQ119: -5511.176037 | CU119: 40.92217896 | CV119: 456.2418377 | CW119: 20.95302875 | CX119: 7.947694471 | CY119: 279858 | CZ119: 130722 | DA119: 739180 | DB119: -608458 | DC119: 449177 | DD119: 193429 | DG119: -5027 | DH119: 9565 | DI119: 38686 | DJ119: 49416 | DK119: 1600 | DL119: 689 | DM119: -9819 | DN119: 533 | DO119: 0 | DP119: 0 | DQ119: -9286 | DR119: 137950 | DS119: 34046 | DU119: -1953 | DV119: -55875 | DW119: -5557 | DX119: 449177 | DY119: 390502 | DZ119: 22132 | EA119: 36543 | EB119: 20.25 | ED119: 194 | EE119: 255442 | EF119: 273389 | EG119: 337906 | EK119: -80713 | EL119: 2890 | EM119: 24041 | EN119: -86190 | EO119: 4406 | EP119: 7652 | EQ119: -63551 | ER119: 444 | ES119: 23504 | ET119: 153068 | EU119: -56618 | EV119: 50017 | EW119: -654 | EX119: 62572 | EY119: 3658 | EZ119: 607736 | FA119: 529061 | FB119: 78675 | FC119: 367563 | FD119: 689685 | FE119: 619554 | FF119: 70131 | FG119: 403956 | FH119: 744458 | FI119: 652351 | FJ119: 92107 | FK119: 444722 | FL119: 8531.054224 | FM119: 9073 | FN119: 8283.56997 | FO119: 19284.04938 | FP119: 161.4376434 | FS119: -73899 | FV119: 19835 | FW119: -19835
A120: 399 | B120: Laihia | C120: 8068 | E120: 0.6214285714 | F120: 46.69938357 | G120: -2437.77888 | K120: 45.58505364 | L120: 199.0580069 | M120: 10.69728822 | N120: 6792.017848 | O120: 17820 | P120: 6960 | Q120: 48884 | R120: -41924 | S120: 29015 | T120: 14152 | W120: -189 | X120: 45 | Y120: 1099 | Z120: 1738 | AC120: -639 | AD120: 102 | AG120: -537 | AH120: 1749 | AI120: 1049 | AK120: 207 | AL120: -1894 | AM120: -2566 | AN120: 29015 | AO120: 26577 | AP120: 1112 | AQ120: 1326 | AR120: 20.75 | AT120: 263 | AU120: 8090 | AW120: 0.5242085661 | AX120: 49 | AY120: -2598.02225 | BC120: 43 | BD120: 144.3757726 | BE120: 8.445994136 | BF120: 6239.307787 | BG120: 19581 | BH120: 7019 | BI120: 49366 | BJ120: -42347 | BK120: 29825 | BL120: 13595 | BO120: -142 | BP120: 49 | BQ120: 971 | BR120: 1976 | BS120: 0 | BT120: 0 | BU120: -1005 | BV120: 102 | BW120: 0 | BX120: 0 | BY120: -903 | BZ120: 764 | CA120: 876 | CC120: -192 | CD120: 0 | CE120: -1380 | CF120: 29825 | CG120: 27383 | CH120: 1090 | CI120: 1352 | CJ120: 21.5 | CL120: 267 | CM120: 8139 | CO120: 0.0404494382 | CP120: 56.00725166 | CQ120: -3092.517508 | CU120: 37.03304055 | CV120: 117.2134169 | CW120: 6.047412296 | CX120: 7.074579187 | CY120: 20305 | CZ120: 6595 | DA120: 50706 | DB120: -44111 | DC120: 29214 | DD120: 14938 | DG120: -152 | DH120: 43 | DI120: -68 | DJ120: 1721 | DK120: 0 | DL120: 0 | DM120: -1789 | DN120: 102 | DO120: 0 | DP120: 0 | DQ120: -1687 | DR120: -1114 | DS120: -145 | DU120: 29 | DV120: -2067 | DW120: -4217 | DX120: 29214 | DY120: 27054 | DZ120: 933 | EA120: 1227 | EB120: 21.5 | ED120: 286 | EE120: 25289 | EF120: 23558 | EG120: 24336 | EK120: -3785 | EL120: 88 | EM120: 82 | EN120: -2716 | EO120: 126 | EP120: 334 | EQ120: -4641 | ER120: 239 | ES120: 330 | ET120: 4000 | EU120: 1600 | EV120: 1993 | EW120: 2670 | EX120: 6700 | EY120: -720 | EZ120: 18636 | FA120: 9343 | FB120: 9293 | FC120: 1122 | FD120: 19312 | FE120: 7500 | FF120: 11812 | FG120: 944 | FH120: 23227 | FI120: 12784 | FJ120: 10443 | FK120: 981 | FL120: 3365.765989 | FM120: 3443 | FN120: 3891.264283 | FO120: 1258.325581 | FP120: 154.6044454 | FS120: -2706 | FV120: 926 | FW120: -926
A121: 400 | B121: Laitila | C121: 8542 | E121: 4.563002681 | F121: 37.11230876 | G121: -1894.404121 | K121: 63.03784169 | L121: 1.638960431 | M121: 0.07971670151 | N121: 7504.331538 | O121: 26448 | P121: 10232 | Q121: 55899 | R121: -45667 | S121: 27957 | T121: 19331 | W121: -43 | X121: 81 | Y121: 1659 | Z121: 2052 | AA121: 290 | AC121: -103 | AD121: 149 | AG121: 46 | AH121: 4710 | AI121: 1656 | AK121: 758 | AL121: -330 | AM121: -1303 | AN121: 27957 | AO121: 24188 | AP121: 2035 | AQ121: 1734 | AR121: 20.25 | AT121: 245 | AU121: 8520 | AW121: 7.330508475 | AX121: 38 | AY121: -2032.042254 | BC121: 62 | BD121: 14.08450704 | BE121: 0.7654933762 | BF121: 6715.7277 | BG121: 26548 | BH121: 10096 | BI121: 55974 | BJ121: -45878 | BK121: 29255 | BL121: 19164 | BO121: -24 | BP121: 91 | BQ121: 2571 | BR121: 2250 | BS121: 0 | BT121: 0 | BU121: 321 | BV121: 149 | BW121: 0 | BX121: 0 | BY121: 470 | BZ121: 5180 | CA121: 2487 | CC121: 602 | CD121: 0 | CE121: -1067 | CF121: 29255 | CG121: 25205 | CH121: 2160 | CI121: 1890 | CJ121: 20.75 | CL121: 175 | CM121: 8520 | CO121: 13.42386831 | CP121: 40.69145816 | CQ121: -2147.652582 | CU121: 60.50326159 | CV121: 41.31455399 | CW121: 2.072792979 | CX121: 7.275117371 | CY121: 26751 | CZ121: 10500 | DA121: 56456 | DB121: -45956 | DC121: 28684 | DD121: 20487 | DG121: -13 | DH121: 47 | DI121: 3249 | DJ121: 2368 | DK121: 0 | DL121: 0 | DM121: 881 | DN121: 149 | DO121: 0 | DP121: 0 | DQ121: 1030 | DR121: 6210 | DS121: 3030 | DU121: -1083 | DV121: -230 | DW121: -1145 | DX121: 28684 | DY121: 24978 | DZ121: 1928 | EA121: 1778 | EB121: 20.75 | ED121: 160 | EE121: 23233 | EF121: 23087 | EG121: 23351 | EK121: -7825 | EL121: 189 | EM121: 4677 | EN121: -4055 | EO121: 245 | EP121: 256 | EQ121: -5284 | ER121: 617 | ES121: 492 | EU121: 800 | EV121: 330 | EW121: 850 | EX121: 0 | EY121: 2350 | EZ121: 12905 | FA121: 1075 | FB121: 11830 | FC121: 774 | FD121: 13425 | FE121: 845 | FF121: 12580 | FG121: 774 | FH121: 15545 | FI121: 715 | FJ121: 14830 | FK121: 774 | FL121: 3431.046593 | FM121: 3698 | FN121: 3819.366197 | FO121: 1203.759036 | FP121: 141.2862718 | FS121: -3648 | FV121: 271 | FW121: -271
A122: 407 | B122: Lapinjärvi | C122: 2779 | E122: 0.975308642 | F122: 40.6725131 | G122: -2380.712487 | K122: 55.25241066 | L122: 257.6466355 | M122: 11.98752351 | N122: 7844.90824 | O122: 6731 | P122: 3693 | Q122: 19576 | R122: -15883 | S122: 8741 | T122: 6840 | W122: -113 | X122: 771 | Y122: 356 | Z122: 677 | AC122: -321 | AG122: -319 | AH122: 2445 | AI122: 318 | AK122: 766 | AL122: -369 | AM122: -1282 | AN122: 8741 | AO122: 7818 | AP122: 355 | AQ122: 568 | AR122: 20.5 | AT122: 266 | AU122: 2774 | AW122: 2.946859903 | AX122: 37 | AY122: -2090.843547 | BC122: 59 | BD122: 204.7584715 | BE122: 11.94790226 | BF122: 6255.227109 | BG122: 5652 | BH122: 3309 | BI122: 18232 | BJ122: -14923 | BK122: 8824 | BL122: 6525 | BO122: -101 | BP122: 1555 | BQ122: 1117 | BR122: 733 | BS122: 18 | BT122: 0 | BU122: 402 | BV122: 0 | BW122: 0 | BX122: 0 | BY122: 402 | BZ122: 2796 | CA122: 968 | CC122: -67 | CD122: 0 | CE122: 829 | CF122: 8824 | CG122: 7854 | CH122: 417 | CI122: 553 | CJ122: 20.5 | CL122: 119 | CM122: 2739 | CO122: -0.4246231156 | CP122: 43.85431603 | CQ122: -2462.577583 | CU122: 53.82861258 | CV122: 68.27309237 | CW122: 3.51539967 | CX122: 7.08871851 | CY122: 5086 | CZ122: 2371 | DA122: 18441 | DB122: -16070 | DC122: 8502 | DD122: 6589 | DG122: -73 | DH122: 809 | DI122: -243 | DJ122: 781 | DK122: 0 | DL122: 0 | DM122: -1024 | DN122: 0 | DO122: 0 | DP122: 0 | DQ122: -1024 | DR122: 1674 | DS122: -281 | DU122: -142 | DV122: -324 | DW122: -837 | DX122: 8502 | DY122: 7551 | DZ122: 406 | EA122: 545 | EB122: 20.5 | ED122: 289 | EE122: 10508 | EF122: 10299 | EG122: 11249 | EK122: -1733 | EM122: 133 | EN122: -486 | EO122: 33 | EP122: 314 | EQ122: -603 | ER122: 0 | ES122: 47 | EU122: 1500 | EV122: 311 | EW122: -700 | EX122: 0 | EY122: 850 | EZ122: 6127 | FA122: 4316 | FB122: 1811 | FC122: 251 | FD122: 5117 | FE122: 4017 | FF122: 1100 | FG122: 251 | FH122: 5642 | FI122: 3660 | FJ122: 1982 | FK122: 251 | FL122: 4903.922274 | FM122: 4514 | FN122: 4610.806864 | FO122: 368.3414634 | FP122: 134.4802714 | FS122: -121 | FV122: 213 | FW122: -213
A123: 402 | B123: Lapinlahti | C123: 10093 | E123: 1.23202171 | F123: 51.68825809 | G123: -3035.470128 | K123: 51.34074823 | L123: 117.5071832 | M123: 5.736073568 | N123: 7477.261468 | O123: 33125 | P123: 8464 | Q123: 66767 | R123: -58303 | S123: 29143 | T123: 30244 | W123: 585 | X123: 801 | Y123: 2470 | Z123: 2710 | AC123: -240 | AD123: 59 | AG123: -181 | AH123: 2301 | AI123: 2344 | AK123: 400 | AL123: -1956 | AM123: -3584 | AN123: 29143 | AO123: 25213 | AP123: 1800 | AQ123: 2130 | AR123: 19.5 | AT123: 219 | AU123: 9982 | AW123: 0.9353065539 | AX123: 53 | AY123: -3192.546584 | BC123: 50 | BD123: 151.4726508 | BE123: 7.655855506 | BF123: 7221.598878 | BG123: 32895 | BH123: 8144 | BI123: 67208 | BJ123: -59064 | BK123: 30058 | BL123: 29995 | BO123: 273 | BP123: 1363 | BQ123: 1985 | BR123: 2989 | BS123: 0 | BT123: 0 | BU123: -1004 | BV123: 59 | BW123: 0 | BX123: 0 | BY123: -945 | BZ123: 1356 | CA123: 1888 | CC123: 250 | CD123: -3000 | CE123: -1319 | CF123: 30058 | CG123: 25822 | CH123: 2008 | CI123: 2228 | CJ123: 20.25 | CL123: 237 | CM123: 9882 | CO123: 0.6176470588 | CP123: 55.2938263 | CQ123: -3572.050192 | CU123: 47.49462654 | CV123: 19.83404169 | CW123: 0.9456458521 | CX123: 7.655535317 | CY123: 32669 | CZ123: 8174 | DA123: 68026 | DB123: -59852 | DC123: 29230 | DD123: 31242 | DG123: 357 | DH123: 413 | DI123: 1390 | DJ123: 3113 | DK123: 0 | DL123: 0 | DM123: -1723 | DN123: 59 | DO123: 0 | DP123: 0 | DQ123: -1664 | DR123: -308 | DS123: 1446 | DU123: 535 | DV123: -2391 | DW123: -3422 | DX123: 29230 | DY123: 25300 | DZ123: 1707 | EA123: 2223 | EB123: 20.25 | ED123: 261 | EE123: 24645 | EF123: 25148 | EG123: 25457 | EK123: -6485 | EL123: 124 | EM123: 433 | EN123: -3684 | EO123: 336 | EP123: 141 | EQ123: -5005 | ER123: 49 | ES123: 88 | ET123: 6500 | EU123: -1500 | EV123: 2138 | EW123: 0 | EX123: 3800 | EY123: 0 | EZ123: 28238 | FA123: 26100 | FB123: 2138 | FC123: 11342 | FD123: 29100 | FE123: 26709 | FF123: 2391 | FG123: 11299 | FH123: 30508 | FI123: 27931 | FJ123: 2577 | FK123: 11279 | FL123: 5542.058853 | FM123: 5874 | FN123: 6049.079134 | FO123: 1249.382716 | FP123: 126.4301473 | FS123: -3283 | FV123: 1488 | FW123: -1488
A124: 403 | B124: Lappajärvi | C124: 3259 | E124: 2.25862069 | F124: 56.5662783 | G124: -3418.840135 | K124: 55.39132542 | L124: 302.2399509 | M124: 13.40910786 | N124: 8227.063516 | O124: 4647 | P124: 2444 | Q124: 21192 | R124: -18748 | S124: 10264 | T124: 10037 | W124: -116 | X124: 19 | Y124: 1456 | Z124: 1194 | AC124: 262 | AF124: 27 | AG124: 289 | AH124: -379 | AI124: 1510 | AK124: -10 | AL124: -580 | AM124: 55 | AN124: 10264 | AO124: 8602 | AP124: 912 | AQ124: 750 | AR124: 21 | AT124: 92 | AU124: 3215 | AW124: 3.832568807 | AX124: 61 | AY124: -3866.874028 | BC124: 55 | BD124: 127.2161742 | BE124: 6.626936565 | BF124: 7006.842924 | BG124: 4629 | BH124: 1862 | BI124: 20591 | BJ124: -18729 | BK124: 10293 | BL124: 10091 | BO124: -105 | BP124: 17 | BQ124: 1566 | BR124: 1122 | BS124: 0 | BT124: 0 | BU124: 444 | BV124: 0 | BW124: 0 | BX124: 26 | BY124: 470 | BZ124: 91 | CA124: 1520 | CC124: 121 | CD124: -1097 | CE124: -1308 | CF124: 10293 | CG124: 8254 | CH124: 1116 | CI124: 923 | CJ124: 21 | CL124: 77 | CM124: 3176 | CO124: 5.466992665 | CP124: 56.66780939 | CQ124: -3579.030227 | CU124: 56.77609015 | CV124: 271.7254408 | CW124: 13.80225221 | CX124: 7.185768262 | CY124: 4936 | CZ124: 2189 | DA124: 21116 | DB124: -18927 | DC124: 10354 | DD124: 10793 | DG124: -96 | DH124: 16 | DI124: 2140 | DJ124: 1203 | DK124: 0 | DL124: 0 | DM124: 937 | DN124: 27 | DO124: 0 | DP124: 0 | DQ124: 964 | DR124: 1054 | DS124: 2141 | DU124: -376 | DV124: -313 | DW124: 1030 | DX124: 10354 | DY124: 8424 | DZ124: 1003 | EA124: 927 | EB124: 21 | ED124: 39 | EE124: 14751 | EF124: 14610 | EG124: 14839 | EK124: -4923 | EL124: 841 | EM124: 2627 | EN124: -3728 | EO124: 704 | EP124: 196 | EQ124: -1296 | ER124: 180 | ES124: 5 | ET124: 400 | EU124: 1000 | EV124: 331 | EW124: -900 | EX124: 0 | EY124: 500 | EZ124: 10847 | FA124: 5217 | FB124: 5630 | FC124: 1810 | FD124: 10712 | FE124: 5999 | FF124: 4713 | FG124: 1810 | FH124: 10899 | FI124: 5686 | FJ124: 5213 | FK124: 1810 | FL124: 5301.319423 | FM124: 5362 | FN124: 5657.745592 | FO124: 401.1428571 | FP124: 126.3044261 | FS124: -2784 | FV124: 651 | FW124: -651
A125: 405 | B125: Lappeenranta | C125: 72794 | E125: 0.9963872593 | F125: 70.7894358 | G125: -3466.824189 | K125: 46.66324708 | L125: 419.0867379 | M125: 23.29641005 | N125: 6566.104349 | O125: 104655 | P125: 67873 | Q125: 441813 | R125: -373940 | S125: 289866 | T125: 102007 | W125: 4427 | X125: 3659 | Y125: 26019 | Z125: 19434 | AB125: 3932 | AC125: 2653 | AD125: -389 | AE125: 112 | AG125: 2376 | AH125: 52116 | AI125: 17805 | AK125: 588 | AL125: -26128 | AM125: -1074 | AN125: 289866 | AO125: 246967 | AP125: 19664 | AQ125: 23235 | AR125: 21 | AT125: 145 | AU125: 72875 | AW125: 0.5064379123 | AX125: 66 | AY125: -3442.813036 | BC125: 49 | BD125: 405.4339623 | BE125: 22.86032556 | BF125: 6473.372213 | BG125: 103086 | BH125: 65400 | BI125: 447020 | BJ125: -381620 | BK125: 296962 | BL125: 99980 | BO125: 5074 | BP125: 12938 | BQ125: 26728 | BR125: 22092 | BS125: 0 | BT125: 0 | BU125: 4636 | BV125: -119 | BW125: 158 | BX125: 0 | BY125: 4675 | BZ125: 56791 | CA125: 24835 | CC125: 14645 | CD125: -43500 | CE125: 686 | CF125: 296962 | CG125: 249786 | CH125: 23032 | CI125: 24144 | CJ125: 21 | CL125: 135 | CM125: 72872 | CO125: 1.242794252 | CP125: 63.49035189 | CQ125: -3308.966407 | CU125: 49.22127576 | CV125: 434.2957515 | CW125: 23.4421542 | CX125: 6.762089692 | CY125: 103503 | CZ125: 73990 | DA125: 463086 | DB125: -389096 | DC125: 296421 | DD125: 108074 | DG125: 5253 | DH125: 6204 | DI125: 26856 | DJ125: 23364 | DK125: 0 | DL125: 0 | DM125: 3492 | DN125: -117 | DO125: 144 | DP125: 0 | DQ125: 3519 | DR125: 60310 | DS125: 26280 | DU125: -482 | DV125: -21010 | DW125: 9479 | DX125: 296421 | DY125: 250126 | DZ125: 21482 | EA125: 24813 | EB125: 21 | ED125: 167 | EE125: 309717 | EF125: 316780 | EG125: 331545 | EK125: -26606 | EL125: 2718 | EM125: 5009 | EN125: -28154 | EO125: 1764 | EP125: 2241 | EQ125: -33199 | ER125: 1946 | ES125: 14452 | ET125: 20000 | EU125: 15857 | EV125: 56129 | EW125: -507 | EX125: 0 | EY125: 14824 | EZ125: 246295 | FA125: 162178 | FB125: 84117 | FC125: 119556 | FD125: 233160 | FE125: 169275 | FF125: 63885 | FG125: 119540 | FH125: 226973 | FI125: 136684 | FJ125: 90289 | FK125: 119540 | FL125: 7450.5179 | FM125: 7357 | FN125: 7135.840927 | FO125: 11910.7619 | FP125: 163.4477152 | FS125: -24237 | FV125: 21416 | FW125: -21416
A126: 408 | B126: Lapua | C126: 14733 | E126: 1.254518353 | F126: 66.49243143 | G126: -3602.04982 | K126: 39.867116 | L126: 392.2486934 | M126: 20.06349101 | N126: 7135.885427 | O126: 40642 | P126: 13233 | Q126: 87775 | R126: -74542 | S126: 48103 | T126: 32743 | W126: -527 | X126: 371 | Y126: 6148 | Z126: 4377 | AC126: 1771 | AG126: 1771 | AH126: 11531 | AI126: 5947 | AK126: -334 | AL126: -4782 | AM126: -4809 | AN126: 48103 | AO126: 43320 | AP126: 2351 | AQ126: 2432 | AR126: 21 | AT126: 108 | AU126: 14609 | AW126: 0.892921074 | AX126: 66 | AY126: -3769.594086 | BC126: 40 | BD126: 335.9572866 | BE126: 19.60021007 | BF126: 6256.280375 | BG126: 41186 | BH126: 13427 | BI126: 90304 | BJ126: -76877 | BK126: 48433 | BL126: 33586 | BO126: -458 | BP126: 334 | BQ126: 4974 | BR126: 4587 | BS126: 0 | BT126: 0 | BU126: 387 | BV126: 0 | BW126: 0 | BX126: 0 | BY126: 387 | BZ126: 11918 | CA126: 4802 | CC126: 456 | CD126: 0 | CE126: -1850 | CF126: 48433 | CG126: 43150 | CH126: 2520 | CI126: 2763 | CJ126: 21 | CL126: 147 | CM126: 14575 | CO126: 1.462280702 | CP126: 64.96631966 | CQ126: -3685.488851 | CU126: 41.18575045 | CV126: 427.5128645 | CW126: 22.20989053 | CX126: 7.025797599 | CY126: 41166 | CZ126: 13371 | DA126: 90351 | DB126: -76980 | DC126: 48257 | DD126: 36777 | DG126: -415 | DH126: 228 | DI126: 7867 | DJ126: 4991 | DK126: 0 | DL126: 0 | DM126: 2876 | DN126: 0 | DO126: 0 | DP126: 0 | DQ126: 2876 | DR126: 14793 | DS126: 7273 | DU126: -698 | DV126: -5232 | DW126: 1584 | DX126: 48257 | DY126: 43199 | DZ126: 2207 | EA126: 2851 | EB126: 21 | ED126: 73 | EE126: 35174 | EF126: 36558 | EG126: 35738 | EK126: -12305 | EL126: 341 | EM126: 1208 | EN126: -7687 | EO126: 530 | EP126: 505 | EQ126: -6754 | ER126: 33 | ES126: 1032 | ET126: 10000 | EU126: 2000 | EV126: 5632 | EW126: 7000 | EX126: 5000 | EY126: 0 | EZ126: 44771 | FA126: 33138 | FB126: 11633 | FC126: 2105 | FD126: 46139 | FE126: 27906 | FF126: 18233 | FG126: 2020 | FH126: 45907 | FI126: 27424 | FJ126: 18483 | FK126: 1936 | FL126: 6177.424829 | FM126: 6304 | FN126: 6200.891938 | FO126: 2057.095238 | FP126: 141.1386098 | FS126: -6601 | FV126: 2937 | FW126: -2937
A127: 410 | B127: Laukaa | C127: 18709 | E127: 49.432 | F127: 79.80440188 | G127: -4238.334491 | K127: 26.31610069 | L127: 205.1419103 | M127: 10.64725509 | N127: 7032.497728 | O127: 39120 | P127: 15579 | Q127: 104613 | R127: -89034 | S127: 61026 | T127: 32394 | W127: 30 | X127: 1644 | Y127: 6060 | Z127: 4544 | AC127: 1516 | AG127: 1515 | AH127: -1218 | AI127: 5345 | AK127: 758 | AL127: -6 | AM127: -9828 | AN127: 61026 | AO127: 54942 | AP127: 2040 | AQ127: 4044 | AR127: 20.5 | AT127: 171 | AU127: 18865 | AW127: 59.15053763 | AX127: 81 | AY127: -4623.906706 | BC127: 30 | BD127: 47.49536178 | BE127: 2.598153709 | BF127: 6672.356215 | BG127: 39455 | BH127: 15166 | BI127: 108734 | BJ127: -93568 | BK127: 65306 | BL127: 33063 | BO127: 158 | BP127: 815 | BQ127: 5417 | BR127: 7411 | BS127: 10349 | BT127: 0 | BU127: 8355 | BV127: 0 | BW127: 0 | BX127: 0 | BY127: 8355 | BZ127: 7118 | CA127: 15279 | CC127: 444 | CD127: -11459 | CE127: 6789 | CF127: 65306 | CG127: 58328 | CH127: 2224 | CI127: 4754 | CJ127: 21.5 | CL127: 183 | CM127: 18970 | CO127: 79.06779661 | CP127: 85.33648048 | CQ127: -4984.396415 | CU127: 28.16006362 | CV127: 78.38692673 | CW127: 4.319406311 | CX127: 6.62387981 | CY127: 39529 | CZ127: 13193 | DA127: 112287 | DB127: -99094 | DC127: 66746 | DD127: 36145 | DG127: 546 | DH127: 274 | DI127: 4617 | DJ127: 5155 | DK127: 0 | DL127: 0 | DM127: -538 | DN127: 0 | DO127: 0 | DP127: 0 | DQ127: -538 | DR127: 6580 | DS127: 4106 | DU127: 386 | DV127: -11 | DW127: -7988 | DX127: 66746 | DY127: 59865 | DZ127: 2057 | EA127: 4824 | EB127: 21.5 | ED127: 232 | EE127: 51888 | EF127: 54483 | EG127: 56822 | EK127: -16767 | EL127: 804 | EM127: 790 | EN127: -18583 | EO127: 1208 | EP127: 8885 | EQ127: -13024 | ER127: 10 | ES127: 920 | EU127: 21300 | EV127: 9 | EW127: -6500 | EX127: 0 | EY127: 7000 | EZ127: 69019 | FA127: 13 | FB127: 69006 | FC127: 10011 | FD127: 73969 | FE127: 11458 | FF127: 62511 | FG127: 24676 | FH127: 80958 | FI127: 11447 | FJ127: 69511 | FK127: 24105 | FL127: 5039.873858 | FM127: 5304 | FN127: 5906.114918 | FO127: 2784.418605 | FP127: 146.7801057 | FS127: -16820 | FV127: 63 | FW127: -63
A128: 416 | B128: Lemi | C128: 3116 | E128: 2.47151277 | F128: 30.81577645 | G128: -1396.341463 | K128: 54.41690499 | L128: 125.1604621 | M128: 7.476758233 | N128: 6110.077022 | O128: 4910 | P128: 2216 | Q128: 16932 | R128: -14716 | S128: 10257 | T128: 5706 | W128: -83 | X128: 4 | Y128: 1168 | Z128: 2313 | AC128: -1145 | AD128: 324 | AG128: -821 | AH128: -187 | AI128: 1085 | AK128: -388 | AL128: -420 | AM128: 106 | AN128: 10257 | AO128: 9124 | AP128: 417 | AQ128: 716 | AR128: 21 | AT128: 133 | AU128: 3073 | AW128: 1.224108659 | AX128: 32 | AY128: -1415.229418 | BC128: 54 | BD128: 260.982753 | BE128: 15.65652244 | BF128: 6084.28246 | BG128: 5046 | BH128: 1918 | BI128: 17475 | BJ128: -15557 | BK128: 10385 | BL128: 5883 | BO128: -73 | BP128: 4 | BQ128: 642 | BR128: 630 | BS128: 0 | BT128: 0 | BU128: 12 | BV128: 0 | BW128: 0 | BX128: 0 | BY128: 12 | BZ128: -127 | CA128: 642 | CC128: 282 | CD128: -700 | CE128: -21 | CF128: 10385 | CG128: 9088 | CH128: 513 | CI128: 784 | CJ128: 21 | CL128: 232 | CM128: 3076 | CO128: 1.376251788 | CP128: 32.58829731 | CQ128: -1473.992198 | CU128: 53.26336019 | CV128: 342.0026008 | CW128: 19.34115751 | CX128: 6.454161248 | CY128: 5222 | CZ128: 1902 | DA128: 18026 | DB128: -16124 | DC128: 10878 | DD128: 6190 | DG128: -64 | DH128: 13 | DI128: 893 | DJ128: 597 | DK128: 0 | DL128: 0 | DM128: 296 | DN128: 0 | DO128: 0 | DP128: 0 | DQ128: 296 | DR128: 169 | DS128: 867 | DU128: -18 | DV128: -630 | DW128: -164 | DX128: 10878 | DY128: 9579 | DZ128: 486 | EA128: 813 | EB128: 21 | ED128: 213 | EE128: 10728 | EF128: 11201 | EG128: 11509 | EK128: -1596 | EL128: 342 | EM128: 275 | EN128: -944 | EO128: 201 | EP128: 80 | EQ128: -1125 | ER128: 2 | ES128: 92 | ET128: 810 | EV128: 510 | EW128: 0 | EX128: 500 | EY128: 0 | EZ128: 4058 | FA128: 3548 | FB128: 510 | FC128: 429 | FD128: 4247 | FE128: 3667 | FF128: 580 | FG128: 384 | FH128: 4117 | FI128: 3537 | FJ128: 580 | FK128: 386 | FL128: 2655.006418 | FM128: 3428 | FN128: 3183.029909 | FO128: =(DY128/EB128) -> 456.1428571 | FP128: =(FO128/CM128)*1000 -> 148.2909158 | FS128: -648 | FV128: 110 | FW128: =FV128*-1 -> -110
A129: 418 | B129: Lempäälä | C129: 22233 | E129: 0.6126468942 | F129: 63.91093901 | G129: -3490.756983 | K129: 42.7651648 | L129: 111.1410966 | M129: 5.607110885 | N129: 7234.831107 | O129: 62429 | P129: 24054 | Q129: 129538 | R129: -105484 | S129: 85399 | T129: 25342 | W129: -1096 | X129: 197 | Y129: 4358 | Z129: 9081 | AC129: -4723 | AD129: 130 | AG129: -4593 | AH129: 17965 | AI129: 3573 | AK129: 1648 | AL129: -7819 | AM129: -17408 | AN129: 85399 | AO129: 77088 | AP129: 3339 | AQ129: 4972 | AR129: 20.5 | AT129: 244 | AU129: 22536 | AW129: 0.6246702543 | AX129: 71 | AY129: -4026.00284 | BC129: 38 | BD129: 138.800142 | BE129: 6.845541812 | BF129: 7400.736599 | BG129: 63597 | BH129: 25421 | BI129: 133313 | BJ129: -107892 | BK129: 88548 | BL129: 24937 | BO129: -558 | BP129: 365 | BQ129: 5350 | BR129: 10285 | BS129: 0 | BT129: 0 | BU129: -4935 | BV129: 125 | BW129: 0 | BX129: 0 | BY129: -4810 | BZ129: 13156 | CA129: 3601 | CC129: 1104 | CD129: -19500 | CE129: -13110 | CF129: 88548 | CG129: 79515 | CH129: 3812 | CI129: 5221 | CJ129: 20.5 | CL129: 213 | CM129: 22745 | CO129: 1.420523752 | CP129: 64.11612035 | CQ129: -3751.637723 | CU129: 39.54762745 | CV129: 134.6669598 | CW129: 7.425429886 | CX129: 6.619608705 | CY129: 59785 | CZ129: 26640 | DA129: 132229 | DB129: -105589 | DC129: 92952 | DD129: 26429 | DG129: -523 | DH129: 193 | DI129: 13462 | DJ129: 11523 | DK129: 0 | DL129: 0 | DM129: 1939 | DN129: 103 | DO129: 0 | DP129: 0 | DQ129: 2042 | DR129: 15198 | DS129: 11214 | DU129: -344 | DV129: -9319 | DW129: 5291 | DX129: 92952 | DY129: 83808 | DZ129: 3901 | EA129: 5243 | EB129: 20.5 | ED129: 58 | EE129: 47839 | EF129: 48591 | EG129: 52695 | EK129: -22876 | EL129: 749 | EM129: 1146 | EN129: -19590 | EO129: 759 | EP129: 2120 | EQ129: -8853 | ER129: 225 | ES129: 2705 | ET129: 18000 | EU129: 2000 | EV129: 8907 | EW129: 1600 | EX129: 5167 | EY129: -100 | EZ129: 65952 | FA129: 55658 | FB129: 10294 | FC129: 405 | FD129: 78146 | FE129: 65443 | FF129: 12703 | FG129: 405 | FH129: 73892 | FI129: 61490 | FJ129: 12402 | FK129: 397 | FL129: 4753.879369 | FM129: 5164 | FN129: 4954.275665 | FO129: 4088.195122 | FP129: 179.7403879 | FS129: -16666 | FV129: 5084 | FW129: -5084
A130: 420 | B130: Leppävirta | C130: 10015 | E130: 3.025522042 | F130: 22.62080923 | G130: -766.7498752 | K130: 76.6671653 | L130: 483.8741887 | M130: 25.43082254 | N130: 6944.882676 | O130: 21983 | P130: 9685 | Q130: 62416 | R130: -52731 | S130: 32473 | T130: 24755 | W130: -168 | X130: 686 | Y130: 5015 | Z130: 3708 | AC130: 1307 | AD130: -3093 | AE130: 1900 | AF130: -16 | AG130: 98 | AH130: 5166 | AI130: 4875 | AK130: -700 | AL130: -1523 | AM130: 824 | AN130: 32473 | AO130: 28235 | AP130: 2018 | AQ130: 2220 | AR130: 20 | AT130: 71 | AU130: 9953 | AW130: 3.757392473 | AX130: 21 | AY130: -475.4345423 | BC130: 78 | BD130: 763.4883955 | BE130: 43.76613438 | BF130: 6367.326434 | BG130: 21550 | BH130: 10112 | BI130: 63405 | BJ130: -53293 | BK130: 33098 | BL130: 25103 | BO130: -138 | BP130: 1134 | BQ130: 5416 | BR130: 4235 | BS130: 0 | BT130: 0 | BU130: 1181 | BV130: 84 | BW130: -1100 | BX130: 0 | BY130: 165 | BZ130: 5330 | CA130: 5279 | CC130: 286 | CD130: 0 | CE130: 3104 | CF130: 33098 | CG130: 28481 | CH130: 2342 | CI130: 2275 | CJ130: 20 | CL130: 58 | CM130: 9865 | CO130: 3.120218579 | CP130: 18.48861104 | CQ130: -324.8859605 | CU130: 79.84127709 | CV130: 759.6553472 | CW130: 39.45291428 | CX130: 7.027977699 | CY130: 21378 | CZ130: 9946 | DA130: 64972 | DB130: -55026 | DC130: 33187 | DD130: 25992 | DG130: -98 | DH130: 362 | DI130: 4417 | DJ130: 4407 | DK130: 0 | DL130: 0 | DM130: 10 | DN130: 83 | DO130: 0 | DP130: 0 | DQ130: 93 | DR130: 5397 | DS130: 4347 | DU130: 245 | DV130: -1313 | DW130: 1541 | DX130: 33187 | DY130: 28524 | DZ130: 2317 | EA130: 2346 | EB130: 20 | ED130: 111 | EE130: 33560 | EF130: 34973 | EG130: 36321 | EK130: -5355 | EL130: 1106 | EM130: 198 | EN130: -2513 | EO130: 180 | EP130: 158 | EQ130: -2916 | ER130: 8 | ES130: 102 | EV130: 1313 | EX130: 0 | EY130: 0 | EZ130: 9287 | FA130: 7974 | FB130: 1313 | FC130: 4624 | FD130: 7975 | FE130: 6662 | FF130: 1313 | FG130: 4774 | FH130: 6662 | FI130: 5349 | FJ130: 1313 | FK130: 4774 | FL130: 3545.082376 | FM130: 3646 | FN130: 3555.803345 | FO130: 1426.2 | FP130: 144.5717182 | FS130: -2634 | FV130: 611 | FW130: -611
A131: 421 | B131: Lestijärvi | C131: 817 | E131: 14.61111111 | F131: 35.91809775 | G131: -1602.203182 | K131: 73.30458644 | L131: 283.9657283 | M131: 11.14797262 | N131: 9297.429621 | O131: 2371 | P131: 2058 | Q131: 7050 | R131: -4992 | S131: 2283 | T131: 3229 | W131: -30 | X131: 2 | Y131: 492 | Z131: 267 | AA131: 5 | AC131: 230 | AG131: 230 | AH131: 1801 | AI131: 497 | AK131: -182 | AL131: -2 | AM131: 89 | AN131: 2283 | AO131: 1781 | AP131: 288 | AQ131: 214 | AR131: 20 | AT131: 37 | AU131: 798 | AW131: 17.73076923 | AX131: 36 | AY131: -1144.110276 | BC131: 74 | BD131: 911.0275689 | BE131: 37.14895702 | BF131: 8951.12782 | BG131: 2288 | BH131: 1704 | BI131: 6850 | BJ131: -5146 | BK131: 2448 | BL131: 3150 | BO131: -17 | BP131: 0 | BQ131: 435 | BR131: 285 | BS131: 0 | BT131: 0 | BU131: 150 | BV131: 0 | BW131: 0 | BX131: 0 | BY131: 150 | BZ131: 1952 | CA131: 435 | CC131: 183 | CD131: -165 | CE131: 394 | CF131: 2448 | CG131: 1876 | CH131: 340 | CI131: 232 | CJ131: 20 | CL131: 57 | CM131: 811 | CO131: 2.730769231 | CP131: 37.85040339 | CQ131: -1778.051788 | CU131: 72.79772415 | CV131: 543.7731196 | CW131: 20.18623025 | CX131: 9.832305795 | CY131: 2309 | CZ131: 1957 | DA131: 7253 | DB131: -5296 | DC131: 2256 | DD131: 3100 | DG131: -18 | DH131: 5 | DI131: 47 | DJ131: 257 | DK131: 0 | DL131: 0 | DM131: -210 | DN131: 0 | DO131: 0 | DP131: 0 | DQ131: -210 | DR131: 1742 | DS131: 47 | DU131: 111 | DV131: -2 | DW131: -619 | DX131: 2256 | DY131: 1681 | DZ131: 330 | EA131: 245 | EB131: 21 | ED131: 277 | EE131: 4019 | EF131: 3860 | EG131: 4264 | EK131: -509 | EL131: 101 | EN131: -89 | EO131: 48 | EP131: 0 | EQ131: -694 | ER131: 28 | ES131: 0 | EU131: -97 | EV131: 0 | EW131: -264 | EX131: 0 | EY131: 0 | EZ131: 1869 | FA131: 1601 | FB131: 268 | FC131: 662 | FD131: 1770 | FE131: 1766 | FF131: 4 | FG131: 661 | FH131: 1767 | FI131: 1763 | FJ131: 4 | FK131: 572 | FL131: 2406.364749 | FM131: 3761 | FN131: 3997.533909 | FO131: 80.04761905 | FP131: 98.70236627 | FS131: -43 | FV131: 502 | FW131: -502
A132: 422 | B132: Lieksa | C132: 12117 | E132: 2.992978937 | F132: 31.29977917 | G132: -1118.016011 | K132: 61.60556051 | L132: 665.8413799 | M132: 30.83355147 | N132: 7882.066518 | O132: 39334 | P132: 15923 | Q132: 87444 | R132: -71521 | S132: 40739 | T132: 39059 | W132: -186 | X132: 579 | Y132: 8670 | Z132: 4947 | AC132: 3723 | AD132: 100 | AE132: -3000 | AG132: 823 | AH132: 9630 | AI132: 8332 | AK132: -4455 | AL132: -2709 | AM132: 3607 | AN132: 40739 | AO132: 33688 | AP132: 3787 | AQ132: 3264 | AR132: 21 | AT132: 23 | AU132: 11772 | AW132: 2.315886134 | AX132: 28 | AY132: -747.1117907 | BC132: 66 | BD132: 742.2697927 | BE132: 38.54596215 | BF132: 7028.712198 | BG132: 39544 | BH132: 14160 | BI132: 86760 | BJ132: -72600 | BK132: 40926 | BL132: 38474 | BO132: -76 | BP132: 1101 | BQ132: 7306 | BR132: 4696 | BS132: 0 | BT132: 0 | BU132: 2610 | BV132: -606 | BW132: -1300 | BX132: 0 | BY132: 704 | BZ132: 10334 | CA132: 7207 | CC132: -616 | CD132: 0 | CE132: 4821 | CF132: 40926 | CG132: 33222 | CH132: 4422 | CI132: 3282 | CJ132: 21 | CL132: 39 | CM132: 11580 | CO132: 2.388014981 | CP132: 25.61198 | CQ132: -467.4438687 | CU132: 68.73530013 | CV132: 759.4991364 | CW132: 34.53806511 | CX132: 8.02642487 | CY132: 39356 | CZ132: 13476 | DA132: 87662 | DB132: -74186 | DC132: 39811 | DD132: 40039 | DG132: -61 | DH132: 550 | DI132: 6153 | DJ132: 4005 | DK132: 0 | DL132: 0 | DM132: 2148 | DN132: 95 | DO132: 0 | DP132: 0 | DQ132: 2243 | DR132: 12577 | DS132: 6100 | DU132: -761 | DV132: -2447 | DW132: 4226 | DX132: 39811 | DY132: 32192 | DZ132: 3316 | EA132: 4303 | EB132: 21 | ED132: 79 | EE132: 33490 | EF132: 33422 | EG132: 33756 | EK132: -5171 | EL132: 393 | EM132: 53 | EN132: -4028 | EO132: 1505 | EP132: 137 | EQ132: -1997 | ER132: 22 | ES132: 101 | ET132: 5000 | EV132: 3007 | EX132: 0 | EY132: 0 | EZ132: 18198 | FA132: 15193 | FB132: 3005 | FC132: 459 | FD132: 15191 | FE132: 12631 | FF132: 2560 | FG132: 458 | FH132: 12744 | FI132: 10423 | FJ132: 2321 | FK132: 1157 | FL132: 4252.9504 | FM132: 4252 | FN132: 4169.084629 | FO132: 1532.952381 | FP132: 132.3793075 | FS132: -2868 | FV132: 1317 | FW132: -1317
A133: 423 | B133: Lieto | C133: 17241 | E133: 0.3058249089 | F133: 55.15607009 | G133: -3019.314425 | K133: 35.15253289 | L133: 299.3445856 | M133: 14.55993971 | N133: 7504.205093 | O133: 46737 | P133: 29593 | Q133: 107663 | R133: -78070 | S133: 63957 | T133: 18483 | W133: -474 | X133: 37 | Y133: 3933 | Z133: 4779 | AC133: -846 | AG133: -847 | AH133: 5376 | AI133: 2011 | AK133: 504 | AL133: -14026 | AM133: -2726 | AN133: 63957 | AO133: 58057 | AP133: 2726 | AQ133: 3174 | AR133: 19 | AT133: 224 | AU133: 19263 | AW133: 1.359352592 | AX133: 54 | AY133: -3107.719462 | BC133: 35 | BD133: 125.5256191 | BE133: 7.673854447 | BF133: 5970.51342 | BG133: 52579 | BH133: 29951 | BI133: 117585 | BJ133: -87634 | BK133: 72610 | BL133: 21557 | BO133: -609 | BP133: 80 | BQ133: 5988 | BR133: 5486 | BS133: 0 | BT133: 0 | BU133: 502 | BV133: 9 | BW133: 0 | BX133: 0 | BY133: 511 | BZ133: 5224 | CA133: 4064 | CC133: 196 | CD133: 0 | CE133: -186 | CF133: 72610 | CG133: 65983 | CH133: 3127 | CI133: 3500 | CJ133: 19.5 | CL133: 166 | CM133: 19418 | CO133: 0.8637003356 | CP133: 58.17020432 | CQ133: -3228.035843 | CU133: 34.40224187 | CV133: 306.4682254 | CW133: 15.52908332 | CX133: 7.20331651 | CY133: 52232 | CZ133: 29237 | DA133: 118231 | DB133: -88994 | DC133: 75364 | DD133: 21424 | DG133: -462 | DH133: 140 | DI133: 7472 | DJ133: 5717 | DK133: 0 | DL133: 0 | DM133: 1755 | DN133: 9 | DO133: 0 | DP133: 0 | DQ133: 1764 | DR133: 6988 | DS133: 5846 | DU133: 3749 | DV133: -8731 | DW133: -2835 | DX133: 75364 | DY133: 69108 | DZ133: 2697 | EA133: 3559 | EB133: 19.5 | ED133: 155 | EE133: 46676 | EF133: 49507 | EG133: 49897 | EK133: -7160 | EL133: 268 | EM133: 2155 | EN133: -7265 | EO133: 111 | EP133: 2904 | EQ133: -12002 | ER133: 1294 | ES133: 2027 | ET133: 15000 | EU133: 2593 | EV133: 4234 | EX133: 5000 | EY133: 10000 | EZ133: 44572 | FA133: 23616 | FB133: 20956 | FC133: 569 | FD133: 47416 | FE133: 26444 | FF133: 20972 | FG133: 745 | FH133: 53687 | FI133: 23218 | FJ133: 30469 | FK133: 547 | FL133: 3665.680645 | FM133: 3491 | FN133: 3919.147183 | FO133: 3544 | FP133: 182.5110722 | FS133: -4444 | FV133: 2603 | FW133: -2603
A134: 425 | B134: Liminka | C134: 9740 | E134: 1.274973601 | F134: 52.88928469 | G134: -2447.227926 | K134: 57.64989209 | L134: 380.9034908 | M134: 20.47740023 | N134: 6789.425051 | O134: 27350 | P134: 7840 | Q134: 53519 | R134: -45679 | S134: 27848 | T134: 23825 | W134: -244 | X134: 36 | Y134: 5786 | Z134: 4144 | AC134: 1642 | AD134: -8320 | AE134: 7800 | AG134: 1122 | AH134: 8555 | AI134: 5217 | AK134: 527 | AL134: -4484 | AM134: -1066 | AN134: 27848 | AO134: 26297 | AP134: 553 | AQ134: 998 | AR134: 20.5 | AT134: 40 | AU134: 9937 | AW134: 2.146324305 | AX134: 43 | AY134: -1977.256717 | BC134: 63 | BD134: 352.9234175 | BE134: 23.13784502 | BF134: 5567.374459 | BG134: 27441 | BH134: 8103 | BI134: 55705 | BJ134: -47602 | BK134: 29551 | BL134: 24101 | BO134: -185 | BP134: 81 | BQ134: 5914 | BR134: 4043 | BS134: 0 | BT134: 0 | BU134: 1871 | BV134: 640 | BW134: -2200 | BX134: 0 | BY134: 311 | BZ134: 8770 | CA134: 5311 | CC134: 590 | CD134: -4000 | CE134: 4369 | CF134: 29551 | CG134: 27755 | CH134: 628 | CI134: 1168 | CJ134: 20.5 | CL134: 45 | CM134: 10000 | CO134: 1.45899555 | CP134: 38.27252067 | CQ134: -1786 | CU134: 64.08661133 | CV134: 355.7 | CW134: 19.99638055 | CX134: 6.4927 | CY134: 28622 | CZ134: 8143 | DA134: 58793 | DB134: -50650 | DC134: 29990 | DD134: 25231 | DG134: -164 | DH134: 17 | DI134: 4424 | DJ134: 5610 | DK134: 0 | DL134: 0 | DM134: -1186 | DN134: 641 | DO134: 0 | DP134: 0 | DQ134: -545 | DR134: 8225 | DS134: 3790 | DU134: 430 | DV134: -2980 | DW134: 1784 | DX134: 29990 | DY134: 28187 | DZ134: 622 | EA134: 1181 | EB134: 20.5 | ED134: 116 | EE134: 17897 | EF134: 19444 | EG134: 20093 | EK134: -7873 | EL134: 790 | EM134: 800 | EN134: -2091 | EO134: 229 | EP134: 920 | EQ134: -2988 | ER134: 170 | ES134: 812 | ET134: 5000 | EU134: 1000 | EV134: 2655 | EW134: -6000 | EX134: 0 | EY134: 1000 | EZ134: 24235 | FA134: 11596 | FB134: 12639 | FC134: 702 | FD134: 19581 | FE134: 12620 | FF134: 6961 | FG134: 687 | FH134: 17601 | FI134: 10246 | FJ134: 7355 | FK134: 674 | FL134: 3642.299795 | FM134: 2567 | FN134: 2310 | FO134: 1374.97561 | FP134: 137.497561 | FS134: -1696 | FV134: 1949 | FW134: -1949
A135: 426 | B135: Liperi | C135: 12335 | E135: 0.9955921809 | F135: 51.43886242 | G135: -3007.053101 | K135: 28.19529875 | L135: 86.5828942 | M135: 4.505756161 | N135: 7013.862991 | O135: 33668 | P135: 14932 | Q135: 75149 | R135: -60217 | S135: 39600 | T135: 25427 | W135: -455 | X135: 320 | Y135: 4675 | Z135: 2341 | AC135: 2334 | AD135: 119 | AG135: 2454 | AH135: -719 | AI135: 4487 | AK135: 1680 | AL135: -4699 | AM135: -1204 | AN135: 39600 | AO135: 36200 | AP135: 1176 | AQ135: 2224 | AR135: 21.5 | AT135: 132 | AU135: 12338 | AW135: 0.8250957854 | AX135: 57 | AY135: -3303.614848 | BC135: 27 | BD135: 251.3373318 | BE135: 12.83439165 | BF135: 7147.835954 | BG135: 33869 | BH135: 14785 | BI135: 76919 | BJ135: -62134 | BK135: 40301 | BL135: 25747 | BO135: -462 | BP135: 653 | BQ135: 3792 | BR135: 2439 | BS135: 0 | BT135: 0 | BU135: 1353 | BV135: 119 | BW135: 0 | BX135: 0 | BY135: 1472 | BZ135: 753 | CA135: 3418 | CC135: 562 | CD135: -5000 | CE135: -3697 | CF135: 40301 | CG135: 36634 | CH135: 1379 | CI135: 2288 | CJ135: 21.5 | CL135: 171 | CM135: 12301 | CO135: 0.8553123332 | CP135: 54.82004045 | CQ135: -3222.339647 | CU135: 28.8178764 | CV135: 257.8652142 | CW135: 13.30842797 | CX135: 7.072270547 | CY135: 33449 | CZ135: 14175 | DA135: 77648 | DB135: -63473 | DC135: 40283 | DD135: 27616 | DG135: -397 | DH135: 329 | DI135: 4358 | DJ135: 3451 | DK135: 0 | DL135: 0 | DM135: 907 | DN135: 119 | DO135: 0 | DP135: 0 | DQ135: 1026 | DR135: 1780 | DS135: 4285 | DU135: 225 | DV135: -5171 | DW135: 1718 | DX135: 40283 | DY135: 36586 | DZ135: 1316 | EA135: 2381 | EB135: 21.5 | ED135: 174 | EE135: 33445 | EF135: 34570 | EG135: 35429 | EK135: -6145 | EL135: 221 | EM135: 233 | EN135: -8834 | EO135: 1300 | EP135: 419 | EQ135: -2981 | ER135: 20 | ES135: 394 | ET135: 5000 | EU135: -1303 | EV135: 4705 | EW135: 3673 | EX135: 5000 | EY135: 520 | EZ135: 28642 | FA135: 21392 | FB135: 7250 | FC135: 1383 | FD135: 32609 | FE135: 21577 | FF135: 11032 | FG135: 1383 | FH135: 32958 | FI135: 20842 | FJ135: 12116 | FK135: 2116 | FL135: 3806.64775 | FM135: 4139 | FN135: 4012.925778 | FO135: 1701.674419 | FP135: 138.3362669 | FS135: -6728 | FV135: 3322 | FW135: -3322
A136: 444 | B136: Lohja | C136: 47624 | E136: 1.538321932 | F136: 44.75777589 | G136: -2466.319503 | K136: 50.94538044 | L136: 99.59264237 | M136: 5.460046173 | N136: 6657.6936 | O136: 129559 | P136: 51667 | Q136: 285854 | R136: -234187 | S136: 181616 | T136: 62889 | W136: -1180 | X136: 561 | Y136: 9699 | Z136: 12019 | AA136: 1484 | AC136: -836 | AD136: 82 | AG136: -754 | AH136: 10685 | AI136: 9095 | AK136: 370 | AL136: -5843 | AM136: -11401 | AN136: 181616 | AO136: 163129 | AP136: 6309 | AQ136: 12178 | AR136: 20 | AT136: 237 | AU136: 47353 | AW136: 1.332562386 | AX136: 49 | AY136: -2789.897155 | BC136: 48 | BD136: 145.312863 | BE136: 7.70886919 | BF136: 6880.282136 | BG136: 129786 | BH136: 51530 | BI136: 291963 | BJ136: -240433 | BK136: 187476 | BL136: 62222 | BO136: -1070 | BP136: 2384 | BQ136: 9746 | BR136: 13632 | BS136: 0 | BT136: 0 | BU136: -3886 | BV136: 82 | BW136: 0 | BX136: 0 | BY136: -3804 | BZ136: 6881 | CA136: 7468 | CC136: 1075 | CD136: -16000 | CE136: -14286 | CF136: 187476 | CG136: 168554 | CH136: 6700 | CI136: 12222 | CJ136: 20.5 | CL136: 235 | CM136: 47149 | CO136: 2.476637887 | CP136: 52.25575355 | CQ136: -2965.492375 | CU136: 45.84586709 | CV136: 139.9605506 | CW136: 7.387725745 | CX136: 6.914929267 | CY136: 128626 | CZ136: 49385 | DA136: 290733 | DB136: -241348 | DC136: 190131 | DD136: 69250 | DG136: -816 | DH136: 1338 | DI136: 18555 | DJ136: 16924 | DK136: 0 | DL136: 0 | DM136: 1631 | DN136: 82 | DO136: 0 | DP136: 0 | DQ136: 1713 | DR136: 8594 | DS136: 15695 | DU136: -5644 | DV136: -6925 | DW136: -7721 | DX136: 190131 | DY136: 172144 | DZ136: 5582 | EA136: 12405 | EB136: 20.5 | ED136: 145 | EE136: 120948 | EF136: 124592 | EG136: 122668 | EK136: -23681 | EL136: 1038 | EM136: 2147 | EN136: -25586 | EO136: 689 | EP136: 3143 | EQ136: -27189 | ER136: 48 | ES136: 3725 | ET136: 12000 | EU136: 7131 | EV136: 7014 | EW136: 4264 | EX136: 20000 | EY136: -2009 | EZ136: 94540 | FA136: 63544 | FB136: 30996 | FC136: 3367 | FD136: 107790 | FE136: 72086 | FF136: 35704 | FG136: 3266 | FH136: 118856 | FI136: 63260 | FJ136: 55596 | FK136: 3282 | FL136: 3056.589115 | FM136: 3456 | FN136: 3825.659081 | FO136: 8397.268293 | FP136: 178.1006658 | FS136: -21738 | FV136: 5677 | FW136: -5677
A137: 430 | B137: Loimaa | C137: 16607 | E137: 0.6777471581 | F137: 41.64278553 | G137: -2385.018366 | K137: 48.26000672 | L137: 245.3784549 | M137: 12.53550268 | N137: 7144.758234 | O137: 48423 | P137: 17746 | Q137: 108958 | R137: -91212 | S137: 52844 | T137: 42129 | W137: -418 | X137: 171 | Y137: 3514 | Z137: 3515 | AC137: -1 | AD137: 81 | AG137: 80 | AH137: 1594 | AI137: 3233 | AK137: 4926 | AL137: -5385 | AM137: 250 | AN137: 52844 | AO137: 46004 | AP137: 2794 | AQ137: 4046 | AR137: 20.5 | AT137: 233 | AU137: 16467 | AW137: 0.8770331815 | AX137: 41 | AY137: -2282.747313 | BC137: 49 | BD137: 334.2442461 | BE137: 17.99756325 | BF137: 6778.648206 | BG137: 46430 | BH137: 16587 | BI137: 107083 | BJ137: -90496 | BK137: 54006 | BL137: 41730 | BO137: -309 | BP137: 250 | BQ137: 5079 | BR137: 4050 | BS137: 0 | BT137: 0 | BU137: 1029 | BV137: 76 | BW137: 177 | BX137: 0 | BY137: 1282 | BZ137: 2876 | CA137: 4880 | CC137: 255 | CD137: -5000 | CE137: 2254 | CF137: 54006 | CG137: 46825 | CH137: 3101 | CI137: 4080 | CJ137: 20.5 | CL137: 169 | CM137: 16267 | CO137: 0.5283715507 | CP137: 39.54161104 | CQ137: -2348.681379 | CU137: 48.49583862 | CV137: 184.9142436 | CW137: 8.952380952 | CX137: 7.539189771 | CY137: 48982 | CZ137: 19292 | DA137: 114301 | DB137: -95009 | DC137: 53725 | DD137: 43827 | DG137: -289 | DH137: 174 | DI137: 2428 | DJ137: 3964 | DK137: 0 | DL137: 0 | DM137: -1536 | DN137: 71 | DO137: 0 | DP137: 0 | DQ137: -1465 | DR137: 1411 | DS137: 1735 | DU137: -1877 | DV137: -4855 | DW137: -512 | DX137: 53725 | DY137: 46513 | DZ137: 3001 | EA137: 4211 | EB137: 20.5 | ED137: 255 | EE137: 47108 | EF137: 47171 | EG137: 50343 | EK137: -3536 | EL137: 156 | EM137: 397 | EN137: -3591 | EO137: 368 | EP137: 597 | EQ137: -3145 | ER137: 12 | ES137: 886 | ET137: 5000 | EU137: -2500 | EV137: 5835 | EW137: 650 | EX137: 0 | EY137: 3000 | EZ137: 35748 | FA137: 22864 | FB137: 12884 | FC137: 838 | FD137: 35563 | FE137: 23209 | FF137: 12354 | FG137: 830 | FH137: 33709 | FI137: 18662 | FJ137: 15047 | FK137: 840 | FL137: 3601.673993 | FM137: 3504 | FN137: 3288.867031 | FO137: 2268.926829 | FP137: 139.4803485 | FS137: -2590 | FV137: 8094 | FW137: -8094
A138: 433 | B138: Loppi | C138: 8291 | E138: 0.9079384871 | F138: 39.91914077 | G138: -2006.633699 | K138: 59.00491553 | L138: 164.8775781 | M138: 9.543350611 | N138: 6305.994452 | O138: 18723 | P138: 5718 | Q138: 44677 | R138: -38959 | S138: 27309 | T138: 15987 | W138: -347 | X138: 19 | Y138: 4009 | Z138: 1663 | AC138: 2346 | AG138: 2346 | AH138: 12546 | AI138: 3849 | AK138: -297 | AL138: -4452 | AM138: 1247 | AN138: 27309 | AO138: 24100 | AP138: 1207 | AQ138: 2002 | AR138: 20 | AT138: 80 | AU138: 8175 | AW138: 0.646785627 | AX138: 43 | AY138: -2298.470948 | BC138: 54 | BD138: 147.5229358 | BE138: 8.250984067 | BF138: 6525.993884 | BG138: 18843 | BH138: 5828 | BI138: 46061 | BJ138: -40233 | BK138: 27605 | BL138: 15242 | BO138: -326 | BP138: 24 | BQ138: 2309 | BR138: 1770 | BS138: 0 | BT138: 0 | BU138: 539 | BV138: 0 | BW138: 0 | BX138: 0 | BY138: 539 | BZ138: 11240 | CA138: 2252 | CC138: 406 | CD138: -5000 | CE138: -2079 | CF138: 27605 | CG138: 24125 | CH138: 1478 | CI138: 2002 | CJ138: 20.5 | CL138: 188 | CM138: 8098 | CO138: 1.046128501 | CP138: 52.4262531 | CQ138: -2855.272907 | CU138: 50.75780513 | CV138: 228.6984441 | CW138: 11.62216529 | CX138: 7.182390714 | CY138: 18716 | CZ138: 5585 | DA138: 46375 | DB138: -40790 | DC138: 28572 | DD138: 15986 | DG138: -304 | DH138: 20 | DI138: 3484 | DJ138: 2248 | DK138: 0 | DL138: 0 | DM138: 1236 | DN138: 0 | DO138: 0 | DP138: 0 | DQ138: 1236 | DR138: 12477 | DS138: 2724 | DU138: -117 | DV138: -3316 | DW138: -5219 | DX138: 28572 | DY138: 25091 | DZ138: 1450 | EA138: 2031 | EB138: 21.5 | ED138: 125 | EE138: 20890 | EF138: 22370 | EG138: 22765 | EK138: -2832 | EM138: 230 | EN138: -4463 | EO138: 0 | EP138: 132 | EQ138: -8253 | ER138: 16 | ES138: 294 | ET138: 2500 | EU138: 1200 | EV138: 3754 | EX138: 9000 | EY138: -500 | EZ138: 14898 | FA138: 6598 | FB138: 8300 | FC138: 1439 | FD138: 16144 | FE138: 8357 | FF138: 7787 | FG138: 1489 | FH138: 21328 | FI138: 13979 | FJ138: 7349 | FK138: 489 | FL138: 3360.390785 | FM138: 3142 | FN138: 3737.836503 | FO138: 1167.023256 | FP138: 144.1125285 | FS138: -4264 | FV138: 3878 | FW138: -3878
